Workbook

Sheet Step1
C1: NCL30002 Design Guide
B3: Rev 0.0 ….. 23-April-2012
A4: Color Code Definitions | C4: User Inputs - these are cells for the designer to input data/information | J4: This design worksheet is intended to provide guidance to the designer and is not a guarantee of performance. The designer should validate circuit performance across expected operating conditions. Please ensure macros are enabled.
C5: Output Information - Analysis data generated by the algorithm
C6: Suggested Algorithm - initial values generated to provide guidance to the designer
A7: Basic Input Parameters | F7: Output Parameters
A8: Low Line | D8: 100 | E8: V ac | I8: Low Line | M8: Typical Line | Q8: High Line
A9: Typical Line | D9: 120 | E9: V ac | I9: Vfmax | K9: Vfmin | M9: Vfmax | O9: Vfmin | Q9: Vfmax | S9: Vfmin
A10: High Line | D10: 132 | E10: V ac | F10: Power Factor | I10: =IF('Alg LL Vfmax'!R4>1,0.995,'Alg LL Vfmax'!R4) -> 0.9603108037 | K10: =IF('Alg LL Vfmin'!R4>1,0.995,'Alg LL Vfmin'!R4) -> 0.9440895598 | M10: =IF('Alg TL Vfmax'!R4>1,0.995,'Alg TL Vfmax'!R4) -> 0.9541585116 | O10: =IF('Alg TL Vfmin'!R4>1,0.995,'Alg TL Vfmin'!R4) -> 0.9547948149 | Q10: =IF('Alg HL Vfmax'!R4>1,0.995,'Alg HL Vfmax'!R4) -> 0.9826016307 | S10: =IF('Alg HL Vfmin'!R4>1,0.995,'Alg HL Vfmin'!R4) -> 0.9664771523
A11: Line Frequency | D11: 60 | E11: Hz | F11: RMS Input Current | I11: ='Alg LL Vfmax'!Q4*1000 -> 197.9053541 | K11: ='Alg LL Vfmin'!Q4*1000 -> 175.3106975 | M11: ='Alg TL Vfmax'!Q4*1000 -> 168.427034 | O11: ='Alg TL Vfmin'!Q4*1000 -> 145.9095349 | Q11: ='Alg HL Vfmax'!Q4*1000 -> 146.9907349 | S11: ='Alg HL Vfmin'!Q4*1000 -> 129.2617772 | U11: mA
A12: Max LED String Voltage (Vfmax) | D12: 26 | E12: V dc | F12: Avg Output Current | I12: ='Alg LL Vfmax'!L4*1000 -> 730.9640373 | K12: ='Alg LL Vfmin'!L4*1000 -> 752.3136328 | M12: ='Alg TL Vfmax'!L4*1000 -> 741.7204064 | O12: ='Alg TL Vfmin'!L4*1000 -> 759.8927309 | Q12: ='Alg HL Vfmax'!L4*1000 -> 733.2769357 | S12: ='Alg HL Vfmin'!L4*1000 -> 749.5713258 | U12: mA
A13: Min LED String Voltage (Vfmin) | D13: 22 | E13: V dc | F13: Switching Frequency (max) | I13: ='Alg LL Vfmax'!I4 -> 289.4379208 | K13: ='Alg LL Vfmin'!I4 -> 289.2296535 | M13: ='Alg TL Vfmax'!I4 -> 366.914119 | O13: ='Alg TL Vfmin'!I4 -> 366.8378825 | Q13: ='Alg HL Vfmax'!I4 -> 437.1427459 | S13: ='Alg HL Vfmin'!I4 -> 437.5824563 | U13: kHz
A14: Target Switching Frequency (nom) | D14: 100 | E14: kHz | F14: Switching Frequency (nom) | I14: ='Alg LL Vfmax'!J4 -> 91.08 | K14: ='Alg LL Vfmin'!J4 -> 81 | M14: ='Alg TL Vfmax'!J4 -> 98.88 | O14: ='Alg TL Vfmin'!J4 -> 90.72 | Q14: ='Alg HL Vfmax'!J4 -> 110.52 | S14: ='Alg HL Vfmin'!J4 -> 97.44 | U14: kHz
A15: Target Output Current | D15: 750 | E15: mA | F15: Output Power | I15: =D12*I12*0.001 -> 19.00506497 | K15: ='Alg LL Vfmin'!P4 -> 16.55089992 | M15: =D12*M12*0.001 -> 19.28473057 | O15: ='Alg TL Vfmin'!P4 -> 16.71764008 | Q15: =D12*Q12*0.001 -> 19.06520033 | S15: ='Alg HL Vfmin'!P4 -> 16.49056917 | U15: Watts
A16: Initial Suggested Values | F16: Ipeak Switch | I16: ='Alg LL Vfmax'!D5 -> 2.1 | K16: ='Alg LL Vfmin'!D5 -> 2.1 | M16: ='Alg TL Vfmax'!D5 -> 2.1 | O16: ='Alg TL Vfmin'!D5 -> 2.1 | Q16: ='Alg HL Vfmax'!D5 -> 2.1 | S16: ='Alg HL Vfmin'!D5 -> 2.1 | U16: Amps
A17: Output Inductance | D17: =D19*(D9*1.414*SIN((180-D25)*PI()/360)-AVERAGE(D12:D13))/D18 -> 109.3734021 | E17: µH | F17: Peak output Rect. Current | I17: =I16 -> 2.1 | K17: ='Alg LL Vfmin'!D5 -> 2.1 | M17: =M16 -> 2.1 | O17: ='Alg TL Vfmin'!D5 -> 2.1 | Q17: =Q16 -> 2.1 | S17: ='Alg HL Vfmin'!D5 -> 2.1 | U17: Amps
A18: Peak Switch Current | D18: =2.8*D15*0.001 -> 2.1 | E18: Amps
A19: Max On time @ Typical Line | D19: =1350*(1/D14)*(AVERAGE(D12:D13)/D9) -> 2.7 | E19: µs
G20: Statistics | I20: Vfmin | K20: Vfnom | M20: Vfmax
A21: Variable Input Parameters | F21: Mean Output Current | I21: =AVERAGE(K12,O12,S12) -> 753.9258965 | K21: =AVERAGE(I12:T12) -> 744.6231781 | M21: =AVERAGE(I12,M12,Q12) -> 735.3204598 | O21: mA
A22: Output Inductance | D22: 125 | E22: µH | F22: Upper Limit | I22: =(MAX(K12,O12,S12)/I21)-1 -> 0.007914351336 | K22: =(MAX((I12+K12)/2,(M12+O12)/2,(Q12+S12)/2)/K21)-1 -> 0.008304053232 | M22: =(MAX(I12,M12,Q12)/M21)-1 -> 0.008703615555
A23: Peak Switch Current | D23: 2.1 | E23: Amps | F23: Lower Limit | I23: =(MIN(K12,O12,S12)/I21)-1 -> -0.005775860366 | K23: =(MIN((I12+K12)/2,(M12+O12)/2,(Q12+S12)/2)/K21)-1 -> -0.004296196359 | M23: =(MIN(I12,M12,Q12)/M21)-1 -> -0.005924522384
A24: Max On time @ Typical Line | D24: 2.7 | E24: µs | F24: Switching Frequency (nom) | I24: =AVERAGE(K14,O14,S14) -> 89.72 | K24: =AVERAGE(I14:T14) -> 94.94 | M24: =AVERAGE(I14,M14,Q14) -> 100.16 | O24: kHz
A25: Conduction Angle Window | D25: 100 | E25: Degrees
A26: Curve Correction Coefficient | D26: 0.5 | E26: =IF((((D10*1.414*Worksheet!Q22)+Worksheet!Q25)*270/D30)<0.4,"Zener Req'd","Zener Not Req'd") -> Zener Req'd
H27: EFD20 | I27: EFD15 | J27: EE13 | K27: EE16 | L27: RM6 | M27: Other
F28: Will it Fit? | H28: =IF(H30/H31<1,"Yes","No") -> Yes | I28: No | J28: No | K28: Yes | L28: Yes | M28: No
A29: Feed Forward Set Up | F29: B @ Imax (Tesla) | H29: =Step3!D9 -> 0.3 | I29: =Step3!E9 -> 0.3 | J29: =Step3!F9 -> 0.3 | K29: =Step3!G9 -> 0.32 | L29: =Step3!H9 -> 0.3 | M29: =Step3!I9 -> 0.3
A30: Ct | D30: =((D42*D45)+(D46*D42*D43/D47))/(D43-D44) -> 463.6186569 | E30: pF | F30: Area Prod Re'qd cm4 | H30: ='EFD20'!B4 -> 0.02625 | I30: ='EFD15'!B4 -> 0.02625 | J30: ='EE13'!B4 -> 0.02625 | K30: ='EE16'!B4 -> 0.024609375 | L30: ='RM6'!B4 -> 0.02625 | M30: ='Other Core'!B4 -> 0.02625
A31: Rsense | D31: =0.485/D23 -> 0.230952381 | E31: Ohms | F31: Area Prod Available cm4 | H31: ='EFD20'!G4 -> 0.0806 | I31: ='EFD15'!G4 -> 0.0222 | J31: ='EE13'!G4 -> 0.014384 | K31: ='EE16'!G4 -> 0.0432 | L31: ='RM6'!G4 -> 0.0465 | M31: ='Other Core'!G4 -> 0.006
A32: Rfb | D32: =D49 -> 816.775391 | E32: K Ohms | F32: Al (nH/T2) | H32: ='EFD20'!B19 -> 156.8979592 | I32: ='EFD15'!B19 -> 36.73469388 | J32: ='EE13'!B19 -> 25.10367347 | K32: ='EE16'!B19 -> 74.30385488 | L32: ='RM6'!B19 -> 156.8979592 | M32: ='Other Core'!B19 -> 36.73469388
A33: Rin | D33: =D48 -> 942 | E33: K Ohms | F33: Current Density (A/cm2) | H33: =Step3!D13 -> 600 | I33: =Step3!E13 -> 600 | J33: =Step3!F13 -> 600 | K33: =Step3!G13 -> 600 | L33: =Step3!H13 -> 600 | M33: =Step3!I13 -> 600
A34: Rtop | D34: =Step2!L45 -> 2 | E34: Meg Ohm | F34: Fill Factor | H34: =Step3!D14 -> 0.5 | I34: =Step3!E14 -> 0.5 | J34: =Step3!F14 -> 0.5 | K34: =Step3!G14 -> 0.5 | L34: =Step3!H14 -> 0.5 | M34: =Step3!I14 -> 0.5
A35: Rbottom | D35: =D51 -> 59.73223481 | E35: =E51 -> K Ohms | F35: Turns | H35: ='EFD20'!B16 -> 28.22580645 | I35: ='EFD15'!B16 -> 58.33333333 | J35: ='EE13'!B16 -> 70.56451613 | K35: ='EE16'!B16 -> 41.015625 | L35: ='RM6'!B16 -> 28.22580645 | M35: ='Other Core'!B16 -> 58.33333333
A36: Cfilter | D36: =1000/(6.28*D35*10) -> 0.2665824731 | E36: µF Min | F36: Wire AWG | H36: ='EFD20'!F28 -> 20.5034464 | I36: ='EFD15'!F28 -> 26.06395052 | J36: ='EE13'!F28 -> 27.93545074 | K36: ='EE16'!F28 -> 22.91462345 | L36: ='RM6'!F28 -> 22.87549529 | M36: ='Other Core'!F28 -> 31.70607411
A37: K (Voltage Divider Constant) | D37: =Step2!L49 -> 0.029 | E37: =IF(D32<300,"K is too large", "OK") -> OK | F37: DCR mOhms @ 25C | H37: ='EFD20'!F21 -> 37.94725046 | I37: ='EFD15'!F21 -> 208.0108859 | J37: ='EE13'!F21 -> 354.3924253 | K37: ='EE16'!F21 -> 88.41323853 | L37: ='RM6'!F21 -> 54.81269511 | M37: ='Other Core'!F21 -> 769.6402778
F38: Core Area | M38: =Step3!I18 -> 0.165 | N38: cm2
F39: Window Area | M39: =Step3!I19 -> 0.04 | N39: cm2
B41: Parameter | C41: Description | D41: Value | E41: Units
B42: Ichg | C42: Ct Charge Current | D42: 270 | E42: uA
B43: Vref | C43: Internal Vref | D43: 2.5 | E43: V
B44: Voffset | C44: Internal Ramp Offset | D44: 0.4 | E44: V
B45: b | C45: Intercept | D45: =Worksheet!R25 -> 7.112147977 | E45: us
B46: m | C46: Slope | D46: =Worksheet!R22 -> -0.04067221105 | E46: us/V
B47: K | C47: Voltage Divider | D47: =D37 -> 0.029 | E47: =IF(D42*(D8*D46+D45)/D30>2.5,"K is too Small", "K is OK") -> K is OK
B48: Rin | D48: =1000*(1-D47*D50) -> 942 | E48: K Ohms
B49: Rfb | D49: =-1000*D46*D42/(D30*D47) -> 816.775391 | E49: K Ohms
B50: R3 | D50: =D34 -> 2 | E50: Meg Ohm
B51: R4 | D51: =1000*(D47*D50/(1-D47)) -> 59.73223481 | E51: K Ohms

Sheet Step2
A36: Partial Schematic showing the Connection of the Feed Forward Components
G40: Feed Forward Set up | Q40: Messages
G41: =Step1!A30 -> Ct | L41: =Step1!D30 -> 463.6186569 | N41: =Step1!E30 -> pF | Q41: =IF(L41<200,"Caution, Ct is small. Raise Value of K to increase Ct","") -> 
G42: =Step1!A31 -> Rsense | L42: =Step1!D31 -> 0.230952381 | N42: =Step1!E31 -> Ohms
G43: =Step1!A32 -> Rfb | L43: =Step1!D32 -> 816.775391 | N43: =Step1!E32 -> K Ohms
G44: =Step1!A33 -> Rin | L44: =Step1!D33 -> 942 | N44: =Step1!E33 -> K Ohms | Q44: =IF(L44<300,"K is too large","") -> 
G45: =Step1!A34 -> Rtop | L45: 2 | N45: =Step1!E34 -> Meg Ohm | Q45: =IF(L45>3,"Caution, Rtop may be too large","") -> 
G46: =Step1!A35 -> Rbottom | L46: =Step1!D35 -> 59.73223481 | N46: =Step1!E35 -> K Ohms
G47: =Step1!A36 -> Cfilter | L47: =Step1!D36 -> 0.2665824731 | N47: =Step1!E36 -> µF Min
G48: Dzener | L48: =L49*Worksheet!X21 -> 4.31668041 | N48: Volts | Q48: =IF(Worksheet!U21>0.1,"Zener Optional", "Zener Required") -> Zener Required
G49: =Step1!A37 -> K (Voltage Divider Constant) | L49: 0.029 | N49: =IF(L43>300,"K is OK","") -> K is OK | Q49: =IF(L41<0,"K is too small","") -> 
G52: Notes:
G53: 1. Adjust K until Ct is a standard value

Sheet Step3
C2: Inductor Design
A3: Output Inductance | E3: =Step1!D22 -> 125 | F3: µH
A4: Saturation Current | E4: =Step1!D23 -> 2.1 | F4: Amps
D6: Core Choices
D7: EFD20 | E7: EFD15 | F7: EE13 | G7: EE16 | H7: RM6 | I7: Other
A8: =Step1!F28 -> Will it Fit? | D8: =Step1!H28 -> Yes | E8: =Step1!I28 -> No | F8: =Step1!J28 -> No | G8: =Step1!K28 -> Yes | H8: =Step1!L28 -> Yes | I8: =Step1!M28 -> No
A9: =Step1!F29 -> B @ Imax (Tesla) | D9: 0.3 | E9: 0.3 | F9: 0.3 | G9: 0.32 | H9: 0.3 | I9: 0.3 | O9: EFD20
A10: Area Prod Re'qrd (cm4) | D10: =Step1!H30 -> 0.02625 | E10: =Step1!I30 -> 0.02625 | F10: =Step1!J30 -> 0.02625 | G10: =Step1!K30 -> 0.024609375 | H10: =Step1!L30 -> 0.02625 | I10: =Step1!M30 -> 0.02625 | O10: EFD15
A11: Area Prod Available (cm4) | D11: =Step1!H31 -> 0.0806 | E11: =Step1!I31 -> 0.0222 | F11: =Step1!J31 -> 0.014384 | G11: =Step1!K31 -> 0.0432 | H11: =Step1!L31 -> 0.0465 | I11: =Step1!M31 -> 0.006 | O11: EE13
A12: Al (nH/T2) | D12: =Step1!H32 -> 156.8979592 | E12: =Step1!I32 -> 36.73469388 | F12: =Step1!J32 -> 25.10367347 | G12: =Step1!K32 -> 74.30385488 | H12: =Step1!L32 -> 156.8979592 | I12: =Step1!M32 -> 36.73469388 | O12: EE16
A13: Current Density (Amps/cm2) | D13: 600 | E13: 600 | F13: 600 | G13: 600 | H13: 600 | I13: 600 | O13: RM6
A14: =Step1!F34 -> Fill Factor | D14: 0.5 | E14: 0.5 | F14: 0.5 | G14: 0.5 | H14: 0.5 | I14: 0.5 | O14: Other
A15: =Step1!F35 -> Turns | D15: =Step1!H35 -> 28.22580645 | E15: =Step1!I35 -> 58.33333333 | F15: =Step1!J35 -> 70.56451613 | G15: =Step1!K35 -> 41.015625 | H15: =Step1!L35 -> 28.22580645 | I15: =Step1!M35 -> 58.33333333
A16: =Step1!F36 -> Wire AWG | D16: =Step1!H36 -> 20.5034464 | E16: =Step1!I36 -> 26.06395052 | F16: =Step1!J36 -> 27.93545074 | G16: =Step1!K36 -> 22.91462345 | H16: =Step1!L36 -> 22.87549529 | I16: =Step1!M36 -> 31.70607411 | O16: TR1 | Q16: =20/Step1!D12 -> 0.7692307692
A17: DCR in mΩ @ 25° C | D17: =Step1!H37 -> 37.94725046 | E17: =Step1!I37 -> 208.0108859 | F17: =Step1!J37 -> 354.3924253 | G17: =Step1!K37 -> 88.41323853 | H17: =Step1!L37 -> 54.81269511 | I17: =Step1!M37 -> 769.6402778 | O17: TR2 | Q17: =13.7/Step1!D13 -> 0.6227272727
A18: =Step1!F38 -> Core Area | I18: 0.165 | J18: cm2
A19: =Step1!F39 -> Window Area | I19: 0.04 | J19: cm2
A22: Choose Core
A23: Core | D23: EFD15
A24: Primary Turns | D24: =VLOOKUP(D23,A35:C40,2,FALSE) -> 58.33333333 | F24: Turns
A25: Wire Gauge or Equivalent | D25: =VLOOKUP(D23,A35:C40,3,FALSE) -> 26.06395052 | F25: AWG
A26: Sense Winding Turns | D26: =D24*D27 -> 40.37328253 | F26: Turns
A27: Turns Ratio | D27: =SQRT(Q16*Q17) -> 0.6921134149
A28: Sense Winding Gauge | D28: 36 | F28: AWG
A29: Sense Winding Inductance | D29: =E3*(D26/D24)^2 -> 59.87762238 | F29: µH
A35: =D7 -> EFD20 | B35: =D15 -> 28.22580645 | C35: =D16 -> 20.5034464
A36: =E7 -> EFD15 | B36: =E15 -> 58.33333333 | C36: =E16 -> 26.06395052
A37: =F7 -> EE13 | B37: =F15 -> 70.56451613 | C37: =F16 -> 27.93545074
A38: =G7 -> EE16 | B38: =G15 -> 41.015625 | C38: =G16 -> 22.91462345
A39: =H7 -> RM6 | B39: =H15 -> 28.22580645 | C39: =H16 -> 22.87549529
A40: =I7 -> Other | B40: =I15 -> 58.33333333 | C40: =I16 -> 31.70607411

Sheet Step4
D2: Support Circuit Calculations
A4: Start up Resistors
A5: Target Start Time | D5: 0.3 | E5: Seconds | F5: =IF(D7>0.2,"Fast Start Time will cause high power Dissipation in Rstart","") -> 
A6: Vcc Capacitor | D6: 22 | E6: µF | F6: =IF(D6<22,"Vcc Capacitor may be too small","") -> 
A7: Maximum Power Dissipation | D7: =Step1!D10^2/(1000*Step4!D16) -> 0.1129561528 | E7: Watts
A9: Output Capacitor
A10: Target Pk-Pk Ripple Current | D10: 50 | E10: % of Output Current
A11: LED String Dynamic Resistance | D11: 3.8 | E11: Ohms
A12: Output Capacitor | D12: =1000000/(6.28*Step1!D11*2*Step4!D11*Step4!D10*0.01) -> 698.4020561 | E12: µF
A15: Rzcd Resistor | D15: =0.001*Step1!D10*1.414*Step3!D27/0.005 -> 25.83631693 | E15: k Ohms
A16: Rstart | D16: =0.001*Step1!D8*1.414*Step4!D5/(Step4!D6*0.000001*12.5) -> 154.2545455 | E16: k Ohms

Sheet Typical Schematic & Summary
A48: Summary of Recommended Component Values
A50: Reference Designator | C50: Value | E50: Critical Selection Criteria
A51: Rstart | C51: =Step4!D16 -> 154.2545455 | D51: =Step4!E15 -> k Ohms | E51: Voltage Rating & Power Dissipation
A52: Rzcd | C52: =Step4!D15 -> 25.83631693 | D52: =Step4!E15 -> k Ohms | E52: Power Dissipation
A53: Rgdrv | C53: 10 | D53: Ohms
A54: Rtop | C54: =Step2!L45 -> 2 | D54: =Step2!N45 -> Meg Ohm | E54: Voltage Rating & Power Dissipation
A55: Rbottom | C55: =Step2!L46 -> 59.73223481 | D55: =Step2!N46 -> K Ohms
A56: Rin | C56: =Step2!L44 -> 942 | D56: =Step2!N44 -> K Ohms
A57: Rfb | C57: =Step2!L43 -> 816.775391 | D57: =Step2!N43 -> K Ohms
A58: Rsense | C58: =Step2!L42 -> 0.230952381 | D58: =Step2!N42 -> Ohms | E58: Power Dissipation
A59: Ct | C59: =Step2!L41 -> 463.6186569 | D59: =Step2!N41 -> pF | E59: NP0 or C0G Recommended
A60: Ccomp | C60: 10 | D60: nF
A61: Cfilter | C61: =Step2!L47 -> 0.2665824731 | D61: =Step4!E12 -> µF
A62: Cout | C62: =Step4!D12 -> 698.4020561 | D62: =Step4!E12 -> µF
A63: Cvcc | C63: =Step4!D6 -> 22 | D63: =Step4!E12 -> µF
A64: Dovp | C64: =Step1!D12*1.25 -> 32.5 | D64: V | E64: Zener Value should not exceed the Output Capacitor Voltage Rating
A65: Dzener | C65: =Step2!L48 -> 4.31668041 | D65: V | E65: =Step2!Q48 -> Zener Required
A66: Lout | C66: =Step3!E3 -> 125 | D66: µH

Sheet Algorithm (hidden)
C1: LED DCM Buck Model | AC1: Decision | AD1: Freqs
D2: =D3/1000000 -> 0.0001 | AC2: Yes | AD2: 50
C3: Lout | D3: 100 | E3: uH | I3: Fmax | J3: Favg | K3: Iavgin | L3: Iavgout | O3: Pavgin | P3: Pavgout | Q3: In RMS | R3: PF | AC3: No | AD3: 60
C4: Vout | D4: 26 | E4: VDC | I4: =MAX(I12:I3001) -> 499.5070921 | J4: =S10*2*60/1000 -> 123.72 | K4: =O4/(D6*1.414*0.636) -> 0.1916831657 | L4: =P4/D4 -> 0.7956066353 | O4: =SUM(O11:O2500)*2*D7 -> 20.68577252 | P4: =SUM(P11:P2500)*2*D7 -> 20.68577252 | Q4: =SQRT(P6/P7) -> 0.1696264489 | R4: =O4/(D6*Q4) -> 1.016241505
C5: Ipeak | D5: 2.5 | E5: A
C6: Vin RMS | D6: 120 | E6: VAC | P6: =SUMSQ(K11:K2500) -> 29.66509925
C7: Freq | D7: =Step1!D11 -> 60 | E7: Hz | F7: k | G7: 240 | P7: =S10 -> 1031
C8: Ton | D8: =G7/D6 -> 2 | E8: us | F8: =Step1!D24 -> 2.7
A10: N | C10: Vin | D10: Time | E10: Ton Calc | F10: Ton | G10: Toff | H10: Ipeak | I10: Freq | J10: Duty | K10: Iin | L10: Iout | M10: Ein | N10: Eout | O10: Pin | P10: Pout | S10: =SUM(S11:S2500) -> 1031 | U10: Time | V10: =C10 -> Vin | X10: =U10 -> Time | Y10: =K10 -> Iin | AA10: =U10 -> Time | AB10: =L10 -> Iout
A11: 11 | B11: 0 | C11: =$D$6*1.414*SIN(6.28*B11*$D$7) -> 0 | D11: =IF(C11<$D$4,0.0001,$D$2*$D$5/(C11-$D$4)) -> 0.0001 | E11: =IF($D$2*$D$5/(C11-$D$4)<0,0,$D$2*$D$5/(C11-$D$4)) -> 0 | F11: =IF(E11>$D$8*0.000001,$D$8*0.000001,E11) -> 0 | G11: =IF(F11<=0,0,$D$2*H11/$D$4) -> 0 | H11: =(C11-$D$4)*F11/$D$2 -> 0 | I11: =IF(H11<=0.0001,0,0.001/(F11+G11)) -> 0 | J11: =IF(H11<=0,0,F11/(F11+G11)) -> 0 | K11: =S11*J11*H11/2 -> 0 | L11: =S11*H11/2 -> 0 | M11: =(F11+G11)*C11*J11*H11/2 -> 0 | N11: =$D$4*H11*0.5*(F11+G11) -> 0 | O11: =M11*S11 -> 0 | P11: =N11*S11 -> 0 | S11: =IF(B11<=1/(2*$D$7),1,0) -> 1 | U11: =IF(B11<(1/(2*$D$7)),B11,1/(2*$D$7)) -> 0 | V11: =C11 -> 0 | X11: =U11 -> 0 | Y11: =K11 -> 0 | AA11: =U11 -> 0 | AB11: =L11 -> 0
A12: =A11+1 -> 12 | B12: =IF(F11<=0,D11+B11,F11+G11) -> 0.0001 | C12: =ABS($D$6*1.414*SIN(6.28*B12*$D$7)) -> 6.392029601 | D12: 0.0001 | E12: =IF($D$2*$D$5/(C12-$D$4)<0,0,$D$2*$D$5/(C12-$D$4)) -> 0 | F12: 0 | G12: 0 | H12: 0 | I12: 0 | J12: =IF(H12<=0,0,F12/(F12+G12)) -> 0 | K12: =S12*J12*H12/2 -> 0 | L12: =S12*H12/2 -> 0 | M12: 0 | N12: 0 | O12: =M12*S12 -> 0 | P12: =N12*S12 -> 0 | S12: =IF(B12<=1/(2*$D$7),1,0) -> 1 | U12: =IF(B12<(1/(2*$D$7)),B12,1/(2*$D$7)) -> 0.0001 | V12: 6.392029601 | X12: =U12 -> 0.0001 | Y12: 0 | AA12: =U12 -> 0.0001 | AB12: 0
A13: =A12+1 -> 13 | B13: =IF(F12<=0,D12+B12,F12+G12) -> 0.0002 | C13: =ABS($D$6*1.414*SIN(6.28*B13*$D$7)) -> 12.77498498 | D13: 0.0001 | E13: 0 | F13: 0 | G13: 0 | H13: 0 | I13: 0 | J13: 0 | K13: 0 | L13: 0 | M13: 0 | N13: 0 | O13: 0 | P13: 0 | S13: 1 | U13: =IF(B13<(1/(2*$D$7)),B13,1/(2*$D$7)) -> 0.0002 | V13: 12.77498498 | X13: 0.0002 | Y13: 0 | AA13: 0.0002 | AB13: 0
A14: 14 | B14: =IF(F13<=0,D13+B13,F13+G13) -> 0.0003 | C14: =ABS($D$6*1.414*SIN(6.28*B14*$D$7)) -> 19.13980481 | D14: 0.0001 | E14: 0 | F14: 0 | G14: 0 | H14: 0 | I14: 0 | J14: 0 | K14: 0 | L14: 0 | M14: 0 | N14: 0 | O14: 0 | P14: 0 | S14: 1 | U14: 0.0003 | V14: 19.13980481 | X14: 0.0003 | Y14: 0 | AA14: 0.0003 | AB14: 0
A15: 15 | B15: =IF(F14<=0,D14+B14,F14+G14) -> 0.0004 | C15: 25.4774535 | D15: 0.0001 | E15: 0 | F15: 0 | G15: 0 | H15: 0 | I15: 0 | J15: 0 | K15: 0 | L15: 0 | M15: 0 | N15: 0 | O15: 0 | P15: 0 | S15: 1 | U15: 0.0004 | V15: 25.4774535 | X15: 0.0004 | Y15: 0 | AA15: 0.0004 | AB15: 0
A16: 16 | B16: =IF(F15<=0,D15+B15,F15+G15+B15) -> 0.0005 | C16: 31.77893403 | D16: 4.326057344e-05 | E16: 4.326057344e-05 | F16: 2e-06 | G16: 4.445333869e-07 | H16: 0.1155786806 | I16: 409.0760246 | J16: 0.8181520493 | K16: 0.04728046719 | L16: 0.05778934029 | M16: 3.672967265e-06 | N16: 3.672967265e-06 | O16: 3.672967265e-06 | P16: 3.672967265e-06 | S16: 1 | U16: 0.0005 | V16: 31.77893403 | X16: 0.0005 | Y16: 0.04728046719 | AA16: 0.0005 | AB16: 0.05778934029
A17: 17 | B17: =IF(F16<=0,D16+B16,F16+G16+B16) -> 0.0005024445334 | C17: 31.93244724 | D17: 4.21411249e-05 | E17: 4.21411249e-05 | F17: 2e-06 | G17: =IF(F17<=0,0,$D$2*H17/$D$4) -> 4.563420952e-07 | H17: =(C17-$D$4)*F17/$D$2 -> 0.1186489447 | I17: 407.1094177 | J17: 0.8142188354 | K17: 0.0483031028 | L17: 0.05932447237 | M17: 3.788751168e-06 | N17: 3.788751168e-06 | O17: 3.788751168e-06 | P17: 3.788751168e-06 | S17: 1 | U17: 0.0005024445334 | V17: 31.93244724 | X17: 0.0005024445334 | Y17: 0.0483031028 | AA17: 0.0005024445334 | AB17: 0.05932447237
A18: 18 | B18: 0.0005049008755 | C18: 32.08667473 | D18: 4.107333006e-05 | E18: 4.107333006e-05 | F18: =IF(E18>$D$8*0.000001,$D$8*0.000001,E18) -> 2e-06 | G18: 4.682057481e-07 | H18: 0.1217334945 | I18: =IF(H18<=0.0001,0,0.001/(F18+G18)) -> 405.1526096 | J18: 0.8103052193 | K18: 0.04932064298 | L18: 0.06086674726 | M18: =(F18+G18)*C18*J18*H18/2 -> 3.906023042e-06 | N18: 3.906023042e-06 | O18: 3.906023042e-06 | P18: 3.906023042e-06 | S18: 1 | U18: 0.0005049008755 | V18: 32.08667473 | X18: 0.0005049008755 | Y18: 0.04932064298 | AA18: 0.0005049008755 | AB18: 0.06086674726
A19: 19 | B19: 0.0005073690812 | C19: 32.24161942 | D19: 4.005370775e-05 | E19: 4.005370775e-05 | F19: =IF(E19>$D$8*0.000001,$D$8*0.000001,E19) -> 2e-06 | G19: 4.801245705e-07 | H19: 0.1248323883 | I19: =IF(H19<=0.0001,0,0.001/(F19+G19)) -> 403.2055534 | J19: 0.8064111068 | K19: 0.05033311222 | L19: 0.06241619417 | M19: =(F19+G19)*C19*J19*H19/2 -> 4.024798355e-06 | N19: 4.024798355e-06 | O19: 4.024798355e-06 | P19: 4.024798355e-06 | S19: 1 | U19: 0.0005073690812 | V19: 32.24161942 | X19: 0.0005073690812 | Y19: 0.05033311222 | AA19: 0.0005073690812 | AB19: 0.06241619417
A20: 20 | B20: 0.0005098492058 | C20: 32.39728424 | D20: 3.907908274e-05 | E20: 3.907908274e-05 | F20: 2e-06 | G20: 4.920987874e-07 | H20: 0.1279456847 | I20: 401.2682021 | J20: 0.8025364043 | K20: 0.05134053489 | L20: 0.06397284237 | M20: 4.145092715e-06 | N20: 4.145092715e-06 | O20: 4.145092715e-06 | P20: 4.145092715e-06 | S20: 1 | U20: 0.0005098492058 | V20: 32.39728424 | X20: 0.0005098492058 | Y20: 0.05134053489 | AA20: 0.0005098492058 | AB20: 0.06397284237
A21: 21 | B21: 0.0005123413046 | C21: 32.55367212 | D21: 3.814655287e-05 | E21: 3.814655287e-05 | F21: 2e-06 | G21: 5.041286246e-07 | H21: 0.1310734424 | I21: 399.3405092 | J21: 0.7986810184 | K21: 0.05234293522 | L21: 0.06553672119 | M21: 4.266921867e-06 | N21: 4.266921867e-06 | O21: 4.266921867e-06 | P21: 4.266921867e-06 | S21: 1 | U21: 0.0005123413046 | V21: 32.55367212 | X21: 0.0005123413046 | Y21: 0.05234293522 | AA21: 0.0005123413046 | AB21: 0.06553672119
A22: 22 | B22: 0.0005148454332 | C22: 32.710786 | D22: 3.725346031e-05 | E22: 3.725346031e-05 | F22: 2e-06 | G22: 5.162143079e-07 | H22: 0.1342157201 | I22: 397.4224281 | J22: 0.7948448563 | K22: 0.05334033736 | L22: 0.06710786003 | M22: 4.390301697e-06 | N22: 4.390301697e-06 | O22: 4.390301697e-06 | P22: 4.390301697e-06 | S22: 1 | U22: 0.0005148454332 | V22: 32.710786 | X22: 0.0005148454332 | Y22: 0.05334033736 | AA22: 0.0005148454332 | AB22: 0.06710786003
A23: 23 | B23: 0.0005173616475 | C23: 32.86862883 | D23: 3.639736636e-05 | E23: 3.639736636e-05 | F23: 2e-06 | G23: 5.28356064e-07 | H23: 0.1373725767 | I23: 395.5139129 | J23: 0.7910278257 | K23: 0.05433276531 | L23: 0.06868628833 | M23: 4.515248234e-06 | N23: 4.515248234e-06 | O23: 4.515248234e-06 | P23: 4.515248234e-06 | S23: 1 | U23: 0.0005173616475 | V23: 32.86862883 | X23: 0.0005173616475 | Y23: 0.05433276531 | AA23: 0.0005173616475 | AB23: 0.06868628833
A24: 24 | B24: 0.0005198900036 | C24: 33.02720356 | D24: 3.557602935e-05 | E24: 3.557602935e-05 | F24: 2e-06 | G24: 5.405541198e-07 | H24: 0.1405440711 | I24: 393.6149174 | J24: 0.7872298348 | K24: 0.05532024295 | L24: 0.07027203557 | M24: 4.641777647e-06 | N24: 4.641777647e-06 | O24: 4.641777647e-06 | P24: 4.641777647e-06 | S24: 1 | U24: 0.0005198900036 | V24: 33.02720356 | X24: 0.0005198900036 | Y24: 0.05532024295 | AA24: 0.0005198900036 | AB24: 0.07027203557
A25: 25 | B25: 0.0005224305577 | C25: 33.18651313 | D25: 3.478738512e-05 | E25: 3.478738512e-05 | F25: 2e-06 | G25: 5.528087025e-07 | H25: 0.1437302627 | I25: 391.725396 | J25: 0.7834507921 | K25: 0.05630279406 | L25: 0.07186513133 | M25: 4.769906249e-06 | N25: 4.769906249e-06 | O25: 4.769906249e-06 | P25: 4.769906249e-06 | S25: 1 | U25: 0.0005224305577 | V25: 33.18651313 | X25: 0.0005224305577 | Y25: 0.05630279406 | AA25: 0.0005224305577 | AB25: 0.07186513133
A26: 26 | B26: 0.0005249833664 | C26: 33.34656052 | D26: 3.402952978e-05 | E26: 3.402952978e-05 | F26: 2e-06 | G26: 5.651200399e-07 | H26: 0.1469312104 | I26: 389.8453033 | J26: 0.7796906066 | K26: 0.05728044228 | L26: 0.07346560519 | M26: 4.899650499e-06 | N26: 4.899650499e-06 | O26: 4.899650499e-06 | P26: 4.899650499e-06 | S26: 1 | U26: 0.0005249833664 | V26: 33.34656052 | X26: 0.0005249833664 | Y26: 0.05728044228 | AA26: 0.0005249833664 | AB26: 0.07346560519
A27: 27 | B27: 0.0005275484864 | C27: 33.50734868 | D27: 3.330070449e-05 | E27: 3.330070449e-05 | F27: 2e-06 | G27: 5.774883602e-07 | H27: 0.1501469737 | I27: 387.974594 | J27: 0.7759491879 | K27: 0.05825321114 | L27: 0.07507348683 | M27: 5.031027e-06 | N27: 5.031027e-06 | O27: 5.031027e-06 | P27: 5.031027e-06 | S27: 1 | U27: 0.0005275484864 | V27: 33.50734868 | X27: 0.0005275484864 | Y27: 0.05825321114 | AA27: 0.0005275484864 | AB27: 0.07507348683
A28: 28 | B28: 0.0005301259748 | C28: 33.66888059 | D28: 3.259928185e-05 | E28: 3.259928185e-05 | F28: 2e-06 | G28: 5.899138919e-07 | H28: 0.1533776119 | I28: 386.113223 | J28: 0.7722264459 | K28: 0.05922112406 | L28: 0.07668880594 | M28: 5.1640525e-06 | N28: 5.1640525e-06 | O28: 5.1640525e-06 | P28: 5.1640525e-06 | S28: 1 | U28: 0.0005301259748 | V28: 33.66888059 | X28: 0.0005301259748 | Y28: 0.05922112406 | AA28: 0.0005301259748 | AB28: 0.07668880594
A29: 29 | B29: 0.0005327158887 | C29: 33.83115923 | D29: 3.19237539e-05 | E29: 3.19237539e-05 | F29: 2e-06 | G29: 6.023968638e-07 | H29: 0.1566231846 | I29: 384.2611455 | J29: 0.768522291 | K29: 0.06018420433 | L29: 0.0783115923 | M29: 5.298743897e-06 | N29: 5.298743897e-06 | O29: 5.298743897e-06 | P29: 5.298743897e-06 | S29: 1 | U29: 0.0005327158887 | V29: 33.83115923 | X29: 0.0005327158887 | Y29: 0.06018420433 | AA29: 0.0005327158887 | AB29: 0.0783115923
A30: 30 | B30: 0.0005353182856 | C30: 33.99418757 | D30: 3.127272131e-05 | E30: 3.127272131e-05 | F30: 2e-06 | G30: 6.149375054e-07 | H30: 0.1598837514 | I30: 382.4183171 | J30: 0.7648366341 | K30: 0.06114247513 | L30: 0.0799418757 | M30: 5.435118234e-06 | N30: 5.435118234e-06 | O30: 5.435118234e-06 | P30: 5.435118234e-06 | S30: 1 | U30: 0.0005353182856 | V30: 33.99418757 | X30: 0.0005353182856 | Y30: 0.06114247513 | AA30: 0.0005353182856 | AB30: 0.0799418757
A31: 31 | B31: 0.0005379332231 | C31: 34.1579686 | D31: 3.064488382e-05 | E31: 3.064488382e-05 | F31: 2e-06 | G31: 6.275360462e-07 | H31: 0.163159372 | I31: 380.5846932 | J31: 0.7611693864 | K31: 0.06209595954 | L31: 0.08157968601 | M31: 5.573192706e-06 | N31: 5.573192706e-06 | O31: 5.573192706e-06 | P31: 5.573192706e-06 | S31: 1 | U31: 0.0005379332231 | V31: 34.1579686 | X31: 0.0005379332231 | Y31: 0.06209595954 | AA31: 0.0005379332231 | AB31: 0.08157968601
A32: 32 | B32: 0.0005405607591 | C32: 34.32250531 | D32: 3.003903159e-05 | E32: 3.003903159e-05 | F32: 2e-06 | G32: 6.401927163e-07 | H32: 0.1664501062 | I32: 378.7602298 | J32: 0.7575204596 | K32: 0.06304468049 | L32: 0.08322505312 | M32: 5.712984656e-06 | N32: 5.712984656e-06 | O32: 5.712984656e-06 | P32: 5.712984656e-06 | S32: 1 | U32: 0.0005405607591 | V32: 34.32250531 | X32: 0.0005405607591 | Y32: 0.06304468049 | AA32: 0.0005405607591 | AB32: 0.08322505312
A33: 33 | B33: 0.0005432009518 | C33: 34.4878007 | D33: 2.945403749e-05 | E33: 2.945403749e-05 | F33: 2e-06 | G33: 6.529077461e-07 | H33: 0.169756014 | I33: 376.944883 | J33: 0.753889766 | K33: 0.06398866083 | L33: 0.08487800699 | M33: 5.854511578e-06 | N33: 5.854511578e-06 | O33: 5.854511578e-06 | P33: 5.854511578e-06 | S33: 1 | U33: 0.0005432009518 | V33: 34.4878007 | X33: 0.0005432009518 | Y33: 0.06398866083 | AA33: 0.0005432009518 | AB33: 0.08487800699
A34: 34 | B34: 0.0005458538596 | C34: 34.65385776 | D34: 2.888885014e-05 | E34: 2.888885014e-05 | F34: 2e-06 | G34: 6.656813663e-07 | H34: 0.1730771552 | I34: 375.1386091 | J34: 0.7502772182 | K34: 0.06492792328 | L34: 0.08653857761 | M34: 5.997791119e-06 | N34: 5.997791119e-06 | O34: 5.997791119e-06 | P34: 5.997791119e-06 | S34: 1 | U34: 0.0005458538596 | V34: 34.65385776 | X34: 0.0005458538596 | Y34: 0.06492792328 | AA34: 0.0005458538596 | AB34: 0.08653857761
A35: 35 | B35: =IF(F34<=0,D34+B34,F34+G34+B34) -> 0.0005485195409 | C35: 34.8206795 | D35: =IF(C35<$D$4,0.0001,$D$2*$D$5/(C35-$D$4)) -> 2.834248767e-05 | E35: 2.834248767e-05 | F35: 2e-06 | G35: 6.785138078e-07 | H35: =(C35-$D$4)*F35/$D$2 -> 0.17641359 | I35: 373.3413646 | J35: 0.7466827291 | K35: 0.06586249043 | L35: 0.08820679502 | M35: 6.142841079e-06 | N35: 6.142841079e-06 | O35: 6.142841079e-06 | P35: 6.142841079e-06 | S35: 1 | U35: 0.0005485195409 | V35: 34.8206795 | X35: 0.0005485195409 | Y35: 0.06586249043 | AA35: 0.0005485195409 | AB35: 0.08820679502
A36: 36 | B36: 0.0005511980548 | C36: 34.98826893 | D36: 2.781403204e-05 | E36: 2.781403204e-05 | F36: 2e-06 | G36: 6.914053022e-07 | H36: 0.1797653786 | I36: 371.5531062 | J36: 0.7431062123 | K36: 0.06679238479 | L36: 0.08988268929 | M36: 6.28967941e-06 | N36: 6.28967941e-06 | O36: 6.28967941e-06 | P36: 6.28967941e-06 | S36: 1 | U36: 0.0005511980548 | V36: 34.98826893 | X36: 0.0005511980548 | Y36: 0.06679238479 | AA36: 0.0005511980548 | AB36: 0.08988268929
A37: 37 | B37: 0.0005538894601 | C37: 35.15662905 | D37: 2.730262398e-05 | E37: 2.730262398e-05 | F37: 2e-06 | G37: 7.043560811e-07 | H37: 0.1831325811 | I37: 369.7737909 | J37: 0.7395475818 | K37: 0.06771762874 | L37: 0.09156629055 | M37: 6.438324221e-06 | N37: 6.438324221e-06 | O37: 6.438324221e-06 | P37: 6.438324221e-06 | S37: 1 | U37: 0.0005538894601 | V37: 35.15662905 | X37: 0.0005538894601 | Y37: 0.06771762874 | AA37: 0.0005538894601 | AB37: 0.09156629055
A38: 38 | B38: 0.0005565938161 | C38: 35.32576289 | D38: 2.680745831e-05 | E38: 2.680745831e-05 | F38: 2e-06 | G38: 7.173663765e-07 | H38: 0.1865152579 | I38: 368.0033759 | J38: 0.7360067517 | K38: 0.06863824455 | L38: 0.09325762894 | M38: 6.588793776e-06 | N38: 6.588793776e-06 | O38: 6.588793776e-06 | P38: 6.588793776e-06 | S38: 1 | U38: 0.0005565938161 | V38: 35.32576289 | X38: 0.0005565938161 | Y38: 0.06863824455 | AA38: 0.0005565938161 | AB38: 0.09325762894
A39: 39 | B39: 0.0005593111825 | C39: 35.49567347 | D39: 2.632777979e-05 | E39: 2.632777979e-05 | F39: 2e-06 | G39: 7.304364206e-07 | H39: 0.1899134694 | I39: 366.2418185 | J39: 0.732483637 | K39: 0.06955425438 | L39: 0.09495673468 | M39: 6.741106495e-06 | N39: 6.741106495e-06 | O39: 6.741106495e-06 | P39: 6.741106495e-06 | S39: 1 | U39: 0.0005593111825 | V39: 35.49567347 | X39: 0.0005593111825 | Y39: 0.06955425438 | AA39: 0.0005593111825 | AB39: 0.09495673468
A40: 40 | B40: 0.0005620416189 | C40: 35.6663638 | D40: 2.586287928e-05 | E40: 2.586287928e-05 | F40: 2e-06 | G40: 7.43566446e-07 | H40: 0.193327276 | I40: 364.4890764 | J40: 0.7289781528 | K40: 0.07046568026 | L40: 0.09666363798 | M40: 6.895280957e-06 | N40: 6.895280957e-06 | O40: 6.895280957e-06 | P40: 6.895280957e-06 | S40: 1 | U40: 0.0005620416189 | V40: 35.6663638 | X40: 0.0005620416189 | Y40: 0.07046568026 | AA40: 0.0005620416189 | AB40: 0.09666363798
A41: 41 | B41: 0.0005647851854 | C41: 35.83783691 | D41: 2.54120903e-05 | E41: 2.54120903e-05 | F41: 2e-06 | G41: 7.567566856e-07 | H41: 0.1967567383 | I41: 362.7451074 | J41: 0.7254902148 | K41: 0.07137254415 | L41: 0.09837836913 | M41: 7.051335898e-06 | N41: 7.051335898e-06 | O41: 7.051335898e-06 | P41: 7.051335898e-06 | S41: 1 | U41: 0.0005647851854 | V41: 35.83783691 | X41: 0.0005647851854 | Y41: 0.07137254415 | AA41: 0.0005647851854 | AB41: 0.09837836913
A42: 42 | B42: 0.0005675419421 | C42: 36.01009584 | D42: 2.497478585e-05 | E42: 2.497478585e-05 | F42: 2e-06 | G42: 7.700073725e-07 | H42: 0.2002019169 | I42: 361.0098695 | J42: 0.722019739 | K42: 0.07227486787 | L42: 0.1001009584 | M42: 7.209290214e-06 | N42: 7.209290214e-06 | O42: 7.209290214e-06 | P42: 7.209290214e-06 | S42: 1 | U42: 0.0005675419421 | V42: 36.01009584 | X42: 0.0005675419421 | Y42: 0.07227486787 | AA42: 0.0005675419421 | AB42: 0.1001009584
A43: 43 | B43: 0.0005703119494 | C43: 36.18314362 | D43: 2.455037554e-05 | E43: 2.455037554e-05 | F43: 2e-06 | G43: 7.8331874e-07 | H43: 0.2036628724 | I43: 359.2833209 | J43: 0.7185666418 | K43: 0.07317267314 | L43: 0.1018314362 | M43: 7.369162962e-06 | N43: 7.369162962e-06 | O43: 7.369162962e-06 | P43: 7.369162962e-06 | S43: 1 | U43: 0.0005703119494 | V43: 36.18314362 | X43: 0.0005703119494 | Y43: 0.07317267314 | AA43: 0.0005703119494 | AB43: 0.1018314362
A44: 44 | B44: 0.0005730952682 | C44: 36.35698328 | D44: 2.413830294e-05 | E44: 2.413830294e-05 | F44: 2e-06 | G44: 7.966910217e-07 | H44: 0.2071396656 | I44: 357.5654201 | J44: 0.7151308402 | K44: 0.07406598156 | L44: 0.1035698328 | M44: 7.530973361e-06 | N44: 7.530973361e-06 | O44: 7.530973361e-06 | P44: 7.530973361e-06 | S44: 1 | U44: 0.0005730952682 | V44: 36.35698328 | X44: 0.0005730952682 | Y44: 0.07406598156 | AA44: 0.0005730952682 | AB44: 0.1035698328
A45: 45 | B45: 0.0005758919592 | C45: 36.53161787 | D45: 2.373804321e-05 | E45: 2.373804321e-05 | F45: 2e-06 | G45: 8.101244514e-07 | H45: 0.2106323574 | I45: 355.8561257 | J45: 0.7117122514 | K45: 0.07495481464 | L45: 0.1053161787 | M45: 7.69474079e-06 | N45: 7.69474079e-06 | O45: 7.69474079e-06 | P45: 7.69474079e-06 | S45: 1 | U45: 0.0005758919592 | V45: 36.53161787 | X45: 0.0005758919592 | Y45: 0.07495481464 | AA45: 0.0005758919592 | AB45: 0.1053161787
A46: 46 | B46: 0.0005787020836 | C46: 36.70705042 | D46: 2.334910084e-05 | E46: 2.334910084e-05 | F46: 2e-06 | G46: 8.236192632e-07 | H46: 0.2141410084 | I46: 354.1553966 | J46: 0.7083107932 | K46: 0.07583919377 | L46: 0.1070705042 | M46: 7.860484794e-06 | N46: 7.860484794e-06 | O46: 7.860484794e-06 | P46: 7.860484794e-06 | S46: 1 | U46: 0.0005787020836 | V46: 36.70705042 | X46: 0.0005787020836 | Y46: 0.07583919377 | AA46: 0.0005787020836 | AB46: 0.1070705042
A47: 47 | B47: 0.0005815257029 | C47: 36.88328399 | D47: 2.297100768e-05 | E47: 2.297100768e-05 | F47: 2e-06 | G47: 8.371756913e-07 | H47: 0.2176656797 | I47: 352.4631919 | J47: 0.7049263837 | K47: 0.07671914024 | L47: 0.1088328399 | M47: 8.02822508e-06 | N47: 8.02822508e-06 | O47: 8.02822508e-06 | P47: 8.02822508e-06 | S47: 1 | U47: 0.0005815257029 | V47: 36.88328399 | X47: 0.0005815257029 | Y47: 0.07671914024 | AA47: 0.0005815257029 | AB47: 0.1088328399
A48: 48 | B48: 0.0005843628786 | C48: 37.06032161 | D48: 2.260332102e-05 | E48: 2.260332102e-05 | F48: 2e-06 | G48: 8.507939701e-07 | H48: 0.2212064322 | I48: 350.7794707 | J48: 0.7015589415 | K48: 0.07759467522 | L48: 0.1106032161 | M48: 8.197981521e-06 | N48: 8.197981521e-06 | O48: 8.197981521e-06 | P48: 8.197981521e-06 | S48: 1 | U48: 0.0005843628786 | V48: 37.06032161 | X48: 0.0005843628786 | Y48: 0.07759467522 | AA48: 0.0005843628786 | AB48: 0.1106032161
A49: 49 | B49: 0.0005872136726 | C49: 37.23816635 | D49: 2.224562195e-05 | E49: 2.224562195e-05 | F49: 2e-06 | G49: 8.644743343e-07 | H49: 0.2247633269 | I49: 349.1041927 | J49: 0.6982083854 | K49: 0.07846581979 | L49: 0.1123816635 | M49: 8.369774156e-06 | N49: 8.369774156e-06 | O49: 8.369774156e-06 | P49: 8.369774156e-06 | S49: 1 | U49: 0.0005872136726 | V49: 37.23816635 | X49: 0.0005872136726 | Y49: 0.07846581979 | AA49: 0.0005872136726 | AB49: 0.1123816635
A50: 50 | B50: 0.0005900781469 | C50: 37.41682124 | D50: 2.189751374e-05 | E50: 2.189751374e-05 | F50: 2e-06 | G50: 8.782170187e-07 | H50: 0.2283364249 | I50: 347.4373174 | J50: 0.6948746349 | K50: 0.07933259493 | L50: 0.1141682124 | M50: 8.543623192e-06 | N50: 8.543623192e-06 | O50: 8.543623192e-06 | P50: 8.543623192e-06 | S50: 1 | U50: 0.0005900781469 | V50: 37.41682124 | X50: 0.0005900781469 | Y50: 0.07933259493 | AA50: 0.0005900781469 | AB50: 0.1141682124
A51: 51 | B51: 0.0005929563639 | C51: 37.59628936 | D51: 2.155862038e-05 | E51: 2.155862038e-05 | F51: 2e-06 | G51: 8.920222581e-07 | H51: 0.2319257871 | I51: 345.7788048 | J51: 0.6915576097 | K51: 0.08019502148 | L51: 0.1159628936 | M51: 8.719549001e-06 | N51: 8.719549001e-06 | O51: 8.719549001e-06 | P51: 8.719549001e-06 | S51: 1 | U51: 0.0005929563639 | V51: 37.59628936 | X51: 0.0005929563639 | Y51: 0.08019502148 | AA51: 0.0005929563639 | AB51: 0.1159628936
A52: 52 | B52: 0.0005958483862 | C52: 37.77657374 | D52: 2.122858528e-05 | E52: 2.122858528e-05 | F52: 2e-06 | G52: 9.058902877e-07 | H52: 0.2355314748 | I52: 344.128615 | J52: 0.68825723 | K52: 0.08105312021 | L52: 0.1177657374 | M52: 8.897572126e-06 | N52: 8.897572126e-06 | O52: 8.897572126e-06 | P52: 8.897572126e-06 | S52: 1 | U52: 0.0005958483862 | V52: 37.77657374 | X52: 0.0005958483862 | Y52: 0.08105312021 | AA52: 0.0005958483862 | AB52: 0.1177657374
A53: 53 | B53: 0.0005987542765 | C53: 37.95767746 | D53: 2.090707003e-05 | E53: 2.090707003e-05 | F53: 2e-06 | G53: 9.198213427e-07 | H53: 0.2391535491 | I53: 342.4867081 | J53: 0.6849734163 | K53: 0.08190691177 | L53: 0.1195767746 | M53: 9.077713279e-06 | N53: 9.077713279e-06 | O53: 9.077713279e-06 | P53: 9.077713279e-06 | S53: 1 | U53: 0.0005987542765 | V53: 37.95767746 | X53: 0.0005987542765 | Y53: 0.08190691177 | AA53: 0.0005987542765 | AB53: 0.1195767746
A54: 54 | B54: 0.0006016740978 | C54: 38.13960356 | D54: 2.059375323e-05 | E54: 2.059375323e-05 | F54: 2e-06 | G54: 9.338156584e-07 | H54: 0.2427920712 | I54: 340.8530448 | J54: 0.6817060896 | K54: 0.08275641671 | L54: 0.1213960356 | M54: 9.259993343e-06 | N54: 9.259993343e-06 | O54: 9.259993343e-06 | P54: 9.259993343e-06 | S54: 1 | U54: 0.0006016740978 | V54: 38.13960356 | X54: 0.0006016740978 | Y54: 0.08275641671 | AA54: 0.0006016740978 | AB54: 0.1213960356
A55: 55 | B55: 0.0006046079135 | C55: 38.32235511 | D55: 2.028832944e-05 | E55: 2.028832944e-05 | F55: 2e-06 | G55: 9.478734703e-07 | H55: 0.2464471023 | I55: 339.2275856 | J55: 0.6784551712 | K55: 0.08360165549 | L55: 0.1232235511 | M55: 9.444433371e-06 | N55: 9.444433371e-06 | O55: 9.444433371e-06 | P55: 9.444433371e-06 | S55: 1 | U55: 0.0006046079135 | V55: 38.32235511 | X55: 0.0006046079135 | Y55: 0.08360165549 | AA55: 0.0006046079135 | AB55: 0.1232235511
A56: 56 | B56: 0.0006075557869 | C56: 38.50593518 | D56: 1.999050822e-05 | E56: 1.999050822e-05 | F56: 2e-06 | G56: 9.619950139e-07 | H56: 0.2501187036 | I56: 337.6102915 | J56: 0.675220583 | K56: 0.08444264843 | L56: 0.1250593518 | M56: 9.631054589e-06 | N56: 9.631054589e-06 | O56: 9.631054589e-06 | P56: 9.631054589e-06 | S56: 1 | U56: 0.0006075557869 | V56: 38.50593518 | X56: 0.0006075557869 | Y56: 0.08444264843 | AA56: 0.0006075557869 | AB56: 0.1250593518
A57: 57 | B57: 0.000610517782 | C57: 38.69034682 | D57: 1.970001321e-05 | E57: 1.970001321e-05 | F57: 2e-06 | G57: 9.761805248e-07 | H57: 0.2538069364 | I57: 336.0011235 | J57: 0.672002247 | K57: 0.08527941579 | L57: 0.1269034682 | M57: 9.819878397e-06 | N57: 9.819878397e-06 | O57: 9.819878397e-06 | P57: 9.819878397e-06 | S57: 1 | U57: 0.000610517782 | V57: 38.69034682 | X57: 0.000610517782 | Y57: 0.08527941579 | AA57: 0.000610517782 | AB57: 0.1269034682
A58: 58 | B58: 0.0006134939625 | C58: 38.8755931 | D58: 1.941658128e-05 | E58: 1.941658128e-05 | F58: 2e-06 | G58: 9.904302386e-07 | H58: 0.257511862 | I58: 334.4000429 | J58: 0.6688000857 | K58: 0.08611197771 | L58: 0.128755931 | M58: 1.001092637e-05 | N58: 1.001092637e-05 | O58: 1.001092637e-05 | P58: 1.001092637e-05 | S58: 1 | U58: 0.0006134939625 | V58: 38.8755931 | X58: 0.0006134939625 | Y58: 0.08611197771 | AA58: 0.0006134939625 | AB58: 0.128755931
A59: 59 | B59: 0.0006164843927 | C59: 39.06167708 | D59: 1.913996177e-05 | E59: 1.913996177e-05 | F59: 2e-06 | G59: 1.004744391e-06 | H59: 0.2612335417 | I59: 332.8070111 | J59: 0.6656140223 | K59: 0.08694035421 | L59: 0.1306167708 | M59: 1.020422025e-05 | N59: 1.020422025e-05 | O59: 1.020422025e-05 | P59: 1.020422025e-05 | S59: 1 | U59: 0.0006164843927 | V59: 39.06167708 | X59: 0.0006164843927 | Y59: 0.08694035421 | AA59: 0.0006164843927 | AB59: 0.1306167708
A60: 60 | B60: 0.0006194891371 | C60: 39.24860183 | D60: 1.886991572e-05 | E60: 1.886991572e-05 | F60: 2e-06 | G60: 1.019123218e-06 | H60: 0.2649720367 | I60: 331.2219899 | J60: 0.6624439798 | K60: 0.08776456525 | L60: 0.1324860183 | M60: 1.039978196e-05 | N60: 1.039978196e-05 | O60: 1.039978196e-05 | P60: 1.039978196e-05 | S60: 1 | U60: 0.0006194891371 | V60: 39.24860183 | X60: 0.0006194891371 | Y60: 0.08776456525 | AA60: 0.0006194891371 | AB60: 0.1324860183
A61: 61 | B61: 0.0006225082603 | C61: 39.43637042 | D61: 1.860621524e-05 | E61: 1.860621524e-05 | F61: 2e-06 | G61: 1.033566955e-06 | H61: 0.2687274083 | I61: 329.644941 | J61: 0.6592898821 | K61: 0.08858463067 | L61: 0.1343637042 | M61: 1.059763361e-05 | N61: 1.059763361e-05 | O61: 1.059763361e-05 | P61: 1.059763361e-05 | S61: 1 | U61: 0.0006225082603 | V61: 39.43637042 | X61: 0.0006225082603 | Y61: 0.08858463067 | AA61: 0.0006225082603 | AB61: 0.1343637042
A62: 62 | B62: 0.0006255418273 | C62: 39.62498589 | D62: 1.834864285e-05 | E62: 1.834864285e-05 | F62: 2e-06 | G62: 1.048075838e-06 | H62: 0.2724997179 | I62: 328.0758266 | J62: 0.6561516531 | K62: 0.08940057018 | L62: 0.1362498589 | M62: 1.079779748e-05 | N62: 1.079779748e-05 | O62: 1.079779748e-05 | P62: 1.079779748e-05 | S62: 1 | U62: 0.0006255418273 | V62: 39.62498589 | X62: 0.0006255418273 | Y62: 0.08940057018 | AA62: 0.0006255418273 | AB62: 0.1362498589
A63: 63 | B63: 0.0006285899031 | C63: 39.81445133 | D63: 1.809699089e-05 | E63: 1.809699089e-05 | F63: 2e-06 | G63: 1.062650103e-06 | H63: 0.2762890267 | I63: 326.5146088 | J63: 0.6530292175 | K63: 0.09021240345 | L63: 0.1381445133 | M63: 1.100029601e-05 | N63: 1.100029601e-05 | O63: 1.100029601e-05 | P63: 1.100029601e-05 | S63: 1 | U63: 0.0006285899031 | V63: 39.81445133 | X63: 0.0006285899031 | Y63: 0.09021240345 | AA63: 0.0006285899031 | AB63: 0.1381445133
A64: 64 | B64: 0.0006316525532 | C64: 40.0047698 | D64: 1.7851061e-05 | E64: 1.7851061e-05 | F64: 2e-06 | G64: 1.077289985e-06 | H64: 0.280095396 | I64: 324.96125 | J64: 0.6499225 | K64: 0.09102015 | L64: 0.140047698 | M64: 1.120515184e-05 | N64: 1.120515184e-05 | O64: 1.120515184e-05 | P64: 1.120515184e-05 | S64: 1 | U64: 0.0006316525532 | V64: 40.0047698 | X64: 0.0006316525532 | Y64: 0.09102015 | AA64: 0.0006316525532 | AB64: 0.140047698
A65: 65 | B65: 0.0006347298432 | C65: 40.19594435 | D65: 1.761066356e-05 | E65: 1.761066356e-05 | F65: 2e-06 | G65: 1.09199572e-06 | H65: 0.2839188871 | I65: 323.4157129 | J65: 0.6468314258 | K65: 0.09182382928 | L65: 0.1419594435 | M65: 1.141238779e-05 | N65: 1.141238779e-05 | O65: 1.141238779e-05 | P65: 1.141238779e-05 | S65: 1 | U65: 0.0006347298432 | V65: 40.19594435 | X65: 0.0006347298432 | Y65: 0.09182382928 | AA65: 0.0006347298432 | AB65: 0.1419594435
A66: 66 | B66: 0.0006378218389 | C66: 40.38797806 | D66: 1.737561726e-05 | E66: 1.737561726e-05 | F66: 2e-06 | G66: 1.106767543e-06 | H66: 0.2877595612 | I66: 321.8779603 | J66: 0.6437559206 | K66: 0.09262346064 | L66: 0.1438797806 | M66: 1.162202685e-05 | N66: 1.162202685e-05 | O66: 1.162202685e-05 | P66: 1.162202685e-05 | S66: 1 | U66: 0.0006378218389 | V66: 40.38797806 | X66: 0.0006378218389 | Y66: 0.09262346064 | AA66: 0.0006378218389 | AB66: 0.1438797806
A67: 67 | B67: 0.0006409286065 | C67: 40.58087398 | D67: 1.714574862e-05 | E67: 1.714574862e-05 | F67: 2e-06 | G67: 1.121605691e-06 | H67: 0.2916174797 | I67: 320.3479552 | J67: 0.6406959104 | K67: 0.09341906331 | L67: 0.1458087398 | M67: 1.183409219e-05 | N67: 1.183409219e-05 | O67: 1.183409219e-05 | P67: 1.183409219e-05 | S67: 1 | U67: 0.0006409286065 | V67: 40.58087398 | X67: 0.0006409286065 | Y67: 0.09341906331 | AA67: 0.0006409286065 | AB67: 0.1458087398
A68: 68 | B68: 0.0006440502122 | C68: 40.77463518 | D68: 1.692089158e-05 | E68: 1.692089158e-05 | F68: 2e-06 | G68: 1.136510398e-06 | H68: 0.2954927036 | I68: 318.8256607 | J68: 0.6376513214 | K68: 0.09421065645 | L68: 0.1477463518 | M68: 1.204860719e-05 | N68: 1.204860719e-05 | O68: 1.204860719e-05 | P68: 1.204860719e-05 | S68: 1 | U68: 0.0006440502122 | V68: 40.77463518 | X68: 0.0006440502122 | Y68: 0.09421065645 | AA68: 0.0006440502122 | AB68: 0.1477463518
A69: 69 | B69: 0.0006471867226 | C69: 40.96926471 | D69: 1.670088711e-05 | E69: 1.670088711e-05 | F69: 2e-06 | G69: 1.151481901e-06 | H69: 0.2993852942 | I69: 317.3110402 | J69: 0.6346220803 | K69: 0.09499825911 | L69: 0.1496926471 | M69: 1.226559537e-05 | N69: 1.226559537e-05 | O69: 1.226559537e-05 | P69: 1.226559537e-05 | S69: 1 | U69: 0.0006471867226 | V69: 40.96926471 | X69: 0.0006471867226 | Y69: 0.09499825911 | AA69: 0.0006471867226 | AB69: 0.1496926471
A70: 70 | B70: 0.0006503382045 | C70: 41.16476563 | D70: 1.648558284e-05 | E70: 1.648558284e-05 | F70: 2e-06 | G70: 1.166520433e-06 | H70: 0.3032953126 | I70: 315.8040572 | J70: 0.6316081144 | K70: 0.09578189025 | L70: 0.1516476563 | M70: 1.248508046e-05 | N70: 1.248508046e-05 | O70: 1.248508046e-05 | P70: 1.248508046e-05 | S70: 1 | U70: 0.0006503382045 | V70: 41.16476563 | X70: 0.0006503382045 | Y70: 0.09578189025 | AA70: 0.0006503382045 | AB70: 0.1516476563
A71: 71 | B71: 0.0006535047249 | C71: 41.361141 | D71: 1.627483271e-05 | E71: 1.627483271e-05 | F71: 2e-06 | G71: 1.18162623e-06 | H71: 0.3072228199 | I71: 314.3046755 | J71: 0.628609351 | K71: 0.09656156873 | L71: 0.15361141 | M71: 1.270708637e-05 | N71: 1.270708637e-05 | O71: 1.270708637e-05 | P71: 1.270708637e-05 | S71: 1 | U71: 0.0006535047249 | V71: 41.361141 | X71: 0.0006535047249 | Y71: 0.09656156873 | AA71: 0.0006535047249 | AB71: 0.15361141
A72: 72 | B72: 0.0006566863511 | C72: 41.55839386 | D72: 1.606849667e-05 | E72: 1.606849667e-05 | F72: 2e-06 | G72: 1.196799528e-06 | H72: 0.3111678772 | I72: 312.812859 | J72: 0.625625718 | K72: 0.09733731331 | L72: 0.1555839386 | M72: 1.29316372e-05 | N72: 1.29316372e-05 | O72: 1.29316372e-05 | P72: 1.29316372e-05 | S72: 1 | U72: 0.0006566863511 | V72: 41.55839386 | X72: 0.0006566863511 | Y72: 0.09733731331 | AA72: 0.0006566863511 | AB72: 0.1555839386
A73: 73 | B73: 0.0006598831507 | C73: 41.75652728 | D73: 1.586644034e-05 | E73: 1.586644034e-05 | F73: 2e-06 | G73: 1.21204056e-06 | H73: 0.3151305455 | I73: 311.3285718 | J73: 0.6226571436 | K73: 0.09810914267 | L73: 0.1575652728 | M73: 1.315875722e-05 | N73: 1.315875722e-05 | O73: 1.315875722e-05 | P73: 1.315875722e-05 | S73: 1 | U73: 0.0006598831507 | V73: 41.75652728 | X73: 0.0006598831507 | Y73: 0.09810914267 | AA73: 0.0006598831507 | AB73: 0.1575652728
A74: 74 | B74: 0.0006630951912 | C74: 41.95554429 | D74: 1.566853474e-05 | E74: 1.566853474e-05 | F74: 2e-06 | G74: 1.227349561e-06 | H74: 0.3191108858 | I74: 309.8517781 | J74: 0.6197035562 | K74: 0.09887707538 | L74: 0.1595554429 | M74: 1.33884709e-05 | N74: 1.33884709e-05 | O74: 1.33884709e-05 | P74: 1.33884709e-05 | S74: 1 | U74: 0.0006630951912 | V74: 41.95554429 | X74: 0.0006630951912 | Y74: 0.09887707538 | AA74: 0.0006630951912 | AB74: 0.1595554429
A75: 75 | B75: 0.0006663225408 | C75: 42.15544795 | D75: 1.547465603e-05 | E75: 1.547465603e-05 | F75: 2e-06 | G75: 1.242726765e-06 | H75: 0.3231089589 | I75: 308.3824424 | J75: 0.6167648849 | K75: 0.09964112993 | L75: 0.1615544795 | M75: 1.36208029e-05 | N75: =$D$4*H75*0.5*(F75+G75) -> 1.36208029e-05 | O75: 1.36208029e-05 | P75: 1.36208029e-05 | S75: 1 | U75: 0.0006663225408 | V75: =C75 -> 42.15544795 | X75: 0.0006663225408 | Y75: =K75 -> 0.09964112993 | AA75: 0.0006663225408 | AB75: =L75 -> 0.1615544795
A76: 76 | B76: 0.0006695652675 | C76: 42.35624129 | D76: 1.528468525e-05 | E76: =IF($D$2*$D$5/(C76-$D$4)<0,0,$D$2*$D$5/(C76-$D$4)) -> 1.528468525e-05 | F76: 2e-06 | G76: 1.258172407e-06 | H76: 0.3271248258 | I76: 306.9205294 | J76: =IF(H76<=0,0,F76/(F76+G76)) -> 0.6138410588 | K76: =S76*J76*H76/2 -> 0.1004013247 | L76: =S76*H76/2 -> 0.1635624129 | M76: 1.385577805e-05 | N76: 1.385577805e-05 | O76: =M76*S76 -> 1.385577805e-05 | P76: =N76*S76 -> 1.385577805e-05 | S76: =IF(B76<=1/(2*$D$7),1,0) -> 1 | U76: 0.0006695652675 | V76: 42.35624129 | X76: =U76 -> 0.0006695652675 | Y76: 0.1004013247 | AA76: =U76 -> 0.0006695652675 | AB76: 0.1635624129
A77: =A76+1 -> 77 | B77: 0.0006728234399 | C77: 42.55792735 | D77: 1.509850808e-05 | E77: 1.509850808e-05 | F77: 2e-06 | G77: 1.27368672e-06 | H77: 0.3311585471 | I77: 305.4660038 | J77: 0.6109320077 | K77: 0.101157678 | L77: 0.1655792735 | M77: 1.409342139e-05 | N77: 1.409342139e-05 | O77: 1.409342139e-05 | P77: 1.409342139e-05 | S77: 1 | U77: =IF(B77<(1/(2*$D$7)),B77,1/(2*$D$7)) -> 0.0006728234399 | V77: 42.55792735 | X77: 0.0006728234399 | Y77: 0.101157678 | AA77: 0.0006728234399 | AB77: 0.1655792735
A78: 78 | B78: 0.0006760971267 | C78: =ABS($D$6*1.414*SIN(6.28*B78*$D$7)) -> 42.76050918 | D78: 1.491601462e-05 | E78: 1.491601462e-05 | F78: 2e-06 | G78: 1.289269937e-06 | H78: 0.3352101835 | I78: 304.0188307 | J78: 0.6080376614 | K78: 0.101910208 | L78: 0.1676050918 | M78: 1.433375813e-05 | N78: 1.433375813e-05 | O78: 1.433375813e-05 | P78: 1.433375813e-05 | S78: 1 | U78: 0.0006760971267 | V78: 42.76050918 | X78: 0.0006760971267 | Y78: 0.101910208 | AA78: 0.0006760971267 | AB78: 0.1676050918
A79: 79 | B79: 0.0006793863966 | C79: 42.96398979 | D79: 1.473709918e-05 | E79: 1.473709918e-05 | F79: 2e-06 | G79: 1.304922291e-06 | H79: 0.3392797958 | I79: 302.5789752 | J79: 0.6051579504 | K79: 0.1026589329 | L79: 0.1696398979 | M79: 1.457681368e-05 | N79: 1.457681368e-05 | O79: 1.457681368e-05 | P79: 1.457681368e-05 | S79: 1 | U79: 0.0006793863966 | V79: 42.96398979 | X79: 0.0006793863966 | Y79: 0.1026589329 | AA79: 0.0006793863966 | AB79: 0.1696398979
A80: 80 | B80: 0.0006826913189 | C80: 43.16837222 | D80: 1.456166006e-05 | E80: 1.456166006e-05 | F80: 2e-06 | G80: 1.320644017e-06 | H80: 0.3433674443 | I80: 301.1464026 | J80: 0.6022928052 | K80: 0.1034038706 | L80: 0.1716837222 | M80: 1.482261364e-05 | N80: 1.482261364e-05 | O80: 1.482261364e-05 | P80: 1.482261364e-05 | S80: 1 | U80: 0.0006826913189 | V80: 43.16837222 | X80: 0.0006826913189 | Y80: 0.1034038706 | AA80: 0.0006826913189 | AB80: 0.1716837222
A81: 81 | B81: 0.0006860119629 | C81: 43.37365948 | D81: 1.43895994e-05 | E81: 1.43895994e-05 | F81: 2e-06 | G81: =IF(F81<=0,0,$D$2*H81/$D$4) -> 1.336435345e-06 | H81: 0.3474731896 | I81: 299.7210785 | J81: 0.5994421571 | K81: 0.1041450392 | L81: 0.1737365948 | M81: 1.507118381e-05 | N81: 1.507118381e-05 | O81: 1.507118381e-05 | P81: 1.507118381e-05 | S81: 1 | U81: 0.0006860119629 | V81: 43.37365948 | X81: 0.0006860119629 | Y81: 0.1041450392 | AA81: 0.0006860119629 | AB81: 0.1737365948
A82: 82 | B82: 0.0006893483983 | C82: 43.5798546 | D82: 1.422082296e-05 | E82: 1.422082296e-05 | F82: 2e-06 | G82: 1.352296508e-06 | H82: 0.351597092 | I82: 298.3029686 | J82: 0.5966059373 | K82: 0.1048824563 | L82: 0.175798546 | M82: 1.532255015e-05 | N82: 1.532255015e-05 | O82: 1.532255015e-05 | P82: 1.532255015e-05 | S82: 1 | U82: 0.0006893483983 | V82: 43.5798546 | X82: 0.0006893483983 | Y82: 0.1048824563 | AA82: 0.0006893483983 | AB82: 0.175798546
A83: 83 | B83: 0.0006927006948 | C83: 43.78696059 | D83: 1.405524e-05 | E83: 1.405524e-05 | F83: =IF(E83>$D$8*0.000001,$D$8*0.000001,E83) -> 2e-06 | G83: 1.368227738e-06 | H83: 0.3557392118 | I83: =IF(H83<=0.0001,0,0.001/(F83+G83)) -> 296.8920388 | J83: 0.5937840775 | K83: 0.1056161398 | L83: 0.1778696059 | M83: =(F83+G83)*C83*J83*H83/2 -> 1.557673885e-05 | N83: 1.557673885e-05 | O83: 1.557673885e-05 | P83: 1.557673885e-05 | S83: 1 | U83: 0.0006927006948 | V83: 43.78696059 | X83: 0.0006927006948 | Y83: 0.1056161398 | AA83: 0.0006927006948 | AB83: 0.1778696059
A84: 84 | B84: 0.0006960689225 | C84: 43.99498045 | D84: 1.389276308e-05 | E84: 1.389276308e-05 | F84: 2e-06 | G84: 1.384229265e-06 | H84: 0.359899609 | I84: 295.488255 | J84: 0.5909765099 | K84: 0.1063461074 | L84: 0.1799498045 | M84: 1.583377626e-05 | N84: 1.583377626e-05 | O84: 1.583377626e-05 | P84: 1.583377626e-05 | S84: 1 | U84: 0.0006960689225 | V84: 43.99498045 | X84: 0.0006960689225 | Y84: 0.1063461074 | AA84: 0.0006960689225 | AB84: 0.1799498045
A85: 85 | B85: 0.0006994531518 | C85: 44.20391718 | D85: 1.373330792e-05 | E85: 1.373330792e-05 | F85: 2e-06 | G85: 1.400301322e-06 | H85: 0.3640783437 | I85: 294.0915835 | J85: 0.5881831669 | K85: 0.1070723766 | L85: 0.1820391718 | M85: 1.609368895e-05 | N85: 1.609368895e-05 | O85: 1.609368895e-05 | P85: 1.609368895e-05 | S85: 1 | U85: 0.0006994531518 | V85: 44.20391718 | X85: 0.0006994531518 | Y85: 0.1070723766 | AA85: 0.0006994531518 | AB85: 0.1820391718
A86: 86 | B86: 0.0007028534531 | C86: 44.41377379 | D86: 1.357679327e-05 | E86: 1.357679327e-05 | F86: 2e-06 | G86: 1.416444138e-06 | H86: 0.3682754758 | I86: 292.7019906 | J86: 0.5854039813 | K86: 0.1077949649 | L86: 0.1841377379 | M86: 1.635650367e-05 | N86: 1.635650367e-05 | O86: 1.635650367e-05 | P86: 1.635650367e-05 | S86: 1 | U86: 0.0007028534531 | V86: 44.41377379 | X86: 0.0007028534531 | Y86: 0.1077949649 | AA86: 0.0007028534531 | AB86: 0.1841377379
A87: 87 | B87: 0.0007062698972 | C87: 44.62455325 | D87: 1.342314077e-05 | E87: 1.342314077e-05 | F87: 2e-06 | G87: 1.432657942e-06 | H87: 0.372491065 | I87: 291.3194431 | J87: 0.5826388861 | K87: 0.1085138896 | L87: 0.1862455325 | M87: 1.662224737e-05 | N87: 1.662224737e-05 | O87: 1.662224737e-05 | P87: 1.662224737e-05 | S87: 1 | U87: 0.0007062698972 | V87: 44.62455325 | X87: 0.0007062698972 | Y87: 0.1085138896 | AA87: 0.0007062698972 | AB87: 0.1862455325
A88: 88 | B88: 0.0007097025552 | C88: 44.83625856 | D88: 1.327227481e-05 | E88: 1.327227481e-05 | F88: 2e-06 | G88: 1.448942966e-06 | H88: 0.3767251711 | I88: 289.9439074 | J88: 0.5798878148 | K88: 0.1092291681 | L88: 0.1883625856 | M88: 1.689094718e-05 | N88: 1.689094718e-05 | O88: 1.689094718e-05 | P88: 1.689094718e-05 | S88: 1 | U88: 0.0007097025552 | V88: 44.83625856 | X88: 0.0007097025552 | Y88: 0.1092291681 | AA88: 0.0007097025552 | AB88: 0.1883625856
A89: 89 | B89: 0.0007131514981 | C89: 45.04889268 | D89: 1.312412245e-05 | E89: 1.312412245e-05 | F89: 2e-06 | G89: 1.465299437e-06 | H89: 0.3809778536 | I89: 288.5753506 | J89: 0.5771507013 | K89: 0.1099408177 | L89: 0.1904889268 | M89: 1.716263044e-05 | N89: 1.716263044e-05 | O89: 1.716263044e-05 | P89: 1.716263044e-05 | S89: 1 | U89: 0.0007131514981 | V89: 45.04889268 | X89: 0.0007131514981 | Y89: 0.1099408177 | AA89: 0.0007131514981 | AB89: 0.1904889268
A90: 90 | B90: 0.0007166167976 | C90: 45.26245858 | D90: 1.297861324e-05 | E90: 1.297861324e-05 | F90: 2e-06 | G90: 1.481727583e-06 | H90: 0.3852491717 | I90: 287.2137397 | J90: 0.5744274795 | K90: 0.1106488553 | L90: 0.1926245858 | M90: 1.743732468e-05 | N90: 1.743732468e-05 | O90: 1.743732468e-05 | P90: 1.743732468e-05 | S90: 1 | U90: 0.0007166167976 | V90: 45.26245858 | X90: 0.0007166167976 | Y90: 0.1106488553 | AA90: 0.0007166167976 | AB90: 0.1926245858
A91: 91 | B91: 0.0007200985252 | C91: 45.47695924 | D91: 1.283567917e-05 | E91: 1.283567917e-05 | F91: 2e-06 | G91: 1.498227633e-06 | H91: 0.3895391847 | I91: 285.859042 | J91: 0.571718084 | K91: 0.1113532982 | L91: 0.1947695924 | M91: 1.771505762e-05 | N91: 1.771505762e-05 | O91: 1.771505762e-05 | P91: 1.771505762e-05 | S91: 1 | U91: 0.0007200985252 | V91: 45.47695924 | X91: 0.0007200985252 | Y91: 0.1113532982 | AA91: 0.0007200985252 | AB91: 0.1947695924
A92: 92 | B92: 0.0007235967528 | C92: 45.69239758 | D92: 1.269525455e-05 | E92: 1.269525455e-05 | F92: 2e-06 | G92: 1.514799814e-06 | H92: 0.3938479517 | I92: 284.5112248 | J92: 0.5690224496 | K92: 0.1120541631 | L92: 0.1969239758 | M92: 1.79958572e-05 | N92: 1.79958572e-05 | O92: 1.79958572e-05 | P92: 1.79958572e-05 | S92: 1 | U92: 0.0007235967528 | V92: 45.69239758 | X92: 0.0007235967528 | Y92: 0.1120541631 | AA92: 0.0007235967528 | AB92: 0.1969239758
A93: 93 | B93: 0.0007271115526 | C93: 45.90877658 | D93: 1.255727588e-05 | E93: 1.255727588e-05 | F93: 2e-06 | G93: 1.531444352e-06 | H93: 0.3981755315 | I93: 283.1702557 | J93: 0.5663405113 | K93: 0.1127514671 | L93: 0.1990877658 | M93: 1.827975152e-05 | N93: 1.827975152e-05 | O93: 1.827975152e-05 | P93: 1.827975152e-05 | S93: 1 | U93: 0.0007271115526 | V93: 45.90877658 | X93: 0.0007271115526 | Y93: 0.1127514671 | AA93: 0.0007271115526 | AB93: 0.1990877658
A94: 94 | B94: 0.000730642997 | C94: 46.12609915 | D94: 1.242168182e-05 | E94: 1.242168182e-05 | F94: 2e-06 | G94: 1.548161473e-06 | H94: 0.402521983 | I94: 281.8361023 | J94: 0.5636722047 | K94: 0.1134452268 | L94: 0.2012609915 | M94: 1.85667689e-05 | N94: 1.85667689e-05 | O94: 1.85667689e-05 | P94: 1.85667689e-05 | S94: 1 | U94: 0.000730642997 | V94: 46.12609915 | X94: 0.000730642997 | Y94: 0.1134452268 | AA94: 0.000730642997 | AB94: 0.2012609915
A95: 95 | B95: 0.0007341911584 | C95: 46.34436823 | D95: 1.228841305e-05 | E95: 1.228841305e-05 | F95: 2e-06 | G95: 1.564951402e-06 | H95: 0.4068873645 | I95: 280.5087327 | J95: 0.5610174654 | K95: 0.114135459 | L95: 0.2034436823 | M95: 1.885693785e-05 | N95: 1.885693785e-05 | O95: 1.885693785e-05 | P95: 1.885693785e-05 | S95: 1 | U95: 0.0007341911584 | V95: 46.34436823 | X95: 0.0007341911584 | Y95: 0.114135459 | AA95: 0.0007341911584 | AB95: 0.2034436823
A96: 96 | B96: 0.0007377561098 | C96: 46.56358673 | D96: 1.215741219e-05 | E96: 1.215741219e-05 | F96: 2e-06 | G96: 1.581814364e-06 | H96: 0.4112717346 | I96: 279.1881149 | J96: 0.5583762297 | K96: 0.1148221803 | L96: 0.2056358673 | M96: 1.915028708e-05 | N96: 1.915028708e-05 | O96: 1.915028708e-05 | P96: 1.915028708e-05 | S96: 1 | U96: 0.0007377561098 | V96: 46.56358673 | X96: 0.0007377561098 | Y96: 0.1148221803 | AA96: 0.0007377561098 | AB96: 0.2056358673
A97: 97 | B97: 0.0007413379242 | C97: 46.78375756 | D97: 1.202862376e-05 | E97: 1.202862376e-05 | F97: 2e-06 | G97: 1.598750582e-06 | H97: 0.4156751513 | I97: 277.874217 | J97: 0.555748434 | K97: 0.1155054072 | L97: 0.2078375756 | M97: 1.94468455e-05 | N97: 1.94468455e-05 | O97: 1.94468455e-05 | P97: 1.94468455e-05 | S97: 1 | U97: 0.0007413379242 | V97: 46.78375756 | X97: 0.0007413379242 | Y97: 0.1155054072 | AA97: 0.0007413379242 | AB97: 0.2078375756
A98: 98 | B98: 0.0007449366748 | C98: 47.00488363 | D98: 1.190199405e-05 | E98: 1.190199405e-05 | F98: 2e-06 | G98: 1.615760279e-06 | H98: 0.4200976726 | I98: 276.5670074 | J98: 0.5531340149 | K98: 0.1161851561 | L98: 0.2100488363 | M98: 1.974664221e-05 | N98: 1.974664221e-05 | O98: 1.974664221e-05 | P98: 1.974664221e-05 | S98: 1 | U98: 0.0007449366748 | V98: 47.00488363 | X98: 0.0007449366748 | Y98: 0.1161851561 | AA98: 0.0007449366748 | AB98: 0.2100488363
A99: 99 | B99: =IF(F98<=0,D98+B98,F98+G98+B98) -> 0.0007485524351 | C99: 47.22696781 | D99: =IF(C99<$D$4,0.0001,$D$2*$D$5/(C99-$D$4)) -> 1.17774711e-05 | E99: 1.17774711e-05 | F99: 2e-06 | G99: 1.632843678e-06 | H99: =(C99-$D$4)*F99/$D$2 -> 0.4245393563 | I99: 275.2664548 | J99: 0.5505329095 | K99: 0.1168614435 | L99: 0.2122696781 | M99: 2.004970652e-05 | N99: 2.004970652e-05 | O99: 2.004970652e-05 | P99: 2.004970652e-05 | S99: 1 | U99: 0.0007485524351 | V99: 47.22696781 | X99: 0.0007485524351 | Y99: 0.1168614435 | AA99: 0.0007485524351 | AB99: 0.2122696781
A100: 100 | B100: 0.0007521852787 | C100: 47.450013 | D100: 1.165500459e-05 | E100: 1.165500459e-05 | F100: 2e-06 | G100: 1.650001e-06 | H100: 0.42900026 | I100: 273.9725277 | J100: 0.5479450554 | K100: 0.1175342856 | L100: 0.21450013 | M100: 2.035606791e-05 | N100: 2.035606791e-05 | O100: 2.035606791e-05 | P100: 2.035606791e-05 | S100: 1 | U100: 0.0007521852787 | V100: 47.450013 | X100: 0.0007521852787 | Y100: 0.1175342856 | AA100: 0.0007521852787 | AB100: 0.21450013
A101: 101 | B101: 0.0007558352797 | C101: 47.67402205 | D101: 1.15345458e-05 | E101: 1.15345458e-05 | F101: 2e-06 | G101: 1.667232465e-06 | H101: 0.4334804409 | I101: 272.685195 | J101: 0.5453703901 | K101: 0.1182036986 | L101: 0.2167402205 | M101: 2.06657561e-05 | N101: 2.06657561e-05 | O101: 2.06657561e-05 | P101: 2.06657561e-05 | S101: 1 | U101: 0.0007558352797 | V101: 47.67402205 | X101: 0.0007558352797 | Y101: 0.1182036986 | AA101: 0.0007558352797 | AB101: 0.2167402205
A102: 102 | B102: 0.0007595025122 | C102: 47.89899781 | D102: 1.141604754e-05 | E102: 1.141604754e-05 | F102: 2e-06 | G102: 1.684538293e-06 | H102: 0.4379799562 | I102: 271.4044259 | J102: 0.5428088517 | K102: 0.1188696986 | L102: 0.2189899781 | M102: 2.097880096e-05 | N102: 2.097880096e-05 | O102: 2.097880096e-05 | P102: 2.097880096e-05 | S102: 1 | U102: 0.0007595025122 | V102: 47.89899781 | X102: 0.0007595025122 | Y102: 0.1188696986 | AA102: 0.0007595025122 | AB102: 0.2189899781
A103: 103 | B103: 0.0007631870505 | C103: 48.12494314 | D103: 1.129946407e-05 | E103: 1.129946407e-05 | F103: 2e-06 | G103: 1.701918703e-06 | H103: 0.4424988628 | I103: 270.1301893 | J103: 0.5402603786 | K103: 0.1195323016 | L103: 0.2212494314 | M103: 2.129523261e-05 | N103: 2.129523261e-05 | O103: 2.129523261e-05 | P103: 2.129523261e-05 | S103: 1 | U103: 0.0007631870505 | V103: 48.12494314 | X103: 0.0007631870505 | Y103: 0.1195323016 | AA103: 0.0007631870505 | AB103: 0.2212494314
A104: 104 | B104: 0.0007668889692 | C104: 48.35186086 | D104: 1.118475108e-05 | E104: 1.118475108e-05 | F104: 2e-06 | G104: 1.719373913e-06 | H104: 0.4470372173 | I104: 268.8624547 | J104: 0.5377249094 | K104: 0.1201915236 | L104: 0.2235186086 | M104: 2.161508133e-05 | N104: 2.161508133e-05 | O104: 2.161508133e-05 | P104: 2.161508133e-05 | S104: 1 | U104: 0.0007668889692 | V104: 48.35186086 | X104: 0.0007668889692 | Y104: 0.1201915236 | AA104: 0.0007668889692 | AB104: 0.2235186086
A105: 105 | B105: 0.0007706083431 | C105: 48.5797538 | D105: 1.107186563e-05 | E105: 1.107186563e-05 | F105: 2e-06 | G105: 1.736904138e-06 | H105: 0.451595076 | I105: 267.6011915 | J105: 0.535202383 | K105: 0.1208473804 | L105: 0.225797538 | M105: 2.193837761e-05 | N105: 2.193837761e-05 | O105: 2.193837761e-05 | P105: 2.193837761e-05 | S105: 1 | U105: 0.0007706083431 | V105: 48.5797538 | X105: 0.0007706083431 | Y105: 0.1208473804 | AA105: 0.0007706083431 | AB105: 0.225797538
A106: 106 | B106: 0.0007743452472 | C106: 48.80862475 | D106: 1.096076606e-05 | E106: 1.096076606e-05 | F106: 2e-06 | G106: 1.754509596e-06 | H106: 0.456172495 | I106: 266.3463694 | J106: 0.5326927389 | K106: 0.1214998879 | L106: 0.2280862475 | M106: 2.226515213e-05 | N106: 2.226515213e-05 | O106: 2.226515213e-05 | P106: 2.226515213e-05 | S106: 1 | U106: 0.0007743452472 | V106: 48.80862475 | X106: 0.0007743452472 | Y106: 0.1214998879 | AA106: 0.0007743452472 | AB106: 0.2280862475
A107: 107 | B107: 0.0007780997568 | C107: 49.03847651 | D107: 1.085141198e-05 | E107: 1.085141198e-05 | F107: 2e-06 | G107: 1.772190501e-06 | H107: 0.4607695303 | I107: 265.0979583 | J107: 0.5301959165 | K107: 0.1221490617 | L107: 0.2303847651 | M107: 2.259543579e-05 | N107: 2.259543579e-05 | O107: 2.259543579e-05 | P107: 2.259543579e-05 | S107: 1 | U107: 0.0007780997568 | V107: 49.03847651 | X107: 0.0007780997568 | Y107: 0.1221490617 | AA107: 0.0007780997568 | AB107: 0.2303847651
A108: 108 | B108: 0.0007818719473 | C108: 49.26931187 | D108: 1.074376421e-05 | E108: 1.074376421e-05 | F108: 2e-06 | G108: 1.789947067e-06 | H108: 0.4653862373 | I108: 263.8559279 | J108: 0.5277118558 | K108: 0.1227949175 | L108: 0.2326931187 | M108: 2.292925967e-05 | N108: 2.292925967e-05 | O108: 2.292925967e-05 | P108: 2.292925967e-05 | S108: 1 | U108: 0.0007818719473 | V108: 49.26931187 | X108: 0.0007818719473 | Y108: 0.1227949175 | AA108: 0.0007818719473 | AB108: 0.2326931187
A109: 109 | B109: 0.0007856618944 | C109: 49.50113357 | D109: 1.063778474e-05 | E109: 1.063778474e-05 | F109: 2e-06 | G109: 1.807779506e-06 | H109: 0.4700226714 | I109: 262.6202485 | J109: 0.525240497 | K109: 0.1234374708 | L109: 0.2350113357 | M109: 2.326665504e-05 | N109: 2.326665504e-05 | O109: 2.326665504e-05 | P109: 2.326665504e-05 | S109: 1 | U109: 0.0007856618944 | V109: 49.50113357 | X109: 0.0007856618944 | Y109: 0.1234374708 | AA109: 0.0007856618944 | AB109: 0.2350113357
A110: 110 | B110: 0.0007894696739 | C110: 49.73394438 | D110: 1.053343667e-05 | E110: 1.053343667e-05 | F110: 2e-06 | G110: 1.825688029e-06 | H110: 0.4746788876 | I110: 261.3908903 | J110: 0.5227817806 | K110: 0.124076737 | L110: 0.2373394438 | M110: 2.360765339e-05 | N110: 2.360765339e-05 | O110: 2.360765339e-05 | P110: 2.360765339e-05 | S110: 1 | U110: 0.0007894696739 | V110: 49.73394438 | X110: 0.0007894696739 | Y110: 0.124076737 | AA110: 0.0007894696739 | AB110: 0.2373394438
A111: 111 | B111: 0.0007932953619 | C111: 49.96774702 | D111: 1.043068419e-05 | E111: 1.043068419e-05 | F111: 2e-06 | G111: 1.843672848e-06 | H111: 0.4793549405 | I111: 260.1678237 | J111: 0.5203356475 | K111: 0.1247127317 | L111: 0.2396774702 | M111: 2.39522864e-05 | N111: 2.39522864e-05 | O111: 2.39522864e-05 | P111: 2.39522864e-05 | S111: 1 | U111: 0.0007932953619 | V111: 49.96774702 | X111: 0.0007932953619 | Y111: 0.1247127317 | AA111: 0.0007932953619 | AB111: 0.2396774702
A112: 112 | B112: 0.0007971390348 | C112: 50.20254423 | D112: 1.032949254e-05 | E112: 1.032949254e-05 | F112: 2e-06 | G112: 1.861734171e-06 | H112: 0.4840508845 | I112: 258.9510193 | J112: 0.5179020386 | K112: 0.12534547 | L112: 0.2420254423 | M112: 2.430058594e-05 | N112: 2.430058594e-05 | O112: 2.430058594e-05 | P112: 2.430058594e-05 | S112: 1 | U112: 0.0007971390348 | V112: 50.20254423 | X112: 0.0007971390348 | Y112: 0.12534547 | AA112: 0.0007971390348 | AB112: 0.2420254423
A113: 113 | B113: 0.000801000769 | C113: 50.43833869 | D113: 1.022982794e-05 | E113: 1.022982794e-05 | F113: 2e-06 | G113: 1.879872207e-06 | H113: 0.4887667737 | I113: 257.7404478 | J113: 0.5154808956 | K113: 0.1259749671 | L113: 0.2443833869 | M113: 2.465258407e-05 | N113: 2.465258407e-05 | O113: 2.465258407e-05 | P113: 2.465258407e-05 | S113: 1 | U113: 0.000801000769 | V113: 50.43833869 | X113: 0.000801000769 | Y113: 0.1259749671 | AA113: 0.000801000769 | AB113: 0.2443833869
A114: 114 | B114: 0.0008048806412 | C114: 50.67513309 | D114: 1.013165761e-05 | E114: 1.013165761e-05 | F114: 2e-06 | G114: 1.898087161e-06 | H114: 0.4935026619 | I114: 256.5360801 | J114: 0.5130721601 | K114: 0.1266012384 | L114: 0.2467513309 | M114: 2.500831307e-05 | N114: 2.500831307e-05 | O114: 2.500831307e-05 | P114: 2.500831307e-05 | S114: 1 | U114: 0.0008048806412 | V114: 50.67513309 | X114: 0.0008048806412 | Y114: 0.1266012384 | AA114: 0.0008048806412 | AB114: 0.2467513309
A115: 115 | B115: 0.0008087787283 | C115: 50.91293011 | D115: 1.003494968e-05 | E115: 1.003494968e-05 | F115: 2e-06 | G115: 1.91637924e-06 | H115: 0.4982586023 | I115: 255.3378871 | J115: 0.5106757741 | K115: 0.1272242987 | L115: 0.2491293011 | M115: 2.53678054e-05 | N115: 2.53678054e-05 | O115: 2.53678054e-05 | P115: 2.53678054e-05 | S115: 1 | U115: 0.0008087787283 | V115: 50.91293011 | X115: 0.0008087787283 | Y115: 0.1272242987 | AA115: 0.0008087787283 | AB115: 0.2491293011
A116: 116 | B116: 0.0008126951076 | C116: 51.1517324 | D116: 9.93967318e-06 | E116: 9.93967318e-06 | F116: 2e-06 | G116: 1.934748646e-06 | H116: 0.5030346481 | I116: 254.14584 | J116: 0.50829168 | K116: 0.1278441632 | L116: 0.251517324 | M116: 2.573109371e-05 | N116: 2.573109371e-05 | O116: 2.573109371e-05 | P116: 2.573109371e-05 | S116: 1 | U116: 0.0008126951076 | V116: 51.1517324 | X116: 0.0008126951076 | Y116: 0.1278441632 | AA116: 0.0008126951076 | AB116: 0.251517324
A117: 117 | B117: 0.0008166298562 | C117: 51.3915426 | D117: 9.845798027e-06 | E117: 9.845798027e-06 | F117: 2e-06 | G117: 1.953195584e-06 | H117: 0.5078308519 | I117: 252.9599102 | J117: 0.5059198204 | K117: 0.1284608467 | L117: 0.253915426 | M117: 2.609821086e-05 | N117: 2.609821086e-05 | O117: 2.609821086e-05 | P117: 2.609821086e-05 | S117: 1 | U117: 0.0008166298562 | V117: 51.3915426 | X117: 0.0008166298562 | Y117: 0.1284608467 | AA117: 0.0008166298562 | AB117: 0.253915426
A118: 118 | B118: 0.0008205830518 | C118: 51.63236331 | D118: 9.753294966e-06 | E118: 9.753294966e-06 | F118: 2e-06 | G118: 1.971720254e-06 | H118: 0.5126472661 | I118: 251.7800691 | J118: 0.5035601382 | K118: 0.1290743641 | L118: 0.2563236331 | M118: 2.646918989e-05 | N118: 2.646918989e-05 | O118: 2.646918989e-05 | P118: 2.646918989e-05 | S118: 1 | U118: 0.0008205830518 | V118: 51.63236331 | X118: 0.0008205830518 | Y118: 0.1290743641 | AA118: 0.0008205830518 | AB118: 0.2563236331
A119: 119 | B119: 0.0008245547721 | C119: 51.87419713 | D119: 9.662135552e-06 | E119: 9.662135552e-06 | F119: 2e-06 | G119: 1.990322856e-06 | H119: 0.5174839427 | I119: 250.6062883 | J119: 0.5012125765 | K119: 0.1296847301 | L119: 0.2587419713 | M119: 2.684406406e-05 | N119: 2.684406406e-05 | O119: 2.684406406e-05 | P119: 2.684406406e-05 | S119: 1 | U119: 0.0008245547721 | V119: 51.87419713 | X119: 0.0008245547721 | Y119: 0.1296847301 | AA119: 0.0008245547721 | AB119: 0.2587419713
A120: 120 | B120: 0.0008285450949 | C120: 52.11704666 | D120: 9.572292124e-06 | E120: 9.572292124e-06 | F120: 2e-06 | G120: 2.009003589e-06 | H120: 0.5223409331 | I120: 249.4385395 | J120: 0.498877079 | K120: 0.1302919595 | L120: 0.2611704666 | M120: 2.722286678e-05 | N120: 2.722286678e-05 | O120: 2.722286678e-05 | P120: 2.722286678e-05 | S120: 1 | U120: 0.0008285450949 | V120: 52.11704666 | X120: 0.0008285450949 | Y120: 0.1302919595 | AA120: 0.0008285450949 | AB120: 0.2611704666
A121: 121 | B121: 0.0008325540985 | C121: 52.36091443 | D121: 9.483737776e-06 | E121: 9.483737776e-06 | F121: 2e-06 | G121: 2.027762648e-06 | H121: 0.5272182886 | I121: 248.2767947 | J121: 0.4965535893 | K121: 0.1308960668 | L121: 0.2636091443 | M121: 2.76056317e-05 | N121: 2.76056317e-05 | O121: 2.76056317e-05 | P121: 2.76056317e-05 | S121: 1 | U121: 0.0008325540985 | V121: 52.36091443 | X121: 0.0008325540985 | Y121: 0.1308960668 | AA121: 0.0008325540985 | AB121: 0.2636091443
A122: 122 | B122: 0.0008365818611 | C122: 52.605803 | D122: 9.396446333e-06 | E122: 9.396446333e-06 | F122: 2e-06 | G122: 2.04660023e-06 | H122: 0.5321160599 | I122: 247.1210258 | J122: 0.4942420516 | K122: 0.1314970666 | L122: 0.26605803 | M122: 2.799239262e-05 | N122: 2.799239262e-05 | O122: 2.799239262e-05 | P122: 2.799239262e-05 | S122: 1 | U122: 0.0008365818611 | V122: 52.605803 | X122: 0.0008365818611 | Y122: 0.1314970666 | AA122: 0.0008365818611 | AB122: 0.26605803
A123: 123 | B123: 0.0008406284614 | C123: 52.85171487 | D123: 9.310392323e-06 | E123: 9.310392323e-06 | F123: 2e-06 | G123: 2.065516529e-06 | H123: 0.5370342974 | I123: 245.9712051 | J123: 0.4919424103 | K123: 0.1320949733 | L123: 0.2685171487 | M123: 2.838318356e-05 | N123: 2.838318356e-05 | O123: 2.838318356e-05 | P123: 2.838318356e-05 | S123: 1 | U123: 0.0008406284614 | V123: 52.85171487 | X123: 0.0008406284614 | Y123: 0.1320949733 | AA123: 0.0008406284614 | AB123: 0.2685171487
A124: 124 | B124: 0.0008446939779 | C124: 53.09865255 | D124: 9.225550958e-06 | E124: 9.225550958e-06 | F124: 2e-06 | G124: 2.084511735e-06 | H124: 0.541973051 | I124: 244.8273049 | J124: 0.4896546099 | K124: 0.1326898014 | L124: 0.2709865255 | M124: 2.877803873e-05 | N124: 2.877803873e-05 | O124: 2.877803873e-05 | P124: 2.877803873e-05 | S124: 1 | U124: 0.0008446939779 | V124: 53.09865255 | X124: 0.0008446939779 | Y124: 0.1326898014 | AA124: 0.0008446939779 | AB124: 0.2709865255
A125: 125 | B125: 0.0008487784896 | C125: 53.34661851 | D125: 9.141898107e-06 | E125: 9.141898107e-06 | F125: 2e-06 | G125: 2.103586039e-06 | H125: 0.5469323702 | I125: 243.6892977 | J125: 0.4873785954 | K125: 0.1332815652 | L125: 0.2734661851 | M125: 2.917699251e-05 | N125: 2.917699251e-05 | O125: 2.917699251e-05 | P125: 2.917699251e-05 | S125: 1 | U125: 0.0008487784896 | V125: 53.34661851 | X125: 0.0008487784896 | Y125: 0.1332815652 | AA125: 0.0008487784896 | AB125: 0.2734661851
A126: 126 | B126: 0.0008528820757 | C126: 53.5956152 | D126: 9.059410278e-06 | E126: 9.059410278e-06 | F126: 2e-06 | G126: 2.122739631e-06 | H126: 0.5519123041 | I126: 242.557156 | J126: 0.4851143121 | K126: 0.1338702789 | L126: 0.275956152 | M126: 2.958007947e-05 | N126: 2.958007947e-05 | O126: 2.958007947e-05 | P126: 2.958007947e-05 | S126: 1 | U126: 0.0008528820757 | V126: 53.5956152 | X126: 0.0008528820757 | Y126: 0.1338702789 | AA126: 0.0008528820757 | AB126: 0.275956152
A127: 127 | B127: 0.0008570048153 | C127: 53.84564505 | D127: 8.978064595e-06 | E127: 8.978064595e-06 | F127: 2e-06 | G127: 2.141972697e-06 | H127: 0.5569129011 | I127: 241.4308527 | J127: 0.4828617054 | K127: 0.1344559566 | L127: 0.2784564505 | M127: 2.99873344e-05 | N127: 2.99873344e-05 | O127: 2.99873344e-05 | P127: 2.99873344e-05 | S127: 1 | U127: 0.0008570048153 | V127: 53.84564505 | X127: 0.0008570048153 | Y127: 0.1344559566 | AA127: 0.0008570048153 | AB127: 0.2784564505
A128: 128 | B128: 0.000861146788 | C128: 54.09671047 | D128: 8.897838778e-06 | E128: 8.897838778e-06 | F128: 2e-06 | G128: 2.161285421e-06 | H128: 0.5619342095 | I128: 240.3103606 | J128: 0.4806207212 | K128: 0.1350386125 | L128: 0.2809671047 | M128: 3.039879224e-05 | N128: 3.039879224e-05 | O128: 3.039879224e-05 | P128: 3.039879224e-05 | S128: 1 | U128: 0.000861146788 | V128: 54.09671047 | X128: 0.000861146788 | Y128: 0.1350386125 | AA128: 0.000861146788 | AB128: 0.2809671047
A129: 129 | B129: 0.0008653080734 | C129: 54.34881384 | D129: 8.818711125e-06 | E129: 8.818711125e-06 | F129: 2e-06 | G129: 2.180677988e-06 | H129: 0.5669762768 | I129: 239.1956527 | J129: 0.4783913054 | K129: 0.1356182606 | L129: 0.2834881384 | M129: 3.081448812e-05 | N129: 3.081448812e-05 | O129: 3.081448812e-05 | P129: 3.081448812e-05 | S129: 1 | U129: 0.0008653080734 | V129: 54.34881384 | X129: 0.0008653080734 | Y129: 0.1356182606 | AA129: 0.0008653080734 | AB129: 0.2834881384
A130: 130 | B130: 0.0008694887514 | C130: 54.60195751 | D130: 8.740660491e-06 | E130: 8.740660491e-06 | F130: 2e-06 | G130: 2.200150578e-06 | H130: 0.5720391503 | I130: 238.0867022 | J130: 0.4761734045 | K130: 0.1361949148 | L130: 0.2860195751 | M130: 3.123445738e-05 | N130: 3.123445738e-05 | O130: 3.123445738e-05 | P130: 3.123445738e-05 | S130: 1 | U130: 0.0008694887514 | V130: 54.60195751 | X130: 0.0008694887514 | Y130: 0.1361949148 | AA130: 0.0008694887514 | AB130: 0.2860195751
A131: 131 | B131: 0.000873688902 | C131: 54.85614383 | D131: 8.663666272e-06 | E131: 8.663666272e-06 | F131: 2e-06 | G131: 2.219703371e-06 | H131: 0.5771228765 | I131: 236.9834825 | J131: 0.473966965 | K131: 0.1367685891 | L131: 0.2885614383 | M131: 3.165873552e-05 | N131: 3.165873552e-05 | O131: 3.165873552e-05 | P131: 3.165873552e-05 | S131: 1 | U131: 0.000873688902 | V131: 54.85614383 | X131: 0.000873688902 | Y131: 0.1367685891 | AA131: 0.000873688902 | AB131: 0.2885614383
A132: 132 | B132: 0.0008779086054 | C132: 55.11137508 | D132: 8.587708389e-06 | E132: 8.587708389e-06 | F132: 2e-06 | G132: 2.239336545e-06 | H132: 0.5822275016 | I132: 235.8859669 | J132: 0.4717719339 | K132: 0.1373392972 | L132: 0.2911137508 | M132: 3.208735823e-05 | N132: 3.208735823e-05 | O132: 3.208735823e-05 | P132: 3.208735823e-05 | S132: 1 | U132: 0.0008779086054 | V132: 55.11137508 | X132: 0.0008779086054 | Y132: 0.1373392972 | AA132: 0.0008779086054 | AB132: 0.2911137508
A133: 133 | B133: 0.0008821479419 | C133: 55.36765356 | D133: 8.512767268e-06 | E133: 8.512767268e-06 | F133: 2e-06 | G133: 2.259050274e-06 | H133: 0.5873530713 | I133: 234.7941291 | J133: 0.4695882583 | K133: 0.1379070529 | L133: 0.2936765356 | M133: 3.252036137e-05 | N133: 3.252036137e-05 | O133: 3.252036137e-05 | P133: 3.252036137e-05 | S133: 1 | U133: 0.0008821479419 | V133: 55.36765356 | X133: 0.0008821479419 | Y133: 0.1379070529 | AA133: 0.0008821479419 | AB133: 0.2936765356
A134: 134 | B134: 0.0008864069922 | C134: 55.62498152 | D134: 8.438823829e-06 | E134: 8.438823829e-06 | F134: 2e-06 | G134: 2.278844732e-06 | H134: 0.5924996304 | I134: 233.7079428 | J134: 0.4674158856 | K134: 0.1384718697 | L134: 0.2962498152 | M134: 3.2957781e-05 | N134: 3.2957781e-05 | O134: 3.2957781e-05 | P134: 3.2957781e-05 | S134: 1 | U134: 0.0008864069922 | V134: 55.62498152 | X134: 0.0008864069922 | Y134: 0.1384718697 | AA134: 0.0008864069922 | AB134: 0.2962498152
A135: 135 | B135: 0.0008906858369 | C135: 55.88336119 | D135: 8.365859464e-06 | E135: 8.365859464e-06 | F135: 2e-06 | G135: 2.298720091e-06 | H135: 0.5976672237 | I135: 232.6273818 | J135: 0.4652547636 | K135: 0.1390337615 | L135: 0.2988336119 | M135: 3.339965333e-05 | N135: 3.339965333e-05 | O135: 3.339965333e-05 | P135: 3.339965333e-05 | S135: 1 | U135: 0.0008906858369 | V135: 55.88336119 | X135: 0.0008906858369 | Y135: 0.1390337615 | AA135: 0.0008906858369 | AB135: 0.2988336119
A136: 136 | B136: 0.000894984557 | C136: 56.14279475 | D136: 8.293856029e-06 | E136: 8.293856029e-06 | F136: 2e-06 | G136: 2.318676519e-06 | H136: 0.602855895 | I136: 231.5524202 | J136: 0.4631048403 | K136: 0.1395927415 | L136: 0.3014279475 | M136: 3.384601478e-05 | N136: 3.384601478e-05 | O136: 3.384601478e-05 | P136: 3.384601478e-05 | S136: 1 | U136: 0.000894984557 | V136: 56.14279475 | X136: 0.000894984557 | Y136: 0.1395927415 | AA136: 0.000894984557 | AB136: 0.3014279475
A137: 137 | B137: 0.0008993032335 | C137: 56.40328439 | D137: 8.222795826e-06 | E137: 8.222795826e-06 | F137: 2e-06 | G137: 2.338714184e-06 | H137: 0.6080656878 | I137: 230.483032 | J137: 0.460966064 | K137: 0.1401488234 | L137: 0.3040328439 | M137: 3.429690192e-05 | N137: 3.429690192e-05 | O137: 3.429690192e-05 | P137: 3.429690192e-05 | S137: 1 | U137: 0.0008993032335 | V137: 56.40328439 | X137: 0.0008993032335 | Y137: 0.1401488234 | AA137: 0.0008993032335 | AB137: 0.3040328439
A138: 138 | B138: 0.0009036419477 | C138: 56.66483224 | D138: 8.152661591e-06 | E138: 8.152661591e-06 | F138: 2e-06 | G138: 2.358833249e-06 | H138: 0.6132966448 | I138: 229.4191915 | J138: 0.458838383 | K138: 0.1407020204 | L138: 0.3066483224 | M138: 3.475235149e-05 | N138: 3.475235149e-05 | O138: 3.475235149e-05 | P138: 3.475235149e-05 | S138: 1 | U138: 0.0009036419477 | V138: 56.66483224 | X138: 0.0009036419477 | Y138: 0.1407020204 | AA138: 0.0009036419477 | AB138: 0.3066483224
A139: 139 | B139: 0.000908000781 | C139: 56.92744041 | D139: 8.083436477e-06 | E139: 8.083436477e-06 | F139: 2e-06 | G139: 2.379033878e-06 | H139: 0.6185488083 | I139: 228.3608732 | J139: 0.4567217463 | K139: 0.141252346 | L139: 0.3092744041 | M139: 3.521240043e-05 | N139: =$D$4*H139*0.5*(F139+G139) -> 3.521240043e-05 | O139: 3.521240043e-05 | P139: 3.521240043e-05 | S139: 1 | U139: 0.000908000781 | V139: =C139 -> 56.92744041 | X139: 0.000908000781 | Y139: =K139 -> 0.141252346 | AA139: 0.000908000781 | AB139: =L139 -> 0.3092744041
A140: 140 | B140: 0.0009123798148 | C140: 57.19111099 | D140: 8.015104049e-06 | E140: =IF($D$2*$D$5/(C140-$D$4)<0,0,$D$2*$D$5/(C140-$D$4)) -> 8.015104049e-06 | F140: 2e-06 | G140: 2.39931623e-06 | H140: 0.6238222198 | I140: 227.3080515 | J140: =IF(H140<=0,0,F140/(F140+G140)) -> 0.4546161029 | K140: =S140*J140*H140/2 -> 0.1417998132 | L140: =S140*H140/2 -> 0.3119111099 | M140: 3.567708581e-05 | N140: 3.567708581e-05 | O140: =M140*S140 -> 3.567708581e-05 | P140: =N140*S140 -> 3.567708581e-05 | S140: =IF(B140<=1/(2*$D$7),1,0) -> 1 | U140: 0.0009123798148 | V140: 57.19111099 | X140: =U140 -> 0.0009123798148 | Y140: 0.1417998132 | AA140: =U140 -> 0.0009123798148 | AB140: 0.3119111099
A141: =A140+1 -> 141 | B141: 0.0009167791311 | C141: 57.45584602 | D141: 7.947648265e-06 | E141: 7.947648265e-06 | F141: 2e-06 | G141: 2.419680463e-06 | H141: 0.6291169203 | I141: 226.2607011 | J141: 0.4525214021 | K141: 0.1423444354 | L141: 0.3145584602 | M141: 3.61464449e-05 | N141: 3.61464449e-05 | O141: 3.61464449e-05 | P141: 3.61464449e-05 | S141: 1 | U141: =IF(B141<(1/(2*$D$7)),B141,1/(2*$D$7)) -> 0.0009167791311 | V141: 57.45584602 | X141: 0.0009167791311 | Y141: 0.1423444354 | AA141: 0.0009167791311 | AB141: 0.3145584602
A142: 142 | B142: 0.0009211988115 | C142: =ABS($D$6*1.414*SIN(6.28*B142*$D$7)) -> 57.72164751 | D142: 7.881053464e-06 | E142: 7.881053464e-06 | F142: 2e-06 | G142: 2.440126731e-06 | H142: 0.6344329502 | I142: 225.2187968 | J142: 0.4504375936 | K142: 0.1428862257 | L142: 0.3172164751 | M142: 3.662051512e-05 | N142: 3.662051512e-05 | O142: 3.662051512e-05 | P142: 3.662051512e-05 | S142: 1 | U142: 0.0009211988115 | V142: 57.72164751 | X142: 0.0009211988115 | Y142: 0.1428862257 | AA142: 0.0009211988115 | AB142: 0.3172164751
A143: 143 | B143: 0.0009256389383 | C143: 57.98851745 | D143: 7.815304362e-06 | E143: 7.815304362e-06 | F143: 2e-06 | G143: 2.460655189e-06 | H143: 0.6397703491 | I143: 224.1823135 | J143: 0.448364627 | K143: 0.143425197 | L143: 0.3198851745 | M143: 3.709933406e-05 | N143: 3.709933406e-05 | O143: 3.709933406e-05 | P143: 3.709933406e-05 | S143: 1 | U143: 0.0009256389383 | V143: 57.98851745 | X143: 0.0009256389383 | Y143: 0.143425197 | AA143: 0.0009256389383 | AB143: 0.3198851745
A144: 144 | B144: 0.0009300995935 | C144: 58.2564578 | D144: 7.750386032e-06 | E144: 7.750386032e-06 | F144: 2e-06 | G144: 2.481265985e-06 | H144: 0.6451291561 | I144: 223.1512263 | J144: 0.4463024526 | K144: 0.1439613623 | L144: 0.322564578 | M144: 3.758293946e-05 | N144: 3.758293946e-05 | O144: 3.758293946e-05 | P144: 3.758293946e-05 | S144: 1 | U144: 0.0009300995935 | V144: 58.2564578 | X144: 0.0009300995935 | Y144: 0.1439613623 | AA144: 0.0009300995935 | AB144: 0.322564578
A145: 145 | B145: 0.0009345808594 | C145: 58.52547047 | D145: 7.686283899e-06 | E145: 7.686283899e-06 | F145: 2e-06 | G145: =IF(F145<=0,0,$D$2*H145/$D$4) -> 2.501959267e-06 | H145: 0.6505094094 | I145: 222.1255104 | J145: 0.4442510208 | K145: 0.1444947346 | L145: 0.3252547047 | M145: 3.807136923e-05 | N145: 3.807136923e-05 | O145: 3.807136923e-05 | P145: 3.807136923e-05 | S145: 1 | U145: 0.0009345808594 | V145: 58.52547047 | X145: 0.0009345808594 | Y145: 0.1444947346 | AA145: 0.0009345808594 | AB145: 0.3252547047
A146: 146 | B146: 0.0009390828187 | C146: 58.79555734 | D146: 7.622983728e-06 | E146: 7.622983728e-06 | F146: 2e-06 | G146: 2.52273518e-06 | H146: 0.6559111469 | I146: 221.1051411 | J146: 0.4422102821 | K146: 0.1450253267 | L146: 0.3279555734 | M146: 3.856466145e-05 | N146: 3.856466145e-05 | O146: 3.856466145e-05 | P146: 3.856466145e-05 | S146: 1 | U146: 0.0009390828187 | V146: 58.79555734 | X146: 0.0009390828187 | Y146: 0.1450253267 | AA146: 0.0009390828187 | AB146: 0.3279555734
A147: 147 | B147: 0.0009436055539 | C147: 59.06672027 | D147: 7.560471615e-06 | E147: 7.560471615e-06 | F147: =IF(E147>$D$8*0.000001,$D$8*0.000001,E147) -> 2e-06 | G147: 2.543593867e-06 | H147: 0.6613344054 | I147: =IF(H147<=0.0001,0,0.001/(F147+G147)) -> 220.0900937 | J147: 0.4401801875 | K147: 0.1455531513 | L147: 0.3306672027 | M147: =(F147+G147)*C147*J147*H147/2 -> 3.906285432e-05 | N147: 3.906285432e-05 | O147: 3.906285432e-05 | P147: 3.906285432e-05 | S147: 1 | U147: 0.0009436055539 | V147: 59.06672027 | X147: 0.0009436055539 | Y147: 0.1455531513 | AA147: 0.0009436055539 | AB147: 0.3306672027
A148: 148 | B148: 0.0009481491478 | C148: 59.33896105 | D148: 7.498733977e-06 | E148: 7.498733977e-06 | F148: 2e-06 | G148: 2.564535466e-06 | H148: 0.6667792211 | I148: 219.080344 | J148: 0.438160688 | K148: 0.1460782211 | L148: 0.3333896105 | M148: 3.956598623e-05 | N148: 3.956598623e-05 | O148: 3.956598623e-05 | P148: 3.956598623e-05 | S148: 1 | U148: 0.0009481491478 | V148: 59.33896105 | X148: 0.0009481491478 | Y148: 0.1460782211 | AA148: 0.0009481491478 | AB148: 0.3333896105
A149: 149 | B149: 0.0009527136832 | C149: 59.61228148 | D149: 7.43775754e-06 | E149: 7.43775754e-06 | F149: 2e-06 | G149: 2.585560114e-06 | H149: 0.6722456296 | I149: 218.0758675 | J149: 0.4361517351 | K149: 0.1466005489 | L149: 0.3361228148 | M149: 4.007409569e-05 | N149: 4.007409569e-05 | O149: 4.007409569e-05 | P149: 4.007409569e-05 | S149: 1 | U149: 0.0009527136832 | V149: 59.61228148 | X149: 0.0009527136832 | Y149: 0.1466005489 | AA149: 0.0009527136832 | AB149: 0.3361228148
A150: 150 | B150: 0.0009572992433 | C150: 59.88668328 | D150: 7.377529336e-06 | E150: 7.377529336e-06 | F150: 2e-06 | G150: 2.606667945e-06 | H150: 0.6777336656 | I150: 217.0766402 | J150: 0.4341532804 | K150: 0.1471201471 | L150: 0.3388668328 | M150: 4.058722138e-05 | N150: 4.058722138e-05 | O150: 4.058722138e-05 | P150: 4.058722138e-05 | S150: 1 | U150: 0.0009572992433 | V150: 59.88668328 | X150: 0.0009572992433 | Y150: 0.1471201471 | AA150: 0.0009572992433 | AB150: 0.3388668328
A151: 151 | B151: 0.0009619059113 | C151: 60.16216816 | D151: 7.318036691e-06 | E151: 7.318036691e-06 | F151: 2e-06 | G151: 2.627859089e-06 | H151: 0.6832433631 | I151: 216.0826379 | J151: 0.4321652759 | K151: 0.1476370283 | L151: 0.3416216816 | M151: 4.110540211e-05 | N151: 4.110540211e-05 | O151: 4.110540211e-05 | P151: 4.110540211e-05 | S151: 1 | U151: 0.0009619059113 | V151: 60.16216816 | X151: 0.0009619059113 | Y151: 0.1476370283 | AA151: 0.0009619059113 | AB151: 0.3416216816
A152: 152 | B152: 0.0009665337704 | C152: 60.43873777 | D152: 7.259267214e-06 | E152: 7.259267214e-06 | F152: 2e-06 | G152: 2.649133675e-06 | H152: 0.6887747554 | I152: 215.0938368 | J152: 0.4301876736 | K152: 0.1481512049 | L152: 0.3443873777 | M152: 4.162867683e-05 | N152: 4.162867683e-05 | O152: 4.162867683e-05 | P152: 4.162867683e-05 | S152: 1 | U152: 0.0009665337704 | V152: 60.43873777 | X152: 0.0009665337704 | Y152: 0.1481512049 | AA152: 0.0009665337704 | AB152: 0.3443873777
A153: 153 | B153: 0.000971182904 | C153: 60.71639375 | D153: 7.201208796e-06 | E153: 7.201208796e-06 | F153: 2e-06 | G153: 2.670491827e-06 | H153: 0.6943278749 | I153: 214.110213 | J153: 0.4282204261 | K153: 0.1486626892 | L153: 0.3471639375 | M153: 4.215708464e-05 | N153: 4.215708464e-05 | O153: 4.215708464e-05 | P153: 4.215708464e-05 | S153: 1 | U153: 0.000971182904 | V153: 60.71639375 | X153: 0.000971182904 | Y153: 0.1486626892 | AA153: 0.000971182904 | AB153: 0.3471639375
A154: 154 | B154: 0.0009758533959 | C154: 60.99513766 | D154: 7.143849595e-06 | E154: 7.143849595e-06 | F154: 2e-06 | G154: 2.691933666e-06 | H154: 0.6999027532 | I154: 213.1317429 | J154: 0.4262634859 | K154: 0.1491714937 | L154: 0.3499513766 | M154: 4.269066478e-05 | N154: 4.269066478e-05 | O154: 4.269066478e-05 | P154: 4.269066478e-05 | S154: 1 | U154: 0.0009758533959 | V154: 60.99513766 | X154: 0.0009758533959 | Y154: 0.1491714937 | AA154: 0.0009758533959 | AB154: 0.3499513766
A155: 155 | B155: 0.0009805453295 | C155: 61.27497106 | D155: 7.087178033e-06 | E155: 7.087178033e-06 | F155: 2e-06 | G155: 2.713459312e-06 | H155: 0.7054994212 | I155: 212.1584029 | J155: 0.4243168059 | K155: 0.1496776305 | L155: 0.3527497106 | M155: 4.322945661e-05 | N155: 4.322945661e-05 | O155: 4.322945661e-05 | P155: 4.322945661e-05 | S155: 1 | U155: 0.0009805453295 | V155: 61.27497106 | X155: 0.0009805453295 | Y155: 0.1496776305 | AA155: 0.0009805453295 | AB155: 0.3527497106
A156: 156 | B156: 0.0009852587888 | C156: 61.55589543 | D156: 7.031182788e-06 | E156: 7.031182788e-06 | F156: 2e-06 | G156: 2.73506888e-06 | H156: 0.7111179087 | I156: 211.1901697 | J156: 0.4223803393 | K156: 0.1501811118 | L156: 0.3555589543 | M156: 4.377349963e-05 | N156: 4.377349963e-05 | O156: 4.377349963e-05 | P156: 4.377349963e-05 | S156: 1 | U156: 0.0009852587888 | V156: 61.55589543 | X156: 0.0009852587888 | Y156: 0.1501811118 | AA156: 0.0009852587888 | AB156: 0.3555589543
A157: 157 | B157: 0.0009899938577 | C157: 61.83791225 | D157: 6.975852786e-06 | E157: 6.975852786e-06 | F157: 2e-06 | G157: 2.756762481e-06 | H157: 0.716758245 | I157: 210.2270198 | J157: 0.4204540395 | K157: 0.1506819497 | L157: 0.3583791225 | M157: 4.432283346e-05 | N157: 4.432283346e-05 | O157: 4.432283346e-05 | P157: 4.432283346e-05 | S157: 1 | U157: 0.0009899938577 | V157: 61.83791225 | X157: 0.0009899938577 | Y157: 0.1506819497 | AA157: 0.0009899938577 | AB157: 0.3583791225
A158: 158 | B158: 0.0009947506202 | C158: 62.12102291 | D158: 6.921177194e-06 | E158: 6.921177194e-06 | F158: 2e-06 | G158: 2.778540224e-06 | H158: 0.7224204582 | I158: 209.2689301 | J158: 0.4185378602 | K158: 0.1511801564 | L158: 0.3612102291 | M158: 4.487749784e-05 | N158: 4.487749784e-05 | O158: 4.487749784e-05 | P158: 4.487749784e-05 | S158: 1 | U158: 0.0009947506202 | V158: 62.12102291 | X158: 0.0009947506202 | Y158: 0.1511801564 | AA158: 0.0009947506202 | AB158: 0.3612102291
A159: 159 | B159: 0.0009995291604 | C159: 62.40522879 | D159: 6.867145415e-06 | E159: 6.867145415e-06 | F159: 2e-06 | G159: 2.800402215e-06 | H159: 0.7281045759 | I159: 208.3158776 | J159: 0.4166317551 | K159: 0.1516757437 | L159: 0.3640522879 | M159: 4.543753264e-05 | N159: 4.543753264e-05 | O159: 4.543753264e-05 | P159: 4.543753264e-05 | S159: 1 | U159: 0.0009995291604 | V159: 62.40522879 | X159: 0.0009995291604 | Y159: 0.1516757437 | AA159: 0.0009995291604 | AB159: 0.3640522879
A160: 160 | B160: 0.001004329563 | C160: 62.69053122 | D160: 6.813747081e-06 | E160: 6.813747081e-06 | F160: 2e-06 | G160: 2.822348555e-06 | H160: 0.7338106244 | I160: 207.3678392 | J160: 0.4147356785 | K160: 0.1521687236 | L160: 0.3669053122 | M160: 4.600297786e-05 | N160: 4.600297786e-05 | O160: 4.600297786e-05 | P160: 4.600297786e-05 | S160: 1 | U160: 0.001004329563 | V160: 62.69053122 | X160: 0.001004329563 | Y160: 0.1521687236 | AA160: 0.001004329563 | AB160: 0.3669053122
A161: 161 | B161: 0.001009151911 | C161: 62.97693146 | D161: 6.760972047e-06 | E161: 6.760972047e-06 | F161: 2e-06 | G161: 2.844379343e-06 | H161: 0.7395386293 | I161: 206.4247923 | J161: 0.4128495847 | K161: 0.152659108 | L161: 0.3697693146 | M161: 4.657387357e-05 | N161: 4.657387357e-05 | O161: 4.657387357e-05 | P161: 4.657387357e-05 | S161: 1 | U161: 0.001009151911 | V161: 62.97693146 | X161: 0.001009151911 | Y161: 0.152659108 | AA161: 0.001009151911 | AB161: 0.3697693146
A162: 162 | B162: 0.001013996291 | C162: 63.26443076 | D162: 6.708810382e-06 | E162: 6.708810382e-06 | F162: 2e-06 | G162: 2.866494674e-06 | H162: 0.7452886153 | I162: 205.4867141 | J162: 0.4109734283 | K162: 0.1531469086 | L162: 0.3726443076 | M162: 4.715026e-05 | N162: 4.715026e-05 | O162: 4.715026e-05 | P162: 4.715026e-05 | S162: 1 | U162: 0.001013996291 | V162: 63.26443076 | X162: 0.001013996291 | Y162: 0.1531469086 | AA162: 0.001013996291 | AB162: 0.3726443076
A163: 163 | B163: =IF(F162<=0,D162+B162,F162+G162+B162) -> 0.001018862785 | C163: 63.5530303 | D163: =IF(C163<$D$4,0.0001,$D$2*$D$5/(C163-$D$4)) -> 6.657252371e-06 | E163: 6.657252371e-06 | F163: 2e-06 | G163: 2.888694638e-06 | H163: =(C163-$D$4)*F163/$D$2 -> 0.751060606 | I163: 204.5535821 | J163: 0.4091071642 | K163: 0.1536321373 | L163: 0.375530303 | M163: 4.773217745e-05 | N163: 4.773217745e-05 | O163: 4.773217745e-05 | P163: 4.773217745e-05 | S163: 1 | U163: 0.001018862785 | V163: 63.5530303 | X163: 0.001018862785 | Y163: 0.1536321373 | AA163: 0.001018862785 | AB163: 0.375530303
A164: 164 | B164: 0.00102375148 | C164: 63.84273121 | D164: 6.6062885e-06 | E164: 6.6062885e-06 | F164: 2e-06 | G164: 2.910979324e-06 | H164: 0.7568546242 | I164: 203.6253737 | J164: 0.4072507474 | K164: 0.1541148057 | L164: 0.3784273121 | M164: 4.831966634e-05 | N164: 4.831966634e-05 | O164: 4.831966634e-05 | P164: 4.831966634e-05 | S164: 1 | U164: 0.00102375148 | V164: 63.84273121 | X164: 0.00102375148 | Y164: 0.1541148057 | AA164: 0.00102375148 | AB164: 0.3784273121
A165: 165 | B165: 0.001028662459 | C165: 64.13353458 | D165: 6.555909457e-06 | E165: 6.555909457e-06 | F165: 2e-06 | G165: 2.933348814e-06 | H165: 0.7626706916 | I165: 202.7020666 | J165: 0.4054041333 | K165: 0.1545949253 | L165: 0.3813353458 | M165: 4.891276717e-05 | N165: 4.891276717e-05 | O165: 4.891276717e-05 | P165: 4.891276717e-05 | S165: 1 | U165: 0.001028662459 | V165: 64.13353458 | X165: 0.001028662459 | Y165: 0.1545949253 | AA165: 0.001028662459 | AB165: 0.3813353458
A166: 166 | B166: 0.001033595808 | C166: 64.42544145 | D166: 6.506106126e-06 | E166: 6.506106126e-06 | F166: 2e-06 | G166: 2.955803188e-06 | H166: 0.768508829 | I166: 201.7836387 | J166: 0.4035672774 | K166: 0.1550725079 | L166: 0.3842544145 | M166: 4.951152057e-05 | N166: 4.951152057e-05 | O166: 4.951152057e-05 | P166: 4.951152057e-05 | S166: 1 | U166: 0.001033595808 | V166: 64.42544145 | X166: 0.001033595808 | Y166: 0.1550725079 | AA166: 0.001033595808 | AB166: 0.3842544145
A167: 167 | B167: 0.001038551611 | C167: 64.7184528 | D167: 6.456869578e-06 | E167: 6.456869578e-06 | F167: 2e-06 | G167: 2.978342523e-06 | H167: 0.7743690561 | I167: 200.8700678 | J167: 0.4017401355 | K167: 0.1555475648 | L167: 0.387184528 | M167: 5.011596721e-05 | N167: 5.011596721e-05 | O167: 5.011596721e-05 | P167: 5.011596721e-05 | S167: 1 | U167: 0.001038551611 | V167: 64.7184528 | X167: 0.001038551611 | Y167: 0.1555475648 | AA167: 0.001038551611 | AB167: 0.387184528
A168: 168 | B168: 0.001043529954 | C168: 65.01256958 | D168: 6.40819107e-06 | E168: 6.40819107e-06 | F168: 2e-06 | G168: 3.000966891e-06 | H168: 0.7802513916 | I168: 199.9613319 | J168: 0.3999226637 | K168: 0.1560201074 | L168: 0.3901256958 | M168: 5.072614788e-05 | N168: 5.072614788e-05 | O168: 5.072614788e-05 | P168: 5.072614788e-05 | S168: 1 | U168: 0.001043529954 | V168: 65.01256958 | X168: 0.001043529954 | Y168: 0.1560201074 | AA168: 0.001043529954 | AB168: 0.3901256958
A169: 169 | B169: 0.001048530921 | C169: 65.30779266 | D169: 6.360062041e-06 | E169: 6.360062041e-06 | F169: 2e-06 | G169: 3.023676358e-06 | H169: 0.7861558531 | I169: 199.0574091 | J169: 0.3981148182 | K169: 0.1564901473 | L169: 0.3930779266 | M169: 5.134210345e-05 | N169: 5.134210345e-05 | O169: 5.134210345e-05 | P169: 5.134210345e-05 | S169: 1 | U169: 0.001048530921 | V169: 65.30779266 | X169: 0.001048530921 | Y169: 0.1564901473 | AA169: 0.001048530921 | AB169: 0.3930779266
A170: 170 | B170: 0.001053554597 | C170: 65.60412287 | D170: 6.312474104e-06 | E170: 6.312474104e-06 | F170: 2e-06 | G170: 3.04647099e-06 | H170: 0.7920824573 | I170: 198.1582777 | J170: 0.3963165555 | K170: 0.1569576956 | L170: 0.3960412287 | M170: 5.196387485e-05 | N170: 5.196387485e-05 | O170: 5.196387485e-05 | P170: 5.196387485e-05 | S170: 1 | U170: 0.001053554597 | V170: 65.60412287 | X170: 0.001053554597 | Y170: 0.1569576956 | AA170: 0.001053554597 | AB170: 0.3960412287
A171: 171 | B171: 0.001058601068 | C171: 65.90156098 | D171: 6.265419042e-06 | E171: 6.265419042e-06 | F171: 2e-06 | G171: 3.069350845e-06 | H171: 0.7980312197 | I171: 197.2639162 | J171: 0.3945278323 | K171: 0.1574227636 | L171: 0.3990156098 | M171: 5.259150309e-05 | N171: 5.259150309e-05 | O171: 5.259150309e-05 | P171: 5.259150309e-05 | S171: 1 | U171: 0.001058601068 | V171: 65.90156098 | X171: 0.001058601068 | Y171: 0.1574227636 | AA171: 0.001058601068 | AB171: 0.3990156098
A172: 172 | B172: 0.001063670419 | C172: 66.20010773 | D172: 6.218888807e-06 | E172: 6.218888807e-06 | F172: 2e-06 | G172: 3.092315979e-06 | H172: 0.8040021545 | I172: 196.3743028 | J172: 0.3927486056 | K172: 0.1578853625 | L172: 0.4020010773 | M172: 5.322502924e-05 | N172: 5.322502924e-05 | O172: 5.322502924e-05 | P172: 5.322502924e-05 | S172: 1 | U172: 0.001063670419 | V172: 66.20010773 | X172: 0.001063670419 | Y172: 0.1578853625 | AA172: 0.001063670419 | AB172: 0.4020010773
A173: 173 | B173: 0.001068762735 | C173: 66.49976376 | D173: 6.172875513e-06 | E173: 6.172875513e-06 | F173: 2e-06 | G173: 3.115366443e-06 | H173: 0.8099952753 | I173: 195.4894163 | J173: 0.3909788325 | K173: 0.1583455035 | L173: 0.4049976376 | M173: 5.386449445e-05 | N173: 5.386449445e-05 | O173: 5.386449445e-05 | P173: 5.386449445e-05 | S173: 1 | U173: 0.001068762735 | V173: 66.49976376 | X173: 0.001068762735 | Y173: 0.1583455035 | AA173: 0.001068762735 | AB173: 0.4049976376
A174: 174 | B174: 0.001073878101 | C174: 66.8005297 | D174: 6.12737143e-06 | E174: 6.12737143e-06 | F174: 2e-06 | G174: 3.138502284e-06 | H174: 0.8160105939 | I174: 194.6092353 | J174: 0.3892184705 | K174: 0.1588031977 | L174: 0.408005297 | M174: 5.450993991e-05 | N174: 5.450993991e-05 | O174: 5.450993991e-05 | P174: 5.450993991e-05 | S174: 1 | U174: 0.001073878101 | V174: 66.8005297 | X174: 0.001073878101 | Y174: 0.1588031977 | AA174: 0.001073878101 | AB174: 0.408005297
A175: 175 | B175: 0.001079016603 | C175: 67.10240608 | D175: 6.082368987e-06 | E175: 6.082368987e-06 | F175: 2e-06 | G175: 3.161723544e-06 | H175: 0.8220481215 | I175: 193.7337386 | J175: 0.3874674773 | K175: 0.1592584559 | L175: 0.4110240608 | M175: 5.516140686e-05 | N175: 5.516140686e-05 | O175: 5.516140686e-05 | P175: 5.516140686e-05 | S175: 1 | U175: 0.001079016603 | V175: 67.10240608 | X175: 0.001079016603 | Y175: 0.1592584559 | AA175: 0.001079016603 | AB175: 0.4110240608
A176: 176 | B176: 0.001084178327 | C176: 67.40539339 | D176: 6.03786076e-06 | E176: 6.03786076e-06 | F176: 2e-06 | G176: 3.185030261e-06 | H176: 0.8281078678 | I176: 192.8629053 | J176: 0.3857258105 | K176: 0.1597112893 | L176: 0.4140539339 | M176: 5.58189366e-05 | N176: 5.58189366e-05 | O176: 5.58189366e-05 | P176: 5.58189366e-05 | S176: 1 | U176: 0.001084178327 | V176: 67.40539339 | X176: 0.001084178327 | Y176: 0.1597112893 | AA176: 0.001084178327 | AB176: 0.4140539339
A177: 177 | B177: 0.001089363357 | C177: 67.70949207 | D177: 5.993839473e-06 | E177: 5.993839473e-06 | F177: 2e-06 | G177: 3.208422467e-06 | H177: 0.8341898415 | I177: 191.9967142 | J177: 0.3839934284 | K177: 0.1601617086 | L177: 0.4170949207 | M177: 5.648257046e-05 | N177: 5.648257046e-05 | O177: 5.648257046e-05 | P177: 5.648257046e-05 | S177: 1 | U177: 0.001089363357 | V177: 67.70949207 | X177: 0.001089363357 | Y177: 0.1601617086 | AA177: 0.001089363357 | AB177: 0.4170949207
A178: 178 | B178: 0.00109457178 | C178: 68.01470249 | D178: 5.950297995e-06 | E178: 5.950297995e-06 | F178: 2e-06 | G178: 3.231900192e-06 | H178: 0.8402940499 | I178: 191.1351447 | J178: 0.3822702893 | K178: 0.1606097248 | L178: 0.4201470249 | M178: 5.715234981e-05 | N178: 5.715234981e-05 | O178: 5.715234981e-05 | P178: 5.715234981e-05 | S178: 1 | U178: 0.00109457178 | V178: 68.01470249 | X178: 0.00109457178 | Y178: 0.1606097248 | AA178: 0.00109457178 | AB178: 0.4201470249
A179: 179 | B179: 0.00109980368 | C179: 68.32102496 | D179: 5.907229332e-06 | E179: 5.907229332e-06 | F179: 2e-06 | G179: 3.255463458e-06 | H179: 0.8464204991 | I179: 190.2781758 | J179: 0.3805563517 | K179: 0.1610553486 | L179: 0.4232102496 | M179: 5.782831604e-05 | N179: 5.782831604e-05 | O179: 5.782831604e-05 | P179: 5.782831604e-05 | S179: 1 | U179: 0.00109980368 | V179: 68.32102496 | X179: 0.00109980368 | Y179: 0.1610553486 | AA179: 0.00109980368 | AB179: 0.4232102496
A180: 180 | B180: 0.001105059143 | C180: 68.62845971 | D180: 5.86462663e-06 | E180: 5.86462663e-06 | F180: 2e-06 | G180: 3.279112285e-06 | H180: 0.8525691941 | I180: 189.4257871 | J180: 0.3788515743 | K180: 0.1614985907 | L180: 0.4262845971 | M180: 5.851051059e-05 | N180: 5.851051059e-05 | O180: 5.851051059e-05 | P180: 5.851051059e-05 | S180: 1 | U180: 0.001105059143 | V180: 68.62845971 | X180: 0.001105059143 | Y180: 0.1614985907 | AA180: 0.001105059143 | AB180: 0.4262845971
A181: 181 | B181: 0.001110338256 | C181: 68.93700693 | D181: 5.822483165e-06 | E181: 5.822483165e-06 | F181: 2e-06 | G181: 3.302846687e-06 | H181: 0.8587401386 | I181: 188.577958 | J181: 0.3771559161 | K181: 0.1619394618 | L181: 0.4293700693 | M181: 5.919897488e-05 | N181: 5.919897488e-05 | O181: 5.919897488e-05 | P181: 5.919897488e-05 | S181: 1 | U181: 0.001110338256 | V181: 68.93700693 | X181: 0.001110338256 | Y181: 0.1619394618 | AA181: 0.001110338256 | AB181: 0.4293700693
A182: 182 | B182: 0.001115641102 | C182: 69.24666674 | D182: 5.780792345e-06 | E182: 5.780792345e-06 | F182: 2e-06 | G182: 3.326666672e-06 | H182: 0.8649333347 | I182: 187.7346681 | J182: 0.3754693363 | K182: 0.1623779726 | L182: 0.4324666674 | M182: 5.989375038e-05 | N182: 5.989375038e-05 | O182: 5.989375038e-05 | P182: 5.989375038e-05 | S182: 1 | U182: 0.001115641102 | V182: 69.24666674 | X182: 0.001115641102 | Y182: 0.1623779726 | AA182: 0.001115641102 | AB182: 0.4324666674
A183: 183 | B183: 0.001120967769 | C183: 69.55743918 | D183: 5.739547703e-06 | E183: 5.739547703e-06 | F183: 2e-06 | G183: 3.350572245e-06 | H183: 0.8711487836 | I183: 186.8958972 | J183: 0.3737917943 | K183: 0.1628141335 | L183: 0.4355743918 | M183: 6.059487853e-05 | N183: 6.059487853e-05 | O183: 6.059487853e-05 | P183: 6.059487853e-05 | S183: 1 | U183: 0.001120967769 | V183: 69.55743918 | X183: 0.001120967769 | Y183: 0.1628141335 | AA183: 0.001120967769 | AB183: 0.4355743918
A184: 184 | B184: 0.001126318341 | C184: 69.86932424 | D184: 5.698742899e-06 | E184: 5.698742899e-06 | F184: 2e-06 | G184: 3.374563403e-06 | H184: 0.8773864849 | I184: 186.0616249 | J184: 0.3721232498 | K184: 0.163247955 | L184: 0.4386932424 | M184: 6.13024008e-05 | N184: 6.13024008e-05 | O184: 6.13024008e-05 | P184: 6.13024008e-05 | S184: 1 | U184: 0.001126318341 | V184: 69.86932424 | X184: 0.001126318341 | Y184: 0.163247955 | AA184: 0.001126318341 | AB184: 0.4386932424
A185: 185 | B185: 0.001131692905 | C185: 70.18232185 | D185: 5.65837171e-06 | E185: 5.65837171e-06 | F185: 2e-06 | G185: 3.398640142e-06 | H185: 0.8836464369 | I185: 185.2318313 | J185: 0.3704636626 | K185: 0.1636794477 | L185: 0.4418232185 | M185: 6.201635863e-05 | N185: 6.201635863e-05 | O185: 6.201635863e-05 | P185: 6.201635863e-05 | S185: 1 | U185: 0.001131692905 | V185: 70.18232185 | X185: 0.001131692905 | Y185: 0.1636794477 | AA185: 0.001131692905 | AB185: 0.4418232185
A186: 186 | B186: 0.001137091545 | C186: 70.49643183 | D186: 5.618428033e-06 | E186: 5.618428033e-06 | F186: 2e-06 | G186: 3.422802449e-06 | H186: 0.8899286367 | I186: 184.4064964 | J186: 0.3688129927 | K186: 0.1641086219 | L186: 0.4449643183 | M186: 6.273679347e-05 | N186: 6.273679347e-05 | O186: 6.273679347e-05 | P186: 6.273679347e-05 | S186: 1 | U186: 0.001137091545 | V186: 70.49643183 | X186: 0.001137091545 | Y186: 0.1641086219 | AA186: 0.001137091545 | AB186: 0.4449643183
A187: 187 | B187: 0.001142514347 | C187: 70.81165398 | D187: 5.578905882e-06 | E187: 5.578905882e-06 | F187: 2e-06 | G187: 3.447050306e-06 | H187: 0.8962330796 | I187: 183.5856002 | J187: 0.3671712005 | K187: 0.1645354879 | L187: 0.4481165398 | M187: 6.346374672e-05 | N187: 6.346374672e-05 | O187: 6.346374672e-05 | P187: 6.346374672e-05 | S187: 1 | U187: 0.001142514347 | V187: 70.81165398 | X187: 0.001142514347 | Y187: 0.1645354879 | AA187: 0.001142514347 | AB187: 0.4481165398
A188: 188 | B188: 0.001147961398 | C188: 71.127988 | D188: 5.539799381e-06 | E188: 5.539799381e-06 | F188: 2e-06 | G188: 3.471383692e-06 | H188: 0.90255976 | I188: 182.7691232 | J188: 0.3655382464 | K188: 0.1649600559 | L188: 0.45127988 | M188: 6.419725978e-05 | N188: 6.419725978e-05 | O188: 6.419725978e-05 | P188: 6.419725978e-05 | S188: 1 | U188: 0.001147961398 | V188: 71.127988 | X188: 0.001147961398 | Y188: 0.1649600559 | AA188: 0.001147961398 | AB188: 0.45127988
A189: 189 | B189: 0.001153432781 | C189: 71.44543352 | D189: 5.501102765e-06 | E189: 5.501102765e-06 | F189: 2e-06 | G189: 3.495802578e-06 | H189: 0.9089086704 | I189: 181.9570455 | J189: 0.3639140911 | K189: 0.1653823363 | L189: 0.4544543352 | M189: 6.493737399e-05 | N189: 6.493737399e-05 | O189: 6.493737399e-05 | P189: 6.493737399e-05 | S189: 1 | U189: 0.001153432781 | V189: 71.44543352 | X189: 0.001153432781 | Y189: 0.1653823363 | AA189: 0.001153432781 | AB189: 0.4544543352
A190: 190 | B190: 0.001158928584 | C190: 71.76399011 | D190: 5.462810376e-06 | E190: 5.462810376e-06 | F190: 2e-06 | G190: 3.520306931e-06 | H190: 0.9152798021 | I190: 181.1493478 | J190: 0.3622986955 | K190: 0.1658023392 | L190: 0.4576399011 | M190: 6.568413066e-05 | N190: 6.568413066e-05 | O190: 6.568413066e-05 | P190: 6.568413066e-05 | S190: 1 | U190: 0.001158928584 | V190: 71.76399011 | X190: 0.001158928584 | Y190: 0.1658023392 | AA190: 0.001158928584 | AB190: 0.4576399011
A191: 191 | B191: 0.001164448891 | C191: 72.08365725 | D191: 5.424916661e-06 | E191: 5.424916661e-06 | F191: 2e-06 | G191: 3.544896711e-06 | H191: 0.9216731449 | I191: 180.3460104 | J191: 0.3606920208 | K191: 0.1662200746 | L191: 0.4608365725 | M191: 6.643757107e-05 | N191: 6.643757107e-05 | O191: 6.643757107e-05 | P191: 6.643757107e-05 | S191: 1 | U191: 0.001164448891 | V191: 72.08365725 | X191: 0.001164448891 | Y191: 0.1662200746 | AA191: 0.001164448891 | AB191: 0.4608365725
A192: 192 | B192: 0.001169993788 | C192: 72.40443435 | D192: 5.387416171e-06 | E192: 5.387416171e-06 | F192: 2e-06 | G192: 3.569571873e-06 | H192: 0.928088687 | I192: 179.5470142 | J192: 0.3590940283 | K192: 0.1666355526 | L192: 0.4640443435 | M192: 6.719773641e-05 | N192: 6.719773641e-05 | O192: 6.719773641e-05 | P192: 6.719773641e-05 | S192: 1 | U192: 0.001169993788 | V192: 72.40443435 | X192: 0.001169993788 | Y192: 0.1666355526 | AA192: 0.001169993788 | AB192: 0.4640443435
A193: 193 | B193: 0.001175563359 | C193: 72.72632076 | D193: 5.350303554e-06 | E193: 5.350303554e-06 | F193: 2e-06 | G193: 3.594332366e-06 | H193: 0.9345264151 | I193: 178.7523398 | J193: 0.3575046796 | K193: 0.1670487833 | L193: 0.4672632076 | M193: 6.796466782e-05 | N193: 6.796466782e-05 | O193: 6.796466782e-05 | P193: 6.796466782e-05 | S193: 1 | U193: 0.001175563359 | V193: 72.72632076 | X193: 0.001175563359 | Y193: 0.1670487833 | AA193: 0.001175563359 | AB193: 0.4672632076
A194: 194 | B194: 0.001181157692 | C194: 73.04931572 | D194: 5.313573559e-06 | E194: 5.313573559e-06 | F194: 2e-06 | G194: 3.619178132e-06 | H194: 0.9409863144 | I194: 177.9619682 | J194: 0.3559239364 | K194: 0.1674597765 | L194: 0.4704931572 | M194: 6.873840637e-05 | N194: 6.873840637e-05 | O194: 6.873840637e-05 | P194: 6.873840637e-05 | S194: 1 | U194: 0.001181157692 | V194: 73.04931572 | X194: 0.001181157692 | Y194: 0.1674597765 | AA194: 0.001181157692 | AB194: 0.4704931572
A195: 195 | B195: 0.00118677687 | C195: 73.37341843 | D195: 5.27722103e-06 | E195: 5.27722103e-06 | F195: 2e-06 | G195: 3.64410911e-06 | H195: 0.9474683686 | I195: 177.1758803 | J195: 0.3543517606 | K195: 0.1678685423 | L195: 0.4737341843 | M195: 6.951899306e-05 | N195: 6.951899306e-05 | O195: 6.951899306e-05 | P195: 6.951899306e-05 | S195: 1 | U195: 0.00118677687 | V195: 73.37341843 | X195: 0.00118677687 | Y195: 0.1678685423 | AA195: 0.00118677687 | AB195: 0.4737341843
A196: 196 | B196: 0.001192420979 | C196: 73.69862798 | D196: 5.241240903e-06 | E196: 5.241240903e-06 | F196: 2e-06 | G196: 3.669125229e-06 | H196: 0.9539725596 | I196: 176.3940572 | J196: 0.3527881144 | K196: 0.1682750903 | L196: 0.4769862798 | M196: 7.030646877e-05 | N196: 7.030646877e-05 | O196: 7.030646877e-05 | P196: 7.030646877e-05 | S196: 1 | U196: 0.001192420979 | V196: 73.69862798 | X196: 0.001192420979 | Y196: 0.1682750903 | AA196: 0.001192420979 | AB196: 0.4769862798
A197: 197 | B197: 0.001198090104 | C197: 74.02494339 | D197: 5.205628208e-06 | E197: 5.205628208e-06 | F197: 2e-06 | G197: 3.694226415e-06 | H197: 0.9604988678 | I197: 175.6164801 | J197: 0.3512329603 | K197: 0.1686794303 | L197: 0.4802494339 | M197: 7.110087431e-05 | N197: 7.110087431e-05 | O197: 7.110087431e-05 | P197: 7.110087431e-05 | S197: 1 | U197: 0.001198090104 | V197: 74.02494339 | X197: 0.001198090104 | Y197: 0.1686794303 | AA197: 0.001198090104 | AB197: 0.4802494339
A198: 198 | B198: 0.001203784331 | C198: 74.3523636 | D198: 5.170378062e-06 | E198: 5.170378062e-06 | F198: 2e-06 | G198: 3.719412584e-06 | H198: 0.967047272 | I198: 174.8431303 | J198: 0.3496862607 | K198: 0.1690815722 | L198: 0.483523636 | M198: 7.190225038e-05 | N198: 7.190225038e-05 | O198: 7.190225038e-05 | P198: 7.190225038e-05 | S198: 1 | U198: 0.001203784331 | V198: 74.3523636 | X198: 0.001203784331 | Y198: 0.1690815722 | AA198: 0.001203784331 | AB198: 0.483523636
A199: 199 | B199: 0.001209503743 | C199: 74.68088746 | D199: 5.135485671e-06 | E199: 5.135485671e-06 | F199: 2e-06 | G199: 3.744683651e-06 | H199: 0.9736177492 | I199: 174.0739892 | J199: 0.3481479785 | K199: 0.1694815256 | L199: 0.4868088746 | M199: 7.271063756e-05 | N199: 7.271063756e-05 | O199: 7.271063756e-05 | P199: 7.271063756e-05 | S199: 1 | U199: 0.001209503743 | V199: 74.68088746 | X199: 0.001209503743 | Y199: 0.1694815256 | AA199: 0.001209503743 | AB199: 0.4868088746
A200: 200 | B200: 0.001215248427 | C200: 75.01051375 | D200: 5.100946325e-06 | E200: 5.100946325e-06 | F200: 2e-06 | G200: 3.770039519e-06 | H200: 0.980210275 | I200: 173.3090383 | J200: 0.3466180766 | K200: 0.1698793001 | L200: 0.4901051375 | M200: 7.352607632e-05 | N200: 7.352607632e-05 | O200: 7.352607632e-05 | P200: 7.352607632e-05 | S200: 1 | U200: 0.001215248427 | V200: 75.01051375 | X200: 0.001215248427 | Y200: 0.1698793001 | AA200: 0.001215248427 | AB200: 0.4901051375
A201: 201 | B201: 0.001221018466 | C201: 75.34124115 | D201: 5.066755399e-06 | E201: 5.066755399e-06 | F201: 2e-06 | G201: 3.795480089e-06 | H201: 0.986824823 | I201: 172.5482591 | J201: 0.3450965182 | K201: 0.1702749053 | L201: 0.4934124115 | M201: 7.434860697e-05 | N201: 7.434860697e-05 | O201: 7.434860697e-05 | P201: 7.434860697e-05 | S201: 1 | U201: 0.001221018466 | V201: 75.34124115 | X201: 0.001221018466 | Y201: 0.1702749053 | AA201: 0.001221018466 | AB201: 0.4934124115
... 2284 more rows

Sheet Alg LL Vfmax (hidden)
C1: LED DCM Buck Model | AD1: Freqs
D2: =D3/1000000 -> 0.000125 | AD2: 50
C3: Lout | D3: =Step1!D22 -> 125 | E3: uH | G3: Slope | H3: Intercept | I3: Fmax | J3: Favg | K3: Iavgin | L3: Iavgout | O3: Pavgin | P3: Pavgout | Q3: In RMS | R3: PF | AD3: 60
C4: Vout | D4: =Step1!D12 -> 26 | E4: VDC | G4: =Worksheet!Q22 -> -0.03657668208 | H4: =Worksheet!Q25 -> 7.112147977 | I4: =MAX(I12:I3001) -> 289.4379208 | J4: =S10*2*60/1000 -> 91.08 | K4: =O4/(D6*1.414*0.636) -> 0.2113308177 | L4: =P4/D4 -> 0.7309640373 | O4: =SUM(O11:O2500)*2*D7 -> 19.00506497 | P4: =SUM(P11:P2500)*2*D7 -> 19.00506497 | Q4: =SQRT(P6/P7) -> 0.1979053541 | R4: =O4/(D6*Q4) -> 0.9603108037
C5: Ipeak | D5: =Step1!D23 -> 2.1 | E5: A
C6: Vin RMS | D6: =Step1!D8 -> 100 | E6: VAC | P6: =SUMSQ(K11:K2500) -> 29.72739566
C7: Freq | D7: =Step1!D11 -> 60 | E7: Hz | P7: =S10 -> 759
C8: Ton | D8: =(D6*G4)+H4 -> 3.454479769 | E8: us
A10: N | C10: Vin | D10: Time | E10: Ton Calc | F10: Ton | G10: Toff | H10: Ipeak | I10: Freq | J10: Duty | K10: Iin | L10: Iout | M10: Ein | N10: Eout | O10: Pin | P10: Pout | S10: =SUM(S11:S2500) -> 759 | U10: Time | V10: =C10 -> Vin | X10: =U10 -> Time | Y10: =K10 -> Iin | AA10: =U10 -> Time | AB10: =L10 -> Iout
A11: 11 | B11: 0 | C11: =$D$6*1.414*SIN(6.28*B11*$D$7) -> 0 | D11: =IF(C11<$D$4,0.0001,$D$2*$D$5/(C11-$D$4)) -> 0.0001 | E11: =IF($D$2*$D$5/(C11-$D$4)<0,0,$D$2*$D$5/(C11-$D$4)) -> 0 | F11: =IF(E11>$D$8*0.000001,$D$8*0.000001,E11) -> 0 | G11: =IF(F11<=0,0,$D$2*H11/$D$4) -> 0 | H11: =(C11-$D$4)*F11/$D$2 -> 0 | I11: =IF(H11<=0.0001,0,0.001/(F11+G11)) -> 0 | J11: =IF(H11<=0,0,F11/(F11+G11)) -> 0 | K11: =S11*J11*H11/2 -> 0 | L11: =S11*H11/2 -> 0 | M11: =(F11+G11)*C11*J11*H11/2 -> 0 | N11: =$D$4*H11*0.5*(F11+G11) -> 0 | O11: =M11*S11 -> 0 | P11: =N11*S11 -> 0 | S11: =IF(B11<=1/(2*$D$7),1,0) -> 1 | U11: =IF(B11<(1/(2*$D$7)),B11,1/(2*$D$7)) -> 0 | V11: =C11 -> 0 | X11: =ROUND(360*$D$7*U11,0) -> 0 | Y11: =K11 -> 0 | AA11: =ROUND(360*$D$7*U11,0) -> 0 | AB11: =L11 -> 0
A12: =A11+1 -> 12 | B12: =IF(F11<=0,D11+B11,F11+G11) -> 0.0001 | C12: =ABS($D$6*1.414*SIN(6.28*B12*$D$7)) -> 5.326691334 | D12: 0.0001 | E12: =IF($D$2*$D$5/(C12-$D$4)<0,0,$D$2*$D$5/(C12-$D$4)) -> 0 | F12: 0 | G12: 0 | H12: 0 | I12: 0 | J12: =IF(H12<=0,0,F12/(F12+G12)) -> 0 | K12: =S12*J12*H12/2 -> 0 | L12: =S12*H12/2 -> 0 | M12: 0 | N12: 0 | O12: =M12*S12 -> 0 | P12: =N12*S12 -> 0 | S12: =IF(B12<=1/(2*$D$7),1,0) -> 1 | U12: =IF(B12<(1/(2*$D$7)),B12,1/(2*$D$7)) -> 0.0001 | V12: 5.326691334 | X12: =ROUND(360*$D$7*U12,0) -> 2 | Y12: 0 | AA12: =ROUND(360*$D$7*U12,0) -> 2 | AB12: 0
A13: =A12+1 -> 13 | B13: =IF(F12<=0,D12+B12,F12+G12) -> 0.0002 | C13: =ABS($D$6*1.414*SIN(6.28*B13*$D$7)) -> 10.64582082 | D13: 0.0001 | E13: 0 | F13: 0 | G13: 0 | H13: 0 | I13: 0 | J13: 0 | K13: 0 | L13: 0 | M13: 0 | N13: 0 | O13: 0 | P13: 0 | S13: 1 | U13: =IF(B13<(1/(2*$D$7)),B13,1/(2*$D$7)) -> 0.0002 | V13: 10.64582082 | X13: 4 | Y13: 0 | AA13: 4 | AB13: 0
A14: 14 | B14: =IF(F13<=0,D13+B13,F13+G13) -> 0.0003 | C14: =ABS($D$6*1.414*SIN(6.28*B14*$D$7)) -> 15.94983735 | D14: 0.0001 | E14: 0 | F14: 0 | G14: 0 | H14: 0 | I14: 0 | J14: 0 | K14: 0 | L14: 0 | M14: 0 | N14: 0 | O14: 0 | P14: 0 | S14: 1 | U14: 0.0003 | V14: 15.94983735 | X14: 6 | Y14: 0 | AA14: 6 | AB14: 0
A15: 15 | B15: =IF(F14<=0,D14+B14,F14+G14) -> 0.0004 | C15: 21.23121125 | D15: 0.0001 | E15: 0 | F15: 0 | G15: 0 | H15: 0 | I15: 0 | J15: 0 | K15: 0 | L15: 0 | M15: 0 | N15: 0 | O15: 0 | P15: 0 | S15: 1 | U15: 0.0004 | V15: 21.23121125 | X15: 9 | Y15: 0 | AA15: 9 | AB15: 0
A16: 16 | B16: =IF(F15<=0,D15+B15,F15+G15+B15) -> 0.0005 | C16: 26.48244502 | D16: 0.0005441034454 | E16: 0.0005441034454 | F16: 3.454479769e-06 | G16: 6.409986832e-08 | H16: 0.01333277261 | I16: 284.2055895 | J16: 0.9817824591 | K16: 0.00654494114 | L16: 0.006666386305 | M16: 6.098614887e-07 | N16: 6.098614887e-07 | O16: 6.098614887e-07 | P16: 6.098614887e-07 | S16: 1 | U16: 0.0005 | V16: 26.48244502 | X16: 11 | Y16: 0.00654494114 | AA16: 11 | AB16: 0.006666386305
A17: 17 | B17: =IF(F16<=0,D16+B16,F16+G16+B16) -> 0.0005035185796 | C17: 26.66657271 | D17: 0.0003938055022 | E17: 0.0003938055022 | F17: 3.454479769e-06 | G17: 8.856392054e-08 | H17: 0.01842129547 | I17: 282.2432032 | J17: 0.9750034354 | K17: 0.008980413185 | L17: 0.009210647736 | M17: 8.484769108e-07 | N17: 8.484769108e-07 | O17: 8.484769108e-07 | P17: 8.484769108e-07 | S17: 1 | U17: 0.0005035185796 | V17: 26.66657271 | X17: 11 | Y17: 0.008980413185 | AA17: 11 | AB17: 0.009210647736
A18: 18 | B18: 0.0005070616233 | C18: 26.85193323 | D18: 0.0003081227371 | E18: 0.0003081227371 | F18: =IF(E18>$D$8*0.000001,$D$8*0.000001,E18) -> 3.454479769e-06 | G18: 1.13191774e-07 | H18: 0.02354388898 | I18: =IF(H18<=0.0001,0,0.001/(F18+G18)) -> 280.2948612 | J18: 0.9682729274 | K18: 0.01139845515 | L18: 0.01177194449 | M18: =(F18+G18)*C18*J18*H18/2 -> 1.091959215e-06 | N18: 1.091959215e-06 | O18: 1.091959215e-06 | P18: 1.091959215e-06 | S18: 1 | U18: 0.0005070616233 | V18: 26.85193323 | X18: 11 | Y18: 0.01139845515 | AA18: 11 | AB18: 0.01177194449
A19: 19 | B19: 0.0005106292949 | C19: 27.03853385 | D19: 0.0002527601768 | E19: 0.0002527601768 | F19: =IF(E19>$D$8*0.000001,$D$8*0.000001,E19) -> 3.454479769e-06 | G19: 1.379843915e-07 | H19: 0.02870075344 | I19: =IF(H19<=0.0001,0,0.001/(F19+G19)) -> 278.3604666 | J19: 0.9615906004 | K19: 0.01379918737 | L19: 0.01435037672 | M19: =(F19+G19)*C19*J19*H19/2 -> 1.340383565e-06 | N19: 1.340383565e-06 | O19: 1.340383565e-06 | P19: 1.340383565e-06 | S19: 1 | U19: 0.0005106292949 | V19: 27.03853385 | X19: 11 | Y19: 0.01379918737 | AA19: 11 | AB19: 0.01435037672
A20: 20 | B20: 0.000514221759 | C20: 27.22638183 | D20: 0.0002140442674 | E20: 0.0002140442674 | F20: 3.454479769e-06 | G20: 1.62942739e-07 | H20: 0.03389208972 | I20: 276.4399231 | J20: 0.9549561217 | K20: 0.01618272928 | L20: 0.01694604486 | M20: 1.593826106e-06 | N20: 1.593826106e-06 | O20: 1.593826106e-06 | P20: 1.593826106e-06 | S20: 1 | U20: 0.000514221759 | V20: 27.22638183 | X20: 11 | Y20: 0.01618272928 | AA20: 11 | AB20: 0.01694604486
A21: 21 | B21: 0.0005178391815 | C21: 27.41548445 | D21: 0.0001854488754 | E21: 0.0001854488754 | F21: 3.454479769e-06 | G21: 1.880677849e-07 | H21: 0.03911809926 | I21: 274.5331352 | J21: 0.9483691614 | K21: 0.01854919949 | L21: 0.01955904963 | M21: 1.852363978e-06 | N21: 1.852363978e-06 | O21: 1.852363978e-06 | P21: 1.852363978e-06 | S21: 1 | U21: 0.0005178391815 | V21: 27.41548445 | X21: 11 | Y21: 0.01854919949 | AA21: 11 | AB21: 0.01955904963
A22: 22 | B22: 0.0005214817291 | C22: 27.60584904 | D22: 0.0001634649299 | E22: 0.0001634649299 | F22: 3.454479769e-06 | G22: 2.133605002e-07 | H22: 0.04437898403 | I22: 272.6400079 | J22: 0.9418293915 | K22: 0.02089871577 | L22: 0.02218949202 | M22: 2.116075322e-06 | N22: 2.116075322e-06 | O22: 2.116075322e-06 | P22: 2.116075322e-06 | S22: 1 | U22: 0.0005214817291 | V22: 27.60584904 | X22: 11 | Y22: 0.02089871577 | AA22: 11 | AB22: 0.02218949202
A23: 23 | B23: 0.0005251495694 | C23: 27.7974829 | D23: 0.0001460375504 | E23: 0.0001460375504 | F23: 3.454479769e-06 | G23: 2.388218585e-07 | H23: 0.04967494657 | I23: 270.7604471 | J23: 0.9353364868 | K23: 0.023231395 | L23: 0.02483747328 | M23: 2.385039293e-06 | N23: 2.385039293e-06 | O23: 2.385039293e-06 | P23: 2.385039293e-06 | S23: 1 | U23: 0.0005251495694 | V23: 27.7974829 | X23: 11 | Y23: 0.023231395 | AA23: 11 | AB23: 0.02483747328
A24: 24 | B24: 0.000528842871 | C24: 27.9903934 | D24: 0.0001318834758 | E24: 0.0001318834758 | F24: 3.454479769e-06 | G24: 2.64452836e-07 | H24: 0.05500618989 | I24: 268.8943593 | J24: 0.9288901241 | K24: 0.02554735328 | L24: 0.02750309494 | M24: 2.65933607e-06 | N24: 2.65933607e-06 | O24: 2.65933607e-06 | P24: 2.65933607e-06 | S24: 1 | U24: 0.000528842871 | V24: 27.9903934 | X24: 11 | Y24: 0.02554735328 | AA24: 11 | AB24: 0.02750309494
A25: 25 | B25: 0.0005325618036 | C25: 28.1845879 | D25: 0.0001201599626 | E25: 0.0001201599626 | F25: 3.454479769e-06 | G25: 2.902544113e-07 | H25: 0.06037291754 | I25: 267.0416515 | J25: 0.9224899827 | K25: 0.02784670583 | L25: 0.03018645877 | M25: 2.939046862e-06 | N25: 2.939046862e-06 | O25: 2.939046862e-06 | P25: 2.939046862e-06 | S25: 1 | U25: 0.0005325618036 | V25: 28.1845879 | X25: 12 | Y25: 0.02784670583 | AA25: 12 | AB25: 0.03018645877
A26: 26 | B26: 0.0005363065378 | C26: 28.38007377 | D26: 0.000110290699 | E26: 0.000110290699 | F26: 3.454479769e-06 | G26: 3.162275651e-07 | H26: 0.06577533355 | I26: 265.2022317 | J26: 0.916135744 | K26: 0.03012956707 | L26: 0.03288766677 | M26: 3.224253924e-06 | N26: 3.224253924e-06 | O26: 3.224253924e-06 | P26: 3.224253924e-06 | S26: 1 | U26: 0.0005363065378 | V26: 28.38007377 | X26: 12 | Y26: 0.03012956707 | AA26: 12 | AB26: 0.03288766677
A27: 27 | B27: 0.0005400772451 | C27: 28.57685843 | D27: 0.0001018682273 | E27: 0.0001018682273 | F27: 3.454479769e-06 | G27: 3.423732808e-07 | H27: 0.07121364241 | I27: 263.3760082 | J27: 0.909827092 | K27: 0.03239605059 | L27: 0.0356068212 | M27: 3.515040559e-06 | N27: 3.515040559e-06 | O27: 3.515040559e-06 | P27: 3.515040559e-06 | S27: 1 | U27: 0.0005400772451 | V27: 28.57685843 | X27: 12 | Y27: 0.03239605059 | AA27: 12 | AB27: 0.0356068212
A28: 28 | B28: 0.0005438740982 | C28: 28.77494928 | D28: 9.45963237e-05 | E28: 9.45963237e-05 | F28: 3.454479769e-06 | G28: 3.686925437e-07 | H28: 0.07668804908 | I28: 261.5628903 | J28: 0.9035637127 | K28: 0.03464626917 | L28: 0.03834402454 | M28: 3.811491137e-06 | N28: 3.811491137e-06 | O28: 3.811491137e-06 | P28: 3.811491137e-06 | S28: 1 | U28: 0.0005438740982 | V28: 28.77494928 | X28: 12 | Y28: 0.03464626917 | AA28: 12 | AB28: 0.03834402454
A29: 29 | B29: 0.0005476972705 | C29: 28.97435375 | D29: 8.825446522e-05 | E29: 8.825446522e-05 | F29: 3.454479769e-06 | G29: 3.951863412e-07 | H29: 0.08219875897 | I29: 259.7627876 | J29: 0.8973452944 | K29: 0.03688033478 | L29: 0.04109937948 | M29: 4.113691097e-06 | N29: 4.113691097e-06 | O29: 4.113691097e-06 | P29: 4.113691097e-06 | S29: 1 | U29: 0.0005476972705 | V29: 28.97435375 | X29: 12 | Y29: 0.03688033478 | AA29: 12 | AB29: 0.04109937948
A30: 30 | B30: 0.0005515469366 | C30: 29.17507931 | D30: 8.267510021e-05 | E30: 8.267510021e-05 | F30: 3.454479769e-06 | G30: 4.218556629e-07 | H30: 0.08774597788 | I30: 257.9756106 | J30: 0.8911715278 | K30: 0.03909835858 | L30: 0.04387298894 | M30: 4.42172696e-06 | N30: 4.42172696e-06 | O30: 4.42172696e-06 | P30: 4.42172696e-06 | S30: 1 | U30: 0.0005515469366 | V30: 29.17507931 | X30: 12 | Y30: 0.03909835858 | AA30: 12 | AB30: 0.04387298894
A31: 31 | B31: 0.000555423272 | C31: 29.3771334 | D31: 7.772864405e-05 | E31: 7.772864405e-05 | F31: 3.454479769e-06 | G31: 4.487015003e-07 | H31: 0.09332991207 | I31: 256.2012705 | J31: 0.8850421056 | K31: 0.04130045094 | L31: 0.04666495603 | M31: 4.73568634e-06 | N31: 4.73568634e-06 | O31: 4.73568634e-06 | P31: 4.73568634e-06 | S31: 1 | U31: 0.000555423272 | V31: 29.3771334 | X31: 12 | Y31: 0.04130045094 | AA31: 12 | AB31: 0.04666495603
A32: 32 | B32: 0.0005593264533 | C32: 29.58052351 | D32: 7.331330167e-05 | E32: 7.331330167e-05 | F32: 3.454479769e-06 | G32: 4.757248468e-07 | H32: 0.09895076812 | I32: 254.4396788 | J32: 0.8789567228 | K32: 0.04348672143 | L32: 0.04947538406 | M32: 5.055657953e-06 | N32: 5.055657953e-06 | O32: 5.055657953e-06 | P32: 5.055657953e-06 | S32: 1 | U32: 0.0005593264533 | V32: 29.58052351 | X32: 12 | Y32: 0.04348672143 | AA32: 12 | AB32: 0.04947538406
A33: 33 | B33: 0.0005632566579 | C33: 29.78525712 | D33: 6.934799721e-05 | E33: 6.934799721e-05 | F33: 3.454479769e-06 | G33: 5.029266973e-07 | H33: 0.104608753 | I33: 252.690748 | J33: 0.8729150767 | K33: 0.04565727884 | L33: 0.05230437652 | M33: 5.381731624e-06 | N33: 5.381731624e-06 | O33: 5.381731624e-06 | P33: 5.381731624e-06 | S33: 1 | U33: 0.0005632566579 | V33: 29.78525712 | X33: 12 | Y33: 0.04565727884 | AA33: 12 | AB33: 0.05230437652
A34: 34 | B34: 0.0005672140644 | C34: 29.99134173 | D34: 6.576735782e-05 | E34: 6.576735782e-05 | F34: 3.454479769e-06 | G34: 5.303080489e-07 | H34: 0.1103040742 | I34: 250.954391 | J34: 0.8669168666 | K34: 0.04781223117 | L34: 0.05515203708 | M34: 5.713998303e-06 | N34: 5.713998303e-06 | O34: 5.713998303e-06 | P34: 5.713998303e-06 | S34: 1 | U34: 0.0005672140644 | V34: 29.99134173 | X34: 12 | Y34: 0.04781223117 | AA34: 12 | AB34: 0.05515203708
A35: 35 | B35: 0.0005711988522 | C35: 30.19878487 | D35: 6.251808749e-05 | E35: 6.251808749e-05 | F35: 3.454479769e-06 | G35: 5.578698998e-07 | H35: 0.1160369392 | I35: 249.2305214 | J35: 0.860961794 | K35: 0.04995168565 | L35: 0.05801846958 | M35: 6.052550067e-06 | N35: 6.052550067e-06 | O35: 6.052550067e-06 | P35: 6.052550067e-06 | S35: 1 | U35: 0.0005711988522 | V35: 30.19878487 | X35: 12 | Y35: 0.04995168565 | AA35: 12 | AB35: 0.05801846958
A36: 36 | B36: 0.0005752112018 | C36: 30.40759406 | D36: 5.955630138e-05 | E36: 5.955630138e-05 | F36: 3.454479769e-06 | G36: 5.856132499e-07 | H36: 0.121807556 | I36: 247.5190535 | J36: 0.8550495627 | K36: 0.05207574874 | L36: 0.06090377799 | M36: 6.397480135e-06 | N36: 6.397480135e-06 | O36: 6.397480135e-06 | P36: 6.397480135e-06 | S36: 1 | U36: 0.0005752112018 | V36: 30.40759406 | X36: 12 | Y36: 0.05207574874 | AA36: 12 | AB36: 0.06090377799
A37: 37 | B37: 0.0005792512949 | C37: 30.61777682 | D37: 5.684553628e-05 | E37: 5.684553628e-05 | F37: 3.454479769e-06 | G37: 6.135391006e-07 | H37: 0.1276161329 | I37: 245.8199021 | J37: 0.8491798784 | K37: 0.05418452612 | L37: 0.06380806646 | M37: 6.748882878e-06 | N37: 6.748882878e-06 | O37: 6.748882878e-06 | P37: 6.748882878e-06 | S37: 1 | U37: 0.0005792512949 | V37: 30.61777682 | X37: 13 | Y37: 0.05418452612 | AA37: 13 | AB37: 0.06380806646
A38: 38 | B38: 0.0005833193137 | C38: 30.82934072 | D38: 5.435524541e-05 | E38: 5.435524541e-05 | F38: 3.454479769e-06 | G38: 6.416484543e-07 | H38: 0.1334628785 | I38: 244.1329825 | J38: 0.8433524491 | K38: 0.05627812272 | L38: 0.06673143925 | M38: 7.106853824e-06 | N38: 7.106853824e-06 | O38: 7.106853824e-06 | P38: 7.106853824e-06 | S38: 1 | U38: 0.0005833193137 | V38: 30.82934072 | X38: 13 | Y38: 0.05627812272 | AA38: 13 | AB38: 0.06673143925
A39: 39 | B39: 0.000587415442 | C39: 31.0422933 | D39: 5.205964518e-05 | E39: 5.205964518e-05 | F39: 3.454479769e-06 | G39: 6.699423149e-07 | H39: 0.1393480015 | I39: 242.458211 | J39: 0.8375669848 | K39: 0.05835664273 | L39: 0.06967400075 | M39: 7.471489671e-06 | N39: 7.471489671e-06 | O39: 7.471489671e-06 | P39: 7.471489671e-06 | S39: 1 | U39: 0.000587415442 | V39: 31.0422933 | X39: 13 | Y39: 0.05835664273 | AA39: 13 | AB39: 0.06967400075
A40: 40 | B40: 0.000591539864 | C40: 31.25664212 | D40: 4.993682161e-05 | E40: 4.993682161e-05 | F40: 3.454479769e-06 | G40: 6.984216872e-07 | H40: 0.1452717109 | I40: 240.7955042 | J40: 0.8318231977 | K40: 0.06042018956 | L40: 0.07263585547 | M40: 7.842888298e-06 | N40: 7.842888298e-06 | O40: 7.842888298e-06 | P40: 7.842888298e-06 | S40: 1 | U40: 0.000591539864 | V40: 31.25664212 | X40: 13 | Y40: 0.06042018956 | AA40: 13 | AB40: 0.07263585547
A41: 41 | B41: 0.0005956927655 | C41: 31.47239476 | D41: 4.796803069e-05 | E41: 4.796803069e-05 | F41: 3.454479769e-06 | G41: 7.270875769e-07 | H41: 0.151234216 | I41: 239.1447793 | J41: 0.8261208019 | K41: 0.0624688659 | L41: 0.075617108 | M41: 8.221148769e-06 | N41: 8.221148769e-06 | O41: 8.221148769e-06 | P41: 8.221148769e-06 | S41: 1 | U41: 0.0005956927655 | V41: 31.47239476 | X41: 13 | Y41: 0.0624688659 | AA41: 13 | AB41: 0.075617108
A42: 42 | B42: 0.0005998743328 | C42: 31.6895588 | D42: 4.613714514e-05 | E42: 4.613714514e-05 | F42: 3.454479769e-06 | G42: 7.559409907e-07 | H42: 0.1572357261 | I42: 237.5059542 | J42: 0.8204595137 | K42: 0.06450277367 | L42: 0.07861786303 | M42: 8.606371347e-06 | N42: 8.606371347e-06 | O42: 8.606371347e-06 | P42: 8.606371347e-06 | S42: 1 | U42: 0.0005998743328 | V42: 31.6895588 | X42: 13 | Y42: 0.06450277367 | AA42: 13 | AB42: 0.07861786303
A43: 43 | B43: 0.0006040847536 | C43: 31.9081418 | D43: 4.44302132e-05 | E43: 4.44302132e-05 | F43: 3.454479769e-06 | G43: 7.84982936e-07 | H43: 0.1632764507 | I43: 235.8789473 | J43: 0.8148390514 | K43: 0.06652201409 | L43: 0.08163822534 | M43: 8.998657502e-06 | N43: 8.998657502e-06 | O43: 8.998657502e-06 | P43: 8.998657502e-06 | S43: 1 | U43: 0.0006040847536 | V43: 31.9081418 | X43: 13 | Y43: 0.06652201409 | AA43: 13 | AB43: 0.08163822534
A44: 44 | B44: 0.0006083242163 | C44: 32.12815137 | D44: 4.283510377e-05 | E44: 4.283510377e-05 | F44: 3.454479769e-06 | G44: 8.142144207e-07 | H44: 0.1693565995 | I44: 234.2636778 | J44: 0.8092591353 | K44: 0.06852668764 | L44: 0.08467829975 | M44: 9.398109919e-06 | N44: 9.398109919e-06 | O44: 9.398109919e-06 | P44: 9.398109919e-06 | S44: 1 | U44: 0.0006083242163 | V44: 32.12815137 | X44: 13 | Y44: 0.06852668764 | AA44: 13 | AB44: 0.08467829975
A45: 45 | B45: 0.0006125929105 | C45: 32.34959509 | D45: 4.13412188e-05 | E45: 4.13412188e-05 | F45: 3.454479769e-06 | G45: 8.436364533e-07 | H45: 0.1754763823 | I45: 232.6600651 | J45: 0.8037194879 | K45: 0.07051689405 | L45: 0.08773819114 | M45: 9.804832508e-06 | N45: 9.804832508e-06 | O45: 9.804832508e-06 | P45: 9.804832508e-06 | S45: 1 | U45: 0.0006125929105 | V45: 32.34959509 | X45: 13 | Y45: 0.07051689405 | AA45: 13 | AB45: 0.08773819114
A46: 46 | B46: 0.0006168910267 | C46: 32.57248056 | D46: 3.993925852e-05 | E46: 3.993925852e-05 | F46: 3.454479769e-06 | G46: 8.732500426e-07 | H46: 0.1816360089 | I46: 231.0680296 | J46: 0.7982198333 | K46: 0.07249273236 | L46: 0.09081800443 | M46: 1.021893041e-05 | N46: 1.021893041e-05 | O46: 1.021893041e-05 | P46: 1.021893041e-05 | S46: 1 | U46: 0.0006168910267 | V46: 32.57248056 | X46: 13 | Y46: 0.07249273236 | AA46: 13 | AB46: 0.09081800443
A47: 47 | B47: 0.0006212187565 | C47: 32.79681536 | D47: 3.862102856e-05 | E47: 3.862102856e-05 | F47: 3.454479769e-06 | G47: 9.030561978e-07 | H47: 0.1878356891 | I47: 229.4874919 | J47: 0.7927598981 | K47: 0.07445430089 | L47: 0.09391784457 | M47: 1.064051003e-05 | N47: 1.064051003e-05 | O47: 1.064051003e-05 | P47: 1.064051003e-05 | S47: 1 | U47: 0.0006212187565 | V47: 32.79681536 | X47: 13 | Y47: 0.07445430089 | AA47: 13 | AB47: 0.09391784457
A48: 48 | B48: 0.0006255762925 | C48: 33.02260709 | D48: 3.737928045e-05 | E48: 3.737928045e-05 | F48: 3.454479769e-06 | G48: 9.330559278e-07 | H48: 0.194075633 | I48: 227.9183736 | J48: 0.7873394105 | K48: 0.07640169723 | L48: 0.0970378165 | M48: 1.106967898e-05 | N48: 1.106967898e-05 | O48: 1.106967898e-05 | P48: 1.106967898e-05 | S48: 1 | U48: 0.0006255762925 | V48: 33.02260709 | X48: 14 | Y48: 0.07640169723 | AA48: 14 | AB48: 0.0970378165
A49: 49 | B49: 0.0006299638282 | C49: 33.24986336 | D49: 3.620757897e-05 | E49: 3.620757897e-05 | F49: 3.454479769e-06 | G49: 9.63250242e-07 | H49: 0.2003560503 | I49: 226.3605964 | J49: 0.7819581007 | K49: 0.07833501829 | L49: 0.1001780252 | M49: 1.150654617e-05 | N49: 1.150654617e-05 | O49: 1.150654617e-05 | P49: 1.150654617e-05 | S49: 1 | U49: 0.0006299638282 | V49: 33.24986336 | X49: 14 | Y49: 0.07833501829 | AA49: 14 | AB49: 0.1001780252
A50: 50 | B50: 0.0006343815582 | C50: 33.47859174 | D50: 3.510019119e-05 | E50: 3.510019119e-05 | F50: 3.454479769e-06 | G50: 9.936401491e-07 | H50: 0.206677151 | I50: 224.8140829 | J50: 0.7766157011 | K50: 0.08025436027 | L50: 0.1033385755 | M50: 1.195122178e-05 | N50: 1.195122178e-05 | O50: 1.195122178e-05 | P50: 1.195122178e-05 | S50: 1 | U50: 0.0006343815582 | V50: 33.47859174 | X50: 14 | Y50: 0.08025436027 | AA50: 14 | AB50: 0.1033385755
A51: 51 | B51: 0.0006388296781 | C51: 33.70879984 | D51: 3.405199322e-05 | E51: 3.405199322e-05 | F51: 3.454479769e-06 | G51: 1.024226658e-06 | H51: 0.2130391448 | I51: 223.2787561 | J51: 0.7713119458 | K51: 0.08215981867 | L51: 0.1065195724 | M51: 1.240381723e-05 | N51: 1.240381723e-05 | O51: 1.240381723e-05 | P51: 1.240381723e-05 | S51: 1 | U51: 0.0006388296781 | V51: 33.70879984 | X51: 14 | Y51: 0.08215981867 | AA51: 14 | AB51: 0.1065195724
A52: 52 | B52: 0.0006433083845 | C52: 33.94049525 | D52: 3.305839143e-05 | E52: 3.305839143e-05 | F52: 3.454479769e-06 | G52: 1.055010776e-06 | H52: 0.2194422415 | I52: 221.7545397 | J52: 0.766046571 | K52: 0.0840514883 | L52: 0.1097211207 | M52: 1.286444527e-05 | N52: 1.286444527e-05 | O52: 1.286444527e-05 | P52: 1.286444527e-05 | S52: 1 | U52: 0.0006433083845 | V52: 33.94049525 | X52: 14 | Y52: 0.0840514883 | AA52: 14 | AB52: 0.1097211207
A53: 53 | B53: 0.0006478178751 | C53: 34.17368553 | D53: 3.211525559e-05 | E53: 3.211525559e-05 | F53: 3.454479769e-06 | G53: 1.085993512e-06 | H53: 0.2258866505 | I53: 220.2413577 | J53: 0.7608193145 | K53: 0.08592946328 | L53: 0.1129433252 | M53: 1.333321991e-05 | N53: 1.333321991e-05 | O53: 1.333321991e-05 | P53: 1.333321991e-05 | S53: 1 | U53: 0.0006478178751 | V53: 34.17368553 | X53: 14 | Y53: 0.08592946328 | AA53: 14 | AB53: 0.1129433252
A54: 54 | B54: 0.0006523583484 | C54: 34.40837828 | D54: 3.121886186e-05 | E54: 3.121886186e-05 | F54: 3.454479769e-06 | G54: 1.117175871e-06 | H54: 0.2323725813 | I54: 218.7391349 | J54: 0.7556299163 | K54: 0.08779383707 | L54: 0.1161862906 | M54: 1.381025648e-05 | N54: 1.381025648e-05 | O54: 1.381025648e-05 | P54: 1.381025648e-05 | S54: 1 | U54: 0.0006523583484 | V54: 34.40837828 | X54: 14 | Y54: 0.08779383707 | AA54: 14 | AB54: 0.1161862906
A55: 55 | B55: 0.000656930004 | C55: 34.64458106 | D55: 3.036584401e-05 | E55: 3.036584401e-05 | F55: 3.454479769e-06 | G55: 1.148558861e-06 | H55: 0.2389002431 | I55: 217.2477966 | J55: 0.7504781182 | K55: 0.08964470242 | L55: 0.1194501215 | M55: 1.429567162e-05 | N55: 1.429567162e-05 | O55: 1.429567162e-05 | P55: 1.429567162e-05 | S55: 1 | U55: 0.000656930004 | V55: 34.64458106 | X55: 14 | Y55: 0.08964470242 | AA55: 14 | AB55: 0.1194501215
A56: 56 | B56: 0.0006615330426 | C56: 34.88230143 | D56: 2.955315151e-05 | E56: 2.955315151e-05 | F56: 3.454479769e-06 | G56: 1.180143485e-06 | H56: 0.2454698448 | I56: 215.7672685 | J56: 0.7453636639 | K56: 0.09148215144 | L56: 0.1227349224 | M56: 1.478958326e-05 | N56: 1.478958326e-05 | O56: 1.478958326e-05 | P56: 1.478958326e-05 | S56: 1 | U56: 0.0006615330426 | V56: 34.88230143 | X56: 14 | Y56: 0.09148215144 | AA56: 14 | AB56: 0.1227349224
A57: 57 | B57: 0.0006661676659 | C57: 35.12154695 | D57: 2.877801336e-05 | E57: 2.877801336e-05 | F57: 3.454479769e-06 | G57: 1.211930746e-06 | H57: 0.2520815952 | I57: 214.297477 | J57: 0.7402862988 | K57: 0.09330627555 | L57: 0.1260407976 | M57: 1.529211068e-05 | N57: 1.529211068e-05 | O57: 1.529211068e-05 | P57: 1.529211068e-05 | S57: 1 | U57: 0.0006661676659 | V57: 35.12154695 | X57: 14 | Y57: 0.09330627555 | AA57: 14 | AB57: 0.1260407976
A58: 58 | B58: 0.0006708340764 | C58: 35.36232516 | D58: 2.803790679e-05 | E58: 2.803790679e-05 | F58: 3.454479769e-06 | G58: 1.243921648e-06 | H58: 0.2587357027 | I58: 212.8383489 | J58: 0.7352457703 | K58: 0.09511716552 | L58: 0.1293678514 | M58: 1.58033745e-05 | N58: 1.58033745e-05 | O58: 1.58033745e-05 | P58: 1.58033745e-05 | S58: 1 | U58: 0.0006708340764 | V58: 35.36232516 | X58: 14 | Y58: 0.09511716552 | AA58: 14 | AB58: 0.1293678514
A59: 59 | B59: 0.0006755324778 | C59: 35.60464358 | D59: 2.733053006e-05 | E59: 2.733053006e-05 | F59: 3.454479769e-06 | G59: 1.276117189e-06 | H59: 0.2654323754 | I59: 211.3898117 | J59: 0.7302418277 | K59: 0.09691491146 | L59: 0.1327161877 | M59: 1.632349664e-05 | N59: 1.632349664e-05 | O59: 1.632349664e-05 | P59: 1.632349664e-05 | S59: 1 | U59: 0.0006755324778 | V59: 35.60464358 | X59: 15 | Y59: 0.09691491146 | AA59: 15 | AB59: 0.1327161877
A60: 60 | B60: 0.0006802630748 | C60: 35.84850973 | D60: 2.665377882e-05 | E60: 2.665377882e-05 | F60: 3.454479769e-06 | G60: 1.30851837e-06 | H60: 0.2721718209 | I60: 209.9517932 | J60: 0.7252742219 | K60: 0.0986996028 | L60: 0.1360859104 | M60: 1.685260039e-05 | N60: 1.685260039e-05 | O60: 1.685260039e-05 | P60: 1.685260039e-05 | S60: 1 | U60: 0.0006802630748 | V60: 35.84850973 | X60: 15 | Y60: 0.0986996028 | AA60: 15 | AB60: 0.1360859104
A61: 61 | B61: 0.0006850260729 | C61: 36.09393111 | D61: 2.600572533e-05 | E61: 2.600572533e-05 | F61: 3.454479769e-06 | G61: 1.341126185e-06 | H61: 0.2789542465 | I61: 208.5242219 | J61: 0.7203427058 | K61: 0.1004713284 | L61: 0.1394771233 | M61: 1.739081039e-05 | N61: 1.739081039e-05 | O61: 1.739081039e-05 | P61: 1.739081039e-05 | S61: 1 | U61: 0.0006850260729 | V61: 36.09393111 | X61: 15 | Y61: 0.1004713284 | AA61: 15 | AB61: 0.1394771233
A62: 62 | B62: 0.0006898216789 | C62: 36.34091521 | D62: 2.538460035e-05 | E62: 2.538460035e-05 | F62: 3.454479769e-06 | G62: 1.373941631e-06 | H62: 0.2857798592 | I62: 207.1070268 | J62: 0.7154470339 | K62: 0.1022301763 | L62: 0.1428899296 | M62: 1.793825264e-05 | N62: 1.793825264e-05 | O62: 1.793825264e-05 | P62: 1.793825264e-05 | S62: 1 | U62: 0.0006898216789 | V62: 36.34091521 | X62: 15 | Y62: 0.1022301763 | AA62: 15 | AB62: 0.1428899296
A63: 63 | B63: 0.0006946501003 | C63: 36.5894695 | D63: 2.478877719e-05 | E63: 2.478877719e-05 | F63: 3.454479769e-06 | G63: 1.406965698e-06 | H63: 0.2926488652 | I63: 205.7001373 | J63: 0.7105869627 | K63: 0.1039762341 | L63: 0.1463244326 | M63: 1.849505449e-05 | N63: 1.849505449e-05 | O63: 1.849505449e-05 | P63: 1.849505449e-05 | S63: 1 | U63: 0.0006946501003 | V63: 36.5894695 | X63: 15 | Y63: 0.1039762341 | AA63: 15 | AB63: 0.1463244326
A64: 64 | B64: 0.0006995115457 | C64: 36.83960142 | D64: 2.42167576e-05 | E64: 2.42167576e-05 | F64: 3.454479769e-06 | G64: 1.440199377e-06 | H64: 0.2995614704 | I64: 204.3034835 | J64: 0.7057622504 | K64: 0.1057095887 | L64: 0.1497807352 | M64: 1.906134467e-05 | N64: 1.906134467e-05 | O64: 1.906134467e-05 | P64: 1.906134467e-05 | S64: 1 | U64: 0.0006995115457 | V64: 36.83960142 | X64: 15 | Y64: 0.1057095887 | AA64: 15 | AB64: 0.1497807352
A65: 65 | B65: 0.0007044062249 | C65: 37.09131839 | D65: 2.366715937e-05 | E65: 2.366715937e-05 | F65: 3.454479769e-06 | G65: 1.473643654e-06 | H65: 0.30651788 | I65: 202.9169958 | J65: 0.7009726568 | K65: 0.1074303264 | L65: 0.15325894 | M65: 1.963725327e-05 | N65: 1.963725327e-05 | O65: 1.963725327e-05 | P65: 1.963725327e-05 | S65: 1 | U65: 0.0007044062249 | V65: 37.09131839 | X65: 15 | Y65: 0.1074303264 | AA65: 15 | AB65: 0.15325894
A66: 66 | B66: 0.0007093343483 | C66: 37.34462783 | D66: 2.313870528e-05 | E66: 2.313870528e-05 | F66: 3.454479769e-06 | G66: 1.507299513e-06 | H66: 0.3135182987 | I66: 201.5406053 | J66: 0.6962179437 | K66: 0.1091385326 | L66: 0.1567591493 | M66: 2.022291178e-05 | N66: 2.022291178e-05 | O66: 2.022291178e-05 | P66: 2.022291178e-05 | S66: 1 | U66: 0.0007093343483 | V66: 37.34462783 | X66: 15 | Y66: 0.1091385326 | AA66: 15 | AB66: 0.1567591493
A67: 67 | B67: 0.0007142961276 | C67: 37.59953712 | D67: 2.263021338e-05 | E67: 2.263021338e-05 | F67: 3.454479769e-06 | G67: 1.541167934e-06 | H67: 0.3205629304 | I67: 200.1742435 | J67: 0.6914978745 | K67: 0.1108342925 | L67: 0.1602814652 | M67: 2.081845307e-05 | N67: 2.081845307e-05 | O67: 2.081845307e-05 | P67: 2.081845307e-05 | S67: 1 | U67: 0.0007142961276 | V67: 37.59953712 | X67: 15 | Y67: 0.1108342925 | AA67: 15 | AB67: 0.1602814652
A68: 68 | B68: 0.0007192917753 | C68: 37.8560536 | D68: 2.214058816e-05 | E68: 2.214058816e-05 | F68: 3.454479769e-06 | G68: 1.575249896e-06 | H68: 0.3276519784 | I68: 198.8178424 | J68: 0.6868122144 | K68: 0.1125176904 | L68: 0.1638259892 | M68: 2.142401138e-05 | N68: 2.142401138e-05 | O68: 2.142401138e-05 | P68: 2.142401138e-05 | S68: 1 | U68: 0.0007192917753 | V68: 37.8560536 | X68: 16 | Y68: 0.1125176904 | AA68: 16 | AB68: 0.1638259892
A69: 69 | B69: 0.000724321505 | C69: 38.11418461 | D69: 2.166881292e-05 | E69: 2.166881292e-05 | F69: 3.454479769e-06 | G69: 1.609546371e-06 | H69: 0.3347856452 | I69: 197.4713345 | J69: 0.6821607301 | K69: 0.1141888101 | L69: 0.1673928226 | M69: 2.203972236e-05 | N69: 2.203972236e-05 | O69: 2.203972236e-05 | P69: 2.203972236e-05 | S69: 1 | U69: 0.000724321505 | V69: 38.11418461 | X69: 16 | Y69: 0.1141888101 | AA69: 16 | AB69: 0.1673928226
A70: 70 | B70: 0.0007293855311 | C70: 38.37393745 | D70: 2.12139427e-05 | E70: 2.12139427e-05 | F70: 3.454479769e-06 | G70: 1.64405833e-06 | H70: 0.3419641326 | I70: 196.1346528 | J70: 0.6775431902 | K70: 0.1158477347 | L70: 0.1709820663 | M70: 2.266572306e-05 | N70: 2.266572306e-05 | O70: 2.266572306e-05 | P70: 2.266572306e-05 | S70: 1 | U70: 0.0007293855311 | V70: 38.37393745 | X70: 16 | Y70: 0.1158477347 | AA70: 16 | AB70: 0.1709820663
A71: 71 | B71: 0.0007344840692 | C71: 38.63531938 | D71: 2.077509812e-05 | E71: 2.077509812e-05 | F71: 3.454479769e-06 | G71: 1.678786738e-06 | H71: 0.3491876415 | I71: 194.8077309 | J71: 0.672959365 | K71: 0.1174945467 | L71: 0.1745938207 | M71: 2.330215192e-05 | N71: 2.330215192e-05 | O71: 2.330215192e-05 | P71: 2.330215192e-05 | S71: 1 | U71: 0.0007344840692 | V71: 38.63531938 | X71: 16 | Y71: 0.1174945467 | AA71: 16 | AB71: 0.1745938207
A72: 72 | B72: 0.0007396173357 | C72: 38.89833765 | D72: 2.035145978e-05 | E72: 2.035145978e-05 | F72: 3.454479769e-06 | G72: 1.713732556e-06 | H72: 0.3564563717 | I72: 193.4905025 | J72: 0.6684090264 | K72: 0.1191293282 | L72: 0.1782281859 | M72: 2.394914878e-05 | N72: 2.394914878e-05 | O72: 2.394914878e-05 | P72: 2.394914878e-05 | S72: 1 | U72: 0.0007396173357 | V72: 38.89833765 | X72: 16 | Y72: 0.1191293282 | AA72: 16 | AB72: 0.1782281859
A73: 73 | B73: 0.000744785548 | C73: 39.16299946 | D73: 1.994226323e-05 | E73: 1.994226323e-05 | F73: 3.454479769e-06 | G73: 1.748896743e-06 | H73: 0.3637705225 | I73: 192.1829023 | J73: 0.663891948 | K73: 0.1207521604 | L73: 0.1818852613 | M73: 2.46068549e-05 | N73: 2.46068549e-05 | O73: 2.46068549e-05 | P73: 2.46068549e-05 | S73: 1 | U73: 0.000744785548 | V73: 39.16299946 | X73: 16 | Y73: 0.1207521604 | AA73: 16 | AB73: 0.1818852613
A74: 74 | B74: 0.0007499889245 | C74: 39.42931196 | D74: 1.954679441e-05 | E74: 1.954679441e-05 | F74: 3.454479769e-06 | G74: 1.784280249e-06 | H74: 0.3711302919 | I74: 190.8848652 | J74: 0.6594079051 | K74: 0.1223631241 | L74: 0.1855651459 | M74: 2.527541295e-05 | N74: 2.527541295e-05 | O74: 2.527541295e-05 | P74: 2.527541295e-05 | S74: 1 | U74: 0.0007499889245 | V74: 39.42931196 | X74: 16 | Y74: 0.1223631241 | AA74: 16 | AB74: 0.1855651459
A75: 75 | B75: 0.0007552276846 | C75: 39.6972823 | D75: =IF(C75<$D$4,0.0001,$D$2*$D$5/(C75-$D$4)) -> 1.916438562e-05 | E75: 1.916438562e-05 | F75: 3.454479769e-06 | G75: =IF(F75<=0,0,$D$2*H75/$D$4) -> 1.819884023e-06 | H75: =(C75-$D$4)*F75/$D$2 -> 0.3785358768 | I75: 189.5963266 | J75: 0.6549566744 | K75: 0.1239622995 | L75: 0.1892679384 | M75: 2.595496699e-05 | N75: =$D$4*H75*0.5*(F75+G75) -> 2.595496699e-05 | O75: 2.595496699e-05 | P75: 2.595496699e-05 | S75: 1 | U75: 0.0007552276846 | V75: =C75 -> 39.6972823 | X75: 16 | Y75: =K75 -> 0.1239622995 | AA75: 16 | AB75: =L75 -> 0.1892679384
A76: 76 | B76: 0.0007605020484 | C76: 39.96691756 | D76: 1.879441178e-05 | E76: =IF($D$2*$D$5/(C76-$D$4)<0,0,$D$2*$D$5/(C76-$D$4)) -> 1.879441178e-05 | F76: 3.454479769e-06 | G76: 1.855709006e-06 | H76: 0.3859874732 | I76: 188.3172223 | J76: =IF(H76<=0,0,F76/(F76+G76)) -> 0.6505380346 | K76: =S76*J76*H76/2 -> 0.1255497661 | L76: =S76*H76/2 -> 0.1929937366 | M76: 2.664566251e-05 | N76: 2.664566251e-05 | O76: =M76*S76 -> 2.664566251e-05 | P76: =N76*S76 -> 2.664566251e-05 | S76: =IF(B76<=1/(2*$D$7),1,0) -> 1 | U76: 0.0007605020484 | V76: 39.96691756 | X76: =ROUND(360*$D$7*U76,0) -> 16 | Y76: 0.1255497661 | AA76: =ROUND(360*$D$7*U76,0) -> 16 | AB76: 0.1929937366
A77: =A76+1 -> 77 | B77: 0.0007658122371 | C77: 40.23822479 | D77: 1.84362871e-05 | E77: 1.84362871e-05 | F77: 3.454479769e-06 | G77: 1.891756134e-06 | H77: 0.3934852758 | I77: 187.0474888 | J77: 0.6461517658 | K77: 0.1271256029 | L77: 0.1967426379 | M77: 2.734764641e-05 | N77: 2.734764641e-05 | O77: 2.734764641e-05 | P77: 2.734764641e-05 | S77: 1 | U77: =IF(B77<(1/(2*$D$7)),B77,1/(2*$D$7)) -> 0.0007658122371 | V77: 40.23822479 | X77: 17 | Y77: 0.1271256029 | AA77: 17 | AB77: 0.1967426379
A78: 78 | B78: 0.000771158473 | C78: =ABS($D$6*1.414*SIN(6.28*B78*$D$7)) -> 40.51121099 | D78: 1.808946201e-05 | E78: 1.808946201e-05 | F78: 3.454479769e-06 | G78: 1.928026338e-06 | H78: 0.4010294783 | I78: 185.7870628 | J78: 0.6417976497 | K78: 0.1286898883 | L78: 0.2005147391 | M78: 2.806106701e-05 | N78: 2.806106701e-05 | O78: 2.806106701e-05 | P78: 2.806106701e-05 | S78: 1 | U78: 0.000771158473 | V78: 40.51121099 | X78: 17 | Y78: 0.1286898883 | AA78: 17 | AB78: 0.2005147391
A79: 79 | B79: 0.0007765409791 | C79: 40.78588312 | D79: 1.775342046e-05 | E79: 1.775342046e-05 | F79: 3.454479769e-06 | G79: 1.964520543e-06 | H79: 0.4086202729 | I79: 184.5358816 | J79: 0.6374754697 | K79: 0.1302427002 | L79: 0.2043101364 | M79: 2.878607402e-05 | N79: 2.878607402e-05 | O79: 2.878607402e-05 | P79: 2.878607402e-05 | S79: 1 | U79: 0.0007765409791 | V79: 40.78588312 | X79: 17 | Y79: 0.1302427002 | AA79: 17 | AB79: 0.2043101364
A80: 80 | B80: 0.0007819599794 | C80: 41.0622481 | D80: 1.742767735e-05 | E80: 1.742767735e-05 | F80: 3.454479769e-06 | G80: 2.001239666e-06 | H80: 0.4162578505 | I80: 183.293883 | J80: 0.6331850107 | K80: 0.1317841158 | L80: 0.2081289253 | M80: 2.952281859e-05 | N80: 2.952281859e-05 | O80: 2.952281859e-05 | P80: 2.952281859e-05 | S80: 1 | U80: 0.0007819599794 | V80: 41.0622481 | X80: 17 | Y80: 0.1317841158 | AA80: 17 | AB80: 0.2081289253
A81: 81 | B81: =IF(F80<=0,D80+B80,F80+G80+B80) -> 0.0007874156989 | C81: 41.34031277 | D81: 1.711177627e-05 | E81: 1.711177627e-05 | F81: 3.454479769e-06 | G81: 2.03818462e-06 | H81: 0.4239424009 | I81: 182.0610052 | J81: 0.6289260593 | K81: 0.1333142118 | L81: 0.2119712004 | M81: 3.027145327e-05 | N81: 3.027145327e-05 | O81: 3.027145327e-05 | P81: 3.027145327e-05 | S81: 1 | U81: 0.0007874156989 | V81: 41.34031277 | X81: 17 | Y81: 0.1333142118 | AA81: 17 | AB81: 0.2119712004
A82: 82 | B82: 0.0007929083633 | C82: 41.62008396 | D82: 1.68052874e-05 | E82: 1.68052874e-05 | F82: 3.454479769e-06 | G82: 2.075356308e-06 | H82: 0.4316741121 | I82: 180.8371869 | J82: 0.6246984035 | K82: 0.1348330643 | L82: 0.215837056 | M82: 3.103213202e-05 | N82: 3.103213202e-05 | O82: 3.103213202e-05 | P82: 3.103213202e-05 | S82: 1 | U82: 0.0007929083633 | V82: 41.62008396 | X82: 17 | Y82: 0.1348330643 | AA82: 17 | AB82: 0.215837056
A83: 83 | B83: 0.0007984381993 | C83: 41.9015684 | D83: 1.65078056e-05 | E83: 1.65078056e-05 | F83: =IF(E83>$D$8*0.000001,$D$8*0.000001,E83) -> 3.454479769e-06 | G83: 2.112755629e-06 | H83: 0.4394531707 | I83: =IF(H83<=0.0001,0,0.001/(F83+G83)) -> 179.6223671 | J83: 0.620501833 | K83: 0.136340749 | L83: 0.2197265854 | M83: =(F83+G83)*C83*J83*H83/2 -> 3.180501022e-05 | N83: 3.180501022e-05 | O83: 3.180501022e-05 | P83: 3.180501022e-05 | S83: 1 | U83: 0.0007984381993 | V83: 41.9015684 | X83: 17 | Y83: 0.136340749 | AA83: 17 | AB83: 0.2197265854
A84: 84 | B84: 0.0008040054347 | C84: 42.18477281 | D84: 1.62189487e-05 | E84: 1.62189487e-05 | F84: 3.454479769e-06 | G84: 2.150383471e-06 | H84: 0.447279762 | I84: 178.4164853 | J84: 0.616336139 | K84: 0.1378373408 | L84: 0.223639881 | M84: 3.259024465e-05 | N84: 3.259024465e-05 | O84: 3.259024465e-05 | P84: 3.259024465e-05 | S84: 1 | U84: 0.0008040054347 | V84: 42.18477281 | X84: 17 | Y84: 0.1378373408 | AA84: 17 | AB84: 0.223639881
A85: 85 | B85: 0.000809610298 | C85: 42.46970382 | D85: 1.593835583e-05 | E85: 1.593835583e-05 | F85: 3.454479769e-06 | G85: 2.188240718e-06 | H85: 0.4551540693 | I85: 177.2194817 | J85: 0.6122011142 | K85: 0.1393229142 | L85: 0.2275770346 | M85: 3.338799348e-05 | N85: 3.338799348e-05 | O85: 3.338799348e-05 | P85: 3.338799348e-05 | S85: 1 | U85: 0.000809610298 | V85: 42.46970382 | X85: 17 | Y85: 0.1393229142 | AA85: 17 | AB85: 0.2275770346
A86: 86 | B86: 0.0008152530185 | C86: 42.75636801 | D86: 1.566568601e-05 | E86: 1.566568601e-05 | F86: 3.454479769e-06 | G86: 2.226328242e-06 | H86: 0.4630762744 | I86: 176.0312966 | J86: 0.6080965528 | K86: 0.1407975431 | L86: 0.2315381372 | M86: 3.419841632e-05 | N86: 3.419841632e-05 | O86: 3.419841632e-05 | P86: 3.419841632e-05 | S86: 1 | U86: 0.0008152530185 | V86: 42.75636801 | X86: 18 | Y86: 0.1407975431 | AA86: 18 | AB86: 0.2315381372
A87: 87 | B87: 0.0008209338265 | C87: 43.04477189 | D87: 1.540061678e-05 | E87: 1.540061678e-05 | F87: 3.454479769e-06 | G87: 2.26464691e-06 | H87: 0.4710465573 | I87: 174.851871 | J87: 0.6040222508 | K87: 0.1422613009 | L87: 0.2355232786 | M87: 3.502167412e-05 | N87: 3.502167412e-05 | O87: 3.502167412e-05 | P87: 3.502167412e-05 | S87: 1 | U87: 0.0008209338265 | V87: 43.04477189 | X87: 18 | Y87: 0.1422613009 | AA87: 18 | AB87: 0.2355232786
A88: 88 | B88: 0.0008266529532 | C88: 43.33492191 | D88: 1.514284295e-05 | E88: 1.514284295e-05 | F88: 3.454479769e-06 | G88: 2.303197578e-06 | H88: 0.4790650961 | I88: 173.681146 | J88: 0.5999780052 | K88: 0.1437142604 | L88: 0.2395325481 | M88: 3.585792927e-05 | N88: 3.585792927e-05 | O88: 3.585792927e-05 | P88: 3.585792927e-05 | S88: 1 | U88: 0.0008266529532 | V88: 43.33492191 | X88: 18 | Y88: 0.1437142604 | AA88: 18 | AB88: 0.2395325481
A89: 89 | B89: 0.0008324106305 | C89: 43.62682444 | D89: 1.489207548e-05 | E89: 1.489207548e-05 | F89: 3.454479769e-06 | G89: 2.341981093e-06 | H89: 0.4871320673 | I89: 172.5190636 | J89: 0.5959636149 | K89: 0.1451564939 | L89: 0.2435660337 | M89: 3.670734551e-05 | N89: 3.670734551e-05 | O89: 3.670734551e-05 | P89: 3.670734551e-05 | S89: 1 | U89: 0.0008324106305 | V89: 43.62682444 | X89: 18 | Y89: 0.1451564939 | AA89: 18 | AB89: 0.2435660337
A90: 90 | B90: 0.0008382070914 | C90: 43.9204858 | D90: 1.46480404e-05 | E90: 1.46480404e-05 | F90: 3.454479769e-06 | G90: 2.380998294e-06 | H90: 0.4952476451 | I90: 171.3655658 | J90: 0.5919788802 | K90: 0.1465880732 | L90: 0.2476238225 | M90: 3.757008799e-05 | N90: 3.757008799e-05 | O90: 3.757008799e-05 | P90: 3.757008799e-05 | S90: 1 | U90: 0.0008382070914 | V90: 43.9204858 | X90: 18 | Y90: 0.1465880732 | AA90: 18 | AB90: 0.2476238225
A91: 91 | B91: 0.0008440425694 | C91: 44.21591221 | D91: 1.441047788e-05 | E91: 1.441047788e-05 | F91: 3.454479769e-06 | G91: 2.420250008e-06 | H91: 0.5034120017 | I91: 170.2205953 | J91: 0.5880236028 | K91: 0.1480090695 | L91: 0.2517060008 | M91: 3.844632319e-05 | N91: 3.844632319e-05 | O91: 3.844632319e-05 | P91: 3.844632319e-05 | S91: 1 | U91: 0.0008440425694 | V91: 44.21591221 | X91: 18 | Y91: 0.1480090695 | AA91: 18 | AB91: 0.2517060008
A92: 92 | B92: 0.0008499172992 | C92: 44.51310985 | D92: 1.417914128e-05 | E92: 1.417914128e-05 | F92: 3.454479769e-06 | G92: 2.459737055e-06 | H92: 0.5116253073 | I92: 169.0840951 | J92: 0.5840975859 | K92: 0.1494195534 | L92: 0.2558126537 | M92: 3.9336219e-05 | N92: 3.9336219e-05 | O92: 3.9336219e-05 | P92: 3.9336219e-05 | S92: 1 | U92: 0.0008499172992 | V92: 44.51310985 | X92: 18 | Y92: 0.1494195534 | AA92: 18 | AB92: 0.2558126537
A93: 93 | B93: 0.000855831516 | C93: 44.81208477 | D93: 1.395379636e-05 | E93: 1.395379636e-05 | F93: 3.454479769e-06 | G93: 2.49946024e-06 | H93: 0.51988773 | I93: 167.9560087 | J93: 0.5802006341 | K93: 0.1508195953 | L93: 0.259943865 | M93: 4.023994463e-05 | N93: 4.023994463e-05 | O93: 4.023994463e-05 | P93: 4.023994463e-05 | S93: 1 | U93: 0.000855831516 | V93: 44.81208477 | X93: 18 | Y93: 0.1508195953 | AA93: 18 | AB93: 0.259943865
A94: 94 | B94: 0.000861785456 | C94: 45.11284299 | D94: 1.37342205e-05 | E94: 1.37342205e-05 | F94: 3.454479769e-06 | G94: 2.539420363e-06 | H94: 0.5281994354 | I94: 166.8362799 | J94: 0.5763325536 | K94: 0.1522092647 | L94: 0.2640997177 | M94: 4.115767065e-05 | N94: 4.115767065e-05 | O94: 4.115767065e-05 | P94: 4.115767065e-05 | S94: 1 | U94: 0.000861785456 | V94: 45.11284299 | X94: 19 | Y94: 0.1522092647 | AA94: 19 | AB94: 0.2640997177
A95: 95 | B95: 0.0008677793562 | C95: 45.41539041 | D95: 1.352020199e-05 | E95: 1.352020199e-05 | F95: 3.454479769e-06 | G95: 2.579618206e-06 | H95: 0.536560587 | I95: 165.724853 | J95: 0.5724931519 | K95: 0.1535886308 | L95: 0.2682802935 | M95: 4.208956897e-05 | N95: 4.208956897e-05 | O95: 4.208956897e-05 | P95: 4.208956897e-05 | S95: 1 | U95: 0.0008677793562 | V95: 45.41539041 | X95: 19 | Y95: 0.1535886308 | AA95: 19 | AB95: 0.2682802935
A96: 96 | B96: 0.0008738134541 | C96: 45.71973285 | D96: 1.331153936e-05 | E96: 1.331153936e-05 | F96: 3.454479769e-06 | G96: 2.620054546e-06 | H96: 0.5449713455 | I96: 164.6216727 | J96: 0.568682238 | K96: 0.1549577622 | L96: 0.2724856728 | M96: 4.303581281e-05 | N96: 4.303581281e-05 | O96: 4.303581281e-05 | P96: 4.303581281e-05 | S96: 1 | U96: 0.0008738134541 | V96: 45.71973285 | X96: 19 | Y96: 0.1549577622 | AA96: 19 | AB96: 0.2724856728
A97: 97 | B97: 0.0008798879885 | C97: 46.02587606 | D97: 1.310804078e-05 | E97: 1.310804078e-05 | F97: 3.454479769e-06 | G97: 2.660730142e-06 | H97: 0.5534318696 | I97: 163.5266842 | J97: 0.5648996222 | K97: 0.156316727 | L97: 0.2767159348 | M97: 4.399657671e-05 | N97: 4.399657671e-05 | O97: 4.399657671e-05 | P97: 4.399657671e-05 | S97: 1 | U97: 0.0008798879885 | V97: 46.02587606 | X97: 19 | Y97: 0.156316727 | AA97: 19 | AB97: 0.2767159348
A98: 98 | B98: 0.0008860031984 | C98: 46.33382567 | D98: 1.290952348e-05 | E98: 1.290952348e-05 | F98: 3.454479769e-06 | G98: 2.701645746e-06 | H98: 0.5619423151 | I98: 162.4398329 | J98: 0.5611451164 | K98: 0.1576655929 | L98: 0.2809711576 | M98: 4.497203651e-05 | N98: 4.497203651e-05 | O98: 4.497203651e-05 | P98: 4.497203651e-05 | S98: 1 | U98: 0.0008860031984 | V98: 46.33382567 | X98: 19 | Y98: 0.1576655929 | AA98: 19 | AB98: 0.2809711576
A99: 99 | B99: 0.0008921593239 | C99: 46.64358722 | D99: 1.271581325e-05 | E99: 1.271581325e-05 | F99: 3.454479769e-06 | G99: 2.742802093e-06 | H99: 0.5705028353 | I99: 161.3610648 | J99: 0.5574185338 | K99: 0.159004427 | L99: 0.2852514176 | M99: 4.596236935e-05 | N99: 4.596236935e-05 | O99: 4.596236935e-05 | P99: 4.596236935e-05 | S99: 1 | U99: 0.0008921593239 | V99: 46.64358722 | X99: 19 | Y99: 0.159004427 | AA99: 19 | AB99: 0.2852514176
A100: 100 | B100: 0.0008983566057 | C100: 46.95516616 | D100: 1.252674391e-05 | E100: 1.252674391e-05 | F100: 3.454479769e-06 | G100: 2.784199906e-06 | H100: 0.5791135805 | I100: 160.2903262 | J100: 0.5537196889 | K100: 0.1603332958 | L100: 0.2895567902 | M100: 4.696775361e-05 | N100: 4.696775361e-05 | O100: 4.696775361e-05 | P100: 4.696775361e-05 | S100: 1 | U100: 0.0008983566057 | V100: 46.95516616 | X100: 19 | Y100: 0.1603332958 | AA100: 19 | AB100: 0.2895567902
A101: 101 | B101: 0.0009045952854 | C101: 47.26856783 | D101: 1.234215684e-05 | E101: 1.234215684e-05 | F101: 3.454479769e-06 | G101: 2.825839896e-06 | H101: 0.5877746983 | I101: 159.2275638 | J101: 0.5500483977 | K101: 0.1616522655 | L101: 0.2938873492 | M101: 4.798836895e-05 | N101: 4.798836895e-05 | O101: 4.798836895e-05 | P101: 4.798836895e-05 | S101: 1 | U101: 0.0009045952854 | V101: 47.26856783 | X101: 20 | Y101: 0.1616522655 | AA101: 20 | AB101: 0.2938873492
A102: 102 | B102: 0.0009108756051 | C102: 47.58379747 | D102: 1.216190063e-05 | E102: 1.216190063e-05 | F102: 3.454479769e-06 | G102: 2.867722758e-06 | H102: 0.5964863336 | I102: 158.1727247 | J102: 0.5464044776 | K102: 0.1629614018 | L102: 0.2982431668 | M102: 4.902439627e-05 | N102: 4.902439627e-05 | O102: 4.902439627e-05 | P102: 4.902439627e-05 | S102: 1 | U102: 0.0009108756051 | V102: 47.58379747 | X102: 20 | Y102: 0.1629614018 | AA102: 20 | AB102: 0.2982431668
A103: 103 | B103: 0.0009171978076 | C103: 47.90086021 | D103: 1.198583058e-05 | E103: 1.198583058e-05 | F103: 3.454479769e-06 | G103: 2.909849173e-06 | H103: 0.605248628 | I103: 157.1257566 | J103: 0.5427877472 | K103: 0.1642607696 | L103: 0.302624314 | M103: 5.007601768e-05 | N103: 5.007601768e-05 | O103: 5.007601768e-05 | P103: 5.007601768e-05 | S103: 1 | U103: 0.0009171978076 | V103: 47.90086021 | X103: 20 | Y103: 0.1642607696 | AA103: 20 | AB103: 0.302624314
A104: 104 | B104: 0.0009235621366 | C104: 48.21976105 | D104: 1.181380841e-05 | E104: 1.181380841e-05 | F104: 3.454479769e-06 | G104: 2.952219808e-06 | H104: 0.6140617201 | I104: 156.0866072 | J104: 0.5391980266 | K104: 0.1655504338 | L104: 0.30703086 | M104: 5.114341651e-05 | N104: 5.114341651e-05 | O104: 5.114341651e-05 | P104: 5.114341651e-05 | S104: 1 | U104: 0.0009235621366 | V104: 48.21976105 | X104: 20 | Y104: 0.1655504338 | AA104: 20 | AB104: 0.30703086
A105: 105 | B105: 0.0009299688361 | C105: 48.5405049 | D105: 1.164570187e-05 | E105: 1.164570187e-05 | F105: 3.454479769e-06 | G105: 2.994835313e-06 | H105: 0.6229257452 | I105: 155.0552248 | J105: 0.5356351372 | K105: 0.1668304585 | L105: 0.3114628726 | M105: 5.222677724e-05 | N105: 5.222677724e-05 | O105: 5.222677724e-05 | P105: 5.222677724e-05 | S105: 1 | U105: 0.0009299688361 | V105: 48.5405049 | X105: 20 | Y105: 0.1668304585 | AA105: 20 | AB105: 0.3114628726
A106: 106 | B106: 0.0009364181512 | C106: 48.86309653 | D106: 1.148138441e-05 | E106: 1.148138441e-05 | F106: 3.454479769e-06 | G106: 3.037696324e-06 | H106: 0.6318408354 | I106: 154.0315582 | J106: 0.5320989017 | K106: 0.1681009073 | L106: 0.3159204177 | M106: 5.332628556e-05 | N106: 5.332628556e-05 | O106: 5.332628556e-05 | P106: 5.332628556e-05 | S106: 1 | U106: 0.0009364181512 | V106: 48.86309653 | X106: 20 | Y106: 0.1681009073 | AA106: 20 | AB106: 0.3159204177
A107: 107 | B107: 0.0009429103273 | C107: 49.18754061 | D107: 1.132073489e-05 | E107: 1.132073489e-05 | F107: 3.454479769e-06 | G107: 3.080803459e-06 | H107: 0.6408071195 | I107: 153.0155565 | J107: 0.5285891442 | K107: 0.1693618435 | L107: 0.3204035598 | M107: 5.444212827e-05 | N107: 5.444212827e-05 | O107: 5.444212827e-05 | P107: 5.444212827e-05 | S107: 1 | U107: 0.0009429103273 | V107: 49.18754061 | X107: 20 | Y107: 0.1693618435 | AA107: 20 | AB107: 0.3204035598
A108: 108 | B108: 0.0009494456105 | C108: 49.51384167 | D108: 1.11636373e-05 | E108: 1.11636373e-05 | F108: 3.454479769e-06 | G108: 3.124157321e-06 | H108: 0.6498247227 | I108: 152.007169 | J108: 0.5251056901 | K108: 0.1706133297 | L108: 0.3249123613 | M108: 5.557449329e-05 | N108: 5.557449329e-05 | O108: 5.557449329e-05 | P108: 5.557449329e-05 | S108: 1 | U108: 0.0009494456105 | V108: 49.51384167 | X108: 21 | Y108: 0.1706133297 | AA108: 21 | AB108: 0.3249123613
A109: 109 | B109: 0.0009560242476 | C109: 49.8420041 | D109: 1.100998049e-05 | E109: 1.100998049e-05 | F109: 3.454479769e-06 | G109: 3.167758493e-06 | H109: 0.6588937665 | I109: 151.0063457 | J109: 0.521648366 | K109: 0.1718554284 | L109: 0.3294468833 | M109: 5.672356964e-05 | N109: 5.672356964e-05 | O109: 5.672356964e-05 | P109: 5.672356964e-05 | S109: 1 | U109: 0.0009560242476 | V109: 49.8420041 | X109: 21 | Y109: 0.1718554284 | AA109: 21 | AB109: 0.3294468833
A110: 110 | B110: 0.0009626464859 | C110: 50.17203218 | D110: 1.085965789e-05 | E110: 1.085965789e-05 | F110: 3.454479769e-06 | G110: 3.211607543e-06 | H110: 0.668014369 | I110: 150.0130366 | J110: 0.518217 | K110: 0.1730882011 | L110: 0.3340071845 | M110: 5.788954743e-05 | N110: 5.788954743e-05 | O110: 5.788954743e-05 | P110: 5.788954743e-05 | S110: 1 | U110: 0.0009626464859 | V110: 50.17203218 | X110: 21 | Y110: 0.1730882011 | AA110: 21 | AB110: 0.3340071845
A111: 111 | B111: 0.0009693125732 | C111: 50.50393003 | D111: 1.071256732e-05 | E111: 1.071256732e-05 | F111: 3.454479769e-06 | G111: 3.255705021e-06 | H111: 0.6771866443 | I111: 149.0271925 | J111: 0.5148114213 | K111: 0.1743117094 | L111: 0.3385933222 | M111: 5.907261776e-05 | N111: 5.907261776e-05 | O111: 5.907261776e-05 | P111: 5.907261776e-05 | S111: 1 | U111: 0.0009693125732 | V111: 50.50393003 | X111: 21 | Y111: 0.1743117094 | AA111: 21 | AB111: 0.3385933222
A112: 112 | B112: 0.000976022758 | C112: 50.83770164 | D112: 1.056861073e-05 | E112: 1.056861073e-05 | F112: 3.454479769e-06 | G112: 3.300051455e-06 | H112: 0.6864107027 | I112: 148.0487641 | J112: 0.5114314605 | K112: 0.1755260141 | L112: 0.3432053513 | M112: 6.027297281e-05 | N112: 6.027297281e-05 | O112: 6.027297281e-05 | P112: 6.027297281e-05 | S112: 1 | U112: 0.000976022758 | V112: 50.83770164 | X112: 21 | Y112: 0.1755260141 | AA112: 21 | AB112: 0.3432053513
A113: 113 | B113: 0.0009827772892 | C113: 51.17335087 | D113: 1.042769401e-05 | E113: 1.042769401e-05 | F113: 3.454479769e-06 | G113: 3.344647357e-06 | H113: 0.6956866503 | I113: 147.077703 | J113: 0.5080769494 | K113: 0.1767311755 | L113: 0.3478433252 | M113: 6.149080568e-05 | N113: 6.149080568e-05 | O113: 6.149080568e-05 | P113: 6.149080568e-05 | S113: 1 | U113: 0.0009827772892 | V113: 51.17335087 | X113: 21 | Y113: 0.1767311755 | AA113: 21 | AB113: 0.3478433252
A114: 114 | B114: 0.0009895764163 | C114: 51.5108814 | D114: 1.02897268e-05 | E114: 1.02897268e-05 | F114: 3.454479769e-06 | G114: 3.389493219e-06 | H114: 0.7050145895 | I114: 146.1139607 | J114: 0.5047477211 | K114: 0.1779272537 | L114: 0.3525072947 | M114: 6.272631048e-05 | N114: 6.272631048e-05 | O114: 6.272631048e-05 | P114: 6.272631048e-05 | S114: 1 | U114: 0.0009895764163 | V114: 51.5108814 | X114: 21 | Y114: 0.1779272537 | AA114: 21 | AB114: 0.3525072947
A115: 115 | B115: 0.0009964203893 | C115: 51.85029678 | D115: 1.015462229e-05 | E115: 1.015462229e-05 | F115: 3.454479769e-06 | G115: 3.43458951e-06 | H115: 0.714394618 | I115: 145.1574893 | J115: 0.50144361 | K115: 0.1791143081 | L115: 0.357197309 | M115: 6.39796822e-05 | N115: 6.39796822e-05 | O115: 6.39796822e-05 | P115: 6.39796822e-05 | S115: 1 | U115: 0.0009964203893 | V115: 51.85029678 | X115: 22 | Y115: 0.1791143081 | AA115: 22 | AB115: 0.357197309
A116: 116 | B116: 0.001003309459 | C116: 52.1916004 | D116: 1.002229707e-05 | E116: 1.002229707e-05 | F116: 3.454479769e-06 | G116: 3.479936681e-06 | H116: 0.7238268296 | I116: 144.2082412 | J116: 0.4981644518 | K116: 0.1802923979 | L116: 0.3619134148 | M116: 6.525111675e-05 | N116: 6.525111675e-05 | O116: 6.525111675e-05 | P116: 6.525111675e-05 | S116: 1 | U116: 0.001003309459 | V116: 52.1916004 | X116: 22 | Y116: 0.1802923979 | AA116: 22 | AB116: 0.3619134148
A117: 117 | B117: 0.001010243875 | C117: 52.53479548 | D117: 9.892670934e-06 | E117: 9.892670934e-06 | F117: 3.454479769e-06 | G117: 3.52553516e-06 | H117: 0.7333113133 | I117: 143.2661692 | J117: 0.4949100831 | K117: 0.1814615815 | L117: 0.3666556566 | M117: 6.654081088e-05 | N117: 6.654081088e-05 | O117: 6.654081088e-05 | P117: 6.654081088e-05 | S117: 1 | U117: 0.001010243875 | V117: 52.53479548 | X117: 22 | Y117: 0.1814615815 | AA117: 22 | AB117: 0.3666556566
A118: 118 | B118: 0.00101722389 | C118: 52.87988509 | D118: 9.765666748e-06 | E118: 9.765666748e-06 | F118: 3.454479769e-06 | G118: 3.571385355e-06 | H118: 0.7428481538 | I118: 142.3312265 | J118: 0.4916803423 | K118: 0.1826219173 | L118: 0.3714240769 | M118: 6.784896216e-05 | N118: 6.784896216e-05 | O118: 6.784896216e-05 | P118: 6.784896216e-05 | S118: 1 | U118: 0.00101722389 | V118: 52.87988509 | X118: 22 | Y118: 0.1826219173 | AA118: 22 | AB118: 0.3714240769
A119: 119 | B119: 0.001024249755 | C119: 53.22687211 | D119: 9.641210306e-06 | E119: 9.641210306e-06 | F119: 3.454479769e-06 | G119: 3.617487649e-06 | H119: 0.752437431 | I119: 141.4033664 | J119: 0.4884750685 | K119: 0.1837734628 | L119: 0.3762187155 | M119: 6.917576894e-05 | N119: 6.917576894e-05 | O119: 6.917576894e-05 | P119: 6.917576894e-05 | S119: 1 | U119: 0.001024249755 | V119: 53.22687211 | X119: 22 | Y119: 0.1837734628 | AA119: 22 | AB119: 0.3762187155
A120: 120 | B120: 0.001031321723 | C120: 53.57575927 | D120: 9.519230185e-06 | E120: 9.519230185e-06 | F120: 3.454479769e-06 | G120: 3.663842404e-06 | H120: 0.76207922 | I120: 140.4825429 | J120: 0.4852941023 | K120: 0.1849162755 | L120: 0.38103961 | M120: 7.052143032e-05 | N120: 7.052143032e-05 | O120: 7.052143032e-05 | P120: 7.052143032e-05 | S120: 1 | U120: 0.001031321723 | V120: 53.57575927 | X120: 22 | Y120: 0.1849162755 | AA120: 22 | AB120: 0.38103961
A121: 121 | B121: 0.001038440045 | C121: 53.9265491 | D121: 9.399657617e-06 | E121: 9.399657617e-06 | F121: 3.454479769e-06 | G121: 3.710449957e-06 | H121: 0.7717735911 | I121: 139.5687101 | J121: 0.4821372855 | K121: 0.1860504121 | L121: 0.3858867956 | M121: 7.188614609e-05 | N121: 7.188614609e-05 | O121: 7.188614609e-05 | P121: 7.188614609e-05 | S121: 1 | U121: 0.001038440045 | V121: 53.9265491 | X121: 22 | Y121: 0.1860504121 | AA121: 22 | AB121: 0.3858867956
A122: 122 | B122: 0.001045604974 | C122: 54.27924398 | D122: 9.28242637e-06 | E122: 9.28242637e-06 | F122: 3.454479769e-06 | G122: 3.757310623e-06 | H122: 0.7815206095 | I122: 138.6618226 | J122: 0.4790044609 | K122: 0.1871759291 | L122: 0.3907603048 | M122: 7.327011669e-05 | N122: 7.327011669e-05 | O122: 7.327011669e-05 | P122: 7.327011669e-05 | S122: 1 | U122: 0.001045604974 | V122: 54.27924398 | X122: 23 | Y122: 0.1871759291 | AA122: 23 | AB122: 0.3907603048
A123: 123 | B123: 0.001052816765 | C123: 54.63384606 | D123: 9.16747263e-06 | E123: 9.16747263e-06 | F123: 3.454479769e-06 | G123: 3.804424688e-06 | H123: 0.7913203352 | I123: 137.7618353 | J123: 0.4758954728 | K123: 0.1882928825 | L123: 0.3956601676 | M123: 7.467354321e-05 | N123: 7.467354321e-05 | O123: 7.467354321e-05 | P123: 7.467354321e-05 | S123: 1 | U123: 0.001052816765 | V123: 54.63384606 | X123: 23 | Y123: 0.1882928825 | AA123: 23 | AB123: 0.3956601676
A124: 124 | B124: 0.001060075669 | C124: 54.99035732 | D124: 9.054734892e-06 | E124: 9.054734892e-06 | F124: 3.454479769e-06 | G124: 3.851792418e-06 | H124: 0.8011728229 | I124: 136.8687033 | J124: 0.4728101665 | K124: 0.1894013279 | L124: 0.4005864115 | M124: 7.609662727e-05 | N124: 7.609662727e-05 | O124: 7.609662727e-05 | P124: 7.609662727e-05 | S124: 1 | U124: 0.001060075669 | V124: 54.99035732 | X124: 23 | Y124: 0.1894013279 | AA124: 23 | AB124: 0.4005864115
A125: 125 | B125: 0.001067381941 | C125: 55.34877957 | D125: 8.944153859e-06 | E125: 8.944153859e-06 | F125: 3.454479769e-06 | G125: 3.899414048e-06 | H125: 0.811078122 | I125: 135.9823822 | J125: 0.4697483884 | K125: 0.1905013203 | L125: 0.405539061 | M125: 7.753957102e-05 | N125: 7.753957102e-05 | O125: 7.753957102e-05 | P125: 7.753957102e-05 | S125: 1 | U125: 0.001067381941 | V125: 55.34877957 | X125: 23 | Y125: 0.1905013203 | AA125: 23 | AB125: 0.405539061
A126: 126 | B126: 0.001074735835 | C126: 55.70911437 | D126: 8.835672338e-06 | E126: 8.835672338e-06 | F126: 3.454479769e-06 | G126: 3.94728979e-06 | H126: 0.8210362762 | I126: 135.1028281 | J126: 0.4667099862 | K126: 0.1915929146 | L126: 0.4105181381 | M126: 7.90025771e-05 | N126: 7.90025771e-05 | O126: 7.90025771e-05 | P126: 7.90025771e-05 | S126: 1 | U126: 0.001074735835 | V126: 55.70911437 | X126: 23 | Y126: 0.1915929146 | AA126: 23 | AB126: 0.4105181381
A127: 127 | B127: 0.001082137605 | C127: 56.0713631 | D127: 8.729235156e-06 | E127: 8.729235156e-06 | F127: 3.454479769e-06 | G127: 3.995419826e-06 | H127: 0.8310473237 | I127: 134.229997 | J127: 0.4636948089 | K127: 0.192676165 | L127: 0.4155236619 | M127: 8.048584856e-05 | N127: 8.048584856e-05 | O127: 8.048584856e-05 | P127: 8.048584856e-05 | S127: 1 | U127: 0.001082137605 | V127: 56.0713631 | X127: 23 | Y127: 0.192676165 | AA127: 23 | AB127: 0.4155236619
A128: 128 | B128: 0.001089587504 | C128: 56.43552695 | D128: 8.624789064e-06 | E128: 8.624789064e-06 | F128: 3.454479769e-06 | G128: 4.043804311e-06 | H128: 0.8411112968 | I128: 133.3638456 | J128: 0.4607027064 | K128: 0.1937511254 | L128: 0.4205556484 | M128: 8.19895888e-05 | N128: 8.19895888e-05 | O128: 8.19895888e-05 | P128: 8.19895888e-05 | S128: 1 | U128: 0.001089587504 | V128: 56.43552695 | X128: 24 | Y128: 0.1937511254 | AA128: 24 | AB128: 0.4205556484
A129: 129 | B129: 0.001097085789 | C129: 56.80160685 | D129: 8.52228266e-06 | E129: 8.52228266e-06 | F129: 3.454479769e-06 | G129: 4.092443374e-06 | H129: 0.8512282218 | I129: 132.5043307 | J129: 0.4577335297 | K129: 0.1948178493 | L129: 0.4256141109 | M129: 8.351400157e-05 | N129: 8.351400157e-05 | O129: 8.351400157e-05 | P129: 8.351400157e-05 | S129: 1 | U129: 0.001097085789 | V129: 56.80160685 | X129: 24 | Y129: 0.1948178493 | AA129: 24 | AB129: 0.4256141109
A130: 130 | B130: 0.001104632712 | C130: 57.16960355 | D130: 8.421666305e-06 | E130: 8.421666305e-06 | F130: 3.454479769e-06 | G130: 4.141337111e-06 | H130: 0.861398119 | I130: 131.6514097 | J130: 0.4547871313 | K130: 0.1958763897 | L130: 0.4306990595 | M130: 8.505929084e-05 | N130: 8.505929084e-05 | O130: 8.505929084e-05 | P130: 8.505929084e-05 | S130: 1 | U130: 0.001104632712 | V130: 57.16960355 | X130: 24 | Y130: 0.1958763897 | AA130: 24 | AB130: 0.4306990595
A131: 131 | B131: 0.001112228529 | C131: 57.53951756 | D131: 8.322892052e-06 | E131: 8.322892052e-06 | F131: 3.454479769e-06 | G131: 4.190485589e-06 | H131: 0.8716210025 | I131: 130.8050401 | J131: 0.4518633646 | K131: 0.1969267994 | L131: 0.4358105013 | M131: 8.662566081e-05 | N131: 8.662566081e-05 | O131: 8.662566081e-05 | P131: 8.662566081e-05 | S131: 1 | U131: 0.001112228529 | V131: 57.53951756 | X131: 24 | Y131: 0.1969267994 | AA131: 24 | AB131: 0.4358105013
A132: 132 | B132: 0.001119873494 | C132: 57.91134914 | D132: 8.225913571e-06 | E132: 8.225913571e-06 | F132: 3.454479769e-06 | G132: 4.239888846e-06 | H132: 0.8818968801 | I132: 129.9651797 | J132: 0.448962084 | K132: 0.1979691306 | L132: 0.44094844 | M132: 8.821331579e-05 | N132: 8.821331579e-05 | O132: 8.821331579e-05 | P132: 8.821331579e-05 | S132: 1 | U132: 0.001119873494 | V132: 57.91134914 | X132: 24 | Y132: 0.1979691306 | AA132: 24 | AB132: 0.44094844
A133: 133 | B133: 0.001127567863 | C133: 58.28509835 | D133: 8.130686087e-06 | E133: 8.130686087e-06 | F133: 3.454479769e-06 | G133: 4.289546888e-06 | H133: 0.8922257528 | I133: 129.1317869 | J133: 0.4460831453 | K133: 0.1990034351 | L133: 0.4461128764 | M133: 8.982246018e-05 | N133: 8.982246018e-05 | O133: 8.982246018e-05 | P133: 8.982246018e-05 | S133: 1 | U133: 0.001127567863 | V133: 58.28509835 | X133: 24 | Y133: 0.1990034351 | AA133: 24 | AB133: 0.4461128764
A134: 134 | B134: 0.001135311889 | C134: 58.660765 | D134: 8.037166308e-06 | E134: 8.037166308e-06 | F134: 3.454479769e-06 | G134: 4.339459689e-06 | H134: 0.9026076153 | I134: 128.3048201 | J134: 0.4432264053 | K134: 0.2000297643 | L134: 0.4513038076 | M134: 9.145329839e-05 | N134: 9.145329839e-05 | O134: 9.145329839e-05 | P134: 9.145329839e-05 | S134: 1 | U134: 0.001135311889 | V134: 58.660765 | X134: 25 | Y134: 0.2000297643 | AA134: 25 | AB134: 0.4513038076
A135: 135 | B135: 0.001143105829 | C135: 59.03834862 | D135: 7.94531237e-06 | E135: 7.94531237e-06 | F135: 3.454479769e-06 | G135: 4.389627189e-06 | H135: 0.9130424553 | I135: 127.4842382 | J135: 0.4403917218 | K135: 0.2010481695 | L135: 0.4565212276 | M135: 9.310603479e-05 | N135: 9.310603479e-05 | O135: 9.310603479e-05 | P135: 9.310603479e-05 | S135: 1 | U135: 0.001143105829 | V135: 59.03834862 | X135: 25 | Y135: 0.2010481695 | AA135: 25 | AB135: 0.4565212276
A136: 136 | B136: 0.001150949936 | C136: 59.41784854 | D136: 7.855083778e-06 | E136: 7.855083778e-06 | F136: 3.454479769e-06 | G136: 4.440049296e-06 | H136: 0.9235302536 | I136: 126.6700004 | J136: 0.4375789538 | K136: 0.2020587011 | L136: 0.4617651268 | M136: 9.478087359e-05 | N136: 9.478087359e-05 | O136: 9.478087359e-05 | P136: 9.478087359e-05 | S136: 1 | U136: 0.001150949936 | V136: 59.41784854 | X136: 25 | Y136: 0.2020587011 | AA136: 25 | AB136: 0.4617651268
A137: 137 | B137: 0.001158844465 | C137: 59.79926381 | D137: 7.766441349e-06 | E137: 7.766441349e-06 | F137: 3.454479769e-06 | G137: 4.490725885e-06 | H137: 0.9340709841 | I137: 125.8620662 | J137: 0.4347879613 | K137: 0.2030614095 | L137: 0.4670354921 | M137: 9.647801883e-05 | N137: 9.647801883e-05 | O137: 9.647801883e-05 | P137: 9.647801883e-05 | S137: 1 | U137: 0.001158844465 | V137: 59.79926381 | X137: 25 | Y137: 0.2030614095 | AA137: 25 | AB137: 0.4670354921
A138: 138 | B138: 0.00116678967 | C138: 60.1825932 | D138: 7.67934716e-06 | E138: 7.67934716e-06 | F138: 3.454479769e-06 | G138: 4.541656794e-06 | H138: 0.9446646132 | I138: 125.0603954 | J138: 0.4320186057 | K138: 0.2040563445 | L138: 0.4723323066 | M138: 9.819767429e-05 | N138: 9.819767429e-05 | O138: 9.819767429e-05 | P138: 9.819767429e-05 | S138: 1 | U138: 0.00116678967 | V138: 60.1825932 | X138: 25 | Y138: 0.2040563445 | AA138: 25 | AB138: 0.4723323066
A139: 139 | B139: 0.001174785807 | C139: 60.56783524 | D139: =IF(C139<$D$4,0.0001,$D$2*$D$5/(C139-$D$4)) -> 7.593764497e-06 | E139: 7.593764497e-06 | F139: 3.454479769e-06 | G139: =IF(F139<=0,0,$D$2*H139/$D$4) -> 4.592841826e-06 | H139: =(C139-$D$4)*F139/$D$2 -> 0.9553110999 | I139: 124.2649481 | J139: 0.429270749 | K139: 0.2050435557 | L139: 0.47765555 | M139: 9.994004338e-05 | N139: =$D$4*H139*0.5*(F139+G139) -> 9.994004338e-05 | O139: 9.994004338e-05 | P139: 9.994004338e-05 | S139: 1 | U139: 0.001174785807 | V139: =C139 -> 60.56783524 | X139: 25 | Y139: =K139 -> 0.2050435557 | AA139: 25 | AB139: =L139 -> 0.47765555
A140: 140 | B140: 0.001182833128 | C140: 60.95498818 | D140: 7.50965781e-06 | E140: =IF($D$2*$D$5/(C140-$D$4)<0,0,$D$2*$D$5/(C140-$D$4)) -> 7.50965781e-06 | F140: 3.454479769e-06 | G140: 4.644280749e-06 | H140: 0.9660103959 | I140: 123.4756847 | J140: =IF(H140<=0,0,F140/(F140+G140)) -> 0.4265442546 | K140: =S140*J140*H140/2 -> 0.2060230921 | L140: =S140*H140/2 -> 0.4830051979 | M140: 0.0001017053291 | N140: 0.0001017053291 | O140: =M140*S140 -> 0.0001017053291 | P140: =N140*S140 -> 0.0001017053291 | S140: =IF(B140<=1/(2*$D$7),1,0) -> 1 | U140: 0.001182833128 | V140: 60.95498818 | X140: =ROUND(360*$D$7*U140,0) -> 26 | Y140: 0.2060230921 | AA140: =ROUND(360*$D$7*U140,0) -> 26 | AB140: 0.4830051979
A141: =A140+1 -> 141 | B141: 0.001190931889 | C141: 61.34404998 | D141: 7.426992665e-06 | E141: 7.426992665e-06 | F141: 3.454479769e-06 | G141: 4.695973293e-06 | H141: 0.9767624449 | I141: 122.692566 | J141: 0.4238389869 | K141: 0.2069950026 | L141: 0.4883812225 | M141: 0.000103493734 | N141: 0.000103493734 | O141: 0.000103493734 | P141: 0.000103493734 | S141: 1 | U141: =IF(B141<(1/(2*$D$7)),B141,1/(2*$D$7)) -> 0.001190931889 | V141: 61.34404998 | X141: 26 | Y141: 0.2069950026 | AA141: 26 | AB141: 0.4883812225
A142: 142 | B142: 0.001199082342 | C142: =ABS($D$6*1.414*SIN(6.28*B142*$D$7)) -> 61.73501834 | D142: 7.345735702e-06 | E142: 7.345735702e-06 | F142: 3.454479769e-06 | G142: 4.747919149e-06 | H142: 0.987567183 | I142: 121.915553 | J142: 0.4211548113 | K142: 0.2079593353 | L142: 0.4937835915 | M142: 0.0001053054599 | N142: 0.0001053054599 | O142: 0.0001053054599 | P142: 0.0001053054599 | S142: 1 | U142: 0.001199082342 | V142: 61.73501834 | X142: 26 | Y142: 0.2079593353 | AA142: 26 | AB142: 0.4937835915
A143: 143 | B143: 0.001207284741 | C143: 62.12789063 | D143: 7.265854591e-06 | E143: 7.265854591e-06 | F143: 3.454479769e-06 | G143: 4.800117972e-06 | H143: 0.9984245381 | I143: 121.1446071 | J143: 0.4184915943 | K143: 0.2089161384 | L143: 0.4992122691 | M143: 0.0001071407082 | N143: 0.0001071407082 | O143: 0.0001071407082 | P143: 0.0001071407082 | S143: 1 | U143: 0.001207284741 | V143: 62.12789063 | X143: 26 | Y143: 0.2089161384 | AA143: 26 | AB143: 0.4992122691
A144: 144 | B144: 0.001215539339 | C144: 62.52266396 | D144: 7.187317998e-06 | E144: 7.187317998e-06 | F144: 3.454479769e-06 | G144: 4.852569375e-06 | H144: 1.00933443 | I144: 120.3796899 | J144: 0.4158492034 | K144: 0.2098654593 | L144: 0.504667215 | M144: 0.0001089996793 | N144: 0.0001089996793 | O144: 0.0001089996793 | P144: 0.0001089996793 | S144: 1 | U144: 0.001215539339 | V144: 62.52266396 | X144: 26 | Y144: 0.2098654593 | AA144: 26 | AB144: 0.504667215
A145: 145 | B145: =IF(F144<=0,D144+B144,F144+G144+B144) -> 0.001223846388 | C145: 62.91933512 | D145: 7.110095541e-06 | E145: 7.110095541e-06 | F145: 3.454479769e-06 | G145: 4.905272932e-06 | H145: 1.02029677 | I145: 119.6207634 | J145: 0.4132275071 | K145: 0.2108073454 | L145: 0.510148385 | M145: 0.0001108825728 | N145: 0.0001108825728 | O145: 0.0001108825728 | P145: 0.0001108825728 | S145: 1 | U145: 0.001223846388 | V145: 62.91933512 | X145: 26 | Y145: 0.2108073454 | AA145: 26 | AB145: 0.510148385
A146: 146 | B146: 0.001232206141 | C146: 63.31790059 | D146: 7.034157758e-06 | E146: 7.034157758e-06 | F146: 3.454479769e-06 | G146: 4.958228178e-06 | H146: 1.031311461 | I146: 118.8677898 | J146: 0.4106263751 | K146: 0.2117418434 | L146: 0.5156557305 | M146: 0.0001127895876 | N146: 0.0001127895876 | O146: 0.0001127895876 | P146: 0.0001127895876 | S146: 1 | U146: 0.001232206141 | V146: 63.31790059 | X146: 27 | Y146: 0.2117418434 | AA146: 27 | AB146: 0.5156557305
A147: 147 | B147: 0.001240618848 | C147: 63.71835656 | D147: 6.959476073e-06 | E147: 6.959476073e-06 | F147: =IF(E147>$D$8*0.000001,$D$8*0.000001,E147) -> 3.454479769e-06 | G147: 5.011434602e-06 | H147: 1.042378397 | I147: =IF(H147<=0.0001,0,0.001/(F147+G147)) -> 118.1207317 | J147: 0.4080456779 | K147: 0.2126689999 | L147: 0.5211891986 | M147: =(F147+G147)*C147*J147*H147/2 -> 0.0001147209213 | N147: 0.0001147209213 | O147: 0.0001147209213 | P147: 0.0001147209213 | S147: 1 | U147: 0.001240618848 | V147: 63.71835656 | X147: 27 | Y147: 0.2126689999 | AA147: 27 | AB147: 0.5211891986
A148: 148 | B148: 0.001249084763 | C148: 64.12069886 | D148: 6.88602276e-06 | E148: 6.88602276e-06 | F148: 3.454479769e-06 | G148: 5.064891653e-06 | H148: 1.053497464 | I148: 117.3795519 | J148: 0.4054852873 | K148: 0.2135888609 | L148: 0.526748732 | M148: 0.0001166767704 | N148: 0.0001166767704 | O148: 0.0001166767704 | P148: 0.0001166767704 | S148: 1 | U148: 0.001249084763 | V148: 64.12069886 | X148: 27 | Y148: 0.2135888609 | AA148: 27 | AB148: 0.526748732
A149: 149 | B149: 0.001257604134 | C149: 64.52492303 | D149: 6.813770914e-06 | E149: 6.813770914e-06 | F149: 3.454479769e-06 | G149: 5.118598738e-06 | H149: 1.064668538 | I149: 116.6442135 | J149: 0.4029450758 | K149: 0.2145014723 | L149: 0.5323342688 | M149: 0.0001186573304 | N149: 0.0001186573304 | O149: 0.0001186573304 | P149: 0.0001186573304 | S149: 1 | U149: 0.001257604134 | V149: 64.52492303 | X149: 27 | Y149: 0.2145014723 | AA149: 27 | AB149: 0.5323342688
A150: 150 | B150: 0.001266177213 | C150: 64.93102425 | D150: 6.742694421e-06 | E150: 6.742694421e-06 | F150: 3.454479769e-06 | G150: 5.172555217e-06 | H150: 1.075891485 | I150: 115.91468 | J150: 0.4004249171 | K150: 0.2154068794 | L150: 0.5379457426 | M150: 0.0001206627953 | N150: 0.0001206627953 | O150: 0.0001206627953 | P150: 0.0001206627953 | S150: 1 | U150: 0.001266177213 | V150: 64.93102425 | X150: 27 | Y150: 0.2154068794 | AA150: 27 | AB150: 0.5379457426
A151: 151 | B151: 0.001274804248 | C151: 65.33899737 | D151: 6.672767928e-06 | E151: 6.672767928e-06 | F151: 3.454479769e-06 | G151: 5.226760406e-06 | H151: 1.087166164 | I151: 115.1909151 | J151: 0.3979246858 | K151: 0.2163051272 | L151: 0.5435830822 | M151: 0.0001226933576 | N151: 0.0001226933576 | O151: 0.0001226933576 | P151: 0.0001226933576 | S151: 1 | U151: 0.001274804248 | V151: 65.33899737 | X151: 28 | Y151: 0.2163051272 | AA151: 28 | AB151: 0.5435830822
A152: 152 | B152: 0.001283485488 | C152: 65.74883691 | D152: 6.603966818e-06 | E152: 6.603966818e-06 | F152: 3.454479769e-06 | G152: 5.281213574e-06 | H152: 1.098492423 | I152: 114.4728828 | J152: 0.3954442576 | K152: 0.2171962604 | L152: 0.5492462117 | M152: 0.0001247492084 | N152: 0.0001247492084 | O152: 0.0001247492084 | P152: 0.0001247492084 | S152: 1 | U152: 0.001283485488 | V152: 65.74883691 | X152: 28 | Y152: 0.2171962604 | AA152: 28 | AB152: 0.5492462117
A153: 153 | B153: 0.001292221181 | C153: 66.16053701 | D153: 6.53626718e-06 | E153: 6.53626718e-06 | F153: 3.454479769e-06 | G153: 5.335913946e-06 | H153: 1.109870101 | I153: 113.7605473 | J153: 0.3929835091 | K153: 0.2180803235 | L153: 0.5549350504 | M153: 0.0001268305371 | N153: 0.0001268305371 | O153: 0.0001268305371 | P153: 0.0001268305371 | S153: 1 | U153: 0.001292221181 | V153: 66.16053701 | X153: 28 | Y153: 0.2180803235 | AA153: 28 | AB153: 0.5549350504
A154: 154 | B154: 0.001301011575 | C154: 66.57409148 | D154: 6.469645787e-06 | E154: 6.469645787e-06 | F154: 3.454479769e-06 | G154: 5.390860698e-06 | H154: 1.121299025 | I154: 113.0538733 | J154: 0.3905423179 | K154: 0.2189573602 | L154: 0.5606495126 | M154: 0.0001289375313 | N154: 0.0001289375313 | O154: 0.0001289375313 | P154: 0.0001289375313 | S154: 1 | U154: 0.001301011575 | V154: 66.57409148 | X154: 28 | Y154: 0.2189573602 | AA154: 28 | AB154: 0.5606495126
A155: 155 | B155: 0.001309856915 | C155: 66.98949373 | D155: 6.404080073e-06 | E155: 6.404080073e-06 | F155: 3.454479769e-06 | G155: 5.446052955e-06 | H155: 1.132779015 | I155: 112.3528255 | J155: 0.3881205627 | K155: 0.2198274143 | L155: 0.5663895073 | M155: 0.000131070377 | N155: 0.000131070377 | O155: 0.000131070377 | P155: 0.000131070377 | S155: 1 | U155: 0.001309856915 | V155: 66.98949373 | X155: 28 | Y155: 0.2198274143 | AA155: 28 | AB155: 0.5663895073
A156: 156 | B156: 0.001318757448 | C156: 67.40673684 | D156: 6.339548103e-06 | E156: 6.339548103e-06 | F156: 3.454479769e-06 | G156: 5.501489796e-06 | H156: 1.144309878 | I156: 111.6573692 | J156: 0.3857181228 | K156: 0.220690529 | L156: 0.5721549388 | M156: 0.0001332292577 | N156: 0.0001332292577 | O156: 0.0001332292577 | P156: 0.0001332292577 | S156: 1 | U156: 0.001318757448 | V156: 67.40673684 | X156: 28 | Y156: 0.220690529 | AA156: 28 | AB156: 0.5721549388
A157: 157 | B157: 0.001327713418 | C157: 67.82581348 | D157: 6.276028561e-06 | E157: 6.276028561e-06 | F157: 3.454479769e-06 | G157: 5.557170249e-06 | H157: 1.155891412 | I157: 110.9674697 | J157: 0.3833348789 | K157: 0.2215467472 | L157: 0.5779457059 | M157: 0.0001354143552 | N157: 0.0001354143552 | O157: 0.0001354143552 | P157: 0.0001354143552 | S157: 1 | U157: 0.001327713418 | V157: 67.82581348 | X157: 29 | Y157: 0.2215467472 | AA157: 29 | AB157: 0.5779457059
A158: 158 | B158: 0.001336725068 | C158: 68.24671595 | D158: 6.213500721e-06 | E158: 6.213500721e-06 | F158: 3.454479769e-06 | G158: 5.61309329e-06 | H158: 1.167523404 | I158: 110.2830927 | J158: 0.3809707125 | K158: 0.2223961116 | L158: 0.5837617022 | M158: 0.000137625849 | N158: 0.000137625849 | O158: 0.000137625849 | P158: 0.000137625849 | S158: 1 | U158: 0.001336725068 | V158: 68.24671595 | X158: 29 | Y158: 0.2223961116 | AA158: 29 | AB158: 0.5837617022
A159: 159 | B159: 0.001345792641 | C159: 68.66943615 | D159: 6.151944428e-06 | E159: 6.151944428e-06 | F159: 3.454479769e-06 | G159: 5.669257843e-06 | H159: 1.179205631 | I159: 109.6042042 | J159: 0.3786255059 | K159: 0.2232386644 | L159: 0.5896028157 | M159: 0.000139863916 | N159: 0.000139863916 | O159: 0.000139863916 | P159: 0.000139863916 | S159: 1 | U159: 0.001345792641 | V159: 68.66943615 | X159: 29 | Y159: 0.2232386644 | AA159: 29 | AB159: 0.5896028157
A160: 160 | B160: 0.001354916378 | C160: 69.09396559 | D160: 6.091340084e-06 | E160: 6.091340084e-06 | F160: 3.454479769e-06 | G160: 5.72566278e-06 | H160: 1.190937858 | I160: 108.9307704 | J160: 0.3762991424 | K160: 0.2240744474 | L160: 0.5954689292 | M160: 0.000142128731 | N160: 0.000142128731 | O160: 0.000142128731 | P160: 0.000142128731 | S160: 1 | U160: 0.001354916378 | V160: 69.09396559 | X160: 29 | Y160: 0.2240744474 | AA160: 29 | AB160: 0.5954689292
A161: 161 | B161: 0.001364096521 | C161: 69.52029537 | D161: 6.031668622e-06 | E161: 6.031668622e-06 | F161: 3.454479769e-06 | G161: 5.782306919e-06 | H161: 1.202719839 | I161: 108.2627578 | J161: 0.3739915065 | K161: 0.2249035023 | L161: 0.6013599196 | M161: 0.0001444204658 | N161: 0.0001444204658 | O161: 0.0001444204658 | P161: 0.0001444204658 | S161: 1 | U161: 0.001364096521 | V161: 69.52029537 | X161: 29 | Y161: 0.2249035023 | AA161: 29 | AB161: 0.6013599196
A162: 162 | B162: 0.001373333308 | C162: 69.94841618 | D162: 5.972911491e-06 | E162: 5.972911491e-06 | F162: 3.454479769e-06 | G162: 5.839189022e-06 | H162: 1.214551316 | I162: 107.6001332 | J162: 0.3717024833 | K162: 0.2257258702 | L162: 0.6072756582 | M162: 0.0001467392896 | N162: 0.0001467392896 | O162: 0.0001467392896 | P162: 0.0001467392896 | S162: 1 | U162: 0.001373333308 | V162: 69.94841618 | X162: 30 | Y162: 0.2257258702 | AA162: 30 | AB162: 0.6072756582
A163: 163 | B163: 0.001382626976 | C163: 70.37831829 | D163: 5.915050641e-06 | E163: 5.915050641e-06 | F163: 3.454479769e-06 | G163: 5.896307796e-06 | H163: 1.226432021 | I163: 106.9428637 | J163: 0.3694319591 | K163: 0.2265415922 | L163: 0.6132160107 | M163: 0.0001490853688 | N163: 0.0001490853688 | O163: 0.0001490853688 | P163: 0.0001490853688 | S163: 1 | U163: 0.001382626976 | V163: 70.37831829 | X163: 30 | Y163: 0.2265415922 | AA163: 30 | AB163: 0.6132160107
A164: 164 | B164: 0.001391977764 | C164: 70.80999153 | D164: 5.858068503e-06 | E164: 5.858068503e-06 | F164: 3.454479769e-06 | G164: 5.953661892e-06 | H164: 1.238361674 | I164: 106.2909165 | J164: 0.3671798208 | K164: 0.2273507087 | L164: 0.6191808368 | M164: 0.0001514588667 | N164: 0.0001514588667 | O164: 0.0001514588667 | P164: 0.0001514588667 | S164: 1 | U164: 0.001391977764 | V164: 70.80999153 | X164: 30 | Y164: 0.2273507087 | AA164: 30 | AB164: 0.6191808368
A165: 165 | B165: 0.001401385906 | C165: 71.24342533 | D165: 5.801947975e-06 | E165: 5.801947975e-06 | F165: 3.454479769e-06 | G165: 6.011249903e-06 | H165: 1.25033998 | I165: 105.6442593 | J165: 0.3649459565 | K165: 0.2281532599 | L165: 0.6251699899 | M165: 0.0001538599432 | N165: 0.0001538599432 | O165: 0.0001538599432 | P165: 0.0001538599432 | S165: 1 | U165: 0.001401385906 | V165: 71.24342533 | X165: 30 | Y165: 0.2281532599 | AA165: 30 | AB165: 0.6251699899
A166: 166 | B166: 0.001410851635 | C166: 71.67860866 | D166: 5.746672407e-06 | E166: 5.746672407e-06 | F166: 3.454479769e-06 | G166: 6.069070365e-06 | H166: 1.262366636 | I166: 105.0028599 | J166: 0.362730255 | K166: 0.2289492859 | L166: 0.6311833179 | M166: 0.0001562887553 | N166: 0.0001562887553 | O166: 0.0001562887553 | P166: 0.0001562887553 | S166: 1 | U166: 0.001410851635 | V166: 71.67860866 | X166: 30 | Y166: 0.2289492859 | AA166: 30 | AB166: 0.6311833179
A167: 167 | B167: 0.001420375186 | C167: 72.11553004 | D167: 5.692225586e-06 | E167: 5.692225586e-06 | F167: 3.454479769e-06 | G167: 6.127121751e-06 | H167: 1.274441324 | I167: 104.3666863 | J167: 0.3605326063 | K167: 0.2297388261 | L167: 0.6372206621 | M167: 0.0001587454561 | N167: 0.0001587454561 | O167: 0.0001587454561 | P167: 0.0001587454561 | S167: 1 | U167: 0.001420375186 | V167: 72.11553004 | X167: 31 | Y167: 0.2297388261 | AA167: 31 | AB167: 0.6372206621
A168: 168 | B168: 0.001429956787 | C168: 72.55417753 | D168: 5.638591721e-06 | E168: 5.638591721e-06 | F168: 3.454479769e-06 | G168: 6.185402478e-06 | H168: 1.286563716 | I168: 103.735707 | J168: 0.358352901 | K168: 0.2305219199 | L168: 0.6432818578 | M168: 0.0001612301954 | N168: 0.0001612301954 | O168: 0.0001612301954 | P168: 0.0001612301954 | S168: 1 | U168: 0.001429956787 | V168: 72.55417753 | X168: 31 | Y168: 0.2305219199 | AA168: 31 | AB168: 0.6432818578
A169: 169 | B169: 0.001439596669 | C169: 72.99453876 | D169: 5.585755429e-06 | E169: 5.585755429e-06 | F169: 3.454479769e-06 | G169: 6.2439109e-06 | H169: 1.298733467 | I169: 103.1098905 | J169: 0.3561910307 | K169: 0.2312986062 | L169: 0.6493667335 | M169: 0.000163743119 | N169: 0.000163743119 | O169: 0.000163743119 | P169: 0.000163743119 | S169: 1 | U169: 0.001439596669 | V169: 72.99453876 | X169: 31 | Y169: 0.2312986062 | AA169: 31 | AB169: 0.6493667335
A170: 170 | B170: 0.00144929506 | C170: 73.43660086 | D170: 5.533701725e-06 | E170: 5.533701725e-06 | F170: 3.454479769e-06 | G170: 6.302645306e-06 | H170: 1.310950224 | I170: 102.4892058 | J170: 0.354046888 | K170: 0.2320689235 | L170: 0.6554751119 | M170: 0.0001662843689 | N170: 0.0001662843689 | O170: 0.0001662843689 | P170: 0.0001662843689 | S170: 1 | U170: 0.00144929506 | V170: 73.43660086 | X170: 31 | Y170: 0.2320689235 | AA170: 31 | AB170: 0.6554751119
A171: 171 | B171: 0.001459052185 | C171: 73.8803505 | D171: 5.482416007e-06 | E171: 5.482416007e-06 | F171: 3.454479769e-06 | G171: 6.361603928e-06 | H171: 1.323213617 | I171: 101.873622 | J171: 0.3519203662 | K171: 0.2328329103 | L171: 0.6616068085 | M171: 0.000168854083 | N171: 0.000168854083 | O171: 0.000168854083 | P171: 0.000168854083 | S171: 1 | U171: 0.001459052185 | V171: 73.8803505 | X171: 32 | Y171: 0.2328329103 | AA171: 32 | AB171: 0.6616068085
A172: 172 | B172: 0.001468868269 | C172: 74.32577386 | D172: 5.431884045e-06 | E172: 5.431884045e-06 | F172: 3.454479769e-06 | G172: 6.420784927e-06 | H172: 1.335523265 | I172: 101.2631085 | J172: 0.3498113595 | K172: 0.2335906045 | L172: 0.6677616324 | M172: 0.0001714523947 | N172: 0.0001714523947 | O172: 0.0001714523947 | P172: 0.0001714523947 | S172: 1 | U172: 0.001468868269 | V172: 74.32577386 | X172: 32 | Y172: 0.2335906045 | AA172: 32 | AB172: 0.6677616324
A173: 173 | B173: 0.001478743533 | C173: 74.77285664 | D173: 5.382091968e-06 | E173: 5.382091968e-06 | F173: 3.454479769e-06 | G173: 6.480186405e-06 | H173: 1.347878772 | I173: 100.6576348 | J173: 0.3477197631 | K173: 0.2343420437 | L173: 0.6739393862 | M173: 0.0001740794334 | N173: 0.0001740794334 | O173: 0.0001740794334 | P173: 0.0001740794334 | S173: 1 | U173: 0.001478743533 | V173: 74.77285664 | X173: 32 | Y173: 0.2343420437 | AA173: 32 | AB173: 0.6739393862
A174: 174 | B174: 0.0014886782 | C174: 75.22158404 | D174: 5.333026255e-06 | E174: 5.333026255e-06 | F174: 3.454479769e-06 | G174: 6.539806395e-06 | H174: 1.36027973 | I174: 100.057171 | J174: 0.345645473 | K174: 0.2350872654 | L174: 0.6801398651 | M174: 0.0001767353235 | N174: 0.0001767353235 | O174: 0.0001767353235 | P174: 0.0001767353235 | S174: 1 | U174: 0.0014886782 | V174: 75.22158404 | X174: 32 | Y174: 0.2350872654 | AA174: 32 | AB174: 0.6801398651
A175: 175 | B175: 0.001498672486 | C175: 75.67194076 | D175: 5.284673721e-06 | E175: 5.284673721e-06 | F175: 3.454479769e-06 | G175: 6.599642863e-06 | H175: 1.372725715 | I175: 99.46168718 | J175: 0.3435883861 | K175: 0.2358263066 | L175: 0.6863628577 | M175: 0.0001794201849 | N175: 0.0001794201849 | O175: 0.0001794201849 | P175: 0.0001794201849 | S175: 1 | U175: 0.001498672486 | V175: 75.67194076 | X175: 32 | Y175: 0.2358263066 | AA175: 32 | AB175: 0.6863628577
A176: 176 | B176: 0.001508726608 | C176: 76.12391097 | D176: 5.237021511e-06 | E176: 5.237021511e-06 | F176: 3.454479769e-06 | G176: 6.659693707e-06 | H176: 1.385216291 | I176: 98.87115367 | J176: 0.3415484001 | K176: 0.236559204 | L176: 0.6926081455 | M176: 0.0001821341323 | N176: 0.0001821341323 | O176: 0.0001821341323 | P176: 0.0001821341323 | S176: 1 | U176: 0.001508726608 | V176: 76.12391097 | X176: 33 | Y176: 0.236559204 | AA176: 33 | AB176: 0.6926081455
A177: 177 | B177: 0.001518840782 | C177: 76.57747835 | D177: 5.190057088e-06 | E177: 5.190057088e-06 | F177: 3.454479769e-06 | G177: 6.719956758e-06 | H177: 1.397751006 | I177: 98.28554115 | J177: 0.3395254135 | K177: 0.2372859941 | L177: 0.6988755029 | M177: 0.0001848772755 | N177: 0.0001848772755 | O177: 0.0001848772755 | P177: 0.0001848772755 | S177: 1 | U177: 0.001518840782 | V177: 76.57747835 | X177: 33 | Y177: 0.2372859941 | AA177: 33 | AB177: 0.6988755029
A178: 178 | B178: 0.001529015218 | C178: 77.03262603 | D178: 5.14376822e-06 | E178: 5.14376822e-06 | F178: 3.454479769e-06 | G178: 6.780429776e-06 | H178: 1.410329393 | I178: 97.70482051 | J178: 0.3375193257 | K178: 0.238006713 | L178: 0.7051646967 | M178: 0.000187649719 | N178: 0.000187649719 | O178: 0.000187649719 | P178: 0.000187649719 | S178: 1 | U178: 0.001529015218 | V178: 77.03262603 | X178: 33 | Y178: 0.238006713 | AA178: 33 | AB178: 0.7051646967
A179: 179 | B179: 0.001539250128 | C179: 77.48933664 | D179: 5.098142978e-06 | E179: 5.098142978e-06 | F179: 3.454479769e-06 | G179: 6.84111045e-06 | H179: 1.422950974 | I179: 97.12896286 | J179: 0.3355300372 | K179: 0.2387213965 | L179: 0.7114754868 | M179: 0.0001904515617 | N179: 0.0001904515617 | O179: 0.0001904515617 | P179: 0.0001904515617 | S179: 1 | U179: 0.001539250128 | V179: 77.48933664 | X179: 33 | Y179: 0.2387213965 | AA179: 33 | AB179: 0.7114754868
A180: 180 | B180: 0.001549545718 | C180: 77.94759222 | D180: 5.053169719e-06 | E180: 5.053169719e-06 | F180: 3.454479769e-06 | G180: 6.901996399e-06 | H180: 1.435615251 | I180: 96.55793958 | J180: 0.3335574488 | K180: 0.2394300803 | L180: 0.7178076255 | M180: 0.0001932828967 | N180: 0.0001932828967 | O180: 0.0001932828967 | P180: 0.0001932828967 | S180: 1 | U180: 0.001549545718 | V180: 77.94759222 | X180: 33 | Y180: 0.2394300803 | AA180: 33 | AB180: 0.7178076255
A181: 181 | B181: 0.001559902194 | C181: 78.40737432 | D181: 5.008837085e-06 | E181: 5.008837085e-06 | F181: 3.454479769e-06 | G181: 6.963085166e-06 | H181: 1.448321715 | I181: 95.99172228 | J181: 0.3316014626 | K181: 0.2401327994 | L181: 0.7241608573 | M181: 0.0001961438116 | N181: 0.0001961438116 | O181: 0.0001961438116 | P181: 0.0001961438116 | S181: 1 | U181: 0.001559902194 | V181: 78.40737432 | X181: 34 | Y181: 0.2401327994 | AA181: 34 | AB181: 0.7241608573
A182: 182 | B182: 0.001570319759 | C182: 78.8686639 | D182: 4.965133988e-06 | E182: 4.965133988e-06 | F182: 3.454479769e-06 | G182: 7.024374224e-06 | H182: 1.461069839 | I182: 95.4302828 | J182: 0.3296619813 | K182: 0.2408295889 | L182: 0.7305349193 | M182: 0.0001990343877 | N182: 0.0001990343877 | O182: 0.0001990343877 | P182: 0.0001990343877 | S182: 1 | U182: 0.001570319759 | V182: 78.8686639 | X182: 34 | Y182: 0.2408295889 | AA182: 34 | AB182: 0.7305349193
A183: 183 | B183: 0.001580798613 | C183: 79.33144136 | D183: 4.922049607e-06 | E183: 4.922049607e-06 | F183: 3.454479769e-06 | G183: 7.08586097e-06 | H183: 1.473859082 | I183: 94.87359325 | J183: 0.3277389085 | K183: 0.2415204834 | L183: 0.7369295409 | M183: 0.0002019547 | N183: 0.0002019547 | O183: 0.0002019547 | P183: 0.0002019547 | S183: 1 | U183: 0.001580798613 | V183: 79.33144136 | X183: 34 | Y183: 0.2415204834 | AA183: 34 | AB183: 0.7369295409
A184: 184 | B184: 0.001591338954 | C184: 79.79568656 | D184: 4.879573378e-06 | E184: 4.879573378e-06 | F184: 3.454479769e-06 | G184: 7.147542726e-06 | H184: 1.486688887 | I184: 94.32162595 | J184: 0.3258321486 | K184: 0.2422055172 | L184: 0.7433444435 | M184: 0.0002049048173 | N184: 0.0002049048173 | O184: 0.0002049048173 | P184: 0.0002049048173 | S184: 1 | U184: 0.001591338954 | V184: 79.79568656 | X184: 34 | Y184: 0.2422055172 | AA184: 34 | AB184: 0.7433444435
A185: 185 | B185: 0.001601940976 | C185: 80.26137876 | D185: 4.837694987e-06 | E185: 4.837694987e-06 | F185: 3.454479769e-06 | G185: 7.209416736e-06 | H185: 1.499558681 | I185: 93.77435345 | J185: 0.3239416068 | K185: 0.2428847243 | L185: 0.7497793406 | M185: 0.0002078848015 | N185: 0.0002078848015 | O185: 0.0002078848015 | P185: 0.0002078848015 | S185: 1 | U185: 0.001601940976 | V185: 80.26137876 | X185: 35 | Y185: 0.2428847243 | AA185: 35 | AB185: 0.7497793406
A186: 186 | B186: 0.001612604873 | C186: 80.72849665 | D186: 4.796404361e-06 | E186: 4.796404361e-06 | F186: 3.454479769e-06 | G186: 7.271480171e-06 | H186: 1.512467875 | I186: 93.23174855 | J186: 0.3220671892 | K186: 0.2435581387 | L186: 0.7562339377 | M186: 0.0002108947079 | N186: 0.0002108947079 | O186: 0.0002108947079 | P186: 0.0002108947079 | S186: 1 | U186: 0.001612604873 | V186: 80.72849665 | X186: 35 | Y186: 0.2435581387 | AA186: 35 | AB186: 0.7562339377
A187: 187 | B187: 0.001623330833 | C187: 81.19701832 | D187: 4.755691666e-06 | E187: 4.755691666e-06 | F187: 3.454479769e-06 | G187: 7.333730118e-06 | H187: 1.525415865 | I187: 92.69378428 | J187: 0.3202088025 | K187: 0.2442257936 | L187: 0.7627079323 | M187: 0.0002139345846 | N187: 0.0002139345846 | O187: 0.0002139345846 | P187: 0.0002139345846 | S187: 1 | U187: 0.001623330833 | V187: 81.19701832 | X187: 35 | Y187: 0.2442257936 | AA187: 35 | AB187: 0.7627079323
A188: 188 | B188: 0.001634119043 | C188: 81.66692127 | D188: 4.715547294e-06 | E188: 4.715547294e-06 | F188: 3.454479769e-06 | G188: 7.396163589e-06 | H188: 1.538402027 | I188: 92.1604339 | J188: 0.3183663544 | K188: 0.2448877224 | L188: 0.7692010133 | M188: 0.0002170044725 | N188: 0.0002170044725 | O188: 0.0002170044725 | P188: 0.0002170044725 | S188: 1 | U188: 0.001634119043 | V188: 81.66692127 | X188: 35 | Y188: 0.2448877224 | AA188: 35 | AB188: 0.7692010133
A189: 189 | B189: 0.001644969686 | C189: 82.13818242 | D189: 4.675961862e-06 | E189: 4.675961862e-06 | F189: 3.454479769e-06 | G189: 7.458777516e-06 | H189: 1.551425723 | I189: 91.6316709 | J189: 0.3165397533 | K189: 0.2455439579 | L189: 0.7757128617 | M189: 0.000220104405 | N189: 0.000220104405 | O189: 0.000220104405 | P189: 0.000220104405 | S189: 1 | U189: 0.001644969686 | V189: 82.13818242 | X189: 36 | Y189: 0.2455439579 | AA189: 36 | AB189: 0.7757128617
A190: 190 | B190: 0.001655882943 | C190: 82.61077805 | D190: 4.636926201e-06 | E190: 4.636926201e-06 | F190: 3.454479769e-06 | G190: 7.521568748e-06 | H190: 1.5644863 | I190: 91.107469 | J190: 0.3147289084 | K190: 0.2461945327 | L190: 0.7822431498 | M190: 0.0002232344079 | N190: 0.0002232344079 | O190: 0.0002232344079 | P190: 0.0002232344079 | S190: 1 | U190: 0.001655882943 | V190: 82.61077805 | X190: 36 | Y190: 0.2461945327 | AA190: 36 | AB190: 0.7822431498
A191: 191 | B191: 0.001666858992 | C191: 83.08468383 | D191: 4.598431355e-06 | E191: 4.598431355e-06 | F191: 3.454479769e-06 | G191: 7.584534054e-06 | H191: 1.577583083 | I191: 90.58780214 | J191: 0.3129337298 | K191: 0.2468394791 | L191: 0.7887915416 | M191: 0.000226394499 | N191: 0.000226394499 | O191: 0.000226394499 | P191: 0.000226394499 | S191: 1 | U191: 0.001666858992 | V191: 83.08468383 | X191: 36 | Y191: 0.2468394791 | AA191: 36 | AB191: 0.7887915416
A192: 192 | B192: 0.001677898006 | C192: 83.55987483 | D192: 4.560468569e-06 | E192: 4.560468569e-06 | F192: 3.454479769e-06 | G192: 7.647670119e-06 | H192: 1.590715385 | I192: 90.0726445 | J192: 0.3111541281 | K192: 0.2474788293 | L192: 0.7953576924 | M192: 0.0002295846882 | N192: 0.0002295846882 | O192: 0.0002295846882 | P192: 0.0002295846882 | S192: 1 | U192: 0.001677898006 | V192: 83.55987483 | X192: 36 | Y192: 0.2474788293 | AA192: 36 | AB192: 0.7953576924
A193: 193 | B193: 0.001689000156 | C193: 84.03632547 | D193: 4.52302929e-06 | E193: 4.52302929e-06 | F193: 3.454479769e-06 | G193: 7.710973546e-06 | H193: 1.603882498 | I193: 89.56197047 | J193: 0.309390015 | K193: 0.248112615 | L193: 0.8019412488 | M193: 0.0002328049769 | N193: 0.0002328049769 | O193: 0.0002328049769 | P193: 0.0002328049769 | S193: 1 | U193: 0.001689000156 | V193: 84.03632547 | X193: 36 | Y193: 0.248112615 | AA193: 36 | AB193: 0.8019412488
A194: 194 | B194: 0.001700165609 | C194: 84.51400954 | D194: 4.486105157e-06 | E194: 4.486105157e-06 | F194: 3.454479769e-06 | G194: 7.774440852e-06 | H194: 1.617083697 | I194: 89.05575467 | J194: 0.3076413028 | K194: 0.2487408677 | L194: 0.8085418486 | M194: 0.0002360553582 | N194: 0.0002360553582 | O194: 0.0002360553582 | P194: 0.0002360553582 | S194: 1 | U194: 0.001700165609 | V194: 84.51400954 | X194: 37 | Y194: 0.2487408677 | AA194: 37 | AB194: 0.8085418486
A195: 195 | B195: 0.00171139453 | C195: 84.9929002 | D195: 4.449687998e-06 | E195: 4.449687998e-06 | F195: 3.454479769e-06 | G195: 7.838068471e-06 | H195: 1.630318242 | I195: 88.55397194 | J195: 0.3059079045 | K195: 0.2493636186 | L195: 0.815159121 | M195: 0.0002393358161 | N195: 0.0002393358161 | O195: 0.0002393358161 | P195: 0.0002393358161 | S195: 1 | U195: 0.00171139453 | V195: 84.9929002 | X195: 37 | Y195: 0.2493636186 | AA195: 37 | AB195: 0.815159121
A196: 196 | B196: 0.001722687078 | C196: 85.47296995 | D196: 4.413769822e-06 | E196: 4.413769822e-06 | F196: 3.454479769e-06 | G196: 7.901852749e-06 | H196: 1.643585372 | I196: 88.05659736 | J196: 0.3041897341 | K196: 0.2499808986 | L196: 0.8217926859 | M196: 0.000242646326 | N196: 0.000242646326 | O196: 0.000242646326 | P196: 0.000242646326 | S196: 1 | U196: 0.001722687078 | V196: 85.47296995 | X196: 37 | Y196: 0.2499808986 | AA196: 37 | AB196: 0.8217926859
A197: 197 | B197: 0.00173404341 | C197: 85.95419063 | D197: 4.378342819e-06 | E197: 4.378342819e-06 | F197: 3.454479769e-06 | G197: 7.965789945e-06 | H197: 1.656884309 | I197: 87.5636062 | J197: 0.3024867061 | K197: 0.2505927385 | L197: 0.8284421543 | M197: 0.000245986854 | N197: 0.000245986854 | O197: 0.000245986854 | P197: 0.000245986854 | S197: 1 | U197: 0.00173404341 | V197: 85.95419063 | X197: 37 | Y197: 0.2505927385 | AA197: 37 | AB197: 0.8284421543
A198: 198 | B198: 0.00174546368 | C198: 86.43653344 | D198: 4.343399349e-06 | E198: 4.343399349e-06 | F198: 3.454479769e-06 | G198: 8.029876234e-06 | H198: 1.670214257 | I198: 87.07497397 | J198: 0.300798736 | K198: 0.2511991686 | L198: 0.8351071283 | M198: 0.0002493573566 | N198: 0.0002493573566 | O198: 0.0002493573566 | P198: 0.0002493573566 | S198: 1 | U198: 0.00174546368 | V198: 86.43653344 | X198: 38 | Y198: 0.2511991686 | AA198: 38 | AB198: 0.8351071283
A199: 199 | B199: 0.001756948036 | C199: 86.91996891 | D199: 4.308931943e-06 | E199: 4.308931943e-06 | F199: 3.454479769e-06 | G199: 8.094107697e-06 | H199: 1.683574401 | I199: 86.59067639 | J199: 0.2991257397 | K199: 0.2518002191 | L199: 0.8417872005 | M199: 0.0002527577809 | N199: 0.0002527577809 | O199: 0.0002527577809 | P199: 0.0002527577809 | S199: 1 | U199: 0.001756948036 | V199: 86.91996891 | X199: 38 | Y199: 0.2518002191 | AA199: 38 | AB199: 0.8417872005
A200: 200 | B200: 0.001768496624 | C200: 87.40446689 | D200: 4.274933295e-06 | E200: 4.274933295e-06 | F200: 3.454479769e-06 | G200: 8.158480331e-06 | H200: 1.696963909 | I200: 86.11068939 | J200: 0.2974676344 | K200: 0.2523959198 | L200: 0.8484819544 | M200: 0.0002561880641 | N200: 0.0002561880641 | O200: 0.0002561880641 | P200: 0.0002561880641 | S200: 1 | U200: 0.001768496624 | V200: 87.40446689 | X200: 38 | Y200: 0.2523959198 | AA200: 38 | AB200: 0.8484819544
A201: 201 | B201: 0.001780109584 | C201: 87.88999656 | D201: 4.241396261e-06 | E201: 4.241396261e-06 | F201: 3.454479769e-06 | G201: 8.222990039e-06 | H201: 1.710381928 | I201: 85.63498913 | J201: 0.2958243374 | K201: 0.2529863003 | L201: 0.8551909641 | M201: 0.0002596481332 | N201: 0.0002596481332 | O201: 0.0002596481332 | P201: 0.0002596481332 | S201: 1 | U201: 0.001780109584 | V201: 87.88999656 | X201: 38 | Y201: 0.2529863003 | AA201: 38 | AB201: 0.8551909641
... 2284 more rows

Sheet Alg LL Vfmin (hidden)
C1: LED DCM Buck Model | AD1: Freqs | AE1: Line Voltage | AF1: LED Volts | AG1: Lout
D2: =D3/1000000 -> 0.000125 | AD2: 50 | AE2: 80 | AF2: 5 | AG2: 200
C3: Lout | D3: =Step1!D22 -> 125 | E3: uH | G3: Slope | H3: Intercept | I3: Fmax | J3: Favg | K3: Iavgin | L3: Iavgout | O3: Pavgin | P3: Pavgout | Q3: In RMS | R3: PF | AD3: 60 | AE3: 85 | AF3: =AF2+1 -> 6
C4: Vout | D4: =Step1!D13 -> 22 | E4: VDC | G4: =Worksheet!Q22 -> -0.03657668208 | H4: =Worksheet!Q25 -> 7.112147977 | I4: =MAX(I12:I3001) -> 289.2296535 | J4: =S10*2*60/1000 -> 81 | K4: =O4/(D6*1.414*0.636) -> 0.1840412132 | L4: =P4/D4 -> 0.7523136328 | O4: =SUM(O11:O2500)*2*D7 -> 16.55089992 | P4: =SUM(P11:P2500)*2*D7 -> 16.55089992 | Q4: =SQRT(P6/P7) -> 0.1753106975 | R4: =O4/(D6*Q4) -> 0.9440895598 | AE4: 90 | AF4: =AF3+1 -> 7
C5: Ipeak | D5: =Step1!D23 -> 2.1 | E5: A | AE5: 100 | AF5: 8
C6: Vin RMS | D6: =Step1!D8 -> 100 | E6: VAC | P6: =SUMSQ(K11:K2500) -> 20.74534244 | AE6: 120 | AF6: 9
C7: Freq | D7: =Step1!D11 -> 60 | E7: Hz | P7: =S10 -> 675 | AE7: 132 | AF7: 10
C8: Ton | D8: =(G4*D6)+H4 -> 3.454479769 | E8: us | AE8: 180 | AF8: 11
AE9: 200 | AF9: 12
A10: N | C10: Vin | D10: Time | E10: Ton Calc | F10: Ton | G10: Toff | H10: Ipeak | I10: Freq | J10: Duty | K10: Iin | L10: Iout | M10: Ein | N10: Eout | O10: Pin | P10: Pout | S10: =SUM(S11:S2500) -> 675 | U10: Time | V10: =C10 -> Vin | X10: =U10 -> Time | Y10: =K10 -> Iin | AA10: =U10 -> Time | AB10: =L10 -> Iout | AE10: 220 | AF10: 13
A11: 11 | B11: 0 | C11: =$D$6*1.414*SIN(6.28*B11*$D$7) -> 0 | D11: =IF(C11<$D$4,0.0001,$D$2*$D$5/(C11-$D$4)) -> 0.0001 | E11: =IF($D$2*$D$5/(C11-$D$4)<0,0,$D$2*$D$5/(C11-$D$4)) -> 0 | F11: =IF(E11>$D$8*0.000001,$D$8*0.000001,E11) -> 0 | G11: =IF(F11<=0,0,$D$2*H11/$D$4) -> 0 | H11: =(C11-$D$4)*F11/$D$2 -> 0 | I11: =IF(H11<=0.0001,0,0.001/(F11+G11)) -> 0 | J11: =IF(H11<=0,0,F11/(F11+G11)) -> 0 | K11: =S11*J11*H11/2 -> 0 | L11: =S11*H11/2 -> 0 | M11: =(F11+G11)*C11*J11*H11/2 -> 0 | N11: =$D$4*H11*0.5*(F11+G11) -> 0 | O11: =M11*S11 -> 0 | P11: =N11*S11 -> 0 | S11: =IF(B11<=1/(2*$D$7),1,0) -> 1 | U11: =IF(B11<(1/(2*$D$7)),B11,1/(2*$D$7)) -> 0 | V11: =C11 -> 0 | X11: =ROUND(360*$D$7*U11,0) -> 0 | Y11: =K11 -> 0 | AA11: =ROUND(360*$D$7*U11,0) -> 0 | AB11: =L11 -> 0 | AE11: 230 | AF11: 14
A12: =A11+1 -> 12 | B12: =IF(F11<=0,D11+B11,F11+G11) -> 0.0001 | C12: =ABS($D$6*1.414*SIN(6.28*B12*$D$7)) -> 5.326691334 | D12: 0.0001 | E12: =IF($D$2*$D$5/(C12-$D$4)<0,0,$D$2*$D$5/(C12-$D$4)) -> 0 | F12: 0 | G12: 0 | H12: 0 | I12: 0 | J12: =IF(H12<=0,0,F12/(F12+G12)) -> 0 | K12: =S12*J12*H12/2 -> 0 | L12: =S12*H12/2 -> 0 | M12: 0 | N12: 0 | O12: =M12*S12 -> 0 | P12: =N12*S12 -> 0 | S12: =IF(B12<=1/(2*$D$7),1,0) -> 1 | U12: =IF(B12<(1/(2*$D$7)),B12,1/(2*$D$7)) -> 0.0001 | V12: 5.326691334 | X12: =ROUND(360*$D$7*U12,0) -> 2 | Y12: 0 | AA12: =ROUND(360*$D$7*U12,0) -> 2 | AB12: 0 | AE12: 240 | AF12: 15
A13: =A12+1 -> 13 | B13: =IF(F12<=0,D12+B12,F12+G12) -> 0.0002 | C13: =ABS($D$6*1.414*SIN(6.28*B13*$D$7)) -> 10.64582082 | D13: 0.0001 | E13: 0 | F13: 0 | G13: 0 | H13: 0 | I13: 0 | J13: 0 | K13: 0 | L13: 0 | M13: 0 | N13: 0 | O13: 0 | P13: 0 | S13: 1 | U13: =IF(B13<(1/(2*$D$7)),B13,1/(2*$D$7)) -> 0.0002 | V13: 10.64582082 | X13: 4 | Y13: 0 | AA13: 4 | AB13: 0 | AE13: 253 | AF13: 16
A14: 14 | B14: =IF(F13<=0,D13+B13,F13+G13) -> 0.0003 | C14: =ABS($D$6*1.414*SIN(6.28*B14*$D$7)) -> 15.94983735 | D14: 0.0001 | E14: 0 | F14: 0 | G14: 0 | H14: 0 | I14: 0 | J14: 0 | K14: 0 | L14: 0 | M14: 0 | N14: 0 | O14: 0 | P14: 0 | S14: 1 | U14: 0.0003 | V14: 15.94983735 | X14: 6 | Y14: 0 | AA14: 6 | AB14: 0 | AE14: 265 | AF14: 17
A15: 15 | B15: =IF(F14<=0,D14+B14,F14+G14) -> 0.0004 | C15: 21.23121125 | D15: 0.0001 | E15: 0 | F15: 0 | G15: 0 | H15: 0 | I15: 0 | J15: 0 | K15: 0 | L15: 0 | M15: 0 | N15: 0 | O15: 0 | P15: 0 | S15: 1 | U15: 0.0004 | V15: 21.23121125 | X15: 9 | Y15: 0 | AA15: 9 | AB15: 0 | AE15: 277 | AF15: 18
A16: 16 | B16: =IF(F15<=0,D15+B15,F15+G15+B15) -> 0.0005 | C16: 26.48244502 | D16: 5.856178906e-05 | E16: 5.856178906e-05 | F16: 3.454479769e-06 | G16: 7.038416205e-07 | H16: 0.1238761252 | I16: 240.4816527 | J16: 0.8307390039 | K16: 0.05145436443 | L16: 0.0619380626 | M16: 5.666284152e-06 | N16: 5.666284152e-06 | O16: 5.666284152e-06 | P16: 5.666284152e-06 | S16: 1 | U16: 0.0005 | V16: 26.48244502 | X16: 11 | Y16: 0.05145436443 | AA16: 11 | AB16: 0.0619380626 | AE16: 305 | AF16: 19
A17: 17 | B17: =IF(F16<=0,D16+B16,F16+G16+B16) -> 0.0005041583214 | C17: 26.70004544 | D17: 5.585052384e-05 | E17: 5.585052384e-05 | F17: 3.454479769e-06 | G17: 7.380096315e-07 | H17: 0.1298896951 | I17: 238.5217718 | J17: 0.8239686351 | K17: 0.05351251741 | L17: 0.06494484757 | M17: 5.990172871e-06 | N17: 5.990172871e-06 | O17: 5.990172871e-06 | P17: 5.990172871e-06 | S17: 1 | U17: 0.0005041583214 | V17: 26.70004544 | X17: 11 | Y17: 0.05351251741 | AA17: 11 | AB17: 0.06494484757 | AF17: 20
A18: 18 | B18: 0.0005083508108 | C18: 26.91936747 | D18: 5.336051869e-05 | E18: 5.336051869e-05 | F18: =IF(E18>$D$8*0.000001,$D$8*0.000001,E18) -> 3.454479769e-06 | G18: 7.724479733e-07 | H18: 0.1359508433 | I18: =IF(H18<=0.0001,0,0.001/(F18+G18)) -> 236.5784468 | J18: 0.8172554582 | K18: 0.05555328437 | L18: 0.06797542165 | M18: =(F18+G18)*C18*J18*H18/2 -> 6.321198302e-06 | N18: 6.321198302e-06 | O18: 6.321198302e-06 | P18: 6.321198302e-06 | S18: 1 | U18: 0.0005083508108 | V18: 26.91936747 | X18: 11 | Y18: 0.05555328437 | AA18: 11 | AB18: 0.06797542165 | AF18: 21
A19: 19 | B19: 0.0005125777385 | C19: 27.14042307 | D19: 5.106583571e-05 | E19: 5.106583571e-05 | F19: =IF(E19>$D$8*0.000001,$D$8*0.000001,E19) -> 3.454479769e-06 | G19: 8.071585227e-07 | H19: 0.1420599 | I19: =IF(H19<=0.0001,0,0.001/(F19+G19)) -> 234.6515428 | J19: 0.8105990073 | K19: 0.05757680696 | L19: 0.07102995 | M19: =(F19+G19)*C19*J19*H19/2 -> 6.659487005e-06 | N19: 6.659487005e-06 | O19: 6.659487005e-06 | P19: 6.659487005e-06 | S19: 1 | U19: 0.0005125777385 | V19: 27.14042307 | X19: 11 | Y19: 0.05757680696 | AA19: 11 | AB19: 0.07102995 | AF19: 22
A20: 20 | B20: 0.0005168393768 | C20: 27.36322423 | D20: 4.894443882e-05 | E20: 4.894443882e-05 | F20: 3.454479769e-06 | G20: 8.421431628e-07 | H20: 0.1482171967 | I20: 232.7409261 | J20: 0.8039988204 | K20: 0.05958322564 | L20: 0.07410859833 | M20: 7.005167466e-06 | N20: 7.005167466e-06 | O20: 7.005167466e-06 | P20: 7.005167466e-06 | S20: 1 | U20: 0.0005168393768 | V20: 27.36322423 | X20: 11 | Y20: 0.05958322564 | AA20: 11 | AB20: 0.07410859833 | AF20: 23
A21: 21 | B21: 0.0005211359998 | C21: 27.58778297 | D21: 4.697748668e-05 | E21: 4.697748668e-05 | F21: 3.454479769e-06 | G21: 8.774037827e-07 | H21: 0.1544230658 | I21: 230.8464639 | J21: 0.7974544393 | K21: 0.06157267966 | L21: 0.07721153288 | M21: 7.358370124e-06 | N21: 7.358370124e-06 | O21: 7.358370124e-06 | P21: 7.358370124e-06 | S21: 1 | U21: 0.0005211359998 | V21: 27.58778297 | X21: 11 | Y21: 0.06157267966 | AA21: 11 | AB21: 0.07721153288 | AF21: 24
A22: 22 | B22: 0.0005254678833 | C22: 27.81411137 | D22: 4.514877395e-05 | E22: 4.514877395e-05 | F22: 3.454479769e-06 | G22: 9.129422775e-07 | H22: 0.1606778408 | I22: 228.9680249 | J22: 0.7909654098 | K22: 0.06354530712 | L22: 0.08033892042 | M22: 7.719227389e-06 | N22: 7.719227389e-06 | O22: 7.719227389e-06 | P22: 7.719227389e-06 | S22: 1 | U22: 0.0005254678833 | V22: 27.81411137 | X22: 11 | Y22: 0.06354530712 | AA22: 11 | AB22: 0.08033892042 | AF22: 25
A23: 23 | B23: 0.0005298353054 | C23: 28.04222154 | D23: 4.344428591e-05 | E23: 4.344428591e-05 | F23: 3.454479769e-06 | G23: 9.487605481e-07 | H23: 0.1669818565 | I23: 227.1054787 | J23: 0.7845312815 | K23: 0.06550124492 | L23: 0.08349092823 | M23: 8.087873668e-06 | N23: 8.087873668e-06 | O23: 8.087873668e-06 | P23: 8.087873668e-06 | S23: 1 | U23: 0.0005298353054 | V23: 28.04222154 | X23: 11 | Y23: 0.06550124492 | AA23: 11 | AB23: 0.08349092823 | AF23: 26
A24: 24 | B24: 0.0005342385457 | C24: 28.27212561 | D24: 4.185184041e-05 | E24: 4.185184041e-05 | F24: 3.454479769e-06 | G24: 9.848605009e-07 | H24: 0.1733354482 | I24: 225.2586959 | J24: 0.7781516079 | K24: 0.06744062884 | L24: 0.08666772408 | M24: 8.464445387e-06 | N24: 8.464445387e-06 | O24: 8.464445387e-06 | P24: 8.464445387e-06 | S24: 1 | U24: 0.0005342385457 | V24: 28.27212561 | X24: 12 | Y24: 0.06744062884 | AA24: 12 | AB24: 0.08666772408 | AF24: 27
A25: 25 | B25: 0.0005386778859 | C25: 28.50383576 | D25: 4.03607978e-05 | E25: 4.03607978e-05 | F25: 3.454479769e-06 | G25: 1.021244048e-06 | H25: 0.1797389524 | I25: 223.4275485 | J25: 0.771825946 | K25: 0.06936359348 | L25: 0.0898694762 | M25: 8.84908101e-06 | N25: 8.84908101e-06 | O25: 8.84908101e-06 | P25: 8.84908101e-06 | S25: 1 | U25: 0.0005386778859 | V25: 28.50383576 | X25: 12 | Y25: 0.06936359348 | AA25: 12 | AB25: 0.0898694762 | AF25: 28
A26: 26 | B26: 0.0005431536098 | C26: 28.7373642 | D26: 3.896182427e-05 | E26: 3.896182427e-05 | F26: 3.454479769e-06 | G26: 1.057913105e-06 | H26: 0.1861927066 | I26: 221.6119092 | J26: 0.7655538569 | K26: 0.07127027232 | L26: 0.09309635328 | M26: 9.241921066e-06 | N26: 9.241921066e-06 | O26: 9.241921066e-06 | P26: 9.241921066e-06 | S26: 1 | U26: 0.0005431536098 | V26: 28.7373642 | X26: 12 | Y26: 0.07127027232 | AA26: 12 | AB26: 0.09309635328 | AF26: 29
A27: 27 | B27: 0.0005476660026 | C27: 28.97272317 | D27: 3.764669752e-05 | E27: 3.764669752e-05 | F27: 3.454479769e-06 | G27: 1.094869596e-06 | H27: 0.1926970489 | I27: 219.8116521 | J27: 0.7593349052 | K27: 0.07316079769 | L27: 0.09634852446 | M27: 9.643108168e-06 | N27: 9.643108168e-06 | O27: 9.643108168e-06 | P27: 9.643108168e-06 | S27: 1 | U27: 0.0005476660026 | V27: 28.97272317 | X27: 12 | Y27: 0.07316079769 | AA27: 12 | AB27: 0.09634852446 | AF27: 30
A28: 28 | B28: 0.000552215352 | C28: 29.20992493 | D28: 3.640814605e-05 | E28: 3.640814605e-05 | F28: 3.454479769e-06 | G28: 1.132115446e-06 | H28: 0.1992523185 | I28: 218.0266523 | J28: 0.7531686593 | K28: 0.07503530081 | L28: 0.09962615927 | M28: 1.005278704e-05 | N28: 1.005278704e-05 | O28: 1.005278704e-05 | P28: 1.005278704e-05 | S28: 1 | U28: 0.000552215352 | V28: 29.20992493 | X28: 12 | Y28: 0.07503530081 | AA28: 12 | AB28: 0.09962615927 | AF28: 31
A29: 29 | B29: 0.0005568019472 | C29: 29.4489818 | D29: 3.52397156e-05 | E29: 3.52397156e-05 | F29: 3.454479769e-06 | G29: 1.169652587e-06 | H29: 0.2058588553 | I29: 216.2567857 | J29: 0.7470546911 | K29: 0.07689391179 | L29: 0.1029294277 | M29: 1.047110453e-05 | N29: 1.047110453e-05 | O29: 1.047110453e-05 | P29: 1.047110453e-05 | S29: 1 | U29: 0.0005568019472 | V29: 29.4489818 | X29: 12 | Y29: 0.07689391179 | AA29: 12 | AB29: 0.1029294277 | AF29: 32
A30: 30 | B30: 0.0005614260796 | C30: 29.68990608 | D30: 3.413565747e-05 | E30: 3.413565747e-05 | F30: 3.454479769e-06 | G30: 1.207482954e-06 | H30: 0.2125169999 | I30: 214.5019297 | J30: 0.7409925764 | K30: 0.07873675963 | L30: 0.1062584999 | M30: 1.089820964e-05 | N30: 1.089820964e-05 | O30: 1.089820964e-05 | P30: 1.089820964e-05 | S30: 1 | U30: 0.0005614260796 | V30: 29.68990608 | X30: 12 | Y30: 0.07873675963 | AA30: 12 | AB30: 0.1062584999 | AF30: 33
A31: 31 | B31: 0.0005660880423 | C31: 29.93271014 | D31: 3.30908347e-05 | E31: 3.30908347e-05 | F31: 3.454479769e-06 | G31: 1.245608486e-06 | H31: 0.2192270936 | I31: 212.7619623 | J31: 0.7349818943 | K31: 0.08056397225 | L31: 0.1096135468 | M31: 1.133425356e-05 | N31: 1.133425356e-05 | O31: 1.133425356e-05 | P31: 1.133425356e-05 | S31: 1 | U31: 0.0005660880423 | V31: 29.93271014 | X31: 12 | Y31: 0.08056397225 | AA31: 12 | AB31: 0.1096135468 | AF31: 34
A32: 32 | B32: 0.0005707881305 | C32: 30.17740635 | D32: 3.210064277e-05 | E32: 3.210064277e-05 | F32: 3.454479769e-06 | G32: 1.284031127e-06 | H32: 0.2259894784 | I32: 211.0367628 | J32: 0.7290222276 | K32: 0.08237567647 | L32: 0.1129947392 | M32: 1.177938966e-05 | N32: 1.177938966e-05 | O32: 1.177938966e-05 | P32: 1.177938966e-05 | S32: 1 | U32: 0.0005707881305 | V32: 30.17740635 | X32: 12 | Y32: 0.08237567647 | AA32: 12 | AB32: 0.1129947392 | AF32: 35
A33: 33 | B33: 0.0005755266414 | C33: 30.4240071 | D33: 3.116094238e-05 | E33: 3.116094238e-05 | F33: 3.454479769e-06 | G33: 1.322752823e-06 | H33: 0.2328044969 | I33: 209.3262115 | J33: 0.7231131627 | K33: 0.08417199803 | L33: 0.1164022485 | M33: 1.223377353e-05 | N33: 1.223377353e-05 | O33: 1.223377353e-05 | P33: 1.223377353e-05 | S33: 1 | U33: 0.0005755266414 | V33: 30.4240071 | X33: 12 | Y33: 0.08417199803 | AA33: 12 | AB33: 0.1164022485 | AF33: 36
A34: 34 | B34: 0.000580303874 | C34: 30.67252482 | D34: 3.026800215e-05 | E34: 3.026800215e-05 | F34: 3.454479769e-06 | G34: 1.361775525e-06 | H34: 0.2396724924 | I34: 207.6301896 | J34: 0.7172542895 | K34: 0.08595306162 | L34: 0.1198362462 | M34: 1.269756301e-05 | N34: 1.269756301e-05 | O34: 1.269756301e-05 | P34: 1.269756301e-05 | S34: 1 | U34: 0.000580303874 | V34: 30.67252482 | X34: 13 | Y34: 0.08595306162 | AA34: 13 | AB34: 0.1198362462 | AF34: 37
A35: 35 | B35: 0.0005851201293 | C35: 30.92297194 | D35: 2.941844955e-05 | E35: 2.941844955e-05 | F35: 3.454479769e-06 | G35: 1.401101184e-06 | H35: 0.2465938085 | I35: 205.9485795 | J35: 0.7114452013 | K35: 0.08771899085 | L35: 0.1232969042 | M35: 1.31709182e-05 | N35: 1.31709182e-05 | O35: 1.31709182e-05 | P35: 1.31709182e-05 | S35: 1 | U35: 0.0005851201293 | V35: 30.92297194 | X35: 13 | Y35: 0.08771899085 | AA35: 13 | AB35: 0.1232969042 | AF35: 38
A36: 36 | B36: 0.0005899757103 | C36: 31.17536092 | D36: 2.860922881e-05 | E36: 2.860922881e-05 | F36: 3.454479769e-06 | G36: 1.440731758e-06 | H36: 0.2535687894 | I36: 204.2812644 | J36: 0.7056854949 | K36: 0.08946990831 | L36: 0.1267843947 | M36: 1.365400147e-05 | N36: 1.365400147e-05 | O36: 1.365400147e-05 | P36: 1.365400147e-05 | S36: 1 | U36: 0.0005899757103 | V36: 31.17536092 | X36: 13 | Y36: 0.08946990831 | AA36: 13 | AB36: 0.1267843947 | AF36: 39
A37: 37 | B37: 0.0005948709218 | C37: 31.42970422 | D37: 2.783756455e-05 | E37: 2.783756455e-05 | F37: 3.454479769e-06 | G37: 1.480669203e-06 | H37: 0.2605977797 | I37: 202.6281285 | J37: 0.6999747705 | K37: 0.09120593551 | L37: 0.1302988898 | M37: 1.414697751e-05 | N37: 1.414697751e-05 | O37: 1.414697751e-05 | P37: 1.414697751e-05 | S37: 1 | U37: 0.0005948709218 | V37: 31.42970422 | X37: 13 | Y37: 0.09120593551 | AA37: 13 | AB37: 0.1302988898 | AF37: 40
A38: 38 | B38: 0.0005998060708 | C38: 31.68601433 | D38: 2.710093038e-05 | E38: 2.710093038e-05 | F38: 3.454479769e-06 | G38: 1.520915479e-06 | H38: 0.2676811243 | I38: 200.9890572 | J38: 0.6943126318 | K38: 0.09292719296 | L38: 0.1338405622 | M38: 1.465001333e-05 | N38: 1.465001333e-05 | O38: 1.465001333e-05 | P38: 1.465001333e-05 | S38: 1 | U38: 0.0005998060708 | V38: 31.68601433 | X38: 13 | Y38: 0.09292719296 | AA38: 13 | AB38: 0.1338405622 | AF38: 41
A39: 39 | B39: 0.000604781466 | C39: 31.94430374 | D39: 2.639702154e-05 | E39: 2.639702154e-05 | F39: 3.454479769e-06 | G39: 1.561472549e-06 | H39: 0.2748191686 | I39: 199.3639366 | J39: 0.6886986857 | K39: 0.09463380011 | L39: 0.1374095843 | M39: 1.51632783e-05 | N39: 1.51632783e-05 | O39: 1.51632783e-05 | P39: 1.51632783e-05 | S39: 1 | U39: 0.000604781466 | V39: 31.94430374 | X39: 13 | Y39: 0.09463380011 | AA39: 13 | AB39: 0.1374095843 | AF39: 42
A40: 40 | B40: 0.0006097974183 | C40: 32.20458495 | D40: 2.572373118e-05 | E40: 2.572373118e-05 | F40: 3.454479769e-06 | G40: 1.602342375e-06 | H40: 0.282012258 | I40: 197.7526541 | J40: 0.6831325426 | K40: 0.09632587543 | L40: 0.141006129 | M40: 1.568694414e-05 | N40: 1.568694414e-05 | O40: 1.568694414e-05 | P40: 1.568694414e-05 | S40: 1 | U40: 0.0006097974183 | V40: 32.20458495 | X40: 13 | Y40: 0.09632587543 | AA40: 13 | AB40: 0.141006129 | AF40: 43
A41: 41 | B41: 0.0006148542405 | C41: 32.46687047 | D41: 2.50791295e-05 | E41: 2.50791295e-05 | F41: 3.454479769e-06 | G41: 1.643526922e-06 | H41: 0.2892607382 | I41: 196.1550976 | J41: 0.6776138162 | K41: 0.09800353636 | L41: 0.1446303691 | M41: 1.622118497e-05 | N41: 1.622118497e-05 | O41: 1.622118497e-05 | P41: 1.622118497e-05 | S41: 1 | U41: 0.0006148542405 | V41: 32.46687047 | X41: 13 | Y41: 0.09800353636 | AA41: 13 | AB41: 0.1446303691 | AF41: 44
A42: 42 | B42: 0.0006199522472 | C42: 32.73117282 | D42: 2.446144559e-05 | E42: 2.446144559e-05 | F42: 3.454479769e-06 | G42: 1.685028154e-06 | H42: 0.2965649551 | I42: 194.5711564 | J42: 0.6721421234 | K42: 0.09966689934 | L42: 0.1482824776 | M42: 1.67661773e-05 | N42: 1.67661773e-05 | O42: 1.67661773e-05 | P42: 1.67661773e-05 | S42: 1 | U42: 0.0006199522472 | V42: 32.73117282 | X42: 13 | Y42: 0.09966689934 | AA42: 13 | AB42: 0.1482824776 | AF42: 45
A43: 43 | B43: 0.0006250917551 | C43: 32.99750451 | D43: 2.386905137e-05 | E43: 2.386905137e-05 | F43: 3.454479769e-06 | G43: 1.726848038e-06 | H43: 0.3039252546 | I43: 193.0007205 | J43: 0.6667170845 | K43: 0.1013160798 | L43: 0.1519626273 | M43: 1.73221001e-05 | N43: 1.73221001e-05 | O43: 1.73221001e-05 | P43: 1.73221001e-05 | S43: 1 | U43: 0.0006250917551 | V43: 32.99750451 | X43: 14 | Y43: 0.1013160798 | AA43: 14 | AB43: 0.1519626273 | AF43: 46
A44: 44 | B44: 0.0006302730829 | C44: 33.26587805 | D44: 2.330044749e-05 | E44: 2.330044749e-05 | F44: 3.454479769e-06 | G44: 1.768988537e-06 | H44: 0.3113419825 | I44: 191.443681 | J44: 0.6613383228 | K44: 0.1029511923 | L44: 0.1556709913 | M44: 1.788913476e-05 | N44: 1.788913476e-05 | O44: 1.788913476e-05 | P44: 1.788913476e-05 | S44: 1 | U44: 0.0006302730829 | V44: 33.26587805 | X44: 14 | Y44: 0.1029511923 | AA44: 14 | AB44: 0.1556709913 | AF44: 47
A45: 45 | B45: 0.0006354965512 | C45: 33.53630598 | D45: 2.275425085e-05 | E45: 2.275425085e-05 | F45: 3.454479769e-06 | G45: 1.811451618e-06 | H45: 0.3188154848 | I45: 189.8999297 | J45: 0.6560054651 | K45: 0.1045723502 | L45: 0.1594077424 | M45: 1.846746515e-05 | N45: 1.846746515e-05 | O45: 1.846746515e-05 | P45: 1.846746515e-05 | S45: 1 | U45: 0.0006354965512 | V45: 33.53630598 | X45: 14 | Y45: 0.1045723502 | AA45: 14 | AB45: 0.1594077424 | AF45: 48
A46: 46 | B46: 0.0006407624826 | C46: 33.80880078 | D46: 2.222918355e-05 | E46: 2.222918355e-05 | F46: 3.454479769e-06 | G46: 1.854239244e-06 | H46: 0.326346107 | I46: 188.3693594 | J46: 0.6507181413 | K46: 0.1061796661 | L46: 0.1631730535 | M46: 1.905727762e-05 | N46: 1.905727762e-05 | O46: 1.905727762e-05 | P46: 1.905727762e-05 | S46: 1 | U46: 0.0006407624826 | V46: 33.80880078 | X46: 14 | Y46: 0.1061796661 | AA46: 14 | AB46: 0.1631730535 | AF46: 49
A47: 47 | B47: 0.0006460712016 | C47: 34.08337496 | D47: 2.172406309e-05 | E47: 2.172406309e-05 | F47: 3.454479769e-06 | G47: 1.897353379e-06 | H47: 0.3339341948 | I47: 186.8518641 | J47: 0.6454759842 | K47: 0.1077732515 | L47: 0.1669670974 | M47: 1.965876102e-05 | N47: 1.965876102e-05 | O47: 1.965876102e-05 | P47: 1.965876102e-05 | S47: 1 | U47: 0.0006460712016 | V47: 34.08337496 | X47: 14 | Y47: 0.1077732515 | AA47: 14 | AB47: 0.1669670974 | AF47: 50
A48: 48 | B48: 0.0006514230348 | C48: 34.36004102 | D48: 2.123779359e-05 | E48: 2.123779359e-05 | F48: 3.454479769e-06 | G48: 1.940795984e-06 | H48: 0.3415800932 | I48: 185.3473383 | J48: 0.6402786302 | K48: 0.1093532171 | L48: 0.1707900466 | M48: 2.027210674e-05 | N48: 2.027210674e-05 | O48: 2.027210674e-05 | P48: 2.027210674e-05 | S48: 1 | U48: 0.0006514230348 | V48: 34.36004102 | X48: 14 | Y48: 0.1093532171 | AA48: 14 | AB48: 0.1707900466 | AF48: 51
A49: 49 | B49: 0.0006568183105 | C49: 34.63881144 | D49: 2.076935804e-05 | E49: 2.076935804e-05 | F49: 3.454479769e-06 | G49: 1.984569019e-06 | H49: 0.3492841473 | I49: 183.8556775 | J49: 0.6351257184 | K49: 0.1109196725 | L49: 0.1746420736 | M49: 2.08975087e-05 | N49: 2.08975087e-05 | O49: 2.08975087e-05 | P49: 2.08975087e-05 | S49: 1 | U49: 0.0006568183105 | V49: 34.63881144 | X49: 14 | Y49: 0.1109196725 | AA49: 14 | AB49: 0.1746420736 | AF49: 52
A50: 50 | B50: 0.0006622573593 | C50: 34.91969867 | D50: 2.031781133e-05 | E50: 2.031781133e-05 | F50: 3.454479769e-06 | G50: 2.02867444e-06 | H50: 0.3570467014 | I50: 182.3767784 | J50: 0.6300168913 | K50: 0.1124727264 | L50: 0.1785233507 | M50: 2.153516336e-05 | N50: 2.153516336e-05 | O50: 2.153516336e-05 | P50: 2.153516336e-05 | S50: 1 | U50: 0.0006622573593 | V50: 34.91969867 | X50: 14 | Y50: 0.1124727264 | AA50: 14 | AB50: 0.1785233507 | AF50: 53
A51: 51 | B51: 0.0006677405135 | C51: 35.20271516 | D51: 1.988227397e-05 | E51: 1.988227397e-05 | F51: 3.454479769e-06 | G51: 2.073114201e-06 | H51: 0.3648680994 | I51: 180.9105382 | J51: 0.6249517941 | K51: 0.1140124867 | L51: 0.1824340497 | M51: 2.218526977e-05 | N51: 2.218526977e-05 | O51: 2.218526977e-05 | P51: 2.218526977e-05 | S51: 1 | U51: 0.0006677405135 | V51: 35.20271516 | X51: 14 | Y51: 0.1140124867 | AA51: 14 | AB51: 0.1824340497 | AF51: 54
A52: 52 | B52: 0.0006732681075 | C52: 35.48787335 | D52: 1.946192652e-05 | E52: 1.946192652e-05 | F52: 3.454479769e-06 | G52: 2.117890254e-06 | H52: 0.3727486848 | I52: 179.4568551 | J52: 0.6199300754 | K52: 0.1155390601 | L52: 0.1863743424 | M52: 2.284802957e-05 | N52: 2.284802957e-05 | O52: 2.284802957e-05 | P52: 2.284802957e-05 | S52: 1 | U52: 0.0006732681075 | V52: 35.48787335 | X52: 15 | Y52: 0.1155390601 | AA52: 15 | AB52: 0.1863743424 | AF52: 55
A53: 53 | B53: 0.0006788404775 | C53: 35.77518561 | D53: 1.905600457e-05 | E53: 1.905600457e-05 | F53: 3.454479769e-06 | G53: 2.163004546e-06 | H53: 0.3806888001 | I53: 178.0156283 | J53: 0.6149513867 | K53: 0.1170525527 | L53: 0.1903444 | M53: 2.352364699e-05 | N53: 2.352364699e-05 | O53: 2.352364699e-05 | P53: 2.352364699e-05 | S53: 1 | U53: 0.0006788404775 | V53: 35.77518561 | X53: 15 | Y53: 0.1170525527 | AA53: 15 | AB53: 0.1903444 | AF53: 56
A54: 54 | B54: 0.0006844579618 | C54: 36.06466434 | D54: 1.866379415e-05 | E54: 1.866379415e-05 | F54: 3.454479769e-06 | G54: 2.208459018e-06 | H54: 0.3886887872 | I54: 176.5867578 | J54: 0.6100153822 | K54: 0.1185530696 | L54: 0.1943443936 | M54: 2.42123289e-05 | N54: 2.42123289e-05 | O54: 2.42123289e-05 | P54: 2.42123289e-05 | S54: 1 | U54: 0.0006844579618 | V54: 36.06466434 | X54: 15 | Y54: 0.1185530696 | AA54: 15 | AB54: 0.1943443936 | AF54: 57
A55: 55 | B55: 0.0006901209006 | C55: 36.35632186 | D55: 1.828462768e-05 | E55: 1.828462768e-05 | F55: 3.454479769e-06 | G55: 2.25425561e-06 | H55: 0.3967489873 | I55: 175.1701443 | J55: 0.6051217196 | K55: 0.1200407147 | L55: 0.1983744936 | M55: 2.491428478e-05 | N55: 2.491428478e-05 | O55: 2.491428478e-05 | P55: 2.491428478e-05 | S55: 1 | U55: 0.0006901209006 | V55: 36.35632186 | X55: 15 | Y55: 0.1200407147 | AA55: 15 | AB55: 0.1983744936 | AF55: 58
A56: 56 | B56: 0.000695829636 | C56: 36.65017048 | D56: 1.791788022e-05 | E56: 1.791788022e-05 | F56: 3.454479769e-06 | G56: 2.300396252e-06 | H56: 0.4048697404 | I56: 173.7656895 | J56: 0.600270059 | K56: 0.1215155915 | L56: 0.2024348702 | M56: 2.562972677e-05 | N56: 2.562972677e-05 | O56: 2.562972677e-05 | P56: 2.562972677e-05 | S56: 1 | U56: 0.000695829636 | V56: 36.65017048 | X56: 15 | Y56: 0.1215155915 | AA56: 15 | AB56: 0.2024348702 | AF56: 59
A57: 57 | B57: 0.000701584512 | C57: 36.94622249 | D57: 1.756296618e-05 | E57: 1.756296618e-05 | F57: 3.454479769e-06 | G57: 2.346882873e-06 | H57: 0.4130513856 | I57: 172.373296 | J57: 0.5954600638 | K57: 0.1229778022 | L57: 0.2065256928 | M57: 2.635886965e-05 | N57: 2.635886965e-05 | O57: 2.635886965e-05 | P57: 2.635886965e-05 | S57: 1 | U57: 0.000701584512 | V57: 36.94622249 | X57: 15 | Y57: 0.1229778022 | AA57: 15 | AB57: 0.2065256928 | AF57: 60
A58: 58 | B58: 0.0007073858746 | C58: 37.24449009 | D58: 1.72193362e-05 | E58: 1.72193362e-05 | F58: 3.454479769e-06 | G58: 2.393717391e-06 | H58: 0.4212942608 | I58: 170.9928672 | J58: 0.5906914002 | K58: 0.1244274484 | L58: 0.2106471304 | M58: 2.710193089e-05 | N58: 2.710193089e-05 | O58: 2.710193089e-05 | P58: 2.710193089e-05 | S58: 1 | U58: 0.0007073858746 | V58: 37.24449009 | X58: 15 | Y58: 0.1244274484 | AA58: 15 | AB58: 0.2106471304
A59: 59 | B59: 0.0007132340718 | C59: 37.54498548 | D59: 1.688647444e-05 | E59: 1.688647444e-05 | F59: 3.454479769e-06 | G59: 2.44090172e-06 | H59: 0.4295987028 | I59: 169.6243071 | J59: 0.5859637371 | K59: 0.1258646307 | L59: 0.2147993514 | M59: 2.785913064e-05 | N59: 2.785913064e-05 | O59: 2.785913064e-05 | P59: 2.785913064e-05 | S59: 1 | U59: 0.0007132340718 | V59: 37.54498548 | X59: 15 | Y59: 0.1258646307 | AA59: 15 | AB59: 0.2147993514
A60: 60 | B60: 0.0007191294533 | C60: 37.84772079 | D60: 1.656389606e-05 | E60: 1.656389606e-05 | F60: 3.454479769e-06 | G60: 2.488437766e-06 | H60: 0.4379650469 | I60: 168.2675208 | J60: 0.5812767464 | K60: 0.1272894487 | L60: 0.2189825235 | M60: 2.863069173e-05 | N60: 2.863069173e-05 | O60: 2.863069173e-05 | P60: 2.863069173e-05 | S60: 1 | U60: 0.0007191294533 | V60: 37.84772079 | X60: 16 | Y60: 0.1272894487 | AA60: 16 | AB60: 0.2189825235
A61: 61 | B61: 0.0007250723708 | C61: 38.15270811 | D61: 1.625114489e-05 | E61: 1.625114489e-05 | F61: 3.454479769e-06 | G61: 2.536327427e-06 | H61: 0.4463936271 | I61: 166.9224142 | J61: 0.5766301028 | K61: 0.1287020015 | L61: 0.2231968136 | M61: 2.941683969e-05 | N61: 2.941683969e-05 | O61: 2.941683969e-05 | P61: 2.941683969e-05 | S61: 1 | U61: 0.0007250723708 | V61: 38.15270811 | X61: 16 | Y61: 0.1287020015 | AA61: 16 | AB61: 0.2231968136
A62: 62 | B62: 0.000731063178 | C62: 38.45995947 | D62: 1.59477914e-05 | E62: 1.59477914e-05 | F62: 3.454479769e-06 | G62: 2.58457259e-06 | H62: 0.4548847758 | I62: 165.5888939 | J62: 0.5720234837 | K62: 0.1301023871 | L62: 0.2274423879 | M62: 3.021780276e-05 | N62: 3.021780276e-05 | O62: 3.021780276e-05 | P62: 3.021780276e-05 | S62: 1 | U62: 0.000731063178 | V62: 38.45995947 | X62: 16 | Y62: 0.1301023871 | AA62: 16 | AB62: 0.2274423879
A63: 63 | B63: 0.0007371022304 | C63: 38.76948683 | D63: 1.56534307e-05 | E63: 1.56534307e-05 | F63: 3.454479769e-06 | G63: 2.633175135e-06 | H63: 0.4634388238 | I63: 164.2668673 | J63: 0.5674565696 | K63: 0.1314907026 | L63: 0.2317194119 | M63: 3.103381191e-05 | N63: 3.103381191e-05 | O63: 3.103381191e-05 | P63: 3.103381191e-05 | S63: 1 | U63: 0.0007371022304 | V63: 38.76948683 | X63: 16 | Y63: 0.1314907026 | AA63: 16 | AB63: 0.2317194119
A64: 64 | B64: 0.0007431898853 | C64: 39.08130209 | D64: 1.53676809e-05 | E64: 1.53676809e-05 | F64: 3.454479769e-06 | G64: 2.682136932e-06 | H64: 0.4720561 | I64: 162.9562426 | J64: 0.5629290433 | K64: 0.1328670444 | L64: 0.23602805 | M64: 3.186510082e-05 | N64: 3.186510082e-05 | O64: 3.186510082e-05 | P64: 3.186510082e-05 | S64: 1 | U64: 0.0007431898853 | V64: 39.08130209 | X64: 16 | Y64: 0.1328670444 | AA64: 16 | AB64: 0.23602805
A65: 65 | B65: 0.000749326502 | C65: 39.3954171 | D65: 1.509018142e-05 | E65: 1.509018142e-05 | F65: 3.454479769e-06 | G65: 2.731459839e-06 | H65: 0.4807369316 | I65: 161.656929 | J65: 0.5584405907 | K65: 0.134231508 | L65: 0.2403684658 | M65: 3.271190589e-05 | N65: 3.271190589e-05 | O65: 3.271190589e-05 | P65: 3.271190589e-05 | S65: 1 | U65: 0.000749326502 | V65: 39.3954171 | X65: 16 | Y65: 0.134231508 | AA65: 16 | AB65: 0.2403684658
A66: 66 | B66: 0.0007555124416 | C66: 39.71184362 | D66: 1.482059155e-05 | E66: 1.482059155e-05 | F66: 3.454479769e-06 | G66: 2.781145703e-06 | H66: 0.4894816437 | I66: 160.3688362 | J66: 0.5539909003 | K66: 0.1355841882 | L66: 0.2447408218 | M66: 3.357446626e-05 | N66: 3.357446626e-05 | O66: 3.357446626e-05 | P66: 3.357446626e-05 | S66: 1 | U66: 0.0007555124416 | V66: 39.71184362 | X66: 16 | Y66: 0.1355841882 | AA66: 16 | AB66: 0.2447408218
A67: 67 | B67: 0.0007617480671 | C67: 40.03059334 | D67: 1.455858912e-05 | E67: 1.455858912e-05 | F67: 3.454479769e-06 | G67: 2.831196359e-06 | H67: 0.4982905592 | I67: 159.0918749 | J67: 0.5495796631 | K67: 0.1369251788 | L67: 0.2491452796 | M67: 3.44530238e-05 | N67: 3.44530238e-05 | O67: 3.44530238e-05 | P67: 3.44530238e-05 | S67: 1 | U67: 0.0007617480671 | V67: 40.03059334 | X67: 16 | Y67: 0.1369251788 | AA67: 16 | AB67: 0.2491452796
A68: 68 | B68: 0.0007680337432 | C68: 40.35167785 | D68: 1.430386922e-05 | E68: 1.430386922e-05 | F68: 3.454479769e-06 | G68: 2.88161363e-06 | H68: 0.507163999 | I68: 157.8259563 | J68: 0.5452065731 | K68: 0.1382545729 | L68: 0.2535819995 | M68: 3.534782313e-05 | N68: 3.534782313e-05 | O68: 3.534782313e-05 | P68: 3.534782313e-05 | S68: 1 | U68: 0.0007680337432 | V68: 40.35167785 | X68: 17 | Y68: 0.1382545729 | AA68: 17 | AB68: 0.2535819995
A69: 69 | B69: 0.0007743698366 | C69: 40.67510869 | D69: 1.405614309e-05 | E69: 1.405614309e-05 | F69: 3.454479769e-06 | G69: 2.932399326e-06 | H69: 0.5161022813 | I69: 156.5709927 | J69: 0.5408713266 | K69: 0.1395724628 | L69: 0.2580511407 | M69: 3.625911158e-05 | N69: 3.625911158e-05 | O69: 3.625911158e-05 | P69: 3.625911158e-05 | S69: 1 | U69: 0.0007743698366 | V69: 40.67510869 | X69: 17 | Y69: 0.1395724628 | AA69: 17 | AB69: 0.2580511407
A70: 70 | B70: 0.0007807567157 | C70: 41.00089729 | D70: 1.381513704e-05 | E70: 1.381513704e-05 | F70: 3.454479769e-06 | G70: 2.983555239e-06 | H70: 0.5251057221 | I70: 155.3268969 | J70: 0.5365736229 | K70: 0.1408789399 | L70: 0.2625528611 | M70: 3.718713924e-05 | N70: 3.718713924e-05 | O70: 3.718713924e-05 | P70: 3.718713924e-05 | S70: 1 | U70: 0.0007807567157 | V70: 41.00089729 | X70: 17 | Y70: 0.1408789399 | AA70: 17 | AB70: 0.2625528611
A71: 71 | B71: 0.0007871947507 | C71: 41.32905497 | D71: 1.358059152e-05 | E71: 1.358059152e-05 | F71: 3.454479769e-06 | G71: 3.035083152e-06 | H71: 0.5341746347 | I71: 154.0935826 | J71: 0.5323131636 | K71: 0.1421740949 | L71: 0.2670873173 | M71: 3.813215892e-05 | N71: 3.813215892e-05 | O71: 3.813215892e-05 | P71: 3.813215892e-05 | S71: 1 | U71: 0.0007871947507 | V71: 41.32905497 | X71: 17 | Y71: 0.1421740949 | AA71: 17 | AB71: 0.2670873173
A72: 72 | B72: 0.0007936843136 | C72: 41.65959297 | D72: 1.335226016e-05 | E72: 1.335226016e-05 | F72: 3.454479769e-06 | G72: 3.086984826e-06 | H72: 0.5433093294 | I72: 152.8709642 | J72: 0.5280896531 | K72: 0.1434580176 | L72: 0.2716546647 | M72: 3.909442617e-05 | N72: 3.909442617e-05 | O72: 3.909442617e-05 | P72: 3.909442617e-05 | S72: 1 | U72: 0.0007936843136 | V72: 41.65959297 | X72: 17 | Y72: 0.1434580176 | AA72: 17 | AB72: 0.2716546647
A73: 73 | B73: 0.0008002257782 | C73: 41.99252242 | D73: 1.312990899e-05 | E73: 1.312990899e-05 | F73: 3.454479769e-06 | G73: 3.139262011e-06 | H73: 0.5525101139 | I73: 151.6589568 | J73: 0.5239027982 | K73: 0.1447307973 | L73: 0.276255057 | M73: 4.007419924e-05 | N73: 4.007419924e-05 | O73: 4.007419924e-05 | P73: 4.007419924e-05 | S73: 1 | U73: 0.0008002257782 | V73: 41.99252242 | X73: 17 | Y73: 0.1447307973 | AA73: 17 | AB73: 0.276255057
A74: 74 | B74: 0.00080681952 | C74: 42.32785435 | D74: 1.291331567e-05 | E74: 1.291331567e-05 | F74: 3.454479769e-06 | G74: 3.191916435e-06 | H74: 0.5617772926 | I74: 150.4574764 | J74: 0.5197523083 | K74: 0.1459925223 | L74: 0.2808886463 | M74: 4.107173912e-05 | N74: 4.107173912e-05 | O74: 4.107173912e-05 | P74: 4.107173912e-05 | S74: 1 | U74: 0.00080681952 | V74: 42.32785435 | X74: 17 | Y74: 0.1459925223 | AA74: 17 | AB74: 0.2808886463
A75: 75 | B75: 0.0008134659162 | C75: 42.66559964 | D75: =IF(C75<$D$4,0.0001,$D$2*$D$5/(C75-$D$4)) -> 1.270226873e-05 | E75: 1.270226873e-05 | F75: 3.454479769e-06 | G75: =IF(F75<=0,0,$D$2*H75/$D$4) -> 3.244949812e-06 | H75: =(C75-$D$4)*F75/$D$2 -> 0.5711111669 | I75: 149.2664395 | J75: 0.5156378953 | K75: 0.14724328 | L75: 0.2855555834 | M75: 4.20873095e-05 | N75: =$D$4*H75*0.5*(F75+G75) -> 4.20873095e-05 | O75: 4.20873095e-05 | P75: 4.20873095e-05 | S75: 1 | U75: 0.0008134659162 | V75: =C75 -> 42.66559964 | X75: 18 | Y75: =K75 -> 0.14724328 | AA75: 18 | AB75: =L75 -> 0.2855555834
A76: 76 | B76: 0.0008201653458 | C76: 43.00576908 | D76: 1.249656696e-05 | E76: =IF($D$2*$D$5/(C76-$D$4)<0,0,$D$2*$D$5/(C76-$D$4)) -> 1.249656696e-05 | F76: 3.454479769e-06 | G76: 3.298363833e-06 | H76: 0.5805120346 | I76: 148.0857634 | J76: =IF(H76<=0,0,F76/(F76+G76)) -> 0.5115592738 | K76: =S76*J76*H76/2 -> 0.1484831574 | L76: =S76*H76/2 -> 0.2902560173 | M76: 4.312117677e-05 | N76: 4.312117677e-05 | O76: =M76*S76 -> 4.312117677e-05 | P76: =N76*S76 -> 4.312117677e-05 | S76: =IF(B76<=1/(2*$D$7),1,0) -> 1 | U76: 0.0008201653458 | V76: 43.00576908 | X76: =ROUND(360*$D$7*U76,0) -> 18 | Y76: 0.1484831574 | AA76: =ROUND(360*$D$7*U76,0) -> 18 | AB76: 0.2902560173
A77: =A76+1 -> 77 | B77: 0.0008269181894 | C77: 43.34837333 | D77: 1.229601881e-05 | E77: 1.229601881e-05 | F77: 3.454479769e-06 | G77: 3.352160172e-06 | H77: 0.5899801902 | I77: 146.9153663 | J77: 0.5075161605 | K77: 0.1497122405 | L77: 0.2949900951 | M77: 4.417361e-05 | N77: 4.417361e-05 | O77: 4.417361e-05 | P77: 4.417361e-05 | S77: 1 | U77: =IF(B77<(1/(2*$D$7)),B77,1/(2*$D$7)) -> 0.0008269181894 | V77: 43.34837333 | X77: 18 | Y77: 0.1497122405 | AA77: 18 | AB77: 0.2949900951
A78: 78 | B78: 0.0008337248293 | C78: =ABS($D$6*1.414*SIN(6.28*B78*$D$7)) -> 43.69342291 | D78: 1.210044174e-05 | E78: 1.210044174e-05 | F78: 3.454479769e-06 | G78: 3.40634048e-06 | H78: 0.5995159245 | I78: 145.7551668 | J78: 0.503508275 | K78: 0.1509306145 | L78: 0.2997579623 | M78: 4.524488094e-05 | N78: 4.524488094e-05 | O78: 4.524488094e-05 | P78: 4.524488094e-05 | S78: 1 | U78: 0.0008337248293 | V78: 43.69342291 | X78: 18 | Y78: 0.1509306145 | AA78: 18 | AB78: 0.2997579623
A79: 79 | B79: 0.0008405856496 | C79: 44.0409282 | D79: 1.190966177e-05 | E79: 1.190966177e-05 | F79: 3.454479769e-06 | G79: 3.460906389e-06 | H79: 0.6091195244 | I79: 144.6050846 | J79: 0.499535339 | K79: 0.1521383641 | L79: 0.3045597622 | M79: 4.6335264e-05 | N79: 4.6335264e-05 | O79: 4.6335264e-05 | P79: 4.6335264e-05 | S79: 1 | U79: 0.0008405856496 | V79: 44.0409282 | X79: 18 | Y79: 0.1521383641 | AA79: 18 | AB79: 0.3045597622
A80: 80 | B80: 0.0008475010357 | C80: 44.39089943 | D80: 1.172351297e-05 | E80: 1.172351297e-05 | F80: 3.454479769e-06 | G80: 3.515859504e-06 | H80: 0.6187912728 | I80: 143.4650396 | J80: 0.4955970769 | K80: 0.153335573 | L80: 0.3093956364 | M80: 4.744503622e-05 | N80: 4.744503622e-05 | O80: 4.744503622e-05 | P80: 4.744503622e-05 | S80: 1 | U80: 0.0008475010357 | V80: 44.39089943 | X80: 18 | Y80: 0.153335573 | AA80: 18 | AB80: 0.3093956364
A81: 81 | B81: =IF(F80<=0,D80+B80,F80+G80+B80) -> 0.000854471375 | C81: 44.7433467 | D81: 1.154183698e-05 | E81: 1.154183698e-05 | F81: 3.454479769e-06 | G81: 3.571201412e-06 | H81: 0.6285314485 | I81: 142.3349529 | J81: 0.4916932152 | K81: 0.1545223244 | L81: 0.3142657242 | M81: 4.857447726e-05 | N81: 4.857447726e-05 | O81: 4.857447726e-05 | P81: 4.857447726e-05 | S81: 1 | U81: 0.000854471375 | V81: 44.7433467 | X81: 18 | Y81: 0.1545223244 | AA81: 18 | AB81: 0.3142657242
A82: 82 | B82: 0.0008614970562 | C82: 45.09827994 | D82: 1.136448258e-05 | E82: 1.136448258e-05 | F82: 3.454479769e-06 | G82: 3.62693367e-06 | H82: 0.6383403258 | I82: 141.214746 | J82: 0.4878234831 | K82: 0.1556987006 | L82: 0.3191701629 | M82: 4.972386938e-05 | N82: 4.972386938e-05 | O82: 4.972386938e-05 | P82: 4.972386938e-05 | S82: 1 | U82: 0.0008614970562 | V82: 45.09827994 | X82: 19 | Y82: 0.1556987006 | AA82: 19 | AB82: 0.3191701629
A83: 83 | B83: 0.0008685784696 | C83: 45.4557089 | D83: 1.119130533e-05 | E83: 1.119130533e-05 | F83: =IF(E83>$D$8*0.000001,$D$8*0.000001,E83) -> 3.454479769e-06 | G83: 3.683057812e-06 | H83: 0.6482181749 | I83: =IF(H83<=0.0001,0,0.001/(F83+G83)) -> 140.1043411 | J83: 0.4839876119 | K83: 0.1568647832 | L83: 0.3241090874 | M83: =(F83+G83)*C83*J83*H83/2 -> 5.089349742e-05 | N83: 5.089349742e-05 | O83: 5.089349742e-05 | P83: 5.089349742e-05 | S83: 1 | U83: 0.0008685784696 | V83: 45.4557089 | X83: 19 | Y83: 0.1568647832 | AA83: 19 | AB83: 0.3241090874
A84: 84 | B84: 0.0008757160072 | C84: 45.81564319 | D84: 1.102216715e-05 | E84: 1.102216715e-05 | F84: 3.454479769e-06 | G84: 3.739575345e-06 | H84: 0.6581652607 | I84: 139.0036612 | J84: 0.4801853356 | K84: 0.1580206533 | L84: 0.3290826304 | M84: 5.208364875e-05 | N84: 5.208364875e-05 | O84: 5.208364875e-05 | P84: 5.208364875e-05 | S84: 1 | U84: 0.0008757160072 | V84: 45.81564319 | X84: 19 | Y84: 0.1580206533 | AA84: 19 | AB84: 0.3290826304
A85: 85 | B85: 0.0008829100623 | C85: 46.17809223 | D85: 1.0856936e-05 | E85: 1.0856936e-05 | F85: 3.454479769e-06 | G85: 3.796487749e-06 | H85: 0.6681818438 | I85: 137.91263 | J85: 0.47641639 | K85: 0.1591663909 | L85: 0.3340909219 | M85: 5.329461329e-05 | N85: 5.329461329e-05 | O85: 5.329461329e-05 | P85: 5.329461329e-05 | S85: 1 | U85: 0.0008829100623 | V85: 46.17809223 | X85: 19 | Y85: 0.1591663909 | AA85: 19 | AB85: 0.3340909219
A86: 86 | B86: 0.0008901610298 | C86: 46.54306526 | D86: 1.069548556e-05 | E86: 1.069548556e-05 | F86: 3.454479769e-06 | G86: 3.853796473e-06 | H86: 0.6782681792 | I86: 136.8311715 | J86: 0.4726805138 | K86: 0.1603020757 | L86: 0.3391340896 | M86: 5.452668342e-05 | N86: 5.452668342e-05 | O86: 5.452668342e-05 | P86: 5.452668342e-05 | S86: 1 | U86: 0.0008901610298 | V86: 46.54306526 | X86: 19 | Y86: 0.1603020757 | AA86: 19 | AB86: 0.3391340896
A87: 87 | B87: 0.0008974693061 | C87: 46.91057132 | D87: 1.053769489e-05 | E87: 1.053769489e-05 | F87: 3.454479769e-06 | G87: 3.911502939e-06 | H87: 0.6884245172 | I87: 135.7592109 | J87: 0.4689774475 | K87: 0.1614277864 | L87: 0.3442122586 | M87: 5.578015398e-05 | N87: 5.578015398e-05 | O87: 5.578015398e-05 | P87: 5.578015398e-05 | S87: 1 | U87: 0.0008974693061 | V87: 46.91057132 | X87: 19 | Y87: 0.1614277864 | AA87: 19 | AB87: 0.3442122586
A88: 88 | B88: 0.0009048352888 | C88: 47.28061926 | D88: 1.038344818e-05 | E88: 1.038344818e-05 | F88: 3.454479769e-06 | G88: 3.969608535e-06 | H88: 0.6986511021 | I88: 134.6966737 | J88: 0.4653069343 | K88: 0.1625436013 | L88: 0.3493255511 | M88: 5.705532223e-05 | N88: 5.705532223e-05 | O88: 5.705532223e-05 | P88: 5.705532223e-05 | S88: 1 | U88: 0.0009048352888 | V88: 47.28061926 | X88: 20 | Y88: 0.1625436013 | AA88: 20 | AB88: 0.3493255511
A89: 89 | B89: 0.0009122593771 | C89: 47.65321772 | D89: 1.023263447e-05 | E89: 1.023263447e-05 | F89: 3.454479769e-06 | G89: 4.028114619e-06 | H89: 0.708948173 | I89: 133.6434862 | J89: 0.4616687194 | K89: 0.1636495976 | L89: 0.3544740865 | M89: 5.835248782e-05 | N89: 5.835248782e-05 | O89: 5.835248782e-05 | P89: 5.835248782e-05 | S89: 1 | U89: 0.0009122593771 | V89: 47.65321772 | X89: 20 | Y89: 0.1636495976 | AA89: 20 | AB89: 0.3544740865
A90: 90 | B90: 0.0009197419715 | C90: 48.02837514 | D90: 1.00851474e-05 | E90: 1.00851474e-05 | F90: 3.454479769e-06 | G90: 4.087022515e-06 | H90: 0.7193159627 | I90: 132.5995753 | J90: 0.4580625502 | K90: 0.1647458521 | L90: 0.3596579813 | M90: 5.967195273e-05 | N90: 5.967195273e-05 | O90: 5.967195273e-05 | P90: 5.967195273e-05 | S90: 1 | U90: 0.0009197419715 | V90: 48.02837514 | X90: 20 | Y90: 0.1647458521 | AA90: 20 | AB90: 0.3596579813
A91: 91 | B91: 0.0009272834737 | C91: 48.40609973 | D91: 9.940884974e-06 | E91: 9.940884974e-06 | F91: 3.454479769e-06 | G91: 4.146333513e-06 | H91: 0.7297546983 | I91: 131.5648685 | J91: 0.4544881766 | K91: 0.1658324411 | L91: 0.3648773491 | M91: 6.101402123e-05 | N91: 6.101402123e-05 | O91: 6.101402123e-05 | P91: 6.101402123e-05 | S91: 1 | U91: 0.0009272834737 | V91: 48.40609973 | X91: 20 | Y91: 0.1658324411 | AA91: 20 | AB91: 0.3648773491
A92: 92 | B92: 0.000934884287 | C92: 48.78639947 | D92: 9.799749321e-06 | E92: 9.799749321e-06 | F92: 3.454479769e-06 | G92: 4.206048865e-06 | H92: 0.7402646003 | I92: 130.5392941 | J92: 0.4509453503 | K92: 0.1669094398 | L92: 0.3701323002 | M92: 6.237899984e-05 | N92: 6.237899984e-05 | O92: 6.237899984e-05 | P92: 6.237899984e-05 | S92: 1 | U92: 0.000934884287 | V92: 48.78639947 | X92: 20 | Y92: 0.1669094398 | AA92: 20 | AB92: 0.3701323002
A93: 93 | B93: 0.0009425448157 | C93: 49.16928211 | D93: 9.661646523e-06 | E93: 9.661646523e-06 | F93: 3.454479769e-06 | G93: 4.26616979e-06 | H93: 0.750845883 | I93: 129.5227808 | J93: 0.4474338257 | K93: 0.167976923 | L93: 0.3754229415 | M93: 6.376719728e-05 | N93: 6.376719728e-05 | O93: 6.376719728e-05 | P93: 6.376719728e-05 | S93: 1 | U93: 0.0009425448157 | V93: 49.16928211 | X93: 20 | Y93: 0.167976923 | AA93: 20 | AB93: 0.3754229415
A94: 94 | B94: 0.0009502654652 | C94: 49.55475515 | D94: 9.526486392e-06 | E94: 9.526486392e-06 | F94: 3.454479769e-06 | G94: 4.326697464e-06 | H94: 0.7614987537 | I94: 128.5152581 | J94: 0.4439533589 | K94: 0.1690349647 | L94: 0.3807493768 | M94: 6.517892441e-05 | N94: 6.517892441e-05 | O94: 6.517892441e-05 | P94: 6.517892441e-05 | S94: 1 | U94: 0.0009502654652 | V94: 49.55475515 | X94: 21 | Y94: 0.1690349647 | AA94: 21 | AB94: 0.3807493768
A95: 95 | B95: 0.0009580466425 | C95: 49.94282586 | D95: 9.394182298e-06 | E95: 9.394182298e-06 | F95: 3.454479769e-06 | G95: 4.387633027e-06 | H95: 0.7722234128 | I95: 127.516656 | J95: 0.4405037085 | K95: 0.1700836385 | L95: 0.3861117064 | M95: 6.661449418e-05 | N95: 6.661449418e-05 | O95: 6.661449418e-05 | P95: 6.661449418e-05 | S95: 1 | U95: 0.0009580466425 | V95: 49.94282586 | X95: 21 | Y95: 0.1700836385 | AA95: 21 | AB95: 0.3861117064
A96: 96 | B96: 0.0009658887553 | C96: 50.33350121 | D96: 9.264650989e-06 | E96: 9.264650989e-06 | F96: 3.454479769e-06 | G96: 4.448977578e-06 | H96: 0.7830200536 | I96: 126.5269054 | J96: 0.4370846349 | K96: 0.1711230171 | L96: 0.3915100268 | M96: 6.807422155e-05 | N96: 6.807422155e-05 | O96: 6.807422155e-05 | P96: 6.807422155e-05 | S96: 1 | U96: 0.0009658887553 | V96: 50.33350121 | X96: 21 | Y96: 0.1711230171 | AA96: 21 | AB96: 0.3915100268
A97: 97 | B97: 0.0009737922126 | C97: 50.72678794 | D97: 9.137812434e-06 | E97: 9.137812434e-06 | F97: 3.454479769e-06 | G97: 4.51073217e-06 | H97: 0.793888862 | I97: 125.5459375 | J97: 0.433695901 | K97: 0.1721531727 | L97: 0.396944431 | M97: 6.955842346e-05 | N97: 6.955842346e-05 | O97: 6.955842346e-05 | P97: 6.955842346e-05 | S97: 1 | U97: 0.0009737922126 | V97: 50.72678794 | X97: 21 | Y97: 0.1721531727 | AA97: 21 | AB97: 0.396944431
A98: 98 | B98: 0.0009817574245 | C98: 51.12269249 | D98: 9.013589665e-06 | E98: 9.013589665e-06 | F98: 3.454479769e-06 | G98: 4.572897818e-06 | H98: 0.804830016 | I98: 124.5736841 | J98: 0.4303372716 | K98: 0.1731741766 | L98: 0.402415008 | M98: 7.106741875e-05 | N98: 7.106741875e-05 | O98: 7.106741875e-05 | P98: 7.106741875e-05 | S98: 1 | U98: 0.0009817574245 | V98: 51.12269249 | X98: 21 | Y98: 0.1731741766 | AA98: 21 | AB98: 0.402415008
A99: 99 | B99: 0.0009897848021 | C99: 51.52122101 | D99: 8.891908634e-06 | E99: 8.891908634e-06 | F99: 3.454479769e-06 | G99: 4.635475488e-06 | H99: 0.8158436859 | I99: 123.610078 | J99: 0.4270085135 | K99: 0.1741860998 | L99: 0.407921843 | M99: 7.260152807e-05 | N99: 7.260152807e-05 | O99: 7.260152807e-05 | P99: 7.260152807e-05 | S99: 1 | U99: 0.0009897848021 | V99: 51.52122101 | X99: 21 | Y99: 0.1741860998 | AA99: 21 | AB99: 0.407921843
A100: 100 | B100: 0.0009978747574 | C100: 51.92237938 | D100: 8.772698074e-06 | E100: 8.772698074e-06 | F100: 3.454479769e-06 | G100: 4.698466101e-06 | H100: 0.8269300337 | I100: 122.6550521 | J100: 0.4237093959 | K100: 0.1751890125 | L100: 0.4134650169 | M100: 7.416107383e-05 | N100: 7.416107383e-05 | O100: 7.416107383e-05 | P100: 7.416107383e-05 | S100: 1 | U100: 0.0009978747574 | V100: 51.92237938 | X100: 22 | Y100: 0.1751890125 | AA100: 22 | AB100: 0.4134650169
A101: 101 | B101: 0.001006027703 | C101: 52.32617316 | D101: 8.655889374e-06 | E101: 8.655889374e-06 | F101: 3.454479769e-06 | G101: 4.761870529e-06 | H101: 0.8380892131 | I101: 121.7085401 | J101: 0.4204396896 | K101: 0.1761829843 | L101: 0.4190446065 | M101: 7.574638011e-05 | N101: 7.574638011e-05 | O101: 7.574638011e-05 | P101: 7.574638011e-05 | S101: 1 | U101: 0.001006027703 | V101: 52.32617316 | X101: 22 | Y101: 0.1761829843 | AA101: 22 | AB101: 0.4190446065
A102: 102 | B102: 0.001014244054 | C102: 52.73260758 | D102: 8.541416453e-06 | E102: 8.541416453e-06 | F102: 3.454479769e-06 | G102: 4.825689596e-06 | H102: 0.8493213689 | I102: 120.7704765 | J102: 0.4171991679 | K102: 0.1771680842 | L102: 0.4246606845 | M102: 7.735777258e-05 | N102: 7.735777258e-05 | O102: 7.735777258e-05 | P102: 7.735777258e-05 | S102: 1 | U102: 0.001014244054 | V102: 52.73260758 | X102: 22 | Y102: 0.1771680842 | AA102: 22 | AB102: 0.4246606845
A103: 103 | B103: 0.001022524223 | C103: 53.14168756 | D103: 8.429215644e-06 | E103: 8.429215644e-06 | F103: 3.454479769e-06 | G103: 4.889924075e-06 | H103: 0.8606266372 | I103: 119.8407961 | J103: 0.4139876057 | K103: 0.1781443805 | L103: 0.4303133186 | M103: 7.899557842e-05 | N103: 7.899557842e-05 | O103: 7.899557842e-05 | P103: 7.899557842e-05 | S103: 1 | U103: 0.001022524223 | V103: 53.14168756 | X103: 22 | Y103: 0.1781443805 | AA103: 22 | AB103: 0.4303133186
A104: 104 | B104: 0.001030868627 | C104: 53.5534177 | D104: 8.319225589e-06 | E104: 8.319225589e-06 | F104: 3.454479769e-06 | G104: 4.954574686e-06 | H104: 0.8720051448 | I104: 118.9194344 | J104: 0.4108047804 | K104: 0.179111941 | L104: 0.4360025724 | M104: 8.066012622e-05 | N104: 8.066012622e-05 | O104: 8.066012622e-05 | P104: 8.066012622e-05 | S104: 1 | U104: 0.001030868627 | V104: 53.5534177 | X104: 22 | Y104: 0.179111941 | AA104: 22 | AB104: 0.4360025724
A105: 105 | B105: 0.001039277681 | C105: 53.96780224 | D105: 8.211387133e-06 | E105: 8.211387133e-06 | F105: 3.454479769e-06 | G105: 5.019642095e-06 | H105: 0.8834570088 | I105: 118.0063275 | J105: 0.4076504709 | K105: 0.1800708328 | L105: 0.4417285044 | M105: 8.235174589e-05 | N105: 8.235174589e-05 | O105: 8.235174589e-05 | P105: 8.235174589e-05 | S105: 1 | U105: 0.001039277681 | V105: 53.96780224 | X105: 22 | Y105: 0.1800708328 | AA105: 22 | AB105: 0.4417285044
A106: 106 | B106: 0.001047751803 | C106: 54.38484507 | D106: 8.105643225e-06 | E106: 8.105643225e-06 | F106: 3.454479769e-06 | G106: 5.085126913e-06 | H106: 0.8949823368 | I106: 117.101412 | J106: 0.4045244585 | K106: 0.1810211226 | L106: 0.4474911684 | M106: 8.407076858e-05 | N106: 8.407076858e-05 | O106: 8.407076858e-05 | P106: 8.407076858e-05 | S106: 1 | U106: 0.001047751803 | V106: 54.38484507 | X106: 23 | Y106: 0.1810211226 | AA106: 23 | AB106: 0.4474911684
A107: 107 | B107: 0.00105629141 | C107: 54.8045497 | D107: 8.001938828e-06 | E107: 8.001938828e-06 | F107: 3.454479769e-06 | G107: 5.151029694e-06 | H107: 0.9065812261 | I107: 116.204625 | J107: 0.4014265261 | K107: 0.1819628761 | L107: 0.4532906131 | M107: 8.581752652e-05 | N107: 8.581752652e-05 | O107: 8.581752652e-05 | P107: 8.581752652e-05 | S107: 1 | U107: 0.00105629141 | V107: 54.8045497 | X107: 23 | Y107: 0.1819628761 | AA107: 23 | AB107: 0.4532906131
A108: 108 | B108: 0.001064896919 | C108: 55.2269193 | D108: 7.900220832e-06 | E108: 7.900220832e-06 | F108: 3.454479769e-06 | G108: 5.217350931e-06 | H108: 0.9182537639 | I108: 115.3159044 | J108: 0.3983564588 | K108: 0.1828961588 | L108: 0.459126882 | M108: 8.759235298e-05 | N108: 8.759235298e-05 | O108: 8.759235298e-05 | P108: 8.759235298e-05 | S108: 1 | U108: 0.001064896919 | V108: 55.2269193 | X108: 23 | Y108: 0.1828961588 | AA108: 23 | AB108: 0.459126882
A109: 109 | B109: 0.00107356875 | C109: 55.65195662 | D109: 7.800437965e-06 | E109: 7.800437965e-06 | F109: 3.454479769e-06 | G109: 5.28409106e-06 | H109: 0.9300000266 | I109: 114.4351885 | J109: 0.3953140435 | K109: 0.1838210355 | L109: 0.4650000133 | M109: 8.939558213e-05 | N109: 8.939558213e-05 | O109: 8.939558213e-05 | P109: 8.939558213e-05 | S109: 1 | U109: 0.00107356875 | V109: 55.65195662 | X109: 23 | Y109: 0.1838210355 | AA109: 23 | AB109: 0.4650000133
A110: 110 | B110: 0.001082307321 | C110: 56.07966404 | D110: 7.702540721e-06 | E110: 7.702540721e-06 | F110: 3.454479769e-06 | G110: 5.351250452e-06 | H110: 0.9418200796 | I110: 113.5624162 | J110: 0.3922990691 | K110: 0.1847375703 | L110: 0.4709100398 | M110: 9.122754891e-05 | N110: 9.122754891e-05 | O110: 9.122754891e-05 | P110: 9.122754891e-05 | S110: 1 | U110: 0.001082307321 | V110: 56.07966404 | X110: 23 | Y110: 0.1847375703 | AA110: 23 | AB110: 0.4709100398
A111: 111 | B111: 0.001091113051 | C111: 56.51004351 | D111: 7.606481281e-06 | E111: 7.606481281e-06 | F111: 3.454479769e-06 | G111: 5.418829415e-06 | H111: 0.9537139771 | I111: 112.6975268 | J111: 0.3893113265 | K111: 0.1856458268 | L111: 0.4768569885 | M111: 9.308858891e-05 | N111: 9.308858891e-05 | O111: 9.308858891e-05 | P111: 9.308858891e-05 | S111: 1 | U111: 0.001091113051 | V111: 56.51004351 | X111: 24 | Y111: 0.1856458268 | AA111: 24 | AB111: 0.4768569885
A112: 112 | B112: 0.00109998636 | C112: 56.94309659 | D112: 7.512213445e-06 | E112: 7.512213445e-06 | F112: 3.454479769e-06 | G112: 5.486828192e-06 | H112: 0.9656817618 | I112: 111.8404605 | J112: 0.3863506082 | K112: 0.186545868 | L112: 0.4828408809 | M112: 9.497903826e-05 | N112: 9.497903826e-05 | O112: 9.497903826e-05 | P112: 9.497903826e-05 | S112: 1 | U112: 0.00109998636 | V112: 56.94309659 | X112: 24 | Y112: 0.186545868 | AA112: 24 | AB112: 0.4828408809
A113: 113 | B113: 0.001108927668 | C113: 57.37882438 | D113: 7.41969256e-06 | E113: 7.41969256e-06 | F113: 3.454479769e-06 | G113: 5.555246957e-06 | H113: 0.9777234644 | I113: 110.9911577 | J113: 0.3834167088 | K113: 0.1874377564 | L113: 0.4888617322 | M113: 9.68992335e-05 | N113: 9.68992335e-05 | O113: 9.68992335e-05 | P113: 9.68992335e-05 | S113: 1 | U113: 0.001108927668 | V113: 57.37882438 | X113: 24 | Y113: 0.1874377564 | AA113: 24 | AB113: 0.4888617322
A114: 114 | B114: 0.001117937395 | C114: 57.81722755 | D114: 7.328875459e-06 | E114: 7.328875459e-06 | F114: 3.454479769e-06 | G114: 5.624085815e-06 | H114: 0.9898391035 | I114: 110.1495595 | J114: 0.3805094248 | K114: 0.188321554 | L114: 0.4949195518 | M114: 9.884951141e-05 | N114: 9.884951141e-05 | O114: 9.884951141e-05 | P114: 9.884951141e-05 | S114: 1 | U114: 0.001117937395 | V114: 57.81722755 | X114: 24 | Y114: 0.188321554 | AA114: 24 | AB114: 0.4949195518
A115: 115 | B115: 0.00112701596 | C115: 58.25830632 | D115: 7.239720401e-06 | E115: 7.239720401e-06 | F115: 3.454479769e-06 | G115: 5.693344802e-06 | H115: 1.002028685 | I115: 109.3156075 | J115: 0.3776285544 | K115: 0.1891973219 | L115: 0.5010143426 | M115: 0.0001008302089 | N115: 0.0001008302089 | O115: 0.0001008302089 | P115: 0.0001008302089 | S115: 1 | U115: 0.00112701596 | V115: 58.25830632 | X115: 24 | Y115: 0.1891973219 | AA115: 24 | AB115: 0.5010143426
A116: 116 | B116: 0.001136163785 | C116: 58.70206046 | D116: 7.152187009e-06 | E116: 7.152187009e-06 | F116: 3.454479769e-06 | G116: 5.763023878e-06 | H116: 1.014292203 | I116: 108.4892438 | J116: 0.3747738977 | K116: 0.1900651211 | L116: 0.5071461013 | M116: 0.0001028416628 | N116: 0.0001028416628 | O116: 0.0001028416628 | P116: 0.0001028416628 | S116: 1 | U116: 0.001136163785 | V116: 58.70206046 | X116: 25 | Y116: 0.1900651211 | AA116: 25 | AB116: 0.5071461013
A117: 117 | B117: 0.001145381289 | C117: 59.14848922 | D117: 7.066236219e-06 | E117: 7.066236219e-06 | F117: 3.454479769e-06 | G117: 5.833122929e-06 | H117: 1.026629636 | I117: 107.670411 | J117: 0.3719452566 | K117: 0.1909250116 | L117: 0.5133148178 | M117: 0.0001048842099 | N117: 0.0001048842099 | O117: 0.0001048842099 | P117: 0.0001048842099 | S117: 1 | U117: 0.001145381289 | V117: 59.14848922 | X117: 25 | Y117: 0.1909250116 | AA117: 25 | AB117: 0.5133148178
A118: 118 | B118: 0.001154668891 | C118: 59.5975914 | D118: 6.981830224e-06 | E118: 6.981830224e-06 | F118: 3.454479769e-06 | G118: 5.903641766e-06 | H118: 1.039040951 | I118: 106.8590525 | J118: 0.3691424348 | K118: 0.1917770532 | L118: 0.5195204754 | M118: 0.0001069581865 | N118: 0.0001069581865 | O118: 0.0001069581865 | P118: 0.0001069581865 | S118: 1 | U118: 0.001154668891 | V118: 59.5975914 | X118: 25 | Y118: 0.1917770532 | AA118: 25 | AB118: 0.5195204754
A119: 119 | B119: 0.001164027013 | C119: 60.04936528 | D119: 6.898932427e-06 | E119: 6.898932427e-06 | F119: 3.454479769e-06 | G119: 5.974580118e-06 | H119: 1.051526101 | I119: 106.0551118 | J119: 0.3663652379 | K119: 0.192621305 | L119: 0.5257630503 | M119: 0.0001090639283 | N119: 0.0001090639283 | O119: 0.0001090639283 | P119: 0.0001090639283 | S119: 1 | U119: 0.001164027013 | V119: 60.04936528 | X119: 25 | Y119: 0.192621305 | AA119: 25 | AB119: 0.5257630503
A120: 120 | B120: 0.001173456073 | C120: 60.50380864 | D120: 6.817507392e-06 | E120: 6.817507392e-06 | F120: 3.454479769e-06 | G120: 6.045937634e-06 | H120: 1.064085024 | I120: 105.2585331 | J120: 0.3636134732 | K120: 0.1934578256 | L120: 0.5320425118 | M120: 0.0001112017706 | N120: 0.0001112017706 | O120: 0.0001112017706 | P120: 0.0001112017706 | S120: 1 | U120: 0.001173456073 | V120: 60.50380864 | X120: 25 | Y120: 0.1934578256 | AA120: 25 | AB120: 0.5320425118
A121: 121 | B121: 0.00118295649 | C121: 60.9609187 | D121: 6.737520796e-06 | E121: 6.737520796e-06 | F121: 3.454479769e-06 | G121: 6.117713883e-06 | H121: 1.076717643 | I121: 104.4692613 | J121: 0.3608869497 | K121: 0.194286673 | L121: 0.5383588217 | M121: 0.0001133720477 | N121: 0.0001133720477 | O121: 0.0001133720477 | P121: 0.0001133720477 | S121: 1 | U121: 0.00118295649 | V121: 60.9609187 | X121: 26 | Y121: 0.194286673 | AA121: 26 | AB121: 0.5383588217
A122: 122 | B122: 0.001192528684 | C122: 61.42069218 | D122: 6.658939391e-06 | E122: 6.658939391e-06 | F122: 3.454479769e-06 | G122: 6.189908346e-06 | H122: 1.089423869 | I122: 103.6872415 | J122: 0.3581854782 | K122: 0.1951079047 | L122: 0.5447119344 | M122: 0.0001155750927 | N122: 0.0001155750927 | O122: 0.0001155750927 | P122: 0.0001155750927 | S122: 1 | U122: 0.001192528684 | V122: 61.42069218 | X122: 26 | Y122: 0.1951079047 | AA122: 26 | AB122: 0.5447119344
A123: 123 | B123: 0.001202173072 | C123: 61.88312522 | D123: 6.581730959e-06 | E123: 6.581730959e-06 | F123: 3.454479769e-06 | G123: 6.262520417e-06 | H123: 1.102203593 | I123: 102.9124196 | J123: 0.3555088713 | K123: 0.1959215777 | L123: 0.5511017967 | M123: 0.0001178112377 | N123: 0.0001178112377 | O123: 0.0001178112377 | P123: 0.0001178112377 | S123: 1 | U123: 0.001202173072 | V123: 61.88312522 | X123: 26 | Y123: 0.1959215777 | AA123: 26 | AB123: 0.5511017967
A124: 124 | B124: 0.001211890072 | C124: 62.34821339 | D124: 6.505864273e-06 | E124: 6.505864273e-06 | F124: 3.454479769e-06 | G124: 6.335549403e-06 | H124: 1.115056695 | I124: 102.1447416 | J124: 0.3528569433 | K124: 0.1967277485 | L124: 0.5575283475 | M124: 0.0001200808133 | N124: 0.0001200808133 | O124: 0.0001200808133 | P124: 0.0001200808133 | S124: 1 | U124: 0.001211890072 | V124: 62.34821339 | X124: 26 | Y124: 0.1967277485 | AA124: 26 | AB124: 0.5575283475
A125: 125 | B125: 0.001221680101 | C125: 62.8159517 | D125: 6.431309061e-06 | E125: 6.431309061e-06 | F125: 3.454479769e-06 | G125: 6.408994518e-06 | H125: 1.127983035 | I125: 101.3841544 | J125: 0.3502295102 | K125: 0.197526473 | L125: 0.5639915176 | M125: 0.0001223841483 | N125: 0.0001223841483 | O125: 0.0001223841483 | P125: 0.0001223841483 | S125: 1 | U125: 0.001221680101 | V125: 62.8159517 | X125: 26 | Y125: 0.197526473 | AA125: 26 | AB125: 0.5639915176
A126: 126 | B126: 0.001231543576 | C126: 63.28633455 | D126: 6.358035966e-06 | E126: 6.358035966e-06 | F126: 3.454479769e-06 | G126: 6.482854883e-06 | H126: 1.140982459 | I126: 100.6306052 | J126: 0.3476263897 | K126: 0.1983178066 | L126: 0.5704912297 | M126: 0.0001247215698 | N126: 0.0001247215698 | O126: 0.0001247215698 | P126: 0.0001247215698 | S126: 1 | U126: 0.001231543576 | V126: 63.28633455 | X126: 27 | Y126: 0.1983178066 | AA126: 27 | AB126: 0.5704912297
A127: 127 | B127: 0.00124148091 | C127: 63.75935573 | D127: 6.28601652e-06 | E127: 6.28601652e-06 | F127: 3.454479769e-06 | G127: 6.557129525e-06 | H127: 1.154054796 | I127: 99.88404169 | J127: 0.3450474012 | K127: 0.1991018042 | L127: 0.5770273982 | M127: 0.000127093403 | N127: 0.000127093403 | O127: 0.000127093403 | P127: 0.000127093403 | S127: 1 | U127: 0.00124148091 | V127: 63.75935573 | X127: 27 | Y127: 0.1991018042 | AA127: 27 | AB127: 0.5770273982
A128: 128 | B128: 0.00125149252 | C128: 64.23500842 | D128: 6.2152231e-06 | E128: 6.2152231e-06 | F128: 3.454479769e-06 | G128: 6.63181737e-06 | H128: 1.167199857 | I128: 99.14441209 | J128: 0.3424923658 | K128: 0.1998785202 | L128: 0.5835999285 | M128: 0.0001294999704 | N128: 0.0001294999704 | O128: 0.0001294999704 | P128: 0.0001294999704 | S128: 1 | U128: 0.00125149252 | V128: 64.23500842 | X128: 27 | Y128: 0.1998785202 | AA128: 27 | AB128: 0.5835999285
A129: 129 | B129: 0.001261578817 | C129: 64.71328516 | D129: 6.145628908e-06 | E129: 6.145628908e-06 | F129: 3.454479769e-06 | G129: 6.706917247e-06 | H129: 1.180417435 | I129: 98.4116651 | J129: 0.3399611061 | K129: 0.2006480085 | L129: 0.5902087177 | M129: 0.0001319415923 | N129: 0.0001319415923 | O129: 0.0001319415923 | P129: 0.0001319415923 | S129: 1 | U129: 0.001261578817 | V129: 64.71328516 | X129: 27 | Y129: 0.2006480085 | AA129: 27 | AB129: 0.5902087177
A130: 130 | B130: 0.001271740214 | C130: 65.19417781 | D130: 6.077207932e-06 | E130: 6.077207932e-06 | F130: 3.454479769e-06 | G130: 6.782427881e-06 | H130: 1.193707307 | I130: 97.68574986 | J130: 0.3374534466 | K130: 0.2014103225 | L130: 0.5968536535 | M130: 0.0001344185861 | N130: 0.0001344185861 | O130: 0.0001344185861 | P130: 0.0001344185861 | S130: 1 | U130: 0.001271740214 | V130: 65.19417781 | X130: 27 | Y130: 0.2014103225 | AA130: 27 | AB130: 0.5968536535
A131: 131 | B131: 0.001281977121 | C131: 65.67767761 | D131: 6.009934922e-06 | E131: 6.009934922e-06 | F131: 3.454479769e-06 | G131: 6.858347893e-06 | H131: 1.207069229 | I131: 96.96661602 | J131: 0.3349692133 | K131: 0.202165515 | L131: 0.6035346146 | M131: 0.0001369312663 | N131: 0.0001369312663 | O131: 0.0001369312663 | P131: 0.0001369312663 | S131: 1 | U131: 0.001281977121 | V131: 65.67767761 | X131: 28 | Y131: 0.202165515 | AA131: 28 | AB131: 0.6035346146
A132: 132 | B132: 0.001292289949 | C132: 66.16377509 | D132: 5.943785364e-06 | E132: 5.943785364e-06 | F132: 3.454479769e-06 | G132: 6.934675799e-06 | H132: 1.220502941 | I132: 96.25421369 | J132: 0.3325082338 | K132: 0.2029136386 | L132: 0.6102514703 | M132: 0.0001394799441 | N132: 0.0001394799441 | O132: 0.0001394799441 | P132: 0.0001394799441 | S132: 1 | U132: 0.001292289949 | V132: 66.16377509 | X132: 28 | Y132: 0.2029136386 | AA132: 28 | AB132: 0.6102514703
A133: 133 | B133: 0.001302679105 | C133: 66.6524601 | D133: 5.878735448e-06 | E133: 5.878735448e-06 | F133: 3.454479769e-06 | G133: 7.011410001e-06 | H133: 1.23400816 | I133: 95.54849344 | J133: 0.3300703375 | K133: 0.203654745 | L133: 0.6170040801 | M133: 0.0001420649272 | N133: 0.0001420649272 | O133: 0.0001420649272 | P133: 0.0001420649272 | S133: 1 | U133: 0.001302679105 | V133: 66.6524601 | X133: 28 | Y133: 0.203654745 | AA133: 28 | AB133: 0.6170040801
A134: 134 | B134: 0.001313144994 | C134: 67.14372176 | D134: 5.814762049e-06 | E134: 5.814762049e-06 | F134: 3.454479769e-06 | G134: 7.088548795e-06 | H134: 1.247584588 | I134: 94.84940631 | J134: 0.3276553552 | K134: 0.2043888856 | L134: 0.623792294 | M134: 0.0001446865194 | N134: 0.0001446865194 | O134: 0.0001446865194 | P134: 0.0001446865194 | S134: 1 | U134: 0.001313144994 | V134: 67.14372176 | X134: 28 | Y134: 0.2043888856 | AA134: 28 | AB134: 0.623792294
A135: 135 | B135: 0.001323688023 | C135: 67.63754848 | D135: 5.751842699e-06 | E135: 5.751842699e-06 | F135: 3.454479769e-06 | G135: 7.16609036e-06 | H135: 1.261231903 | I135: 94.15690381 | J135: 0.3252631193 | K135: 0.2051161115 | L135: 0.6306159516 | M135: 0.0001473450206 | N135: 0.0001473450206 | O135: 0.0001473450206 | P135: 0.0001473450206 | S135: 1 | U135: 0.001323688023 | V135: 67.63754848 | X135: 29 | Y135: 0.2051161115 | AA135: 29 | AB135: 0.6306159516
A136: 136 | B136: 0.001334308593 | C136: 68.13392793 | D136: 5.689955566e-06 | E136: 5.689955566e-06 | F136: 3.454479769e-06 | G136: 7.244032758e-06 | H136: 1.274949765 | I136: 93.4709379 | J136: 0.3228934639 | K136: 0.205836473 | L136: 0.6374748827 | M136: 0.0001500407264 | N136: 0.0001500407264 | O136: 0.0001500407264 | P136: 0.0001500407264 | S136: 1 | U136: 0.001334308593 | V136: 68.13392793 | X136: 29 | Y136: 0.205836473 | AA136: 29 | AB136: 0.6374748827
A137: 137 | B137: 0.001345007106 | C137: 68.63284701 | D137: 5.629079433e-06 | E137: 5.629079433e-06 | F137: 3.454479769e-06 | G137: 7.322373935e-06 | H137: 1.288737812 | I137: 92.79146099 | J137: 0.3205462247 | K137: 0.2065500202 | L137: 0.6443689062 | M137: 0.0001527739275 | N137: 0.0001527739275 | O137: 0.0001527739275 | P137: 0.0001527739275 | S137: 1 | U137: 0.001345007106 | V137: 68.63284701 | X137: 29 | Y137: 0.2065500202 | AA137: 29 | AB137: 0.6443689062
A138: 138 | B138: 0.001355783959 | C138: 69.13429187 | D138: 5.569193671e-06 | E138: 5.569193671e-06 | F138: 3.454479769e-06 | G138: 7.401111713e-06 | H138: 1.302595661 | I138: 92.11842595 | J138: 0.3182212388 | K138: 0.2072568025 | L138: 0.6512978307 | M138: 0.00015554491 | N138: 0.00015554491 | O138: 0.00015554491 | P138: 0.00015554491 | S138: 1 | U138: 0.001355783959 | V138: 69.13429187 | X138: 29 | Y138: 0.2072568025 | AA138: 29 | AB138: 0.6512978307
A139: 139 | B139: 0.001366639551 | C139: 69.63824786 | D139: =IF(C139<$D$4,0.0001,$D$2*$D$5/(C139-$D$4)) -> 5.510278228e-06 | E139: 5.510278228e-06 | F139: 3.454479769e-06 | G139: =IF(F139<=0,0,$D$2*H139/$D$4) -> 7.480243793e-06 | H139: =(C139-$D$4)*F139/$D$2 -> 1.316522908 | I139: 91.45178608 | J139: 0.3159183448 | K139: 0.2079568689 | L139: 0.6582614538 | M139: 0.0001583539546 | N139: =$D$4*H139*0.5*(F139+G139) -> 0.0001583539546 | O139: 0.0001583539546 | P139: 0.0001583539546 | S139: 1 | U139: 0.001366639551 | V139: =C139 -> 69.63824786 | X139: 30 | Y139: =K139 -> 0.2079568689 | AA139: 30 | AB139: =L139 -> 0.6582614538
A140: 140 | B140: 0.001377574274 | C140: 70.14469952 | D140: 5.452313601e-06 | E140: =IF($D$2*$D$5/(C140-$D$4)<0,0,$D$2*$D$5/(C140-$D$4)) -> 5.452313601e-06 | F140: 3.454479769e-06 | G140: 7.559767748e-06 | H140: 1.330519124 | I140: 90.79149515 | J140: =IF(H140<=0,0,F140/(F140+G140)) -> 0.3136373832 | K140: =S140*J140*H140/2 -> 0.2086502681 | L140: =S140*H140/2 -> 0.6652595618 | M140: 0.0001612013365 | N140: 0.0001612013365 | O140: =M140*S140 -> 0.0001612013365 | P140: =N140*S140 -> 0.0001612013365 | S140: =IF(B140<=1/(2*$D$7),1,0) -> 1 | U140: 0.001377574274 | V140: 70.14469952 | X140: =ROUND(360*$D$7*U140,0) -> 30 | Y140: 0.2086502681 | AA140: =ROUND(360*$D$7*U140,0) -> 30 | AB140: 0.6652595618
A141: =A140+1 -> 141 | B141: 0.001388588522 | C141: 70.65363057 | D141: 5.395280823e-06 | E141: 5.395280823e-06 | F141: 3.454479769e-06 | G141: 7.639681023e-06 | H141: 1.34458386 | I141: 90.13750736 | J141: 0.3113781956 | K141: 0.2093370481 | L141: 0.67229193 | M141: 0.0001640873249 | N141: 0.0001640873249 | O141: 0.0001640873249 | P141: 0.0001640873249 | S141: 1 | U141: =IF(B141<(1/(2*$D$7)),B141,1/(2*$D$7)) -> 0.001388588522 | V141: 70.65363057 | X141: 30 | Y141: 0.2093370481 | AA141: 30 | AB141: 0.67229193
A142: 142 | B142: 0.001399682683 | C142: =ABS($D$6*1.414*SIN(6.28*B142*$D$7)) -> 71.16502393 | D142: 5.339161441e-06 | E142: 5.339161441e-06 | F142: 3.454479769e-06 | G142: 7.719980931e-06 | H142: 1.358716644 | I142: 89.48977734 | J142: 0.3091406253 | K142: 0.2100172565 | L142: 0.679358322 | M142: 0.0001670121831 | N142: 0.0001670121831 | O142: 0.0001670121831 | P142: 0.0001670121831 | S142: 1 | U142: 0.001399682683 | V142: 71.16502393 | X142: 30 | Y142: 0.2100172565 | AA142: 30 | AB142: 0.679358322
A143: 143 | B143: 0.001410857143 | C143: 71.67886162 | D143: 5.283937502e-06 | E143: 5.283937502e-06 | F143: 3.454479769e-06 | G143: 7.800664655e-06 | H143: 1.372916979 | I143: 88.84826017 | J143: 0.3069245172 | K143: 0.2106909405 | L143: 0.6864584896 | M143: 0.0001699761677 | N143: 0.0001699761677 | O143: 0.0001699761677 | P143: 0.0001699761677 | S143: 1 | U143: 0.001410857143 | V143: 71.67886162 | X143: 30 | Y143: 0.2106909405 | AA143: 30 | AB143: 0.6864584896
A144: 144 | B144: 0.001422112288 | C144: 72.19512483 | D144: 5.229591537e-06 | E144: 5.229591537e-06 | F144: 3.454479769e-06 | G144: 7.881729237e-06 | H144: 1.387184346 | I144: 88.21291135 | J144: 0.3047297176 | K144: 0.2113581469 | L144: 0.6935921728 | M144: 0.0001729795284 | N144: 0.0001729795284 | O144: 0.0001729795284 | P144: 0.0001729795284 | S144: 1 | U144: 0.001422112288 | V144: 72.19512483 | X144: 31 | Y144: 0.2113581469 | AA144: 31 | AB144: 0.6935921728
A145: 145 | B145: =IF(F144<=0,D144+B144,F144+G144+B144) -> 0.001433448497 | C145: 72.71379384 | D145: 5.176106541e-06 | E145: 5.176106541e-06 | F145: 3.454479769e-06 | G145: 7.963171582e-06 | H145: 1.401518198 | I145: 87.58368681 | J145: 0.3025560741 | K145: 0.212018922 | L145: 0.7007590992 | M145: 0.0001760225077 | N145: 0.0001760225077 | O145: 0.0001760225077 | P145: 0.0001760225077 | S145: 1 | U145: 0.001433448497 | V145: 72.71379384 | X145: 31 | Y145: 0.212018922 | AA145: 31 | AB145: 0.7007590992
A146: 146 | B146: 0.001444866148 | C146: 73.23484805 | D146: 5.123465961e-06 | E146: 5.123465961e-06 | F146: 3.454479769e-06 | G146: 8.044988457e-06 | H146: 1.415917968 | I146: 86.96054291 | J146: 0.3004034361 | K146: 0.2126733115 | L146: 0.7079589842 | M146: 0.0001791053406 | N146: 0.0001791053406 | O146: 0.0001791053406 | P146: 0.0001791053406 | S146: 1 | U146: 0.001444866148 | V146: 73.23484805 | X146: 31 | Y146: 0.2126733115 | AA146: 31 | AB146: 0.7079589842
A147: 147 | B147: 0.001456365616 | C147: 73.75826594 | D147: 5.071653682e-06 | E147: 5.071653682e-06 | F147: =IF(E147>$D$8*0.000001,$D$8*0.000001,E147) -> 3.454479769e-06 | G147: 8.12717648e-06 | H147: 1.43038306 | I147: =IF(H147<=0.0001,0,0.001/(F147+G147)) -> 86.34343643 | J147: 0.2982716543 | K147: 0.2133213609 | L147: 0.7151915302 | M147: =(F147+G147)*C147*J147*H147/2 -> 0.000182228254 | N147: 0.000182228254 | O147: 0.000182228254 | P147: 0.000182228254 | S147: 1 | U147: 0.001456365616 | V147: 73.75826594 | X147: 31 | Y147: 0.2133213609 | AA147: 31 | AB147: 0.7151915302
A148: 148 | B148: 0.001467947273 | C148: 74.28402505 | D148: 5.02065401e-06 | E148: 5.02065401e-06 | F148: 3.454479769e-06 | G148: 8.209732126e-06 | H148: 1.444912854 | I148: 85.73232457 | J148: 0.2961605808 | K148: 0.213963115 | L148: 0.722456427 | M148: 0.0001853914667 | N148: 0.0001853914667 | O148: 0.0001853914667 | P148: 0.0001853914667 | S148: 1 | U148: 0.001467947273 | V148: 74.28402505 | X148: 32 | Y148: 0.213963115 | AA148: 32 | AB148: 0.722456427
A149: 149 | B149: 0.001479611484 | C149: 74.81210198 | D149: 4.970451661e-06 | E149: 4.970451661e-06 | F149: 3.454479769e-06 | G149: 8.29265172e-06 | H149: 1.459506703 | I149: 85.12716496 | J149: 0.2940700691 | K149: 0.2145986185 | L149: 0.7297533513 | M149: 0.0001885951886 | N149: 0.0001885951886 | O149: 0.0001885951886 | P149: 0.0001885951886 | S149: 1 | U149: 0.001479611484 | V149: 74.81210198 | X149: 32 | Y149: 0.2145986185 | AA149: 32 | AB149: 0.7297533513
A150: 150 | B150: 0.001491358616 | C150: 75.34247236 | D150: 4.921031748e-06 | E150: 4.921031748e-06 | F150: 3.454479769e-06 | G150: 8.375931435e-06 | H150: 1.474163933 | I150: 84.52791562 | J150: 0.2919999744 | K150: 0.2152279153 | L150: 0.7370819663 | M150: 0.0001918396206 | N150: 0.0001918396206 | O150: 0.0001918396206 | P150: 0.0001918396206 | S150: 1 | U150: 0.001491358616 | V150: 75.34247236 | X150: 32 | Y150: 0.2152279153 | AA150: 32 | AB150: 0.7370819663
A151: 151 | B151: 0.001503189027 | C151: 75.87511084 | D151: 4.872379767e-06 | E151: 4.872379767e-06 | F151: 3.454479769e-06 | G151: 8.459567292e-06 | H151: 1.488883843 | I151: 83.934535 | J151: 0.289950153 | K151: 0.2158510491 | L151: 0.7444419217 | M151: 0.000195124954 | N151: 0.000195124954 | O151: 0.000195124954 | P151: 0.000195124954 | S151: 1 | U151: 0.001503189027 | V151: 75.87511084 | X151: 32 | Y151: 0.2158510491 | AA151: 32 | AB151: 0.7444419217
A152: 152 | B152: 0.001515103074 | C152: 76.40999107 | D152: 4.824481586e-06 | E152: 4.824481586e-06 | F152: 3.454479769e-06 | G152: 8.543555153e-06 | H152: 1.503665707 | I152: 83.34698194 | J152: 0.2879204629 | K152: 0.2164680632 | L152: 0.7518328535 | M152: 0.0001984513703 | N152: 0.0001984513703 | O152: 0.0001984513703 | P152: 0.0001984513703 | S152: 1 | U152: 0.001515103074 | V152: 76.40999107 | X152: 33 | Y152: 0.2164680632 | AA152: 33 | AB152: 0.7518328535
A153: 153 | B153: 0.001527101109 | C153: 76.9470857 | D153: 4.777323432e-06 | E153: 4.777323432e-06 | F153: 3.454479769e-06 | G153: 8.627890722e-06 | H153: 1.518508767 | I153: 82.76521571 | J153: 0.2859107632 | K153: 0.2170790003 | L153: 0.7592543836 | M153: 0.0002018190407 | N153: 0.0002018190407 | O153: 0.0002018190407 | P153: 0.0002018190407 | S153: 1 | U153: 0.001527101109 | V153: 76.9470857 | X153: 33 | Y153: 0.2170790003 | AA153: 33 | AB153: 0.7592543836
A154: 154 | B154: 0.00153918348 | C154: 77.48636632 | D154: 4.730891882e-06 | E154: 4.730891882e-06 | F154: 3.454479769e-06 | G154: 8.712569541e-06 | H154: 1.533412239 | I154: 82.18919597 | J154: 0.2839209147 | K154: 0.2176839028 | L154: 0.7667061196 | M154: 0.0002052281256 | N154: 0.0002052281256 | O154: 0.0002052281256 | P154: 0.0002052281256 | S154: 1 | U154: 0.00153918348 | V154: 77.48636632 | X154: 33 | Y154: 0.2176839028 | AA154: 33 | AB154: 0.7667061196
A155: 155 | B155: 0.001551350529 | C155: 78.0278035 | D155: 4.685173853e-06 | E155: 4.685173853e-06 | F155: 3.454479769e-06 | G155: 8.797586986e-06 | H155: 1.548375309 | I155: 81.61888276 | J155: 0.2819507792 | K155: 0.2182828125 | L155: 0.7741876547 | M155: 0.0002086787742 | N155: 0.0002086787742 | O155: 0.0002086787742 | P155: 0.0002086787742 | S155: 1 | U155: 0.001551350529 | V155: 78.0278035 | X155: 34 | Y155: 0.2182828125 | AA155: 34 | AB155: 0.7741876547
A156: 156 | B156: 0.001563602596 | C156: 78.57136674 | D156: 4.640156587e-06 | E156: 4.640156587e-06 | F156: 3.454479769e-06 | G156: 8.882938268e-06 | H156: 1.563397135 | I156: 81.05423655 | J156: 0.2800002203 | K156: 0.2188757712 | L156: 0.7816985676 | M156: 0.0002121711241 | N156: 0.0002121711241 | O156: 0.0002121711241 | P156: 0.0002121711241 | S156: 1 | U156: 0.001563602596 | V156: 78.57136674 | X156: 34 | Y156: 0.2188757712 | AA156: 34 | AB156: 0.7816985676
A157: 157 | B157: 0.001575940014 | C157: 79.11702445 | D157: 4.595827646e-06 | E157: 4.595827646e-06 | F157: 3.454479769e-06 | G157: 8.968618428e-06 | H157: 1.578476843 | I157: 80.4952182 | J157: 0.2780691027 | K157: 0.2194628198 | L157: 0.7892384217 | M157: 0.0002157053011 | N157: 0.0002157053011 | O157: 0.0002157053011 | P157: 0.0002157053011 | S157: 1 | U157: 0.001575940014 | V157: 79.11702445 | X157: 34 | Y157: 0.2194628198 | AA157: 34 | AB157: 0.7892384217
A158: 158 | B158: 0.001588363112 | C158: 79.66474396 | D158: 4.552174899e-06 | E158: 4.552174899e-06 | F158: 3.454479769e-06 | G158: 9.054622335e-06 | H158: 1.593613531 | I158: 79.94178893 | J158: 0.2761572925 | K158: 0.220043999 | L158: 0.7968067654 | M158: 0.0002192814181 | N158: 0.0002192814181 | O158: 0.0002192814181 | P158: 0.0002192814181 | S158: 1 | U158: 0.001588363112 | V158: 79.66474396 | X158: 34 | Y158: 0.220043999 | AA158: 34 | AB158: 0.7968067654
A159: 159 | B159: 0.001600872214 | C159: 80.21449146 | D159: 4.509186517e-06 | E159: 4.509186517e-06 | F159: 3.454479769e-06 | G159: 9.140944682e-06 | H159: 1.608806264 | I159: 79.39391038 | J159: 0.2742646572 | K159: 0.2206193492 | L159: 0.804403132 | M159: 0.0002228995753 | N159: 0.0002228995753 | O159: 0.0002228995753 | P159: 0.0002228995753 | S159: 1 | U159: 0.001600872214 | V159: 80.21449146 | X159: 35 | Y159: 0.2206193492 | AA159: 35 | AB159: 0.804403132
A160: 160 | B160: 0.001613467638 | C160: 80.76623206 | D160: 4.466850959e-06 | E160: 4.466850959e-06 | F160: 3.454479769e-06 | G160: 9.227579987e-06 | H160: 1.624054078 | I160: 78.85154456 | J160: 0.2723910654 | K160: 0.2211889103 | L160: 0.8120270389 | M160: 0.0002265598595 | N160: 0.0002265598595 | O160: 0.0002265598595 | P160: 0.0002265598595 | S160: 1 | U160: 0.001613467638 | V160: 80.76623206 | X160: 35 | Y160: 0.2211889103 | AA160: 35 | AB160: 0.8120270389
A161: 161 | B161: 0.001626149698 | C161: 81.31992967 | D161: 4.425156966e-06 | E161: 4.425156966e-06 | F161: 3.454479769e-06 | G161: 9.314522588e-06 | H161: 1.639355975 | I161: 78.31465389 | J161: 0.2705363874 | K161: 0.2217527217 | L161: 0.8196779877 | M161: 0.0002302623434 | N161: 0.0002302623434 | O161: 0.0002302623434 | P161: 0.0002302623434 | S161: 1 | U161: 0.001626149698 | V161: 81.31992967 | X161: 35 | Y161: 0.2217527217 | AA161: 35 | AB161: 0.8196779877
A162: 162 | B162: 0.001638918701 | C162: 81.87554708 | D162: 4.384093554e-06 | E162: 4.384093554e-06 | F162: 3.454479769e-06 | G162: 9.401766638e-06 | H162: 1.654710928 | I162: 77.78320113 | J162: 0.2687004946 | K162: 0.2223108225 | L162: 0.8273554642 | M162: 0.0002340070857 | N162: 0.0002340070857 | O162: 0.0002340070857 | P162: 0.0002340070857 | S162: 1 | U162: 0.001638918701 | V162: 81.87554708 | X162: 35 | Y162: 0.2223108225 | AA162: 35 | AB162: 0.8273554642
A163: 163 | B163: 0.001651774947 | C163: 82.4330459 | D163: 4.343650003e-06 | E163: 4.343650003e-06 | F163: 3.454479769e-06 | G163: 9.48930611e-06 | H163: 1.670117875 | I163: 77.25714944 | J163: 0.2668832597 | K163: 0.2228632514 | L163: 0.8350589377 | M163: 0.0002377941299 | N163: 0.0002377941299 | O163: 0.0002377941299 | P163: 0.0002377941299 | S163: 1 | U163: 0.001651774947 | V163: 82.4330459 | X163: 36 | Y163: 0.2228632514 | AA163: 36 | AB163: 0.8350589377
A164: 164 | B164: 0.001664718733 | C164: 82.99238653 | D164: 4.303815852e-06 | E164: 4.303815852e-06 | F164: 3.454479769e-06 | G164: 9.577134787e-06 | H164: 1.685575722 | I164: 76.73646237 | J164: 0.2650845568 | K164: 0.2234100467 | L164: 0.8427878612 | M164: 0.0002416235043 | N164: 0.0002416235043 | O164: 0.0002416235043 | P164: 0.0002416235043 | S164: 1 | U164: 0.001664718733 | V164: 82.99238653 | X164: 36 | Y164: 0.2234100467 | AA164: 36 | AB164: 0.8427878612
A165: 165 | B165: 0.001677750347 | C165: 83.55352818 | D165: 4.26458089e-06 | E165: 4.26458089e-06 | F165: 3.454479769e-06 | G165: 9.665246263e-06 | H165: 1.701083342 | I165: 76.22110383 | J165: 0.2633042611 | K165: 0.2239512463 | L165: 0.8505416711 | M165: 0.0002454952215 | N165: 0.0002454952215 | O165: 0.0002454952215 | P165: 0.0002454952215 | S165: 1 | U165: 0.001677750347 | V165: 83.55352818 | X165: 36 | Y165: 0.2239512463 | AA165: 36 | AB165: 0.8505416711
A166: 166 | B166: 0.001690870073 | C166: 84.11642883 | D166: 4.22593515e-06 | E166: 4.22593515e-06 | F166: 3.454479769e-06 | G166: 9.753633941e-06 | H166: 1.716639574 | I166: 75.71103808 | J166: 0.2615422493 | K166: 0.2244868877 | L166: 0.8583197868 | M166: 0.0002494092775 | N166: 0.0002494092775 | O166: 0.0002494092775 | P166: 0.0002494092775 | S166: 1 | U166: 0.001690870073 | V166: 84.11642883 | X166: 37 | Y166: 0.2244868877 | AA166: 37 | AB166: 0.8583197868
A167: 167 | B167: 0.001704078187 | C167: 84.68104524 | D167: 4.187868901e-06 | E167: 4.187868901e-06 | F167: 3.454479769e-06 | G167: 9.84229103e-06 | H167: 1.732243221 | I167: 75.20622978 | J167: 0.2597983993 | K167: 0.225017008 | L167: 0.8661216106 | M167: 0.0002533656519 | N167: 0.0002533656519 | O167: 0.0002533656519 | P167: 0.0002533656519 | S167: 1 | U167: 0.001704078187 | V167: 84.68104524 | X167: 37 | Y167: 0.225017008 | AA167: 37 | AB167: 0.8661216106
A168: 168 | B168: 0.001717374958 | C168: 85.2473329 | D168: 4.15037264e-06 | E168: 4.15037264e-06 | F168: 3.454479769e-06 | G168: 9.931210542e-06 | H168: 1.747893055 | I168: 74.70664395 | J168: 0.2580725901 | K168: 0.225541644 | L168: 0.8739465277 | M168: 0.0002573643065 | N168: 0.0002573643065 | O168: 0.0002573643065 | P168: 0.0002573643065 | S168: 1 | U168: 0.001717374958 | V168: 85.2473329 | X168: 37 | Y168: 0.225541644 | AA168: 37 | AB168: 0.8739465277
A169: 169 | B169: 0.001730760648 | C169: 85.81524605 | D169: 4.11343709e-06 | E169: 4.11343709e-06 | F169: 3.454479769e-06 | G169: 1.002038529e-05 | H169: 1.763587811 | I169: 74.21224595 | J169: 0.2563647022 | K169: 0.226060832 | L169: 0.8817939056 | M169: 0.0002614051856 | N169: 0.0002614051856 | O169: 0.0002614051856 | P169: 0.0002614051856 | S169: 1 | U169: 0.001730760648 | V169: 85.81524605 | X169: 37 | Y169: 0.226060832 | AA169: 37 | AB169: 0.8817939056
A170: 170 | B170: 0.001744235513 | C170: 86.38473764 | D170: 4.07705319e-06 | E170: 4.07705319e-06 | F170: 3.454479769e-06 | G170: 1.010980789e-05 | H170: 1.779326189 | I170: 73.72300154 | J170: 0.2546746173 | K170: 0.2265746081 | L170: 0.8896630944 | M170: 0.0002654882149 | N170: 0.0002654882149 | O170: 0.0002654882149 | P170: 0.0002654882149 | S170: 1 | U170: 0.001744235513 | V170: 86.38473764 | X170: 38 | Y170: 0.2265746081 | AA170: 38 | AB170: 0.8896630944
A171: 171 | B171: 0.001757799801 | C171: 86.95575934 | D171: 4.04121209e-06 | E171: 4.04121209e-06 | F171: 3.454479769e-06 | G171: 1.019947075e-05 | H171: 1.795106852 | I171: 73.2388768 | J171: 0.2530022182 | K171: 0.2270830078 | L171: 0.8975534261 | M171: 0.0002696133015 | N171: 0.0002696133015 | O171: 0.0002696133015 | P171: 0.0002696133015 | S171: 1 | U171: 0.001757799801 | V171: 86.95575934 | X171: 38 | Y171: 0.2270830078 | AA171: 38 | AB171: 0.8975534261
A172: 172 | B172: 0.001771453752 | C172: 87.52826152 | D172: 4.005905146e-06 | E172: 4.005905146e-06 | F172: 3.454479769e-06 | G172: 1.028936608e-05 | H172: 1.81092843 | I172: 72.7598382 | J172: 0.251347389 | K172: 0.2275860663 | L172: 0.9054642148 | M172: 0.0002737803329 | N172: 0.0002737803329 | O172: 0.0002737803329 | P172: 0.0002737803329 | S172: 1 | U172: 0.001771453752 | V172: 87.52826152 | X172: 38 | Y172: 0.2275860663 | AA172: 38 | AB172: 0.9054642148
A173: 173 | B173: 0.001785197597 | C173: 88.1021932 | D173: 3.971123911e-06 | E173: 3.971123911e-06 | F173: 3.454479769e-06 | G173: 1.037948587e-05 | H173: 1.826789513 | I173: 72.28585254 | J173: 0.2497100152 | K173: 0.2280838184 | L173: 0.9133947563 | M173: 0.0002779891767 | N173: 0.0002779891767 | O173: 0.0002779891767 | P173: 0.0002779891767 | S173: 1 | U173: 0.001785197597 | V173: 88.1021932 | X173: 39 | Y173: 0.2280838184 | AA173: 39 | AB173: 0.9133947563
A174: 174 | B174: 0.001799031563 | C174: 88.6775021 | D174: 3.936860136e-06 | E174: 3.936860136e-06 | F174: 3.454479769e-06 | G174: 1.046982191e-05 | H174: 1.842688656 | I174: 71.81688698 | J174: 0.2480899831 | K174: 0.2285762988 | L174: 0.9213443281 | M174: 0.0002822396803 | N174: 0.0002822396803 | O174: 0.0002822396803 | P174: 0.0002822396803 | S174: 1 | U174: 0.001799031563 | V174: 88.6775021 | X174: 39 | Y174: 0.2285762988 | AA174: 39 | AB174: 0.9213443281
A175: 175 | B175: 0.001812955865 | C175: 89.25413459 | D175: 3.903105759e-06 | E175: 3.903105759e-06 | F175: 3.454479769e-06 | G175: 1.056036579e-05 | H175: 1.858624378 | I175: 71.35290903 | J175: 0.2464871807 | K175: 0.2290635415 | L175: 0.9293121892 | M175: 0.0002865316697 | N175: 0.0002865316697 | O175: 0.0002865316697 | P175: 0.0002865316697 | S175: 1 | U175: 0.001812955865 | V175: 89.25413459 | X175: 39 | Y175: 0.2290635415 | AA175: 39 | AB175: 0.9293121892
A176: 176 | B176: 0.00182697071 | C176: 89.83203568 | D176: 3.8698529e-06 | E176: 3.8698529e-06 | F176: 3.454479769e-06 | G176: 1.065110886e-05 | H176: 1.874595159 | I176: 70.89388655 | J176: 0.2449014968 | K176: 0.2295455802 | L176: 0.9372975796 | M176: 0.0002908649498 | N176: 0.0002908649498 | O176: 0.0002908649498 | P176: 0.0002908649498 | S176: 1 | U176: 0.00182697071 | V176: 89.83203568 | X176: 39 | Y176: 0.2295455802 | AA176: 39 | AB176: 0.9372975796
A177: 177 | B177: 0.001841076299 | C177: 90.41114901 | D177: 3.837093863e-06 | E177: 3.837093863e-06 | F177: 3.454479769e-06 | G177: 1.074204228e-05 | H177: 1.890599442 | I177: 70.43978775 | J177: 0.2433328217 | K177: 0.2300224484 | L177: 0.9452997208 | M177: 0.0002952393033 | N177: 0.0002952393033 | O177: 0.0002952393033 | P177: 0.0002952393033 | S177: 1 | U177: 0.001841076299 | V177: 90.41114901 | X177: 40 | Y177: 0.2300224484 | AA177: 40 | AB177: 0.9452997208
A178: 178 | B178: 0.001855272821 | C178: 90.99141686 | D178: 3.804821121e-06 | E178: 3.804821121e-06 | F178: 3.454479769e-06 | G178: 1.083315699e-05 | H178: 1.90663563 | I178: 69.99058116 | J178: 0.2417810466 | K178: 0.2304941791 | L178: 0.953317815 | M178: 0.0002996544904 | N178: 0.0002996544904 | O178: 0.0002996544904 | P178: 0.0002996544904 | S178: 1 | U178: 0.001855272821 | V178: 90.99141686 | X178: 40 | Y178: 0.2304941791 | AA178: 40 | AB178: 0.953317815
A179: 179 | B179: 0.001869560458 | C179: 91.5727801 | D179: 3.773027319e-06 | E179: 3.773027319e-06 | F179: 3.454479769e-06 | G179: 1.09244437e-05 | H179: 1.92270209 | I179: 69.54623567 | J179: 0.2402460641 | K179: 0.2309608049 | L179: 0.9613510452 | M179: 0.0003041102482 | N179: 0.0003041102482 | O179: 0.0003041102482 | P179: 0.0003041102482 | S179: 1 | U179: 0.001869560458 | V179: 91.5727801 | X179: 40 | Y179: 0.2309608049 | AA179: 40 | AB179: 0.9613510452
A180: 180 | B180: 0.001883939381 | C180: 92.15517823 | D180: 3.741705269e-06 | E180: 3.741705269e-06 | F180: 3.454479769e-06 | G180: 1.10158929e-05 | H180: 1.938797151 | I180: 69.10672052 | J180: 0.2387277679 | K180: 0.2314223581 | L180: 0.9693985754 | M180: 0.0003086062904 | N180: 0.0003086062904 | O180: 0.0003086062904 | P180: 0.0003086062904 | S180: 1 | U180: 0.001883939381 | V180: 92.15517823 | X180: 41 | Y180: 0.2314223581 | AA180: 41 | AB180: 0.9693985754
A181: 181 | B181: 0.001898409754 | C181: 92.73854932 | D181: 3.71084794e-06 | E181: 3.71084794e-06 | F181: 3.454479769e-06 | G181: 1.110749489e-05 | H181: 1.9549191 | I181: 68.67200526 | J181: 0.2372260528 | K181: 0.2318788708 | L181: 0.9774595499 | M181: 0.0003131423062 | N181: 0.0003131423062 | O181: 0.0003131423062 | P181: 0.0003131423062 | S181: 1 | U181: 0.001898409754 | V181: 92.73854932 | X181: 41 | Y181: 0.2318788708 | AA181: 41 | AB181: 0.9774595499
A182: 182 | B182: 0.001912971728 | C182: 93.32283003 | D182: 3.680448461e-06 | E182: 3.680448461e-06 | F182: 3.454479769e-06 | G182: 1.11992397e-05 | H182: 1.971066187 | I182: 68.24205978 | J182: 0.2357408149 | K182: 0.2323303746 | L182: 0.9855330936 | M182: 0.0003177179606 | N182: 0.0003177179606 | O182: 0.0003177179606 | P182: 0.0003177179606 | S182: 1 | U182: 0.001912971728 | V182: 93.32283003 | X182: 41 | Y182: 0.2323303746 | AA182: 41 | AB182: 0.9855330936
A183: 183 | B183: 0.001927625448 | C183: 93.90795562 | D183: 3.650500112e-06 | E183: 3.650500112e-06 | F183: 3.454479769e-06 | G183: 1.129111718e-05 | H183: 1.987236623 | I183: 67.81685433 | J183: 0.2342719512 | K183: 0.2327769006 | L183: 0.9936183116 | M183: 0.0003223328931 | N183: 0.0003223328931 | O183: 0.0003223328931 | P183: 0.0003223328931 | S183: 1 | U183: 0.001927625448 | V183: 93.90795562 | X183: 42 | Y183: 0.2327769006 | AA183: 42 | AB183: 0.9936183116
A184: 184 | B184: 0.001942371045 | C184: 94.49385988 | D184: 3.620996322e-06 | E184: 3.620996322e-06 | F184: 3.454479769e-06 | G184: 1.138311692e-05 | H184: 2.003428579 | I184: 67.39635945 | J184: 0.2328193602 | K184: 0.2332184799 | L184: 1.001714289 | M184: 0.0003269867178 | N184: 0.0003269867178 | O184: 0.0003269867178 | P184: 0.0003269867178 | S184: 1 | U184: 0.001942371045 | V184: 94.49385988 | X184: 42 | Y184: 0.2332184799 | AA184: 42 | AB184: 1.001714289
A185: 185 | B185: 0.001957208642 | C185: 95.0804752 | D185: 3.591930666e-06 | E185: 3.591930666e-06 | F185: 3.454479769e-06 | G185: 1.147522832e-05 | H185: 2.019640185 | I185: 66.98054603 | J185: 0.2313829412 | K185: 0.233655143 | L185: 1.009820092 | M185: 0.0003316790225 | N185: 0.0003316790225 | O185: 0.0003316790225 | P185: 0.0003316790225 | S185: 1 | U185: 0.001957208642 | V185: 95.0804752 | X185: 42 | Y185: 0.233655143 | AA185: 42 | AB185: 1.009820092
A186: 186 | B186: 0.00197213835 | C186: 95.66773251 | D186: 3.563296861e-06 | E186: 3.563296861e-06 | F186: 3.454479769e-06 | G186: 1.156744053e-05 | H186: 2.035869533 | I186: 66.5693853 | J186: 0.2299625947 | K186: 0.2340869201 | L186: 1.017934766 | M186: 0.0003364093683 | N186: 0.0003364093683 | O186: 0.0003364093683 | P186: 0.0003364093683 | S186: 1 | U186: 0.00197213835 | V186: 95.66773251 | X186: 43 | Y186: 0.2340869201 | AA186: 43 | AB186: 1.017934766
A187: 187 | B187: 0.00198716027 | C187: 96.2555613 | D187: 3.535088759e-06 | E187: 3.535088759e-06 | F187: 3.454479769e-06 | G187: 1.165974246e-05 | H187: 2.052114674 | I187: 66.16284878 | J187: 0.2285582225 | K187: 0.2345138411 | L187: 1.026057337 | M187: 0.0003411772895 | N187: 0.0003411772895 | O187: 0.0003411772895 | P187: 0.0003411772895 | S187: 1 | U187: 0.00198716027 | V187: 96.2555613 | X187: 43 | Y187: 0.2345138411 | AA187: 43 | AB187: 1.026057337
A188: 188 | B188: 0.002002274492 | C188: 96.84388958 | D188: 3.507300348e-06 | E188: 3.507300348e-06 | F188: 3.454479769e-06 | G188: 1.175212284e-05 | H188: 2.068373619 | I188: 65.76090834 | J188: 0.2271697274 | K188: 0.2349359356 | L188: 1.03418681 | M188: 0.0003459822923 | N188: 0.0003459822923 | O188: 0.0003459822923 | P188: 0.0003459822923 | S188: 1 | U188: 0.002002274492 | V188: 96.84388958 | X188: 43 | Y188: 0.2349359356 | AA188: 43 | AB188: 1.03418681
A189: 189 | B189: 0.002017481095 | C189: 97.43264395 | D189: 3.479925749e-06 | E189: 3.479925749e-06 | F189: 3.454479769e-06 | G189: 1.184457011e-05 | H189: 2.084644339 | I189: 65.36353616 | J189: 0.2257970133 | K189: 0.2353532328 | L189: 1.04232217 | M189: 0.000350823855 | N189: 0.000350823855 | O189: 0.000350823855 | P189: 0.000350823855 | S189: 1 | U189: 0.002017481095 | V189: 97.43264395 | X189: 44 | Y189: 0.2353532328 | AA189: 44 | AB189: 1.04232217
A190: 190 | B190: 0.002032780145 | C190: 98.02174951 | D190: 3.452959208e-06 | E190: 3.452959208e-06 | F190: 3.452959208e-06 | G190: 1.193181818e-05 | H190: 2.1 | I190: 64.99931553 | J190: 0.2244399851 | K190: 0.2356619844 | L190: 1.05 | M190: 0.0003553883577 | N190: 0.0003553883577 | O190: 0.0003553883577 | P190: 0.0003553883577 | S190: 1 | U190: 0.002032780145 | V190: 98.02174951 | X190: 44 | Y190: 0.2356619844 | AA190: 44 | AB190: 1.05
A191: 191 | B191: 0.002048164922 | C191: 98.61087123 | D191: 3.426406668e-06 | E191: 3.426406668e-06 | F191: 3.426406668e-06 | G191: 1.193181818e-05 | H191: 2.1 | I191: 65.1116916 | J191: 0.2230991343 | K191: 0.234254091 | L191: 1.05 | M191: 0.000354774994 | N191: 0.000354774994 | O191: 0.000354774994 | P191: 0.000354774994 | S191: 1 | U191: 0.002048164922 | V191: 98.61087123 | X191: 44 | Y191: 0.234254091 | AA191: 44 | AB191: 1.05
A192: 192 | B192: 0.002063523147 | C192: 99.19567096 | D192: 3.40044975e-06 | E192: 3.40044975e-06 | F192: 3.40044975e-06 | G192: 1.193181818e-05 | H192: 2.1 | I192: 65.2219231 | J192: 0.2217838721 | K192: 0.2328730657 | L192: 1.05 | M192: 0.0003541753892 | N192: 0.0003541753892 | O192: 0.0003541753892 | P192: 0.0003541753892 | S192: 1 | U192: 0.002063523147 | V192: 99.19567096 | X192: 45 | Y192: 0.2328730657 | AA192: 45 | AB192: 1.05
A193: 193 | B193: 0.002078855415 | C193: 99.77616877 | D193: 3.375069821e-06 | E193: 3.375069821e-06 | F193: 3.375069821e-06 | G193: 1.193181818e-05 | H193: 2.1 | I193: 65.33006577 | J193: 0.2204935334 | K193: 0.23151821 | L193: 1.05 | M193: 0.0003535891129 | N193: 0.0003535891129 | O193: 0.0003535891129 | P193: 0.0003535891129 | S193: 1 | U193: 0.002078855415 | V193: 99.77616877 | X193: 45 | Y193: 0.23151821 | AA193: 45 | AB193: 1.05
A194: 194 | B194: 0.002094162303 | C194: 100.3523838 | D194: 3.350249057e-06 | E194: 3.350249057e-06 | F194: 3.350249057e-06 | G194: 1.193181818e-05 | H194: 2.1 | I194: 65.43617329 | J194: 0.2192274778 | K194: 0.2301888517 | L194: 1.05 | M194: 0.0003530157532 | N194: 0.0003530157532 | O194: 0.0003530157532 | P194: 0.0003530157532 | S194: 1 | U194: 0.002094162303 | V194: 100.3523838 | X194: 45 | Y194: 0.2301888517 | AA194: 45 | AB194: 1.05
A195: 195 | B195: 0.00210944437 | C195: 100.9243344 | D195: 3.3259704e-06 | E195: 3.3259704e-06 | F195: 3.3259704e-06 | G195: 1.193181818e-05 | H195: 2.1 | I195: 65.54029731 | J195: 0.2179850889 | K195: 0.2288843433 | L195: 1.05 | M195: 0.0003524549162 | N195: 0.0003524549162 | O195: 0.0003524549162 | P195: 0.0003524549162 | S195: 1 | U195: 0.00210944437 | V195: 100.9243344 | X195: 46 | Y195: 0.2288843433 | AA195: 46 | AB195: 1.05
A196: 196 | B196: 0.002124702159 | C196: 101.4920378 | D196: 3.30221752e-06 | E196: 3.30221752e-06 | F196: 3.30221752e-06 | G196: 1.193181818e-05 | H196: 2.1 | I196: 65.64248762 | J196: 0.2167657727 | K196: 0.2276040613 | L196: 1.05 | M196: 0.0003519062247 | N196: 0.0003519062247 | O196: 0.0003519062247 | P196: 0.0003519062247 | S196: 1 | U196: 0.002124702159 | V196: 101.4920378 | X196: 46 | Y196: 0.2276040613 | AA196: 46 | AB196: 1.05
A197: 197 | B197: 0.002139936194 | C197: 102.0555108 | D197: 3.27897477e-06 | E197: 3.27897477e-06 | F197: 3.27897477e-06 | G197: 1.193181818e-05 | H197: 2.1 | I197: 65.74279219 | J197: 0.2155689569 | K197: 0.2263474047 | L197: 1.05 | M197: 0.0003513693172 | N197: 0.0003513693172 | O197: 0.0003513693172 | P197: 0.0003513693172 | S197: 1 | U197: 0.002139936194 | V197: 102.0555108 | X197: 46 | Y197: 0.2263474047 | AA197: 46 | AB197: 1.05
A198: 198 | B198: 0.002155146987 | C198: 102.614769 | D198: 3.256227155e-06 | E198: 3.256227155e-06 | F198: 3.256227155e-06 | G198: 1.193181818e-05 | H198: 2.1 | I198: 65.84125724 | J198: 0.2143940897 | K198: 0.2251137942 | L198: 1.05 | M198: 0.0003508438473 | N198: 0.0003508438473 | O198: 0.0003508438473 | P198: 0.0003508438473 | S198: 1 | U198: 0.002155146987 | V198: 102.614769 | X198: 47 | Y198: 0.2251137942 | AA198: 47 | AB198: 1.05
A199: 199 | B199: 0.002170335033 | C199: 103.1698277 | D199: 3.233960297e-06 | E199: 3.233960297e-06 | F199: 3.233960297e-06 | G199: 1.193181818e-05 | H199: 2.1 | I199: 65.93792738 | J199: 0.2132406392 | K199: 0.2239026712 | L199: 1.05 | M199: 0.0003503294829 | N199: 0.0003503294829 | O199: 0.0003503294829 | P199: 0.0003503294829 | S199: 1 | U199: 0.002170335033 | V199: 103.1698277 | X199: 47 | Y199: 0.2239026712 | AA199: 47 | AB199: 1.05
A200: 200 | B200: 0.002185500811 | C200: 103.7207011 | D200: 3.212160402e-06 | E200: 3.212160402e-06 | F200: 3.212160402e-06 | G200: 1.193181818e-05 | H200: 2.1 | I200: 66.03284563 | J200: 0.2121080919 | K200: 0.2227134965 | L200: 1.05 | M200: 0.0003498259053 | N200: 0.0003498259053 | O200: 0.0003498259053 | P200: 0.0003498259053 | S200: 1 | U200: 0.002185500811 | V200: 103.7207011 | X200: 47 | Y200: 0.2227134965 | AA200: 47 | AB200: 1.05
... 2285 more rows

Sheet Alg TL Vfmax (hidden)
C1: LED DCM Buck Model | AD1: Freqs | AE1: Line Voltage | AF1: LED Volts | AG1: Lout
D2: =D3/1000000 -> 0.000125 | AD2: 50 | AE2: 80 | AF2: 5 | AG2: 200
C3: Lout | D3: =Step1!D22 -> 125 | E3: uH | G3: Slope | H3: Intercept | I3: Fmax | J3: Favg | K3: Iavgin | L3: Iavgout | O3: Pavgin | P3: Pavgout | Q3: In RMS | R3: PF | AD3: 60 | AE3: 85 | AF3: =AF2+1 -> 6
C4: Vout | D4: =Step1!D12 -> 26 | E4: VDC | G4: =Worksheet!Q22 -> -0.03657668208 | H4: =Worksheet!Q25 -> 7.112147977 | I4: =MAX(I12:I3001) -> 366.914119 | J4: =S10*2*60/1000 -> 98.88 | K4: =O4/(D6*1.414*0.636) -> 0.1787005151 | L4: =P4/D4 -> 0.7417204064 | O4: =SUM(O11:O2500)*2*D7 -> 19.28473057 | P4: =SUM(P11:P2500)*2*D7 -> 19.28473057 | Q4: =SQRT(P6/P7) -> 0.168427034 | R4: =O4/(D6*Q4) -> 0.9541585116 | AE4: 90 | AF4: =AF3+1 -> 7
C5: Ipeak | D5: =Step1!D23 -> 2.1 | E5: A | AE5: 100 | AF5: 8
C6: Vin RMS | D6: =Step1!D9 -> 120 | E6: VAC | P6: =SUMSQ(K11:K2500) -> 23.3749566 | AE6: 120 | AF6: 9
C7: Freq | D7: =Step1!D11 -> 60 | E7: Hz | P7: =S10 -> 824 | AE7: 132 | AF7: 10
C8: Ton | D8: =(D6*G4)+H4 -> 2.722946127 | E8: us | AE8: 180 | AF8: 11
AE9: 200 | AF9: 12
A10: N | C10: Vin | D10: Time | E10: Ton Calc | F10: Ton | G10: Toff | H10: Ipeak | I10: Freq | J10: Duty | K10: Iin | L10: Iout | M10: Ein | N10: Eout | O10: Pin | P10: Pout | S10: =SUM(S11:S2500) -> 824 | U10: Time | V10: =C10 -> Vin | X10: =U10 -> Time | Y10: =K10 -> Iin | AA10: =U10 -> Time | AB10: =L10 -> Iout | AE10: 220 | AF10: 13
A11: 11 | B11: 0 | C11: =$D$6*1.414*SIN(6.28*B11*$D$7) -> 0 | D11: =IF(C11<$D$4,0.0001,$D$2*$D$5/(C11-$D$4)) -> 0.0001 | E11: =IF($D$2*$D$5/(C11-$D$4)<0,0,$D$2*$D$5/(C11-$D$4)) -> 0 | F11: =IF(E11>$D$8*0.000001,$D$8*0.000001,E11) -> 0 | G11: =IF(F11<=0,0,$D$2*H11/$D$4) -> 0 | H11: =(C11-$D$4)*F11/$D$2 -> 0 | I11: =IF(H11<=0.0001,0,0.001/(F11+G11)) -> 0 | J11: =IF(H11<=0,0,F11/(F11+G11)) -> 0 | K11: =S11*J11*H11/2 -> 0 | L11: =S11*H11/2 -> 0 | M11: =(F11+G11)*C11*J11*H11/2 -> 0 | N11: =$D$4*H11*0.5*(F11+G11) -> 0 | O11: =M11*S11 -> 0 | P11: =N11*S11 -> 0 | S11: =IF(B11<=1/(2*$D$7),1,0) -> 1 | U11: =IF(B11<(1/(2*$D$7)),B11,1/(2*$D$7)) -> 0 | V11: =C11 -> 0 | X11: =ROUND(U11*360*$D$7,0) -> 0 | Y11: =K11 -> 0 | AA11: =ROUND(U11*360*$D$7,0) -> 0 | AB11: =L11 -> 0 | AE11: 230 | AF11: 14
A12: =A11+1 -> 12 | B12: =IF(F11<=0,D11+B11,F11+G11) -> 0.0001 | C12: =ABS($D$6*1.414*SIN(6.28*B12*$D$7)) -> 6.392029601 | D12: 0.0001 | E12: =IF($D$2*$D$5/(C12-$D$4)<0,0,$D$2*$D$5/(C12-$D$4)) -> 0 | F12: 0 | G12: 0 | H12: 0 | I12: 0 | J12: =IF(H12<=0,0,F12/(F12+G12)) -> 0 | K12: =S12*J12*H12/2 -> 0 | L12: =S12*H12/2 -> 0 | M12: 0 | N12: 0 | O12: =M12*S12 -> 0 | P12: =N12*S12 -> 0 | S12: =IF(B12<=1/(2*$D$7),1,0) -> 1 | U12: =IF(B12<(1/(2*$D$7)),B12,1/(2*$D$7)) -> 0.0001 | V12: 6.392029601 | X12: =ROUND(U12*360*$D$7,0) -> 2 | Y12: 0 | AA12: =ROUND(U12*360*$D$7,0) -> 2 | AB12: 0 | AE12: 240 | AF12: 15
A13: =A12+1 -> 13 | B13: =IF(F12<=0,D12+B12,F12+G12) -> 0.0002 | C13: =ABS($D$6*1.414*SIN(6.28*B13*$D$7)) -> 12.77498498 | D13: 0.0001 | E13: 0 | F13: 0 | G13: 0 | H13: 0 | I13: 0 | J13: 0 | K13: 0 | L13: 0 | M13: 0 | N13: 0 | O13: 0 | P13: 0 | S13: 1 | U13: =IF(B13<(1/(2*$D$7)),B13,1/(2*$D$7)) -> 0.0002 | V13: 12.77498498 | X13: 4 | Y13: 0 | AA13: 4 | AB13: 0 | AE13: 253 | AF13: 16
A14: 14 | B14: =IF(F13<=0,D13+B13,F13+G13) -> 0.0003 | C14: =ABS($D$6*1.414*SIN(6.28*B14*$D$7)) -> 19.13980481 | D14: 0.0001 | E14: 0 | F14: 0 | G14: 0 | H14: 0 | I14: 0 | J14: 0 | K14: 0 | L14: 0 | M14: 0 | N14: 0 | O14: 0 | P14: 0 | S14: 1 | U14: 0.0003 | V14: 19.13980481 | X14: 6 | Y14: 0 | AA14: 6 | AB14: 0 | AE14: 265 | AF14: 17
A15: 15 | B15: =IF(F14<=0,D14+B14,F14+G14) -> 0.0004 | C15: 25.4774535 | D15: 0.0001 | E15: 0 | F15: 0 | G15: 0 | H15: 0 | I15: 0 | J15: 0 | K15: 0 | L15: 0 | M15: 0 | N15: 0 | O15: 0 | P15: 0 | S15: 1 | U15: 0.0004 | V15: 25.4774535 | X15: 9 | Y15: 0 | AA15: 9 | AB15: 0 | AE15: 277 | AF15: 18
A16: 16 | B16: =IF(F15<=0,D15+B15,F15+G15+B15) -> 0.0005 | C16: 31.77893403 | D16: 4.542360212e-05 | E16: 4.542360212e-05 | F16: 2.722946127e-06 | G16: 6.052202321e-07 | H16: 0.1258858083 | I16: 300.4657496 | J16: 0.8181520493 | K16: 0.051496866 | L16: 0.06294290413 | M16: 5.446595858e-06 | N16: 5.446595858e-06 | O16: 5.446595858e-06 | P16: 5.446595858e-06 | S16: 1 | U16: 0.0005 | V16: 31.77893403 | X16: 11 | Y16: 0.051496866 | AA16: 11 | AB16: 0.06294290413 | AE16: 305 | AF16: 19
A17: 17 | B17: =IF(F16<=0,D16+B16,F16+G16+B16) -> 0.0005033281664 | C17: 31.98793147 | D17: 4.383817708e-05 | E17: 4.383817708e-05 | F17: 2.722946127e-06 | G17: 6.271082614e-07 | H17: 0.1304385184 | I17: 298.5026164 | J17: 0.8128065432 | K17: 0.05301064061 | L17: 0.06521925919 | M17: 5.680689702e-06 | N17: 5.680689702e-06 | O17: 5.680689702e-06 | P17: 5.680689702e-06 | S17: 1 | U17: 0.0005033281664 | V17: 31.98793147 | X17: 11 | Y17: 0.05301064061 | AA17: 11 | AB17: 0.06521925919 | AF17: 20
A18: 18 | B18: 0.0005066782207 | C18: 32.19825259 | D18: 4.235064577e-05 | E18: 4.235064577e-05 | F18: =IF(E18>$D$8*0.000001,$D$8*0.000001,E18) -> 2.722946127e-06 | G18: 6.49134919e-07 | H18: 0.1350200632 | I18: =IF(H18<=0.0001,0,0.001/(F18+G18)) -> 296.5527775 | J18: 0.8074972368 | K18: 0.05451416396 | L18: 0.06751003158 | M18: =(F18+G18)*C18*J18*H18/2 -> 5.918881745e-06 | N18: 5.918881745e-06 | O18: 5.918881745e-06 | P18: 5.918881745e-06 | S18: 1 | U18: 0.0005066782207 | V18: 32.19825259 | X18: 11 | Y18: 0.05451416396 | AA18: 11 | AB18: 0.06751003158 | AF18: 21
A19: 19 | B19: 0.0005100503018 | C19: 32.40990477 | D19: 4.095224646e-05 | E19: 4.095224646e-05 | F19: =IF(E19>$D$8*0.000001,$D$8*0.000001,E19) -> 2.722946127e-06 | G19: 6.71300976e-07 | H19: 0.139630603 | I19: =IF(H19<=0.0001,0,0.001/(F19+G19)) -> 294.616146 | J19: 0.8022238937 | K19: 0.05600750301 | L19: 0.0698153015 | M19: =(F19+G19)*C19*J19*H19/2 -> 6.161230006e-06 | N19: 6.161230006e-06 | O19: 6.161230006e-06 | P19: 6.161230006e-06 | S19: 1 | U19: 0.0005100503018 | V19: 32.40990477 | X19: 11 | Y19: 0.05600750301 | AA19: 11 | AB19: 0.0698153015 | AF19: 22
A20: 20 | B20: 0.0005134445489 | C20: 32.62289539 | D20: 3.963523274e-05 | E20: 3.963523274e-05 | F20: 2.722946127e-06 | G20: 6.936072054e-07 | H20: 0.1442702987 | I20: 292.6926357 | J20: 0.7969862789 | K20: 0.05749072427 | L20: 0.07213514936 | M20: 6.407793208e-06 | N20: 6.407793208e-06 | O20: 6.407793208e-06 | P20: 6.407793208e-06 | S20: 1 | U20: 0.0005134445489 | V20: 32.62289539 | X20: 11 | Y20: 0.05749072427 | AA20: 11 | AB20: 0.07213514936 | AF20: 23
A21: 21 | B21: 0.0005168611022 | C21: 32.83723184 | D21: 3.839273061e-05 | E21: 3.839273061e-05 | F21: 2.722946127e-06 | G21: 7.160543826e-07 | H21: 0.1489393116 | I21: 290.782161 | J21: 0.7917841592 | K21: 0.05896389379 | L21: 0.07446965579 | M21: 6.658630789e-06 | N21: 6.658630789e-06 | O21: 6.658630789e-06 | P21: 6.658630789e-06 | S21: 1 | U21: 0.0005168611022 | V21: 32.83723184 | X21: 11 | Y21: 0.05896389379 | AA21: 11 | AB21: 0.07446965579 | AF21: 24
A22: 22 | B22: 0.0005203001027 | C22: 33.05292154 | D22: 3.721861903e-05 | E22: 3.721861903e-05 | F22: 2.722946127e-06 | G22: 7.386432847e-07 | H22: 0.1536378032 | I22: 288.8846368 | J22: 0.786617303 | K22: 0.0604270772 | L22: 0.07681890161 | M22: 6.913802907e-06 | N22: 6.913802907e-06 | O22: 6.913802907e-06 | P22: 6.913802907e-06 | S22: 1 | U22: 0.0005203001027 | V22: 33.05292154 | X22: 11 | Y22: 0.0604270772 | AA22: 11 | AB22: 0.07681890161 | AF22: 25
A23: 23 | B23: 0.0005237616922 | C23: 33.26997195 | D23: 3.610742955e-05 | E23: 3.610742955e-05 | F23: 2.722946127e-06 | G23: 7.613746909e-07 | H23: 0.1583659357 | I23: 286.9999785 | J23: 0.7814854801 | K23: 0.06188033964 | L23: 0.07918296785 | M23: 7.173370446e-06 | N23: 7.173370446e-06 | O23: 7.173370446e-06 | P23: 7.173370446e-06 | S23: 1 | U23: 0.0005237616922 | V23: 33.26997195 | X23: 11 | Y23: 0.06188033964 | AA23: 11 | AB23: 0.07918296785 | AF23: 26
A24: 24 | B24: 0.000527246013 | C24: 33.48839051 | D24: 3.505426161e-05 | E24: 3.505426161e-05 | F24: 2.722946127e-06 | G24: 7.842493823e-07 | H24: 0.1631238715 | I24: 285.1281023 | J24: 0.7763884619 | K24: 0.06332374585 | L24: 0.08156193576 | M24: 7.437395025e-06 | N24: 7.437395025e-06 | O24: 7.437395025e-06 | P24: 7.437395025e-06 | S24: 1 | U24: 0.000527246013 | V24: 33.48839051 | X24: 11 | Y24: 0.06332374585 | AA24: 11 | AB24: 0.08156193576 | AF24: 27
A25: 25 | B25: 0.0005307532085 | C25: 33.7081847 | D25: 3.405471068e-05 | E25: 3.405471068e-05 | F25: 2.722946127e-06 | G25: 8.072681418e-07 | H25: 0.1679117735 | I25: 283.2689247 | J25: 0.7713260215 | K25: 0.06475736011 | L25: 0.08395588675 | M25: 7.705939003e-06 | N25: 7.705939003e-06 | O25: 7.705939003e-06 | P25: 7.705939003e-06 | S25: 1 | U25: 0.0005307532085 | V25: 33.7081847 | X25: 11 | Y25: 0.06475736011 | AA25: 11 | AB25: 0.08395588675 | AF25: 28
A26: 26 | B26: 0.0005342834227 | C26: 33.92936202 | D26: 3.310480708e-05 | E26: 3.310480708e-05 | F26: 2.722946127e-06 | G26: 8.304317542e-07 | H26: 0.1727298049 | I26: 281.422363 | J26: 0.7662979334 | K26: 0.06618124625 | L26: 0.08636490243 | M26: 7.979065484e-06 | N26: 7.979065484e-06 | O26: 7.979065484e-06 | P26: 7.979065484e-06 | S26: 1 | U26: 0.0005342834227 | V26: 33.92936202 | X26: 12 | Y26: 0.06618124625 | AA26: 12 | AB26: 0.08636490243 | AF26: 29
A27: 27 | B27: 0.0005378368006 | C27: 34.15192997 | D27: 3.220096355e-05 | E27: 3.220096355e-05 | F27: 2.722946127e-06 | G27: 8.537410059e-07 | H27: 0.1775781292 | I27: 279.5883349 | J27: 0.7613039737 | K27: 0.06759546771 | L27: 0.08878906461 | M27: 8.256838328e-06 | N27: 8.256838328e-06 | O27: 8.256838328e-06 | P27: 8.256838328e-06 | S27: 1 | U27: 0.0005378368006 | V27: 34.15192997 | X27: 12 | Y27: 0.06759546771 | AA27: 12 | AB27: 0.08878906461 | AF27: 30
A28: 28 | B28: 0.0005414134878 | C28: 34.37589609 | D28: 3.133993035e-05 | E28: 3.133993035e-05 | F28: 2.722946127e-06 | G28: 8.771966851e-07 | H28: 0.1824569105 | I28: 277.7667588 | J28: 0.75634392 | K28: 0.06900008746 | L28: 0.09122845525 | M28: 8.539322154e-06 | N28: 8.539322154e-06 | O28: 8.539322154e-06 | P28: 8.539322154e-06 | S28: 1 | U28: 0.0005414134878 | V28: 34.37589609 | X28: 12 | Y28: 0.06900008746 | AA28: 12 | AB28: 0.09122845525 | AF28: 31
A29: 29 | B29: 0.0005450136306 | C29: 34.6012679 | D29: 3.051875641e-05 | E29: 3.051875641e-05 | F29: 2.722946127e-06 | G29: 9.007995818e-07 | H29: 0.187366313 | I29: 275.9575534 | J29: 0.7514175513 | K29: 0.07039516806 | L29: 0.0936831565 | M29: 8.826582346e-06 | N29: 8.826582346e-06 | O29: 8.826582346e-06 | P29: 8.826582346e-06 | S29: 1 | U29: 0.0005450136306 | V29: 34.6012679 | X29: 12 | Y29: 0.07039516806 | AA29: 12 | AB29: 0.0936831565 | AF29: 32
A30: 30 | B30: 0.0005486373763 | C30: 34.82805298 | D30: 2.973475586e-05 | E30: 2.973475586e-05 | F30: 2.722946127e-06 | G30: 9.245504872e-07 | H30: 0.1923065013 | I30: 274.1606383 | J30: 0.7465246483 | K30: 0.07178077164 | L30: 0.09615325067 | M30: 9.118685063e-06 | N30: 9.118685063e-06 | O30: 9.118685063e-06 | P30: 9.118685063e-06 | S30: 1 | U30: 0.0005486373763 | V30: 34.82805298 | X30: 12 | Y30: 0.07178077164 | AA30: 12 | AB30: 0.09615325067 | AF30: 33
A31: 31 | B31: 0.0005522848729 | C31: 35.05625888 | D31: 2.898547881e-05 | E31: 2.898547881e-05 | F31: 2.722946127e-06 | G31: 9.484501943e-07 | H31: 0.1972776404 | I31: 272.3759334 | J31: 0.741664993 | K31: 0.0731569599 | L31: 0.09863882021 | M31: 9.415697243e-06 | N31: 9.415697243e-06 | O31: 9.415697243e-06 | P31: 9.415697243e-06 | S31: 1 | U31: 0.0005522848729 | V31: 35.05625888 | X31: 12 | Y31: 0.0731569599 | AA31: 12 | AB31: 0.09863882021 | AF31: 34
A32: 32 | B32: 0.0005559562692 | C32: 35.2858932 | D32: 2.826868609e-05 | E32: 2.826868609e-05 | F32: 2.722946127e-06 | G32: 9.724994975e-07 | H32: 0.2022798955 | I32: 270.6033593 | J32: 0.7368383691 | K32: 0.07452379414 | L32: 0.1011399477 | M32: 9.717686611e-06 | N32: 9.717686611e-06 | O32: 9.717686611e-06 | P32: 9.717686611e-06 | S32: 1 | U32: 0.0005559562692 | V32: 35.2858932 | X32: 12 | Y32: 0.07452379414 | AA32: 12 | AB32: 0.1011399477 | AF32: 35
